Workbook

Sheet Exhibit
A1: Implementation of Fenton-Wilkinson Approximation for a Sum of Lognormals with I(1) autocorrelation | AL1: 1687351312 | AM1: 472305727 | AN1: 1168671627 | AO1: 1101601711 | AP1: 1289303373 | AQ1: 893836985 | AR1: 776086488 | AS1: 1308310832 | AT1: 1534537906 | AU1: 1184099475 | AV1: 476086488 | AW1: 708310832 | AY1: Y(sigma) | AZ1: =$F$5*SQRT(12) -> 0.09075946232 | BM1: Simulated | BP1: F-W | BQ1: Large Sample | BR1: Small Sample | BS1: F-W minus
A2: Framed as an exchange rate model but suitable to other similar processes also | AL2: =COUNT(AL4:AL1048576) -> 10000 | AY2: Y(mu) | AZ2: =LN(H8)-12*($F$5^2)/2 -> 0.01419890369 | BA2: =LN(H9)-12*($F$5^2)/2 -> 0.01129470237 | BB2: =LN(H10)-12*($F$5^2)/2 -> 0.009871283564 | BC2: =LN(H11)-12*($F$5^2)/2 -> 0.009221582292 | BD2: =LN(H12)-12*($F$5^2)/2 -> 0.00895051355 | BE2: =LN(H13)-12*($F$5^2)/2 -> 0.008814902815 | BF2: =LN(H14)-12*($F$5^2)/2 -> 0.00872816967 | BG2: =LN(H15)-12*($F$5^2)/2 -> 0.008661738732 | BH2: =LN(H16)-12*($F$5^2)/2 -> 0.008625211625 | BI2: =LN(H17)-12*($F$5^2)/2 -> 0.008647594104 | BJ2: =LN(H18)-12*($F$5^2)/2 -> 0.008728920662 | BK2: =LN(H19)-12*($F$5^2)/2 -> 0.008839959944 | BM2: Lognormal | BO2: Right | BP2: Approximate | BQ2: Simulated | BR2: Simulated | BS2: Large Sample
AL3: Lehmer Random Numbers for Simulation (Seeds on First Row, Fixed Set Available Above) | AZ3: Simulated Results for Successive Lognormals | BM3: Sum | BO3: Tail CDF | BP3: Inverse CDF | BQ3: Inverse CDF | BR3: Inverse CDF | BS3: Inverse CDF | BU3: Table of Small Sample Simulated Inverse CDF from Macro to Produce Large Sample
E4: Current EUR/USD | F4: 1.121 | AL4: =RANDBETWEEN(0,2^31-1) -> 244653841 | AM4: =RANDBETWEEN(0,2^31-1) -> 1414746171 | AN4: 79401276 | AO4: 769398472 | AP4: 235498336 | AQ4: 1447411334 | AR4: 494134323 | AS4: 1677744617 | AT4: 2112960747 | AU4: 1895835027 | AV4: 889068138 | AW4: 1539698085 | AZ4: =$F$4*_xlfn.LOGNORM.INV(AL4/(2^31-1),AZ$2,$AZ$1) -> 1.019153291 | BA4: =AZ4*_xlfn.LOGNORM.INV(AM4/(2^31-1),BA$2,$AZ$1) -> 1.069726407 | BB4: =BA4*_xlfn.LOGNORM.INV(AN4/(2^31-1),BB$2,$AZ$1) -> 0.9185977659 | BC4: =BB4*_xlfn.LOGNORM.INV(AO4/(2^31-1),BC$2,$AZ$1) -> 0.8970562428 | BD4: =BC4*_xlfn.LOGNORM.INV(AP4/(2^31-1),BD$2,$AZ$1) -> 0.8096377622 | BE4: =BD4*_xlfn.LOGNORM.INV(AQ4/(2^31-1),BE$2,$AZ$1) -> 0.8509334364 | BF4: =BE4*_xlfn.LOGNORM.INV(AR4/(2^31-1),BF$2,$AZ$1) -> 0.8027428201 | BG4: =BF4*_xlfn.LOGNORM.INV(AS4/(2^31-1),BG$2,$AZ$1) -> 0.868847 | BH4: =BG4*_xlfn.LOGNORM.INV(AT4/(2^31-1),BH$2,$AZ$1) -> 1.064484461 | BI4: =BH4*_xlfn.LOGNORM.INV(AU4/(2^31-1),BI$2,$AZ$1) -> 1.196102299 | BJ4: =BI4*_xlfn.LOGNORM.INV(AV4/(2^31-1),BJ$2,$AZ$1) -> 1.183030201 | BK4: =BJ4*_xlfn.LOGNORM.INV(AW4/(2^31-1),BK$2,$AZ$1) -> 1.257347986 | BM4: =SUMPRODUCT(TRANSPOSE($J$8:$J$19),AZ4:BK4) -> 5767452.83 | BO4: 0.9 | BP4: =_xlfn.LOGNORM.INV(BO4,$G$24,$G$25) -> 7972452.687 | BQ4: =AVERAGE(BU4:XFD4) -> 999719.3521 | BR4: =LARGE($BM:$BM,ROUND((1-BO4)*$AL$2,0)) -> 7990545.512 | BS4: =BP4-BQ4 -> 6972733.335 | BU4: 998533.2274 | BV4: 997061.52 | BW4: 1000296.988 | BX4: 1000320.368 | BY4: 999651.9763 | BZ4: 1001374.429 | CA4: 1002054.58 | CB4: 1001122.623 | CC4: 999543.4837 | CD4: 1002297.039 | CE4: 997563.9198 | CF4: 1003259.889 | CG4: 998011.7512 | CH4: 996703.6626 | CI4: 999403.0421 | CJ4: 1000528.344 | CK4: 999740.5421 | CL4: 1001773.054 | CM4: 997066.2031 | CN4: 1001363.223 | CO4: 1002270.564 | CP4: 1001618.49 | CQ4: 1000047.301 | CR4: 999785.8315 | CS4: 996998.45 | CT4: 998746.3458 | CU4: 997381.3141 | CV4: 996419.8026 | CW4: 1001988.153 | CX4: 1004019.591 | CY4: 1000782.253 | CZ4: 997530.4373 | DA4: 1001282.833 | DB4: 998162.2353 | DC4: 1000521.183 | DD4: 999711.3899 | DE4: 991047.9761 | DF4: 996007.8552 | DG4: 998753.2469 | DH4: 998857.6655 | DI4: 1002453.594 | DJ4: 995957.0197 | DK4: 1000647.123 | DL4: 999634.8753 | DM4: 999650.4084 | DN4: 1002025.806 | DO4: 999155.1013 | DP4: 1002001.084 | DQ4: 1001873.448 | DR4: 994482.7968 | DS4: 1001795.993 | DT4: 1002224.868 | DU4: 997927.7938 | DV4: 996736.9903 | DW4: 1002427.604 | DX4: 1002616.172 | DY4: 1000477.09 | DZ4: 1000943.172 | EA4: 999549.0626 | EB4: 999179.7859 | EC4: 996684.995 | ED4: 996389.9687 | EE4: 997401.7216 | EF4: 1001468.47 | EG4: 1001372.341 | EH4: 998348.6657 | EI4: 995901.1986 | EJ4: 998626.0943 | EK4: 999126.3144 | EL4: 998670.0606 | EM4: 1002013.683 | EN4: 1001501.615 | EO4: 999916.483 | EP4: 997920.9258 | EQ4: 1001981.264 | ER4: 1001970.935 | ES4: 998872.8253 | ET4: 1000326.933 | EU4: 1001880.066 | EV4: 997423.7938 | EW4: 1000692.029 | EX4: 1000250.455 | EY4: 1003494.097 | EZ4: 998015.6187 | FA4: 998634.493 | FB4: 999275.9501 | FC4: 998417.5907 | FD4: 1002050.272 | FE4: 1000634.617 | FF4: 1001511.501 | FG4: 999397.8889 | FH4: 998861.4378 | FI4: 996494.8751 | FJ4: 999773.3314 | FK4: 1002517.883 | FL4: 1001286.648 | FM4: 999579.7809 | FN4: 999873.8483 | FO4: 1002566.884 | FP4: 999445.0853
E5: Monthly Volatility | F5: 0.0262 | AL5: =MOD(48271*AL4,2^31-1) -> 672984058 | AM5: =MOD(48271*AM4,2^31-1) -> 1232445741 | AN5: 1668167548 | AO5: 1051450694 | AP5: 1109233485 | AQ5: 1759532016 | AR5: 257038304 | AS5: 507111543 | AT5: 2139887819 | AU5: 984455059 | AV5: 894887750 | AW5: 504722012 | AZ5: 1.087939021 | BA5: 1.119060972 | BB5: 1.21102673 | BC5: 1.219362735 | BD5: 1.234961606 | BE5: 1.353517634 | BF5: 1.227100843 | BG5: 1.159607019 | BH5: 1.493543973 | BI5: 1.492307143 | BJ5: 1.476929157 | BK5: 1.395484826 | BM5: =SUMPRODUCT(TRANSPOSE($J$8:$J$19),AZ5:BK5) -> 6824711.75 | BO5: =BO4+0.001 -> 0.901 | BP5: 7978127.054 | BQ5: 1000411.56 | BR5: 7999999.027 | BS5: =BP5-BQ5 -> 6977715.494 | BU5: 998815.9549 | BV5: 998250.9572 | BW5: 1000971.784 | BX5: 1001401.17 | BY5: 1000248.456 | BZ5: 1002111.116 | CA5: 1002658.795 | CB5: 1001704.069 | CC5: 999945.3159 | CD5: 1003013.105 | CE5: 998122.1955 | CF5: 1003824.801 | CG5: 998932.5854 | CH5: 997630.6127 | CI5: 1000221.875 | CJ5: 1001150.611 | CK5: 1000515.08 | CL5: 1002570.868 | CM5: 998010.339 | CN5: 1001992.489 | CO5: 1002877.726 | CP5: 1002092.437 | CQ5: 1001484.569 | CR5: 1000570.204 | CS5: 997594.1245 | CT5: 999139.175 | CU5: 998317.8986 | CV5: 997104.3552 | CW5: 1002649.892 | CX5: 1004868.446 | CY5: 1001557.074 | CZ5: 998066.7642 | DA5: 1001979.346 | DB5: 998598.2223 | DC5: 1001254.318 | DD5: 1000714.903 | DE5: 991533.5545 | DF5: 996669.6411 | DG5: 999103.4647 | DH5: 999588.8905 | DI5: 1003082.088 | DJ5: 996801.6629 | DK5: 1001414.834 | DL5: 1000620.566 | DM5: 1000242.61 | DN5: 1003018.181 | DO5: 999700.1955 | DP5: 1002474.778 | DQ5: 1002727.762 | DR5: 994785.7146 | DS5: 1002233.546 | DT5: 1002813.346 | DU5: 998306.2194 | DV5: 997313.2942 | DW5: 1003161.125 | DX5: 1003300.722 | DY5: 1001173.368 | DZ5: 1001355.099 | EA5: 1000009.059 | EB5: 999792.5009 | EC5: 997469.4872 | ED5: 996915.2954 | EE5: 997826.0177 | EF5: 1001714.909 | EG5: 1002023.866 | EH5: 998903.9059 | EI5: 996701.3074 | EJ5: 999289.3907 | EK5: 999605.3597 | EL5: 999546.0697 | EM5: 1002569.426 | EN5: 1002292.13 | EO5: 1000764.579 | EP5: 998512.3731 | EQ5: 1002981.18 | ER5: 1002745.56 | ES5: 999568.4129 | ET5: 1000890.653 | EU5: 1002737.361 | EV5: 997991.6176 | EW5: 1001558.222 | EX5: 1000914.796 | EY5: 1004799.18 | EZ5: 998857.317 | FA5: 999181.0634 | FB5: 1000106.844 | FC5: 998977.9605 | FD5: 1003003.861 | FE5: 1001513.657 | FF5: 1002715.988 | FG5: 999833.9444 | FH5: 999712.7178 | FI5: 996805.5307 | FJ5: 1000478.115 | FK5: 1003058.49 | FL5: 1002052.923 | FM5: 1000557.933 | FN5: 1000463.284 | FO5: 1003406.111 | FP5: 999925.3519
L6: Individual Distribution Parameters, Inverse CDF & CDF Values | Y6: Table of Covariance Terms | AL6: =MOD(48271*AL5,2^31-1) -> 628335549 | AM6: =MOD(48271*AM5,2^31-1) -> 1796374617 | AN6: =MOD(48271*AN5,2^31-1) -> 2068881596 | AO6: =MOD(48271*AO5,2^31-1) -> 947936876 | AP6: =MOD(48271*AP5,2^31-1) -> 599783784 | AQ6: =MOD(48271*AQ5,2^31-1) -> 1391705486 | AR6: =MOD(48271*AR5,2^31-1) -> 1482943665 | AS6: =MOD(48271*AS5,2^31-1) -> 1762683647 | AT6: =MOD(48271*AT5,2^31-1) -> 561490249 | AU6: =MOD(48271*AU5,2^31-1) -> 1112012173 | AV6: =MOD(48271*AV5,2^31-1) -> 493020845 | AW6: =MOD(48271*AW5,2^31-1) -> 234266037 | AZ6: 1.082075383 | BA6: 1.196183937 | BB6: 1.421351988 | BC6: 1.415459639 | BD6: 1.354343102 | BE6: 1.41429173 | BF6: 1.492573109 | BG6: 1.636439949 | BH6: 1.557633634 | BI6: 1.577546825 | BJ6: 1.487976571 | BK6: 1.342450813 | BM6: =SUMPRODUCT(TRANSPOSE($J$8:$J$19),AZ6:BK6) -> 7511967.635 | BO6: =BO5+0.001 -> 0.902 | BP6: 7983847.589 | BQ6: 1001133.904 | BR6: 8005211.536 | BS6: 6982713.685 | BU6: 999794.4412 | BV6: 998974.7423 | BW6: 1001536.238 | BX6: 1002104.338 | BY6: 1000857.15 | BZ6: 1002779.649 | CA6: 1003349.437 | CB6: 1002212.295 | CC6: 1000905.247 | CD6: 1003572.993 | CE6: 998737.3136 | CF6: 1004604.668 | CG6: 999516.3848 | CH6: 998246.1982 | CI6: 1000984.888 | CJ6: 1002478.312 | CK6: 1001078.098 | CL6: 1003413.803 | CM6: 998848.4019 | CN6: 1002667.521 | CO6: 1003419.546 | CP6: 1003119.726 | CQ6: 1002277.188 | CR6: 1001315.024 | CS6: 998534.571 | CT6: 999595.0932 | CU6: 999125.9019 | CV6: 998155.3651 | CW6: 1003093.061 | CX6: 1005350.368 | CY6: 1002099.975 | CZ6: 999125.8713 | DA6: 1002875.357 | DB6: 999368.8043 | DC6: 1001937.481 | DD6: 1001629.988 | DE6: 991997.7946 | DF6: 997443.6073 | DG6: 999762.6081 | DH6: 1000294.704 | DI6: 1003760.254 | DJ6: 997629.2335 | DK6: 1002183.96 | DL6: 1001144.777 | DM6: 1000535.486 | DN6: 1004119.608 | DO6: 1000319.929 | DP6: 1003608.624 | DQ6: 1003474.329 | DR6: 995440.0423 | DS6: 1002961.968 | DT6: 1003690.414 | DU6: 998808.1378 | DV6: 997992.4913 | DW6: 1004086.961 | DX6: 1003998.429 | DY6: 1001882.203 | DZ6: 1001972.561 | EA6: 1000674.223 | EB6: 1000115.551 | EC6: 998178.7525 | ED6: 997442.3389 | EE6: 998579.7822 | EF6: 1002290.882 | EG6: 1002711.169 | EH6: 1000166.026 | EI6: 997622.0201 | EJ6: 1000118.745 | EK6: 1000158.128 | EL6: 999980.5364 | EM6: 1003520.374 | EN6: 1003064.772 | EO6: 1001268.469 | EP6: 998859.4146 | EQ6: 1004056.888 | ER6: 1003234.325 | ES6: 1000309.849 | ET6: 1001865.203 | EU6: 1003359.14 | EV6: 998949.3687 | EW6: 1002294.34 | EX6: 1001654.68 | EY6: 1005314.312 | EZ6: 999489.3397 | FA6: 999774.3099 | FB6: 1000682.457 | FC6: 1000391.517 | FD6: 1003456.24 | FE6: 1002481.297 | FF6: 1003463.734 | FG6: 1000425.383 | FH6: 1000569.776 | FI6: 997604.397 | FJ6: 1000759.359 | FK6: 1003960.148 | FL6: 1002587.135 | FM6: 1000843.532 | FN6: 1000838.412 | FO6: 1004328.135 | FP6: 1001152.388
B7: Term | C7: US Rate | D7: PV Factor | E7: EU Rate | F7: E[EUR/USD] | G7: V[EUR/USD] | H7: E[Y] | I7: EUR Payment[t] | J7: w[t] | K7: UPLDF | L7: Mu | M7: Sigma | N7: 0.9 | O7: 0.95 | P7: 0.975 | Q7: 0.99 | R7: 0.995 | S7: 0.996 | T7: m[t] | U7: 1000000 | V7: 1400000 | W7: 2650000 | Z7: 2 | AA7: =Z7+1 -> 3 | AB7: =AA7+1 -> 4 | AC7: 5 | AD7: 6 | AE7: 7 | AF7: 8 | AG7: 9 | AH7: 10 | AI7: 11 | AJ7: 12 | AL7: 1473739198 | AM7: 1704438641 | AN7: 404000428 | AO7: 1426874767 | AP7: 1935992257 | AQ7: 1432069252 | AR7: 1101247764 | AS7: 1052746550 | AT7: 304700692 | AU7: 1585846118 | AV7: 195432941 | AW7: 1754470572 | AZ7: 1.188229463 | BA7: 1.294491402 | BB7: 1.206451664 | BC7: 1.26546888 | BD7: 1.43547367 | BE7: 1.505989905 | BF7: 1.523626003 | BG7: 1.533465705 | BH7: 1.403364321 | BI7: 1.500024534 | BJ7: 1.340555209 | BK7: 1.46809528 | BM7: =SUMPRODUCT(TRANSPOSE($J$8:$J$19),AZ7:BK7) -> 7300217.451 | BO7: 0.903 | BP7: 7989615.209 | BQ7: 1001839.356 | BR7: 8008879.571 | BS7: 6987775.853 | BU7: 1000528.258 | BV7: 1000009.3 | BW7: 1002312.899 | BX7: 1002587.463 | BY7: 1001793.804 | BZ7: 1003388.892 | CA7: 1004052.618 | CB7: 1003027.501 | CC7: 1001580.144 | CD7: 1004554.016 | CE7: 999548.2186 | CF7: 1005275.985 | CG7: 1000242.488 | CH7: 998965.8497 | CI7: 1001793.526 | CJ7: 1003074.27 | CK7: 1001865.986 | CL7: 1003832.943 | CM7: 999363.1379 | CN7: 1003325.694 | CO7: 1004307.519 | CP7: 1003937.483 | CQ7: 1002960.003 | CR7: 1001883.499 | CS7: 999100.642 | CT7: 1000112.975 | CU7: 999898.5747 | CV7: 999078.2112 | CW7: 1003455.189 | CX7: 1006171.794 | CY7: 1003490.178 | CZ7: 999585.5742 | DA7: 1003380.322 | DB7: 999841.4524 | DC7: 1002578.937 | DD7: 1002150.265 | DE7: 992945.5476 | DF7: 998045.0402 | DG7: 1000320.13 | DH7: 1001134.545 | DI7: 1004290.507 | DJ7: 998351.0675 | DK7: 1003147.991 | DL7: 1001868.038 | DM7: 1001289.658 | DN7: 1004863.331 | DO7: 1001122.221 | DP7: 1004209.228 | DQ7: 1004146.274 | DR7: 996042.4821 | DS7: 1003607.301 | DT7: 1004703.474 | DU7: 999514.3137 | DV7: 998889.54 | DW7: 1004531.989 | DX7: 1005058.981 | DY7: 1002398.465 | DZ7: 1002354.07 | EA7: 1001288.058 | EB7: 1001148.663 | EC7: 998748.6578 | ED7: 998125.3341 | EE7: 999178.8544 | EF7: 1003400.069 | EG7: 1003170.711 | EH7: 1000819.813 | EI7: 998464.064 | EJ7: 1001334.762 | EK7: 1000836.562 | EL7: 1000873.559 | EM7: 1004066.052 | EN7: 1003981.756 | EO7: 1001924.099 | EP7: 999767.3808 | EQ7: 1004852.342 | ER7: 1004114.829 | ES7: 1000766.431 | ET7: 1002681.27 | EU7: 1004319.432 | EV7: 999475.629 | EW7: 1002861.585 | EX7: 1002557.335 | EY7: 1005762.215 | EZ7: 1000159.231 | FA7: 1000585.11 | FB7: 1001306.204 | FC7: 1000861.125 | FD7: 1004333.14 | FE7: 1003083.241 | FF7: 1004154.291 | FG7: 1001165.143 | FH7: 1001005.853 | FI7: 998117.929 | FJ7: 1001401.75 | FK7: 1004446.9 | FL7: 1003285.745 | FM7: 1001504.797 | FN7: 1001248.08 | FO7: 1005073.179 | FP7: 1001794.616
B8: 1 | C8: 0.03742 | D8: =1/((1+C8)^B8) -> 0.9639297488 | E8: 0.01859 | F8: =(((1+C8)/(1+E8))^B8)*$F$4 -> 1.141723186 | G8: =($F$4^2)*((((1+C8)/(1+E8))^B8)^2)*(EXP(12*B8*($F$5^2))-1) -> 0.01078190251 | H8: =(1+C8)/(1+E8) -> 1.018486339 | I8: 1600000 | J8: =I8*D8 -> 1542287.598 | K8: =SUM(I$8:I$19)/SUM(I$8:I8) -> 4 | L8: =LN($F8)-$B8*(12/2)*($F$5^2) -> 0.1284200478 | M8: =$F$5*SQRT($B8*12) -> 0.09075946232 | N8: =_xlfn.LOGNORM.INV(N$7,LN($F8)-$B8*(12/2)*($F$5^2),$F$5*SQRT($B8*12)) -> 1.277280207 | O8: 1.320098135 | P8: 1.358396996 | Q8: 1.404326923 | R8: 1.436487547 | S8: 1.446461859 | T8: 0.25 | U8: =IFERROR(_xlfn.LOGNORM.DIST(U$7/$J8,LN($F8)-$B8*(12/2)*($F$5^2),$F$5*SQRT($B8*12),1),"na") -> 3.032329596e-10 | V8: =IFERROR(_xlfn.LOGNORM.DIST(V$7/$J8,LN($F8)-$B8*(12/2)*($F$5^2),$F$5*SQRT($B8*12),1),"na") -> 0.00654255224 | W8: 0.9999973061 | Y8: 1 | Z8: =IF(Z$7<=$Y8,"",PRODUCT(OFFSET($H8,0,0,Z$7-$Y8+1,1))*$G8*$J8*OFFSET($J$7,Z$7,0)*2) -> 5.151153147e+10 | AA8: 5.064341184e+10 | AB8: 4.965847737e+10 | AC8: 0 | AD8: 0 | AE8: 0 | AF8: 0 | AG8: 0 | AH8: 0 | AI8: 0 | AJ8: 0 | AL8: 1321536136 | AM8: 564155847 | AN8: 205661581 | AO8: 428867626 | AP8: 236371148 | AQ8: 2063750009 | AR8: 1668101853 | AS8: 1223176089 | AT8: 91605229 | AU8: 1175881016 | AV8: 1995317387 | AW8: 1883877920 | AZ8: 1.167714041 | BA8: 1.114836834 | BB8: 1.000043405 | BC8: 0.9349940475 | BD8: 0.8440442221 | BE8: 0.9992293457 | BF8: 1.080101757 | BG8: 1.106972609 | BH8: 0.955126663 | BI8: 0.9739283571 | BJ8: 1.122632273 | BK8: 1.258498198 | BM8: =SUMPRODUCT(TRANSPOSE($J$8:$J$19),AZ8:BK8) -> 6235662.971 | BO8: 0.904 | BP8: 7995430.858 | BQ8: 1002546.082 | BR8: 8013642.07 | BS8: 6992884.776 | BU8: 1001399.34 | BV8: 1000425.886 | BW8: 1003267.14 | BX8: 1003082.172 | BY8: 1002553.589 | BZ8: 1004204.539 | CA8: 1004818.2 | CB8: 1004031.273 | CC8: 1002261.852 | CD8: 1005199.309 | CE8: 1000601.036 | CF8: 1005906.675 | CG8: 1000847.761 | CH8: 999653.6563 | CI8: 1002554.939 | CJ8: 1003751.95 | CK8: 1002709.666 | CL8: 1004407.13 | CM8: 999678.5148 | CN8: 1003915.589 | CO8: 1005032.758 | CP8: 1004804.291 | CQ8: 1003441.945 | CR8: 1002566.681 | CS8: 999718.8303 | CT8: 1000591.358 | CU8: 1001218.148 | CV8: 999696.8371 | CW8: 1003847.881 | CX8: 1006662.095 | CY8: 1003969.862 | CZ8: 1000229.515 | DA8: 1004667.398 | DB8: 1000578.402 | DC8: 1003080.433 | DD8: 1003098.154 | DE8: 994036.6417 | DF8: 999401.5343 | DG8: 1000995.258 | DH8: 1001782.862 | DI8: 1004873.994 | DJ8: 999203.928 | DK8: 1003672.175 | DL8: 1002448.357 | DM8: 1002335.054 | DN8: 1005548.074 | DO8: 1001629.391 | DP8: 1004946.292 | DQ8: 1004813.967 | DR8: 996771.6631 | DS8: 1004186.626 | DT8: 1005153.454 | DU8: 1000407.615 | DV8: 999443.4147 | DW8: 1005084.7 | DX8: 1005771.915 | DY8: 1003131.776 | DZ8: 1003110.591 | EA8: 1002011.127 | EB8: 1001991.392 | EC8: 999321.5772 | ED8: 998595.7188 | EE8: 999840.4173 | EF8: 1004015.241 | EG8: 1004358.677 | EH8: 1001981.993 | EI8: 998949.3028 | EJ8: 1001881.265 | EK8: 1001520.891 | EL8: 1001853.53 | EM8: 1004972.878 | EN8: 1004767.148 | EO8: 1002731.731 | EP8: 1000262.848 | EQ8: 1005224.161 | ER8: 1004589.812 | ES8: 1001134.534 | ET8: 1003435.354 | EU8: 1004761.701 | EV8: 999894.2217 | EW8: 1003543.168 | EX8: 1003390.261 | EY8: 1006147.337 | EZ8: 1000971.743 | FA8: 1001230.702 | FB8: 1001907.979 | FC8: 1001435.406 | FD8: 1005212.429 | FE8: 1003646.979 | FF8: 1004660.314 | FG8: 1001728.887 | FH8: 1002001.381 | FI8: 998673.9614 | FJ8: 1002008.441 | FK8: 1005390.511 | FL8: 1004257.784 | FM8: 1002509.513 | FN8: 1002105.587 | FO8: 1005518.885 | FP8: 1002947.318
B9: =B8+1 -> 2 | C9: 0.03366 | D9: =1/((1+C9)^B9) -> 0.9359326092 | E9: 0.01785 | F9: 1.156094864 | G9: 0.02220153919 | H9: 1.015532741 | I9: 1600000 | J9: =I9*D9 -> 1497492.175 | K9: =SUM(I$8:I$19)/SUM(I$8:I9) -> 2 | L9: 0.1368105488 | M9: 0.1283532625 | N9: 1.351617297 | O9: 1.416137193 | P9: 1.474587546 | Q9: 1.545588723 | R9: 1.595882131 | S9: 1.611575644 | T9: 0.25 | U9: =IFERROR(_xlfn.LOGNORM.DIST(U$7/$J9,LN($F9)-$B9*(12/2)*($F$5^2),$F$5*SQRT($B9*12),1),"na") -> 1.266539739e-05 | V9: 0.05587487218 | W9: 0.9996388349 | Y9: =Y8+1 -> 2 | AA9: 9.941562042e+10 | AB9: 9.748214343e+10 | AC9: 0 | AD9: 0 | AE9: 0 | AF9: 0 | AG9: 0 | AH9: 0 | AI9: 0 | AJ9: 0 | AL9: 869086721 | AM9: 126762930 | AN9: 1820760017 | AO9: 126817566 | AP9: 291068597 | AQ9: 1805267403 | AR9: 1045201898 | AS9: 1017601501 | AT9: 207179886 | AU9: 812249479 | AV9: 1324019927 | AW9: 1476044105 | AZ9: 1.112410033 | BA9: 0.9762547557 | BB9: 1.082286184 | BC9: 0.9478695257 | BD9: 0.8654755912 | BE9: 0.9558402126 | BF9: 0.9613080446 | BG9: 0.9639167992 | BH9: 0.8639117696 | BI9: 0.847229408 | BJ9: 0.8779619253 | BK9: 0.9258964339 | BM9: =SUMPRODUCT(TRANSPOSE($J$8:$J$19),AZ9:BK9) -> 6080329.124 | BO9: 0.905 | BP9: 8001295.509 | BQ9: 1003289.339 | BR9: 8016377.988 | BS9: 6998006.17 | BU9: 1002302.02 | BV9: 1001272.247 | BW9: 1003776.362 | BX9: 1004257.373 | BY9: 1003266.532 | BZ9: 1004878.611 | CA9: 1005600.949 | CB9: 1005184.537 | CC9: 1003002.643 | CD9: 1005791.035 | CE9: 1001225.895 | CF9: 1006215.13 | CG9: 1001311.76 | CH9: 1000279.825 | CI9: 1003469.237 | CJ9: 1004844.264 | CK9: 1003497.984 | CL9: 1005296.385 | CM9: 1000324.167 | CN9: 1004847.292 | CO9: 1005340.288 | CP9: 1006090.39 | CQ9: 1003764.453 | CR9: 1003432.878 | CS9: 1000439.396 | CT9: 1001151.694 | CU9: 1002020.676 | CV9: 1000346.775 | CW9: 1004232.901 | CX9: 1007244.776 | CY9: 1004553.823 | CZ9: 1001041.569 | DA9: 1005040.731 | DB9: 1001159.638 | DC9: 1003485.479 | DD9: 1003461.947 | DE9: 994624.2123 | DF9: 1000263.001 | DG9: 1001749.47 | DH9: 1002996.444 | DI9: 1005910.352 | DJ9: 999863.0152 | DK9: 1004008.931 | DL9: 1003176.063 | DM9: 1002863.576 | DN9: 1006199.456 | DO9: 1002448.481 | DP9: 1005634.611 | DQ9: 1005892.046 | DR9: 997422.4656 | DS9: 1005136.315 | DT9: 1005717.257 | DU9: 1000956.484 | DV9: 1000304.506 | DW9: 1005815.722 | DX9: 1006614.705 | DY9: 1003725.051 | DZ9: 1004240.443 | EA9: 1003106.02 | EB9: 1003106.677 | EC9: 1000116.172 | ED9: 999193.8389 | EE9: 1000789.901 | EF9: 1005122.152 | EG9: 1005201.918 | EH9: 1002993.213 | EI9: 999485.1906 | EJ9: 1002701.226 | EK9: 1002277.333 | EL9: 1002683.813 | EM9: 1005836.761 | EN9: 1005280.964 | EO9: 1003201.94 | EP9: 1000924.839 | EQ9: 1005624.014 | ER9: 1005099.512 | ES9: 1001768.339 | ET9: 1004425.745 | EU9: 1005503.364 | EV9: 1000651.925 | EW9: 1003928.131 | EX9: 1004067.276 | EY9: 1006846.646 | EZ9: 1001863.538 | FA9: 1002244.91 | FB9: 1002726.608 | FC9: 1002348.723 | FD9: 1006005.243 | FE9: 1004444.527 | FF9: 1005334.438 | FG9: 1002324.189 | FH9: 1002880.44 | FI9: 999862.7448 | FJ9: 1002473.165 | FK9: 1006029.943 | FL9: 1004805.817 | FM9: 1003644.155 | FN9: 1003307.798 | FO9: 1006155.248 | FP9: 1003531.241
B10: =B9+1 -> 3 | C10: 0.03293 | D10: 0.9073760809 | E10: 0.01858 | F10: 1.169049371 | G10: 0.03419384562 | H10: 1.01408824 | I10: 1600000 | J10: 1451801.729 | K10: =SUM(I$8:I$19)/SUM(I$8:I10) -> 1.333333333 | L10: 0.1438349948 | M10: 0.1572 | N10: 1.412406378 | O10: 1.495418327 | P10: 1.571359759 | Q10: 1.664520145 | R10: 1.731097086 | S10: 1.751969123 | T10: 0.25 | U10: 0.0005071746358 | V10: 0.125875316 | W10: 0.9982099698 | Y10: =Y9+1 -> 3 | AB10: 1.433305444e+11 | AC10: 0 | AD10: 0 | AE10: 0 | AF10: 0 | AG10: 0 | AH10: 0 | AI10: 0 | AJ10: 0 | AL10: 592065246 | AM10: 792483727 | AN10: 1991043485 | AO10: 1282334436 | AP10: 1334227113 | AQ10: 1471382247 | AR10: 2107499387 | AS10: 1248596940 | AT10: 2096416674 | AU10: 1485657530 | AV10: 505077850 | AW10: 912552289 | AZ10: 1.077192855 | BA10: 1.056858481 | BB10: 1.218009859 | BC10: 1.257041221 | BD10: 1.304403763 | BE10: 1.374822422 | BF10: 1.675510057 | BG10: 1.721909231 | BH10: 2.078983056 | BI10: 2.194593034 | BJ10: 2.073444787 | BK10: 2.056227951 | BM10: =SUMPRODUCT(TRANSPOSE($J$8:$J$19),AZ10:BK10) -> 6778055.488 | BO10: 0.906 | BP10: 8007210.165 | BQ10: 1004008.675 | BR10: 8020312.066 | BS10: 7003201.49 | BU10: 1002628.707 | BV10: 1001950.49 | BW10: 1004536.049 | BX10: 1005145.411 | BY10: 1003990.379 | BZ10: 1005820.42 | CA10: 1006153.867 | CB10: 1005901.309 | CC10: 1003547.005 | CD10: 1006315.591 | CE10: 1001932.929 | CF10: 1007072.927 | CG10: 1001690.287 | CH10: 1000912.387 | CI10: 1004201.616 | CJ10: 1006177.081 | CK10: 1004576.944 | CL10: 1005974.288 | CM10: 1001205.801 | CN10: 1005742.994 | CO10: 1005776.524 | CP10: 1007392.134 | CQ10: 1004165.114 | CR10: 1003870.282 | CS10: 1001330.391 | CT10: 1001979.201 | CU10: 1002965.991 | CV10: 1001078.772 | CW10: 1005102.225 | CX10: 1007553.856 | CY10: 1005031.214 | CZ10: 1001755.728 | DA10: 1005676.763 | DB10: 1002066.977 | DC10: 1004864.616 | DD10: 1004241.441 | DE10: 995174.8481 | DF10: 1001080.679 | DG10: 1002311.325 | DH10: 1004048.576 | DI10: 1006344.025 | DJ10: 1000537.451 | DK10: 1004731.565 | DL10: 1004074.225 | DM10: 1003351.844 | DN10: 1006845.795 | DO10: 1003022.756 | DP10: 1006824.971 | DQ10: 1006615.716 | DR10: 997774.0771 | DS10: 1005662.136 | DT10: 1006029.582 | DU10: 1001660.929 | DV10: 1000823.996 | DW10: 1006759.102 | DX10: 1007136.414 | DY10: 1004759.24 | DZ10: 1004948.369 | EA10: 1003777.73 | EB10: 1004152.142 | EC10: 1000918.536 | ED10: 999904.2377 | EE10: 1001525.692 | EF10: 1005552.41 | EG10: 1005810.365 | EH10: 1004071.439 | EI10: 1000060.387 | EJ10: 1003153.6 | EK10: 1002497.69 | EL10: 1003530.098 | EM10: 1006874.228 | EN10: 1005937.95 | EO10: 1003996.958 | EP10: 1001566.698 | EQ10: 1006141.674 | ER10: 1005881.737 | ES10: 1002549.44 | ET10: 1005634.233 | EU10: 1005991.688 | EV10: 1001265.531 | EW10: 1004558.052 | EX10: 1004611.057 | EY10: 1007977.398 | EZ10: 1002298.544 | FA10: 1002938.183 | FB10: 1003475.632 | FC10: 1002828.094 | FD10: 1006984.483 | FE10: 1005027.478 | FF10: 1005952.783 | FG10: 1003377.423 | FH10: 1003537.498 | FI10: 1000611.691 | FJ10: 1003243.555 | FK10: 1006700.131 | FL10: 1005468.251 | FM10: 1004309.023 | FN10: 1003854.517 | FO10: 1006988.317 | FP10: 1004485.632
B11: 4 | C11: 0.03308 | D11: 0.8779386821 | E11: 0.01939 | F11: 1.182442286 | G11: 0.04683582562 | H11: 1.0134296 | I11: 1600000 | J11: 1404701.891 | K11: =SUM(I$8:I$19)/SUM(I$8:I11) -> 1 | L11: 0.1511074733 | M11: 0.1815189246 | N11: 1.467753991 | O11: 1.567809677 | P11: 1.66010031 | Q11: 1.77426036 | R11: 1.856455897 | S11: 1.882326163 | T11: 0.25 | U11: 0.003419532978 | V11: 0.1974034439 | W11: 0.9961429549 | Y11: 4 | AC11: 0 | AD11: 0 | AE11: 0 | AF11: 0 | AG11: 0 | AH11: 0 | AI11: 0 | AJ11: 0 | AL11: 869115390 | AM11: 855782006 | AN11: 1176926597 | AO11: 496919028 | AP11: 1442398093 | AQ11: 1365787706 | AR11: 507584193 | AS11: 1894337685 | AT11: 257373073 | AU11: 1105722712 | AV11: 231052959 | AW11: 626975055 | AZ11: 1.112413511 | BA11: 1.099088897 | BB11: 1.122221947 | BC11: 1.059599898 | BD11: 1.113142244 | BE11: 1.159009094 | BF11: 1.095404254 | BG11: 1.230467492 | BH11: 1.115507577 | BI11: 1.129015373 | BJ11: 1.017739981 | BK11: 0.9769867978 | BM11: =SUMPRODUCT(TRANSPOSE($J$8:$J$19),AZ11:BK11) -> 6479204.328 | BO11: 0.907 | BP11: 8013175.86 | BQ11: 1004768.884 | BR11: 8023362.342 | BS11: 7008406.977 | BU11: 1003456.933 | BV11: 1002513.713 | BW11: 1005131.707 | BX11: 1006057.438 | BY11: 1004561.04 | BZ11: 1006670.027 | CA11: 1007087.583 | CB11: 1006792.856 | CC11: 1004195.085 | CD11: 1006945.745 | CE11: 1002993.773 | CF11: 1007390.425 | CG11: 1002168.635 | CH11: 1002316.78 | CI11: 1004636.332 | CJ11: 1006927.714 | CK11: 1005509.965 | CL11: 1006727.761 | CM11: 1001917.174 | CN11: 1006361.738 | CO11: 1006771.097 | CP11: 1008183.19 | CQ11: 1004967.07 | CR11: 1004374.122 | CS11: 1002232.923 | CT11: 1002671.964 | CU11: 1004278.002 | CV11: 1001645.087 | CW11: 1006019.924 | CX11: 1008371.399 | CY11: 1006362.653 | CZ11: 1002780.861 | DA11: 1006425.629 | DB11: 1003057.15 | DC11: 1005574.021 | DD11: 1005140.041 | DE11: 996137.4085 | DF11: 1001473.575 | DG11: 1003198.979 | DH11: 1004503.774 | DI11: 1006791.193 | DJ11: 1001032.037 | DK11: 1005539.317 | DL11: 1004631.384 | DM11: 1004332.515 | DN11: 1007367.28 | DO11: 1003677.086 | DP11: 1007328.148 | DQ11: 1007251.935 | DR11: 998601.6871 | DS11: 1006358.922 | DT11: 1006906.355 | DU11: 1002216.003 | DV11: 1001685.904 | DW11: 1007413.926 | DX11: 1008023.92 | DY11: 1005521.134 | DZ11: 1005613.184 | EA11: 1004635.893 | EB11: 1004727.411 | EC11: 1002049.03 | ED11: 1000769.293 | EE11: 1002184.685 | EF11: 1006931.817 | EG11: 1006331.472 | EH11: 1005238.159 | EI11: 1000500.788 | EJ11: 1004085.675 | EK11: 1003121.708 | EL11: 1004245.235 | EM11: 1007560.054 | EN11: 1006727.272 | EO11: 1004578.248 | EP11: 1002117.166 | EQ11: 1006788.003 | ER11: 1006434.725 | ES11: 1003684.179 | ET11: 1006877.498 | EU11: 1006743.418 | EV11: 1002107.71 | EW11: 1005097.469 | EX11: 1005152.824 | EY11: 1009133.047 | EZ11: 1002999.659 | FA11: 1003803.449 | FB11: 1004314.746 | FC11: 1003319.731 | FD11: 1007486.831 | FE11: 1005528.735 | FF11: 1006699.285 | FG11: 1004076.905 | FH11: 1004475.561 | FI11: 1001431.727 | FJ11: 1004081.419 | FK11: 1007374.994 | FL11: 1006259.505 | FM11: 1004786.872 | FN11: 1004723.343 | FO11: 1007603.53 | FP11: 1005276.069
B12: 5 | C12: 0.03357 | D12: 0.8478138835 | E12: 0.02015 | F12: 1.196698975 | G12: 0.06021405564 | H12: 1.013154928 | I12: 0 | J12: 0 | K12: =SUM(I$8:I$19)/SUM(I$8:I12) -> 1 | L12: 0.1589737118 | M12: 0.2029443273 | N12: 1.520527528 | O12: 1.636872526 | P12: 1.744969862 | Q12: 1.879663584 | R12: 1.977282955 | S12: 2.008114526 | T12: 0 | U12: na | V12: na | W12: na | Y12: 5 | AD12: 0 | AE12: 0 | AF12: 0 | AG12: 0 | AH12: 0 | AI12: 0 | AJ12: 0 | AL12: 1975946545 | AM12: 457777934 | AN12: 1891366049 | AO12: 1533547245 | AP12: 283544169 | AQ12: 190393426 | AR12: 955651680 | AS12: 1720703375 | AT12: 462708888 | AU12: 782468414 | AV12: 1274805018 | AW12: 225842734 | AZ12: 1.291775974 | BA12: 1.215452063 | BB12: 1.366104362 | BC12: 1.45136428 | BD12: 1.323252185 | BE12: 1.181125061 | BF12: 1.176619474 | BG12: 1.281592141 | BH12: 1.203514835 | BI12: 1.176350887 | BJ12: 1.212453189 | BK12: 1.091765038 | BM12: =SUMPRODUCT(TRANSPOSE($J$8:$J$19),AZ12:BK12) -> 7834466.841 | BO12: 0.908 | BP12: 8019193.662 | BQ12: 1005577.293 | BR12: 8028775.964 | BS12: 7013616.369 | BU12: 1004276.343 | BV12: 1003165.064 | BW12: 1005801.026 | BX12: 1006960.321 | BY12: 1005177.518 | BZ12: 1007452.268 | CA12: 1007873.564 | CB12: 1008146.598 | CC12: 1004907.648 | CD12: 1008052.881 | CE12: 1003726.123 | CF12: 1007938.006 | CG12: 1003009.314 | CH12: 1003222.987 | CI12: 1005147.962 | CJ12: 1007700.931 | CK12: 1006790.913 | CL12: 1007594.83 | CM12: 1002274.47 | CN12: 1007173.314 | CO12: 1007536.977 | CP12: 1009221.059 | CQ12: 1005944.166 | CR12: 1005640.588 | CS12: 1002773.914 | CT12: 1003383.104 | CU12: 1004635.606 | CV12: 1002723.549 | CW12: 1006871.205 | CX12: 1008983.841 | CY12: 1007553.264 | CZ12: 1003311.85 | DA12: 1007036.9 | DB12: 1003714.064 | DC12: 1006289.48 | DD12: 1005854.641 | DE12: 996771.7119 | DF12: 1002442.427 | DG12: 1003821.935 | DH12: 1005022.902 | DI12: 1007543.123 | DJ12: 1002027.218 | DK12: 1006448.647 | DL12: 1005485.321 | DM12: 1005077.383 | DN12: 1008026.561 | DO12: 1004739.608 | DP12: 1008340.807 | DQ12: 1008223.991 | DR12: 999525.0728 | DS12: 1007030.937 | DT12: 1007589.474 | DU12: 1003497.691 | DV12: 1002543.948 | DW12: 1008158.177 | DX12: 1008765.455 | DY12: 1006357.669 | DZ12: 1006486.138 | EA12: 1005876.12 | EB12: 1005432.812 | EC12: 1002726.608 | ED12: 1001674.256 | EE12: 1002950.118 | EF12: 1007467.675 | EG12: 1007124.893 | EH12: 1006186.266 | EI12: 1001735.489 | EJ12: 1005111.168 | EK12: 1003660.715 | EL12: 1004756.809 | EM12: 1008341.031 | EN12: 1007511.025 | EO12: 1005847.823 | EP12: 1002956.499 | EQ12: 1007442.137 | ER12: 1007073.512 | ES12: 1004375.622 | ET12: 1007394.685 | EU12: 1007441.551 | EV12: 1002682.315 | EW12: 1005525.074 | EX12: 1006052.212 | EY12: 1010293.441 | EZ12: 1004076.665 | FA12: 1004545.721 | FB12: 1004809.225 | FC12: 1003896.417 | FD12: 1008257.525 | FE12: 1006341.233 | FF12: 1007378.097 | FG12: 1004716.655 | FH12: 1005408.712 | FI12: 1001964.74 | FJ12: 1004983.955 | FK12: 1008241.457 | FL12: 1007258.03 | FM12: 1005635.483 | FN12: 1005568.777 | FO12: 1009164.957 | FP12: 1006049.311
B13: 6 | C13: 0.03422 | D13: 0.8171888041 | E13: 0.02093 | F13: 1.211455345 | G13: 0.07435776312 | H13: 1.013017543 | I13: 0 | J13: 0 | K13: =SUM(I$8:I$19)/SUM(I$8:I13) -> 1 | L13: 0.167110561 | M13: 0.222314372 | N13: 1.571480066 | O13: 1.703670706 | P13: 1.82729864 | Q13: 1.982366093 | R13: 2.095420889 | S13: 2.131239627 | T13: 0 | U13: na | V13: na | W13: na | Y13: 6 | AE13: 0 | AF13: 0 | AG13: 0 | AH13: 0 | AI13: 0 | AJ13: 0 | AL13: 429492190 | AM13: 1939408131 | AN13: 10782721 | AO13: 2097751305 | AP13: 1047299468 | AQ13: 1398540933 | AR13: 166024073 | AS13: 1847599606 | AT13: 1590803848 | AU13: 590428758 | AV13: 2116602740 | AW13: 1027620742 | AZ13: 1.053411844 | BA13: 1.198735735 | BB13: 0.9583808926 | BC13: 1.158990425 | BD13: 1.166138799 | BE13: 1.21870656 | BF13: 1.080400488 | BG13: 1.202241664 | BH13: 1.285850021 | BI13: 1.22850604 | BJ13: 1.51134029 | BK13: 1.517324348 | BM13: =SUMPRODUCT(TRANSPOSE($J$8:$J$19),AZ13:BK13) -> 6439176.484 | BO13: 0.909 | BP13: 8025264.671 | BQ13: 1006385.048 | BR13: 8033731.322 | BS13: 7018879.623 | BU13: 1005570.499 | BV13: 1003937.502 | BW13: 1006508.376 | BX13: 1007895.707 | BY13: 1005565.226 | BZ13: 1008146.619 | CA13: 1008678.854 | CB13: 1008715.854 | CC13: 1005392.148 | CD13: 1008269.721 | CE13: 1004692.18 | CF13: 1008704.812 | CG13: 1003673.505 | CH13: 1004288.656 | CI13: 1006777.206 | CJ13: 1008712.522 | CK13: 1007878.317 | CL13: 1008722.932 | CM13: 1003041.183 | CN13: 1008471.001 | CO13: 1008264.299 | CP13: 1009888.146 | CQ13: 1006549.275 | CR13: 1006640.911 | CS13: 1003625.695 | CT13: 1004044.023 | CU13: 1005351.815 | CV13: 1003318.973 | CW13: 1007645.58 | CX13: 1009837.515 | CY13: 1008555.995 | CZ13: 1004740.09 | DA13: 1007650.717 | DB13: 1004653.298 | DC13: 1006751.149 | DD13: 1006393.541 | DE13: 997743.6251 | DF13: 1002778.075 | DG13: 1004531.828 | DH13: 1005901.139 | DI13: 1008496.481 | DJ13: 1002778.49 | DK13: 1007607.236 | DL13: 1006001.792 | DM13: 1005675.74 | DN13: 1008990.532 | DO13: 1005995.021 | DP13: 1009407.86 | DQ13: 1009301.25 | DR13: 1000059.049 | DS13: 1007653.653 | DT13: 1008707.644 | DU13: 1003811.015 | DV13: 1003318.466 | DW13: 1008568.306 | DX13: 1009941.404 | DY13: 1007297.546 | DZ13: 1007387.53 | EA13: 1007166.58 | EB13: 1006285.286 | EC13: 1003152.304 | ED13: 1002382.282 | EE13: 1003594.955 | EF13: 1007902.206 | EG13: 1008308.839 | EH13: 1007114.511 | EI13: 1002614.095 | EJ13: 1005810.791 | EK13: 1004412.183 | EL13: 1005369.893 | EM13: 1009128.148 | EN13: 1008417.623 | EO13: 1006563.459 | EP13: 1004028.821 | EQ13: 1008182.536 | ER13: 1007588.054 | ES13: 1005176.245 | ET13: 1007905.984 | EU13: 1008637.468 | EV13: 1003593.086 | EW13: 1006545.941 | EX13: 1006989.696 | EY13: 1011341.767 | EZ13: 1005198.417 | FA13: 1005157.961 | FB13: 1005285.002 | FC13: 1004732.515 | FD13: 1008934.435 | FE13: 1007386.829 | FF13: 1008180.191 | FG13: 1005543.888 | FH13: 1005972.782 | FI13: 1002996.163 | FJ13: 1005766.015 | FK13: 1008630.295 | FL13: 1007862.674 | FM13: 1006403.147 | FN13: 1006355.934 | FO13: 1009637.76 | FP13: 1006740.529
B14: =B13+1 -> 7 | C14: 0.03489 | D14: 0.7865759562 | E14: 0.02168 | F14: 1.226480655 | G14: 0.08928620297 | H14: 1.012929684 | I14: 0 | J14: 0 | K14: =SUM(I$8:I$19)/SUM(I$8:I14) -> 1 | L14: 0.1753183318 | M14: 0.2401269664 | N14: 1.6210165 | O14: 1.768783538 | P14: 1.907814866 | Q14: 2.083266698 | R14: 2.211883485 | S14: 2.252750264 | T14: 0 | U14: na | V14: na | W14: na | Y14: 7 | AF14: 0 | AG14: 0 | AH14: 0 | AI14: 0 | AJ14: 0 | AL14: 210375352 | AM14: 1915267830 | AN14: 801682817 | AO14: 256836664 | AP14: 280085801 | AQ14: 673449751 | AR14: 1886540826 | AS14: 484721316 | AT14: 2119781029 | AU14: 1331098081 | AV14: 1848872868 | AW14: 1703558676 | AZ14: 1.011107317 | BA14: 1.144040239 | BB14: 1.12200096 | BC14: 1.017666107 | BD14: 0.927199911 | BE14: 0.8950724539 | BF14: 1.003843579 | BG14: 0.9456841503 | BH14: 1.167775059 | BI14: 1.210986372 | BJ14: 1.347971681 | BK14: 1.464727859 | BM14: =SUMPRODUCT(TRANSPOSE($J$8:$J$19),AZ14:BK14) -> 6331050.02 | BO14: 0.91 | BP14: 8031390.025 | BQ14: 1007186.752 | BR14: 8038553.517 | BS14: 7024203.273 | BU14: 1006670.718 | BV14: 1004424.43 | BW14: 1007398.79 | BX14: 1008997.936 | BY14: 1006948.072 | BZ14: 1008938.908 | CA14: 1009543.942 | CB14: 1009312.295 | CC14: 1005822.495 | CD14: 1009124.369 | CE14: 1005276.954 | CF14: 1009298.176 | CG14: 1004569.917 | CH14: 1005261.153 | CI14: 1007661.799 | CJ14: 1009395.989 | CK14: 1009361.045 | CL14: 1009737.473 | CM14: 1004155.372 | CN14: 1009076.964 | CO14: 1009639.541 | CP14: 1010440.096 | CQ14: 1007452.533 | CR14: 1007394.106 | CS14: 1005008.528 | CT14: 1004508.217 | CU14: 1006350.368 | CV14: 1004488.306 | CW14: 1008507.016 | CX14: 1010613.193 | CY14: 1009273.723 | CZ14: 1005446.169 | DA14: 1008614.959 | DB14: 1005242.734 | DC14: 1007535.605 | DD14: 1007048.298 | DE14: 998499.2359 | DF14: 1003282.621 | DG14: 1005268.055 | DH14: 1006232.417 | DI14: 1009241.521 | DJ14: 1003537.551 | DK14: 1008207.193 | DL14: 1006909.398 | DM14: 1006308.447 | DN14: 1009483.098 | DO14: 1006780.97 | DP14: 1010006.985 | DQ14: 1009705.235 | DR14: 1000860.778 | DS14: 1008561.061 | DT14: 1009322.993 | DU14: 1004523.071 | DV14: 1004477.413 | DW14: 1009076.797 | DX14: 1010853.378 | DY14: 1008260.091 | DZ14: 1008151.195 | EA14: 1008044.626 | EB14: 1006956.298 | EC14: 1004022.541 | ED14: 1002910.093 | EE14: 1004148.427 | EF14: 1008554.919 | EG14: 1008927.506 | EH14: 1008178.876 | EI14: 1003599.557 | EJ14: 1006987.189 | EK14: 1005487.031 | EL14: 1005832.423 | EM14: 1009941.736 | EN14: 1009360.803 | EO14: 1007228.763 | EP14: 1004804.425 | EQ14: 1009005.04 | ER14: 1008138.813 | ES14: 1005798 | ET14: 1008941.369 | EU14: 1009214.368 | EV14: 1004747.251 | EW14: 1007211.483 | EX14: 1008499.117 | EY14: 1012179.206 | EZ14: 1006256.44 | FA14: 1005612.573 | FB14: 1005743.966 | FC14: 1005179.236 | FD14: 1009570.22 | FE14: 1008111.951 | FF14: 1008475.362 | FG14: 1006195.049 | FH14: 1007610.771 | FI14: 1003829.605 | FJ14: 1006494.736 | FK14: 1009471.307 | FL14: 1008624.042 | FM14: 1006745.583 | FN14: 1007285.808 | FO14: 1010950.186 | FP14: 1007708.793
B15: =B14+1 -> 8 | C15: 0.03551 | D15: 0.756424561 | E15: 0.02236 | F15: 1.2416786 | G15: 0.1050220298 | H15: 1.012862397 | I15: 0 | J15: 0 | K15: =SUM(I$8:I$19)/SUM(I$8:I15) -> 1 | L15: 0.1835150539 | M15: 0.256706525 | N15: 1.669455797 | O15: 1.832643963 | P15: 1.987048948 | Q15: 2.183007979 | R15: 2.327389478 | S15: 2.373388494 | T15: 0 | U15: na | V15: na | W15: na | Y15: 8 | AG15: 0 | AH15: 0 | AI15: 0 | AJ15: 0 | AL15: 1725933376 | AM15: 574934933 | AN15: 375940467 | AO15: 339513813 | AP15: 1612142206 | AQ15: 1632965882 | AR15: 1168160811 | AS15: 1148310571 | AT15: 649238603 | AU15: 724749711 | AV15: 1816809202 | AW15: 1037038272 | AZ15: 1.228767331 | BA15: 1.17475758 | BB15: 1.089949888 | BC15: 1.004394375 | BD15: 1.07762027 | BE15: 1.15927309 | BF15: 1.18121578 | BG15: 1.200953276 | BH15: 1.155753441 | BI15: 1.122257171 | BJ15: 1.241847744 | BK15: 1.248010713 | BM15: =SUMPRODUCT(TRANSPOSE($J$8:$J$19),AZ15:BK15) -> 6647568.709 | BO15: 0.911 | BP15: 8037570.896 | BQ15: 1007988.852 | BR15: 8043823.804 | BS15: 7029582.044 | BU15: 1007818.218 | BV15: 1005550.133 | BW15: 1008381.752 | BX15: 1010352.255 | BY15: 1007438.076 | BZ15: 1009419.86 | CA15: 1010538.385 | CB15: 1010088.486 | CC15: 1006595.053 | CD15: 1009889.797 | CE15: 1006095.502 | CF15: 1010095.615 | CG15: 1005594.512 | CH15: 1006082.728 | CI15: 1008078.541 | CJ15: 1010495.184 | CK15: 1010288.163 | CL15: 1010274.684 | CM15: 1005690.911 | CN15: 1010260.465 | CO15: 1010306.301 | CP15: 1011045.051 | CQ15: 1008197.944 | CR15: 1007739.687 | CS15: 1005742.139 | CT15: 1005032.848 | CU15: 1007400.687 | CV15: 1005230.84 | CW15: 1008918.817 | CX15: 1011504.209 | CY15: 1010182.693 | CZ15: 1006497.766 | DA15: 1009300.009 | DB15: 1005898.354 | DC15: 1008308.966 | DD15: 1007565.712 | DE15: 999491.7812 | DF15: 1004086.926 | DG15: 1006181.758 | DH15: 1006859.746 | DI15: 1009817.762 | DJ15: 1004265.798 | DK15: 1008806.684 | DL15: 1008227.871 | DM15: 1007197.686 | DN15: 1010129.598 | DO15: 1007419.32 | DP15: 1010755.1 | DQ15: 1010201.951 | DR15: 1001805.15 | DS15: 1009562.813 | DT15: 1010589.641 | DU15: 1005454.457 | DV15: 1005520.924 | DW15: 1009776.535 | DX15: 1012158.646 | DY15: 1008593.056 | DZ15: 1008965.145 | EA15: 1008577.396 | EB15: 1007958.242 | EC15: 1004551.694 | ED15: 1003886.888 | EE15: 1005147.116 | EF15: 1009454.803 | EG15: 1009653.323 | EH15: 1008760.581 | EI15: 1004411.59 | EJ15: 1007616.371 | EK15: 1006275.075 | EL15: 1006211.805 | EM15: 1010306.075 | EN15: 1010309.172 | EO15: 1008200.17 | EP15: 1005418.051 | EQ15: 1010327.393 | ER15: 1008901.832 | ES15: 1006445.93 | ET15: 1009559.291 | EU15: 1010094.488 | EV15: 1005573.468 | EW15: 1008097.096 | EX15: 1008945.42 | EY15: 1013056.06 | EZ15: 1007091.303 | FA15: 1006273.583 | FB15: 1006277.457 | FC15: 1006482.482 | FD15: 1010492.976 | FE15: 1008725.468 | FF15: 1009542.343 | FG15: 1006926.685 | FH15: 1008393.687 | FI15: 1004744.006 | FJ15: 1007714.513 | FK15: 1010296.887 | FL15: 1009276.102 | FM15: 1007283.651 | FN15: 1008070.784 | FO15: 1011490.682 | FP15: 1008294.528
B16: 9 | C16: 0.03609 | D16: 0.7268129579 | E16: 0.02297 | F16: 1.257236186 | G16: 0.1216348033 | H16: 1.012825401 | I16: 0 | J16: 0 | K16: =SUM(I$8:I$19)/SUM(I$8:I16) -> 1 | L16: 0.1918480487 | M16: 0.2722783869 | N16: 1.717357619 | O16: 1.895923663 | P16: 2.065771741 | Q16: 2.282479371 | R16: 2.44291182 | S16: 2.494153363 | T16: 0 | U16: na | V16: na | W16: na | Y16: 9 | AH16: 0 | AI16: 0 | AJ16: 0 | AL16: 901907531 | AM16: 752980662 | AN16: 785465407 | AO16: 1223557066 | AP16: 1351509487 | AQ16: 1508826887 | AR16: 1812388502 | AS16: 1399160024 | AT16: 1167744742 | AU16: 1884690051 | AV16: 259813556 | AW16: 1030616142 | AZ16: 1.116381281 | BA16: 1.090428747 | BB16: 1.067481875 | BC16: 1.094696298 | BD16: 1.13813285 | BE16: 1.2049992 | BF16: 1.332360949 | BG16: 1.39230699 | BH16: 1.418451582 | BI16: 1.590081796 | BJ16: 1.442415121 | BK16: 1.448586501 | BM16: =SUMPRODUCT(TRANSPOSE($J$8:$J$19),AZ16:BK16) -> 6442183.512 | BO16: 0.912 | BP16: 8043808.497 | BQ16: 1008759.861 | BR16: 8050987.96 | BS16: 7035048.636 | BU16: 1008553.76 | BV16: 1006725.49 | BW16: 1008904.695 | BX16: 1011747.873 | BY16: 1008340.108 | BZ16: 1010634.444 | CA16: 1011198.652 | CB16: 1010983.651 | CC16: 1007318.337 | CD16: 1010513.377 | CE16: 1007249.332 | CF16: 1011084.968 | CG16: 1006364.981 | CH16: 1007171.232 | CI16: 1008746.291 | CJ16: 1011369.546 | CK16: 1010876.046 | CL16: 1010800.41 | CM16: 1006664.085 | CN16: 1011070.724 | CO16: 1010910.067 | CP16: 1011882.462 | CQ16: 1008776.715 | CR16: 1008287.145 | CS16: 1006485.61 | CT16: 1005741.136 | CU16: 1008286.677 | CV16: 1005796.216 | CW16: 1010109.129 | CX16: 1012750.805 | CY16: 1010723.53 | CZ16: 1007274.935 | DA16: 1009896.488 | DB16: 1006837.457 | DC16: 1009175.397 | DD16: 1008267.967 | DE16: 1000231.478 | DF16: 1004773.682 | DG16: 1006642.06 | DH16: 1007391.76 | DI16: 1010466.793 | DJ16: 1005343.202 | DK16: 1009309.5 | DL16: 1009017.491 | DM16: 1007988.562 | DN16: 1010721.76 | DO16: 1008061.404 | DP16: 1011278.996 | DQ16: 1010771.806 | DR16: 1002535.178 | DS16: 1010118.013 | DT16: 1011377.791 | DU16: 1006060.686 | DV16: 1006187.356 | DW16: 1010438.444 | DX16: 1012671.023 | DY16: 1009390.75 | DZ16: 1009341.452 | EA16: 1009471.26 | EB16: 1008776.268 | EC16: 1005155.973 | ED16: 1004426.19 | EE16: 1006621.141 | EF16: 1010149.671 | EG16: 1010320.99 | EH16: 1009558.397 | EI16: 1005275.279 | EJ16: 1008298.61 | EK16: 1006912.941 | EL16: 1007379.976 | EM16: 1011284.974 | EN16: 1010974.782 | EO16: 1009133.591 | EP16: 1006492.747 | EQ16: 1011475.811 | ER16: 1009568.813 | ES16: 1007639.459 | ET16: 1010334.062 | EU16: 1010645.541 | EV16: 1006791.351 | EW16: 1008900.382 | EX16: 1009765.277 | EY16: 1013644.094 | EZ16: 1008044.853 | FA16: 1007041.617 | FB16: 1006844.46 | FC16: 1007286.723 | FD16: 1010924.808 | FE16: 1009437.678 | FF16: 1010252.469 | FG16: 1007362.529 | FH16: 1008769.11 | FI16: 1005693.916 | FJ16: 1008319.062 | FK16: 1011333.348 | FL16: 1010214.712 | FM16: 1007639.683 | FN16: 1008954.854 | FO16: 1012043.266 | FP16: 1009186.48
B17: 10 | C17: 0.03665 | D17: 0.6977156746 | E17: 0.0235 | F17: 1.273645785 | G17: 0.1392807053 | H17: 1.01284807 | I17: 0 | J17: 0 | K17: =SUM(I$8:I$19)/SUM(I$8:I17) -> 1 | L17: 0.2006970851 | M17: 0.2870066201 | N17: 1.765635829 | O17: 1.95967955 | P17: 2.145171975 | Q17: 2.383033666 | R17: 2.559922917 | S17: 2.616555288 | T17: 0 | U17: na | V17: na | W17: na | Y17: 10 | AI17: 0 | AJ17: 0 | AL17: 42453270 | AM17: 968809927 | AN17: 1376873512 | AO17: 80389445 | AP17: 308734764 | AQ17: 674774372 | AR17: 1616568556 | AS17: 492820354 | AT17: 1055674626 | AU17: 2023713960 | AV17: 155663196 | AW17: 265624080 | AZ17: 0.9432607357 | BA17: 0.9434026894 | BB17: 0.9845442045 | BC17: 0.845335303 | BD17: 0.7744525979 | BE17: 0.7477358354 | BF17: 0.8025456235 | BG17: 0.7569065356 | BH17: 0.7620032685 | BI17: 0.8867290411 | BJ17: 0.7836672983 | BK17: 0.7118307083 | BM17: =SUMPRODUCT(TRANSPOSE($J$8:$J$19),AZ17:BK17) -> 5484324.557 | BO17: 0.913 | BP17: 8050104.08 | BQ17: 1009552.998 | BR17: 8056934.756 | BS17: 7040551.083 | BU17: 1009771.369 | BV17: 1007697.543 | BW17: 1010058.341 | BX17: 1012495.08 | BY17: 1009035.403 | BZ17: 1011310.669 | CA17: 1011647.165 | CB17: 1011888.992 | CC17: 1007970.604 | CD17: 1011647.654 | CE17: 1007882.278 | CF17: 1011946.055 | CG17: 1007199.348 | CH17: 1008241.082 | CI17: 1009589.334 | CJ17: 1012070.641 | CK17: 1011513.328 | CL17: 1011841.984 | CM17: 1007272.96 | CN17: 1011816.266 | CO17: 1011675.221 | CP17: 1013117.673 | CQ17: 1009956.513 | CR17: 1009494.517 | CS17: 1007245.163 | CT17: 1006688.926 | CU17: 1008938.908 | CV17: 1006890.318 | CW17: 1010932.527 | CX17: 1013147.823 | CY17: 1011935.952 | CZ17: 1008185.619 | DA17: 1010825.512 | DB17: 1007989.995 | DC17: 1009917.597 | DD17: 1008938.276 | DE17: 1001086.855 | DF17: 1005298.782 | DG17: 1007374.863 | DH17: 1007889.505 | DI17: 1011340.694 | DJ17: 1006157.503 | DK17: 1010227.472 | DL17: 1009859.372 | DM17: 1008469.7 | DN17: 1011546.943 | DO17: 1009282.647 | DP17: 1011777.412 | DQ17: 1011488.62 | DR17: 1003619.553 | DS17: 1010778.269 | DT17: 1011809.505 | DU17: 1006644.154 | DV17: 1007081.488 | DW17: 1011280.91 | DX17: 1013284.411 | DY17: 1010367.508 | DZ17: 1010091.273 | EA17: 1010098.782 | EB17: 1009402.825 | EC17: 1006074.69 | ED17: 1005583.443 | EE17: 1007544.317 | EF17: 1010614.517 | EG17: 1010888.072 | EH17: 1010163.618 | EI17: 1006273.533 | EJ17: 1009113.259 | EK17: 1008111.5 | EL17: 1008406.429 | EM17: 1012340.589 | EN17: 1011921.462 | EO17: 1009607.902 | EP17: 1007011.627 | EQ17: 1011881.884 | ER17: 1010506.211 | ES17: 1008507.187 | ET17: 1010995.474 | EU17: 1011426.374 | EV17: 1007463.894 | EW17: 1009564.128 | EX17: 1010462.248 | EY17: 1014306.143 | EZ17: 1008449.011 | FA17: 1008006.817 | FB17: 1007483.357 | FC17: 1007828.334 | FD17: 1011701.274 | FE17: 1010528.776 | FF17: 1010584.519 | FG17: 1008115.567 | FH17: 1009517.325 | FI17: 1006408.296 | FJ17: 1009221.802 | FK17: 1011761.79 | FL17: 1010984.449 | FM17: 1008373.895 | FN17: 1009664.924 | FO17: 1012901.256 | FP17: 1009964.183
B18: 11 | C18: 0.03718 | D18: 0.6692748876 | E18: 0.02394 | F18: 1.291164225 | G18: 0.1581116131 | H18: 1.012930445 | I18: 0 | J18: 0 | K18: =SUM(I$8:I$19)/SUM(I$8:I18) -> 1 | L18: 0.2102392714 | M18: 0.3010150827 | N18: 1.814855085 | O18: 2.024585568 | P18: 2.226026132 | Q18: 2.485577605 | R18: 2.679426401 | S18: 2.74162904 | T18: 0 | U18: na | V18: na | W18: na | Y18: 11 | AJ18: 0 | AL18: 562396932 | AM18: 1820089145 | AN18: 589906749 | AO18: 2123433113 | AP18: 1546766511 | AQ18: 1149236763 | AR18: 267485637 | AS18: 1254950115 | AT18: 830411983 | AU18: 1960428424 | AV18: 2120336910 | AW18: 1462593090 | AZ18: 1.073105983 | BA18: 1.191207642 | BB18: 1.1394025 | BC18: 1.41478574 | BD18: 1.505160618 | BE18: 1.53069623 | BF18: 1.390760217 | BG18: 1.430257549 | BH18: 1.405432566 | BI18: 1.60370573 | BJ18: 1.981948368 | BK18: 2.086819099 | BM18: =SUMPRODUCT(TRANSPOSE($J$8:$J$19),AZ18:BK18) -> 7080400.897 | BO18: 0.914 | BP18: 8056458.942 | BQ18: 1010355.17 | BR18: 8062678.571 | BS18: 7046103.772 | BU18: 1010927.498 | BV18: 1008097.09 | BW18: 1010991.535 | BX18: 1013518.583 | BY18: 1010074.085 | BZ18: 1011806.271 | CA18: 1012177.316 | CB18: 1012935.278 | CC18: 1008720.362 | CD18: 1012563.607 | CE18: 1008330.09 | CF18: 1012881.031 | CG18: 1008138.328 | CH18: 1008847.368 | CI18: 1010249.993 | CJ18: 1012882.883 | CK18: 1012141.22 | CL18: 1012934.042 | CM18: 1007897.746 | CN18: 1012538.471 | CO18: 1012419.505 | CP18: 1013831.799 | CQ18: 1010672.81 | CR18: 1010396.839 | CS18: 1008397.18 | CT18: 1007326.436 | CU18: 1009256.266 | CV18: 1007615.547 | CW18: 1011571.779 | CX18: 1013638.402 | CY18: 1012672.244 | CZ18: 1009221.396 | DA18: 1011398.834 | DB18: 1008841.528 | DC18: 1010478.141 | DD18: 1010337.318 | DE18: 1001741.468 | DF18: 1005899.654 | DG18: 1007784.625 | DH18: 1008807.93 | DI18: 1012502.142 | DJ18: 1006684.904 | DK18: 1010917.591 | DL18: 1010533.234 | DM18: 1009490.984 | DN18: 1012460.374 | DO18: 1009552.105 | DP18: 1012460.885 | DQ18: 1011908.111 | DR18: 1004272.558 | DS18: 1011534.372 | DT18: 1012341.825 | DU18: 1007303.104 | DV18: 1008128.634 | DW18: 1012193.076 | DX18: 1014655.139 | DY18: 1011120.291 | DZ18: 1011036.914 | EA18: 1010607.568 | EB18: 1010541.199 | EC18: 1006840.179 | ED18: 1006233.609 | EE18: 1008798.738 | EF18: 1011300.735 | EG18: 1012764.315 | EH18: 1010984.664 | EI18: 1006978.084 | EJ18: 1009932.848 | EK18: 1008543.127 | EL18: 1009551.553 | EM18: 1012895.719 | EN18: 1012960.294 | EO18: 1010796.006 | EP18: 1007864.03 | EQ18: 1012289.441 | ER18: 1011410.485 | ES18: 1009173.875 | ET18: 1011871.578 | EU18: 1012219.489 | EV18: 1008170.939 | EW18: 1009951.829 | EX18: 1011252.227 | EY18: 1015236.626 | EZ18: 1008975.123 | FA18: 1008730.685 | FB18: 1008371.583 | FC18: 1008375.875 | FD18: 1012887.99 | FE18: 1011376.892 | FF18: 1011508.909 | FG18: 1008868.702 | FH18: 1010755.97 | FI18: 1006868.597 | FJ18: 1010961.703 | FK18: 1012499.617 | FL18: 1012091.383 | FM18: 1009047.16 | FN18: 1010573.795 | FO18: 1013494.658 | FP18: 1010900.435
B19: 12 | C19: 0.03767 | D19: 0.6416362135 | E19: 0.02431 | F19: 1.3096034 | G19: 0.1781910506 | H19: 1.013042926 | I19: 0 | J19: 0 | K19: =SUM(I$8:I$19)/SUM(I$8:I19) -> 1 | L19: 0.2203006634 | M19: 0.3144 | N19: 1.864924325 | O19: 2.090582309 | P19: 2.308304657 | Q19: 2.590120591 | R19: 2.801461923 | S19: 2.869424282 | T19: 0 | U19: na | V19: na | W19: na | Y19: 12 | AL19: 1121522845 | AM19: 1819635878 | AN19: 1903005406 | AO19: 845326313 | AP19: 254813585 | AQ19: 1010217469 | AR19: 1127497863 | AS19: 1478286589 | AT19: 2034560138 | AU19: 826066202 | AV19: 1712366590 | AW19: 158668618 | AZ19: 1.142803556 | BA19: 1.268472788 | BB19: 1.429280691 | BC19: 1.407620871 | BD19: 1.275831942 | BE19: 1.278487255 | BF19: 1.297065323 | BG19: 1.368004413 | BH19: 1.598451998 | BI19: 1.569988668 | BJ19: 1.708024217 | BK19: 1.511054405 | BM19: =SUMPRODUCT(TRANSPOSE($J$8:$J$19),AZ19:BK19) -> 7714379.705 | BO19: 0.915 | BP19: 8062874.421 | BQ19: 1011171.65 | BR19: 8069843.124 | BS19: 7051702.771 | BU19: 1011872.289 | BV19: 1008954.227 | BW19: 1011827.432 | BX19: 1014567.528 | BY19: 1011272.948 | BZ19: 1012765.799 | CA19: 1012756.139 | CB19: 1014141.045 | CC19: 1009570.868 | CD19: 1013187.814 | CE19: 1009031.412 | CF19: 1013572.286 | CG19: 1008706.411 | CH19: 1009624.554 | CI19: 1010741.7 | CJ19: 1013329.222 | CK19: 1012994.995 | CL19: 1013776.781 | CM19: 1008592.669 | CN19: 1013520.775 | CO19: 1013117.866 | CP19: 1014396.498 | CQ19: 1011169.538 | CR19: 1011094.144 | CS19: 1009064.45 | CT19: 1007891.021 | CU19: 1010449.46 | CV19: 1008646.295 | CW19: 1012138.709 | CX19: 1014210.004 | CY19: 1013233.717 | CZ19: 1009878.629 | DA19: 1012634.138 | DB19: 1009880.227 | DC19: 1011248.478 | DD19: 1011210.47 | DE19: 1002324.489 | DF19: 1006278.173 | DG19: 1008562.951 | DH19: 1010003.666 | DI19: 1013274.998 | DJ19: 1007627.591 | DK19: 1011757.846 | DL19: 1011039.637 | DM19: 1010196.13 | DN19: 1013148.227 | DO19: 1010338.262 | DP19: 1013712.963 | DQ19: 1013025.523 | DR19: 1004923.238 | DS19: 1012716.45 | DT19: 1012841.681 | DU19: 1008259.403 | DV19: 1008998.575 | DW19: 1013028.617 | DX19: 1016070.167 | DY19: 1011853.963 | DZ19: 1011587.178 | EA19: 1011153.201 | EB19: 1011548.112 | EC19: 1008073.56 | ED19: 1007107.551 | EE19: 1009585.636 | EF19: 1012188.166 | EG19: 1013633.8 | EH19: 1011686.29 | EI19: 1007740.372 | EJ19: 1010475.065 | EK19: 1009099.773 | EL19: 1010694.06 | EM19: 1013664.595 | EN19: 1013772.518 | EO19: 1011997.648 | EP19: 1009012.184 | EQ19: 1012975.355 | ER19: 1012757.917 | ES19: 1009792.797 | ET19: 1012530.699 | EU19: 1013270.649 | EV19: 1009161.176 | EW19: 1010622.455 | EX19: 1012001.336 | EY19: 1015769.991 | EZ19: 1009612.186 | FA19: 1009572.63 | FB19: 1009467.496 | FC19: 1008941.063 | FD19: 1013484.006 | FE19: 1011841.661 | FF19: 1012152.855 | FG19: 1009789.76 | FH19: 1012013.112 | FI19: 1007754.332 | FJ19: 1011202.201 | FK19: 1013250.513 | FL19: 1012959.706 | FM19: 1010384.068 | FN19: 1011288.132 | FO19: 1014490.34 | FP19: 1012005.777
AL20: 1113993772 | AM20: 1414820991 | AN20: 1360952601 | AO20: 409678176 | AP20: 1467715166 | AQ20: 1296273670 | AR20: 1771278952 | AS20: 1785315103 | AT20: 1530276794 | AU20: 565279246 | AV20: 1002092860 | AW20: 1166174276 | AZ20: 1.141891195 | BA20: 1.198565225 | BB20: 1.248592018 | BC20: 1.163948786 | BD20: 1.226416635 | BE20: 1.267133987 | BF20: 1.391307412 | BG20: 1.531107526 | BH20: 1.625035729 | BI20: 1.547573543 | BJ20: 1.549322823 | BK20: 1.578490635 | BM20: =SUMPRODUCT(TRANSPOSE($J$8:$J$19),AZ20:BK20) -> 7003675.786 | BO20: 0.916 | BP20: 8069351.902 | BQ20: 1012036.845 | BR20: 8074218.102 | BS20: 7057315.057 | BU20: 1012853.275 | BV20: 1010067.38 | BW20: 1012311.868 | BX20: 1015524.113 | BY20: 1011770.374 | BZ20: 1013800.079 | CA20: 1013855.947 | CB20: 1014987.111 | CC20: 1010186.661 | CD20: 1014358.959 | CE20: 1009749.82 | CF20: 1014404.957 | CG20: 1009354.984 | CH20: 1010515.444 | CI20: 1011319.238 | CJ20: 1014020.202 | CK20: 1013924.703 | CL20: 1014370.724 | CM20: 1009089.628 | CN20: 1014412.696 | CO20: 1014135.244 | CP20: 1015530.424 | CQ20: 1011683.818 | CR20: 1012221.934 | CS20: 1009621.667 | CT20: 1008808.222 | CU20: 1011113.431 | CV20: 1009325.275 | CW20: 1012670.747 | CX20: 1014863.395 | CY20: 1014481.402 | CZ20: 1011351.317 | DA20: 1013341.241 | DB20: 1010937.817 | DC20: 1011924.876 | DD20: 1012213.59 | DE20: 1003033.86 | DF20: 1007051.247 | DG20: 1009669.485 | DH20: 1011392.221 | DI20: 1014533.864 | DJ20: 1008187.319 | DK20: 1012458.7 | DL20: 1011875.348 | DM20: 1010718.944 | DN20: 1014252.14 | DO20: 1011315.504 | DP20: 1014348.7 | DQ20: 1014656.468 | DR20: 1006073.895 | DS20: 1012993.497 | DT20: 1013816.671 | DU20: 1008708.045 | DV20: 1009866.371 | DW20: 1013774.486 | DX20: 1016823.896 | DY20: 1012672.271 | DZ20: 1012817.701 | EA20: 1012081.333 | EB20: 1012288.237 | EC20: 1008833.228 | ED20: 1008022.222 | EE20: 1010123.54 | EF20: 1013120.908 | EG20: 1014668.321 | EH20: 1012744.62 | EI20: 1008406.004 | EJ20: 1011407.417 | EK20: 1009799.82 | EL20: 1011250.967 | EM20: 1014334.144 | EN20: 1014215.24 | EO20: 1013180.624 | EP20: 1010174.789 | EQ20: 1013537.727 | ER20: 1013758.412 | ES20: 1010843.501 | ET20: 1013940.664 | EU20: 1014593.502 | EV20: 1010080.139 | EW20: 1011278.302 | EX20: 1012777.209 | EY20: 1016835.767 | EZ20: 1010592.847 | FA20: 1010441.141 | FB20: 1010277.177 | FC20: 1009839.37 | FD20: 1014344.256 | FE20: 1012856.197 | FF20: 1012625.114 | FG20: 1010781.103 | FH20: 1012875.16 | FI20: 1008945.485 | FJ20: 1011815.748 | FK20: 1014376.542 | FL20: 1014070.426 | FM20: 1011257.795 | FN20: 1011863.25 | FO20: 1015265.949 | FP20: 1013017.11
F21: Expectation of Weighted Sum | G21: =SUMPRODUCT(F8:F19,J8:J19) -> 6850315.335 | S21: Mixture Sum | U21: =SUMPRODUCT(U8:U19,wts)/SUM(wts) -> 0.0009427478099 | V21: =SUMPRODUCT(V8:V19,wts)/SUM(wts) -> 0.09392385617 | W21: =SUMPRODUCT(W8:W19,wts)/SUM(wts) -> 0.9985479388 | AL21: 602847332 | AM21: 549114667 | AN21: 870757494 | AO21: 1545812120 | AP21: 445779809 | AQ21: 1195301931 | AR21: 1492370334 | AS21: 426582803 | AT21: 996117315 | AU21: 667264884 | AV21: 2102780032 | AW21: 409637985 | AZ21: 1.07865661 | BA21: 1.027792656 | BB21: 1.015697661 | BC21: 1.080742687 | BD21: 1.012724976 | BE21: 1.034978813 | BF21: 1.093504129 | BG21: 1.02145001 | BH21: 1.021849003 | BI21: 0.9855486411 | BJ21: 1.196097466 | BK21: 1.114580498 | BM21: =SUMPRODUCT(TRANSPOSE($J$8:$J$19),AZ21:BK21) -> 6195423.09 | BO21: 0.917 | BP21: 8075892.82 | BQ21: 1012845.877 | BR21: 8077340.129 | BS21: 7063046.944 | BU21: 1013595.716 | BV21: 1010740.51 | BW21: 1013093.046 | BX21: 1016497.451 | BY21: 1012386.953 | BZ21: 1014331.635 | CA21: 1014417.91 | CB21: 1015737.096 | CC21: 1010793.887 | CD21: 1014830.007 | CE21: 1010770.273 | CF21: 1015640.012 | CG21: 1010547.8 | CH21: 1011496.412 | CI21: 1011972.272 | CJ21: 1014944.211 | CK21: 1014551.161 | CL21: 1014997.02 | CM21: 1009862.419 | CN21: 1015561.9 | CO21: 1015062.016 | CP21: 1016553.716 | CQ21: 1012774.653 | CR21: 1013225.578 | CS21: 1010604.686 | CT21: 1009394.05 | CU21: 1011889.227 | CV21: 1010309.353 | CW21: 1013114.571 | CX21: 1015522.307 | CY21: 1015343.573 | CZ21: 1012052.185 | DA21: 1014334.382 | DB21: 1012002.879 | DC21: 1012404.549 | DD21: 1012684.616 | DE21: 1003980.183 | DF21: 1008309.115 | DG21: 1010391.592 | DH21: 1012350.766 | DI21: 1015864.127 | DJ21: 1008899.349 | DK21: 1012994.524 | DL21: 1012429.767 | DM21: 1011479.751 | DN21: 1015169.958 | DO21: 1012242.891 | DP21: 1014760.328 | DQ21: 1015145.136 | DR21: 1006803.913 | DS21: 1013713.549 | DT21: 1014340.348 | DU21: 1009520.705 | DV21: 1010787.741 | DW21: 1014339.823 | DX21: 1017611.123 | DY21: 1013469.602 | DZ21: 1013740.193 | EA21: 1012942.803 | EB21: 1012770.827 | EC21: 1009744.382 | ED21: 1009267.99 | EE21: 1011115.292 | EF21: 1014638.997 | EG21: 1015152.675 | EH21: 1013274.876 | EI21: 1009158.645 | EJ21: 1012388.777 | EK21: 1010650.674 | EL21: 1012297.486 | EM21: 1014848.42 | EN21: 1014708.498 | EO21: 1014086.688 | EP21: 1010959.789 | EQ21: 1014722.37 | ER21: 1014251.643 | ES21: 1011679.403 | ET21: 1014933.708 | EU21: 1015392.594 | EV21: 1011021.498 | EW21: 1011904.917 | EX21: 1013801.156 | EY21: 1017432.332 | EZ21: 1011515.84 | FA21: 1011288.244 | FB21: 1010724.323 | FC21: 1010879.423 | FD21: 1015149.457 | FE21: 1013434.783 | FF21: 1013306.034 | FG21: 1011547.782 | FH21: 1013749.248 | FI21: 1010122.454 | FJ21: 1012784.376 | FK21: 1015321.747 | FL21: 1014698.19 | FM21: 1012075.473 | FN21: 1012967.349 | FO21: 1015962.622 | FP21: 1013529.359
F22: Variance of Weighted Sum | G22: =SUMPRODUCT(J8:J19,J8:J19,G8:G19)+SUM(Z8:AJ18) -> 7.319618785e+11 | S22: Probability of Payment | W22: =1/3 -> 0.3333333333 | AL22: 1640146122 | AM22: 2070919483 | AN22: 1785053790 | AO22: 1430045858 | AP22: 451017299 | AQ22: 1976367352 | AR22: 869453899 | AS22: 1505276177 | AT22: 1420056035 | AU22: 1583477858 | AV22: 332865570 | AW22: 1753236006 | AZ22: 1.213639834 | BA22: 1.445717238 | BB22: 1.592840185 | BC22: 1.671373624 | BD22: 1.567391353 | BE22: 1.796688784 | BF22: 1.77326492 | BG22: 1.876346133 | BH22: 1.96540843 | BI22: 2.100135342 | BJ22: 1.932067552 | BK22: 2.115468017 | BM22: =SUMPRODUCT(TRANSPOSE($J$8:$J$19),AZ22:BK22) -> 8697001.743 | BO22: 0.918 | BP22: 8082498.66 | BQ22: 1013698.497 | BR22: 8085546.074 | BS22: 7068800.163 | BU22: 1014308.657 | BV22: 1011445.066 | BW22: 1013763.874 | BX22: 1017373.452 | BY22: 1012923.672 | BZ22: 1015363.452 | CA22: 1015146.597 | CB22: 1016470.938 | CC22: 1011768.428 | CD22: 1015655.012 | CE22: 1011749.405 | CF22: 1016196.492 | CG22: 1011188.61 | CH22: 1012013.937 | CI22: 1012826.661 | CJ22: 1015647.983 | CK22: 1015149.896 | CL22: 1016466.69 | CM22: 1011309.241 | CN22: 1016862.764 | CO22: 1015748.83 | CP22: 1017351.161 | CQ22: 1013390.027 | CR22: 1014033.09 | CS22: 1012237.021 | CT22: 1010194.966 | CU22: 1012902.383 | CV22: 1011250.642 | CW22: 1014130.582 | CX22: 1015942.669 | CY22: 1016294.939 | CZ22: 1012456.793 | DA22: 1015152.662 | DB22: 1012263.11 | DC22: 1013169.848 | DD22: 1013857.425 | DE22: 1004480.84 | DF22: 1009012.303 | DG22: 1011012.681 | DH22: 1013144.119 | DI22: 1016662.636 | DJ22: 1010115.312 | DK22: 1013932.256 | DL22: 1013080.747 | DM22: 1012243.127 | DN22: 1016657.235 | DO22: 1012992.041 | DP22: 1015406.227 | DQ22: 1015699.847 | DR22: 1007727.246 | DS22: 1014955.847 | DT22: 1015036.047 | DU22: 1010720.697 | DV22: 1012198.765 | DW22: 1015208.479 | DX22: 1018526.967 | DY22: 1014696.095 | DZ22: 1014547.514 | EA22: 1014283.652 | EB22: 1013220.468 | EC22: 1010528.755 | ED22: 1009780.487 | EE22: 1011814.098 | EF22: 1015249.584 | EG22: 1016169.609 | EH22: 1014247.062 | EI22: 1010116.162 | EJ22: 1013294.153 | EK22: 1011364.333 | EL22: 1012819.77 | EM22: 1015411.464 | EN22: 1015908.88 | EO22: 1014632.19 | EP22: 1011792.613 | EQ22: 1015367.734 | ER22: 1015699.708 | ES22: 1012383.405 | ET22: 1015722.993 | EU22: 1015787.513 | EV22: 1012317.168 | EW22: 1012667.748 | EX22: 1014628.013 | EY22: 1018272.388 | EZ22: 1011972.504 | FA22: 1012400.671 | FB22: 1011566.677 | FC22: 1011464.541 | FD22: 1016029.521 | FE22: 1014512.107 | FF22: 1014204.854 | FG22: 1013146.232 | FH22: 1014770.888 | FI22: 1011235.961 | FJ22: 1013310.017 | FK22: 1016405.402 | FL22: 1015606.004 | FM22: 1012965.623 | FN22: 1013526.978 | FO22: 1017034.696 | FP22: 1014153.044
S23: Mixture Sum with Probabilistic Payment | W23: =W21*W22+(1-W22) -> 0.9995159796 | AL23: 213841113 | AM23: 2138079690 | AN23: 697644862 | AO23: 1029262350 | AP23: 2014310390 | AQ23: 1414914064 | AR23: 1136245308 | AS23: 1077143722 | AT23: 1994336892 | AU23: 674235847 | AV23: 281282616 | AW23: 272201003 | AZ23: 1.011959243 | BA23: 1.298351926 | BB23: 1.25828545 | BC23: 1.26396984 | BD23: 1.466390484 | BE23: 1.535374331 | BF23: 1.559132796 | BG23: 1.573263143 | BH23: 1.812735257 | BI23: 1.749795176 | BJ23: 1.59427231 | BK23: 1.450084177 | BM23: =SUMPRODUCT(TRANSPOSE($J$8:$J$19),AZ23:BK23) -> 7107285.856 | BO23: 0.919 | BP23: 8089170.959 | BQ23: 1014513.64 | BR23: 8093325.948 | BS23: 7074657.319 | BU23: 1014979.154 | BV23: 1012197.355 | BW23: 1014399.069 | BX23: 1018643.382 | BY23: 1013628.742 | BZ23: 1016191.85 | CA23: 1015943.809 | CB23: 1017370.638 | CC23: 1012321.801 | CD23: 1016232.107 | CE23: 1012441.574 | CF23: 1017230.62 | CG23: 1012084.04 | CH23: 1012605.291 | CI23: 1013312.135 | CJ23: 1016233.233 | CK23: 1016365.245 | CL23: 1016904.816 | CM23: 1012373.681 | CN23: 1018026.811 | CO23: 1016980.389 | CP23: 1018043.682 | CQ23: 1014426.257 | CR23: 1014895.905 | CS23: 1012968.98 | CT23: 1010778.352 | CU23: 1013621.149 | CV23: 1011876.877 | CW23: 1014635.957 | CX23: 1016329.412 | CY23: 1016655.565 | CZ23: 1013192.725 | DA23: 1015838.586 | DB23: 1012971.371 | DC23: 1014171.076 | DD23: 1014642.054 | DE23: 1005422.5 | DF23: 1009550.941 | DG23: 1011556.663 | DH23: 1014437.267 | DI23: 1017239.76 | DJ23: 1011050.36 | DK23: 1014735.668 | DL23: 1014157.527 | DM23: 1013507.058 | DN23: 1017453.183 | DO23: 1013648.715 | DP23: 1016358.107 | DQ23: 1016585.421 | DR23: 1008928.292 | DS23: 1015549.914 | DT23: 1015939.887 | DU23: 1011994.012 | DV23: 1012992.588 | DW23: 1015728.502 | DX23: 1019580.739 | DY23: 1015398.917 | DZ23: 1015512.82 | EA23: 1014992.923 | EB23: 1014061.547 | EC23: 1011407.023 | ED23: 1010634.304 | EE23: 1012683 | EF23: 1016093.174 | EG23: 1017001.31 | EH23: 1015437.925 | EI23: 1011180.474 | EJ23: 1013861.936 | EK23: 1011809.47 | EL23: 1013638.685 | EM23: 1016369.16 | EN23: 1016980.17 | EO23: 1015876.321 | EP23: 1012324.378 | EQ23: 1016185.13 | ER23: 1016323.359 | ES23: 1013489.953 | ET23: 1016240.507 | EU23: 1016646.76 | EV23: 1012842.543 | EW23: 1013628.264 | EX23: 1015462.275 | EY23: 1018923.51 | EZ23: 1013445.322 | FA23: 1012950.869 | FB23: 1012620.977 | FC23: 1012237.384 | FD23: 1016629.844 | FE23: 1015683.158 | FF23: 1015764.192 | FG23: 1013634.516 | FH23: 1015583.764 | FI23: 1012590.04 | FJ23: 1013674.466 | FK23: 1016991.542 | FL23: 1016169.339 | FM23: 1013644.477 | FN23: 1014282.924 | FO23: 1017706.308 | FP23: 1014818.219
F24: MoM Lognormal Mu | G24: =LN(SQRT((G21^4)/(G21^2+G22))) -> 15.73206647 | AL24: 1517958141 | AM24: 1328124817 | AN24: 1324064995 | AO24: 1488723505 | AP24: 1159750471 | AQ24: 746874156 | AR24: 964918088 | AS24: 2078027145 | AT24: 1239186016 | AU24: 923900252 | AV24: 1401540602 | AW24: 1109663467 | AZ24: 1.194601911 | BA24: 1.241679921 | BB24: 1.28819796 | BC24: 1.361115623 | BD24: 1.385944888 | BE24: 1.349431656 | BF24: 1.345616032 | BG24: 1.605097395 | BH24: 1.647809559 | BI24: 1.635811034 | BJ24: 1.709990288 | BK24: 1.731753078 | BM24: =SUMPRODUCT(TRANSPOSE($J$8:$J$19),AZ24:BK24) -> 7483995.394 | BO24: 0.92 | BP24: 8095911.311 | BQ24: 1015316.523 | BR24: 8102838.045 | BS24: 7080594.788 | BU24: 1015599.295 | BV24: 1012890.794 | BW24: 1015855.102 | BX24: 1019384.263 | BY24: 1014381.279 | BZ24: 1016752.797 | CA24: 1016627.948 | CB24: 1018452.627 | CC24: 1012890.289 | CD24: 1016712.665 | CE24: 1013868.361 | CF24: 1017737.35 | CG24: 1013112.353 | CH24: 1013171.766 | CI24: 1014215.303 | CJ24: 1017139.392 | CK24: 1016911.704 | CL24: 1017430.872 | CM24: 1013012.626 | CN24: 1019545.04 | CO24: 1017760.543 | CP24: 1018438.466 | CQ24: 1015665.409 | CR24: 1015326.609 | CS24: 1013873.545 | CT24: 1011311.012 | CU24: 1014322.454 | CV24: 1012777.165 | CW24: 1015274.384 | CX24: 1016797.639 | CY24: 1017069.606 | CZ24: 1014013.632 | DA24: 1016314.991 | DB24: 1013638.994 | DC24: 1014731.04 | DD24: 1015613.946 | DE24: 1006390.784 | DF24: 1010210.241 | DG24: 1012724.092 | DH24: 1015077.024 | DI24: 1017677.585 | DJ24: 1011676.552 | DK24: 1015657.473 | DL24: 1015297.873 | DM24: 1015013.67 | DN24: 1017984.021 | DO24: 1014464.491 | DP24: 1016999.609 | DQ24: 1017546.251 | DR24: 1009662.137 | DS24: 1016358.987 | DT24: 1016755.093 | DU24: 1012724.333 | DV24: 1014216.025 | DW24: 1017006.021 | DX24: 1021053.082 | DY24: 1016507.833 | DZ24: 1016152.05 | EA24: 1015597.491 | EB24: 1015046.952 | EC24: 1011943.282 | ED24: 1011689.84 | EE24: 1013645.973 | EF24: 1017368.481 | EG24: 1017904.886 | EH24: 1016243.652 | EI24: 1012112.784 | EJ24: 1014452.928 | EK24: 1012462.531 | EL24: 1014582.612 | EM24: 1017381.577 | EN24: 1017924.355 | EO24: 1016595.374 | EP24: 1012999.906 | EQ24: 1017102.019 | ER24: 1016930.723 | ES24: 1014690.809 | ET24: 1017187.975 | EU24: 1017491.301 | EV24: 1013642.022 | EW24: 1014325.127 | EX24: 1016191.056 | EY24: 1019584.434 | EZ24: 1014131.267 | FA24: 1013530.867 | FB24: 1013265.228 | FC24: 1013172.724 | FD24: 1017442.305 | FE24: 1016550.144 | FF24: 1016252.964 | FG24: 1014251.598 | FH24: 1016249.522 | FI24: 1013400.049 | FJ24: 1014128.385 | FK24: 1017962.356 | FL24: 1017303.316 | FM24: 1014446.624 | FN24: 1014816.09 | FO24: 1018440.214 | FP24: 1015434.076
F25: MoM Lognormal Sigma | G25: =SQRT(2)*SQRT(LN(G21/SQRT((G21^4)/(G21^2+G22)))) -> 0.1244087846 | AL25: 1215388571 | AM25: 1083727516 | AN25: 533071631 | AO25: 927030294 | AP25: 1711275645 | AQ25: 406918440 | AR25: 788206065 | AS25: 1634648572 | AT25: 738674798 | AU25: 796167043 | AV25: 1589067701 | AW25: 2028092083 | AZ25: 1.154300873 | BA25: 1.168647909 | BB25: 1.109596193 | BC25: 1.102520203 | BD25: 1.199525221 | BE25: 1.117273496 | BF25: 1.092848414 | BG25: 1.175744463 | BH25: 1.143476933 | BI25: 1.119386927 | BJ25: 1.197086403 | BK25: 1.395562415 | BM25: =SUMPRODUCT(TRANSPOSE($J$8:$J$19),AZ25:BK25) -> 6689930.908 | BO25: 0.921 | BP25: 8102721.369 | BQ25: 1016190.905 | BR25: 8108272.322 | BS25: 7086530.464 | BU25: 1016634.313 | BV25: 1013829.068 | BW25: 1016535.581 | BX25: 1020908.567 | BY25: 1015337.337 | BZ25: 1017359.83 | CA25: 1017500.035 | CB25: 1019296.808 | CC25: 1013694.754 | CD25: 1017553.812 | CE25: 1015027.785 | CF25: 1018443.371 | CG25: 1015022.633 | CH25: 1014123.943 | CI25: 1015270.956 | CJ25: 1017980.222 | CK25: 1018330.707 | CL25: 1018687.439 | CM25: 1013902.022 | CN25: 1020450.286 | CO25: 1018539.455 | CP25: 1019178.182 | CQ25: 1016418.864 | CR25: 1016377.041 | CS25: 1015055.584 | CT25: 1012189.375 | CU25: 1014777.446 | CV25: 1013611.552 | CW25: 1015954.621 | CX25: 1017444.897 | CY25: 1017789.699 | CZ25: 1015202.668 | DA25: 1017277.7 | DB25: 1014331.614 | DC25: 1015819.967 | DD25: 1016447.755 | DE25: 1007079.681 | DF25: 1011213.459 | DG25: 1013296.853 | DH25: 1015781.171 | DI25: 1018196.114 | DJ25: 1012494.876 | DK25: 1016844.767 | DL25: 1016419.458 | DM25: 1015553.071 | DN25: 1018684.169 | DO25: 1015298.28 | DP25: 1017819.575 | DQ25: 1017859.251 | DR25: 1010225.995 | DS25: 1017267.771 | DT25: 1017851.676 | DU25: 1013630.359 | DV25: 1014690.052 | DW25: 1017445.418 | DX25: 1021616.596 | DY25: 1016993.031 | DZ25: 1017453.002 | EA25: 1017784.011 | EB25: 1015915.723 | EC25: 1012623.155 | ED25: 1013129.171 | EE25: 1014187.373 | EF25: 1018505.874 | EG25: 1018551.137 | EH25: 1017462.47 | EI25: 1012574.413 | EJ25: 1015256.478 | EK25: 1013710.046 | EL25: 1015094.028 | EM25: 1018235.022 | EN25: 1019334.592 | EO25: 1018063.221 | EP25: 1014175.54 | EQ25: 1017641.442 | ER25: 1017663.397 | ES25: 1015307.613 | ET25: 1018018.438 | EU25: 1018306.13 | EV25: 1014209.956 | EW25: 1015266.191 | EX25: 1016908.819 | EY25: 1020130.263 | EZ25: 1014836.584 | FA25: 1014130.37 | FB25: 1013963.294 | FC25: 1014232 | FD25: 1018177.677 | FE25: 1017400.113 | FF25: 1017136.149 | FG25: 1014921.669 | FH25: 1017316.419 | FI25: 1014237.959 | FJ25: 1014772.905 | FK25: 1018393.674 | FL25: 1018340.735 | FM25: 1015745.186 | FN25: 1015472.92 | FO25: 1019137.257 | FP25: 1016800.611
AL26: 915958348 | AM26: 2056767563 | AN26: 751641647 | AO26: 1562569135 | AP26: 2028177940 | AQ26: 1474581778 | AR26: 527189716 | AS26: 1129577291 | AT26: 1900183117 | AU26: 411985941 | AV26: 2066091425 | AW26: 695922704 | AZ26: 1.118075765 | BA26: 1.322448362 | BB26: 1.289671063 | BC26: 1.375170427 | BD26: 1.603401753 | BE26: 1.690606125 | BF26: 1.602083793 | BG26: 1.625614967 | BH26: 1.828290445 | BI26: 1.703980672 | BJ26: 2.019493137 | BK26: 1.954759565 | BM26: =SUMPRODUCT(TRANSPOSE($J$8:$J$19),AZ26:BK26) -> 7508801.639 | BO26: 0.922 | BP26: 8109602.846 | BQ26: 1017059.693 | BR26: 8113922.951 | BS26: 7092543.153 | BU26: 1017518.35 | BV26: 1014581.503 | BW26: 1017117.37 | BX26: 1021644.297 | BY26: 1015794.619 | BZ26: 1018390.243 | CA26: 1018891.611 | CB26: 1020141.456 | CC26: 1014467.777 | CD26: 1018090.195 | CE26: 1015708.684 | CF26: 1019212.103 | CG26: 1015956.462 | CH26: 1015193.482 | CI26: 1015901.382 | CJ26: 1019113.873 | CK26: 1019409.831 | CL26: 1019820.769 | CM26: 1015009.068 | CN26: 1021240.307 | CO26: 1019081.25 | CP26: 1020359.717 | CQ26: 1017487.179 | CR26: 1017798.141 | CS26: 1015840.292 | CT26: 1013023.095 | CU26: 1015673.513 | CV26: 1014180.782 | CW26: 1016858.873 | CX26: 1018650.968 | CY26: 1018469.398 | CZ26: 1016755.358 | DA26: 1018695.926 | DB26: 1015552.363 | DC26: 1016749.971 | DD26: 1017264.482 | DE26: 1008024.647 | DF26: 1011538.76 | DG26: 1013865.515 | DH26: 1016506.196 | DI26: 1018702.151 | DJ26: 1013356.562 | DK26: 1017949.402 | DL26: 1017265.869 | DM26: 1016037.692 | DN26: 1019466 | DO26: 1015727.935 | DP26: 1018193.755 | DQ26: 1018423.772 | DR26: 1011890.427 | DS26: 1018072.642 | DT26: 1019111.993 | DU26: 1014476.49 | DV26: 1015754.136 | DW26: 1018082.091 | DX26: 1022065.267 | DY26: 1017748.185 | DZ26: 1018061.157 | EA26: 1018513.829 | EB26: 1016587.97 | EC26: 1013527.641 | ED26: 1013729.537 | EE26: 1015195.332 | EF26: 1019545.548 | EG26: 1019582.161 | EH26: 1018172.885 | EI26: 1013118.135 | EJ26: 1016251.508 | EK26: 1014590.994 | EL26: 1015939.248 | EM26: 1019225.837 | EN26: 1019933.262 | EO26: 1019517.074 | EP26: 1015574.581 | EQ26: 1018396.385 | ER26: 1018299.262 | ES26: 1015848.001 | ET26: 1018980.562 | EU26: 1019742.057 | EV26: 1014958.625 | EW26: 1016175.849 | EX26: 1017813.894 | EY26: 1020980.81 | EZ26: 1015862.396 | FA26: 1014873.802 | FB26: 1015042.427 | FC26: 1014781.713 | FD26: 1018804.4 | FE26: 1017938.158 | FF26: 1017702.87 | FG26: 1015893.904 | FH26: 1018390.28 | FI26: 1015302.517 | FJ26: 1016266.348 | FK26: 1019424.853 | FL26: 1018847.12 | FM26: 1017067.835 | FN26: 1016107.415 | FO26: 1019915.446 | FP26: 1017581.526
F27: Expectation of Simulation | G27: =AVERAGE(BM:BM) -> 6882705.625 | AL27: 1832091872 | AM27: 1910549116 | AN27: 757726272 | AO27: 706582004 | AP27: 545358657 | AQ27: 1191526023 | AR27: 293564086 | AS27: 1215616531 | AT27: 417710043 | AU27: 1274786791 | AV27: 1011125848 | AW27: 1945638410 | AZ27: 1.25071432 | BA27: 1.413641321 | BB27: 1.379559816 | BC27: 1.337518464 | BD27: 1.270835238 | BE27: 1.298236303 | BF27: 1.185695637 | BG27: 1.214206371 | BH27: 1.13262337 | BI27: 1.167286418 | BJ27: 1.169728117 | BK27: 1.329898239 | BM27: =SUMPRODUCT(TRANSPOSE($J$8:$J$19),AZ27:BK27) -> 7927540.044 | BO27: 0.923 | BP27: 8116557.522 | BQ27: 1017946.321 | BR27: 8120471.403 | BS27: 7098611.201 | BU27: 1018364.468 | BV27: 1015332.244 | BW27: 1017486.328 | BX27: 1022683.054 | BY27: 1017002.12 | BZ27: 1019056.262 | CA27: 1019975.732 | CB27: 1021070.336 | CC27: 1014970.171 | CD27: 1018727.465 | CE27: 1016533.372 | CF27: 1020143.196 | CG27: 1016744.943 | CH27: 1016076.786 | CI27: 1016764.27 | CJ27: 1019908.826 | CK27: 1020268.932 | CL27: 1020533.553 | CM27: 1015812.271 | CN27: 1022118.4 | CO27: 1020100.923 | CP27: 1021144.055 | CQ27: 1018222.373 | CR27: 1018804.336 | CS27: 1016233.148 | CT27: 1014348.893 | CU27: 1016514.436 | CV27: 1015266.799 | CW27: 1017665.581 | CX27: 1019412.943 | CY27: 1019469.986 | CZ27: 1017656.471 | DA27: 1019586.359 | DB27: 1016156.581 | DC27: 1017441.254 | DD27: 1018120.206 | DE27: 1009481.244 | DF27: 1012299.737 | DG27: 1015280.658 | DH27: 1017524.523 | DI27: 1019748.096 | DJ27: 1013969.586 | DK27: 1018932.592 | DL27: 1017952.976 | DM27: 1016652.422 | DN27: 1020167.745 | DO27: 1016108.174 | DP27: 1019500.469 | DQ27: 1019453.252 | DR27: 1012951.583 | DS27: 1019243.015 | DT27: 1019964.643 | DU27: 1015749.213 | DV27: 1016636.546 | DW27: 1018990.963 | DX27: 1022836.252 | DY27: 1018931.044 | DZ27: 1018568.036 | EA27: 1019429.191 | EB27: 1017594.476 | EC27: 1014729.546 | ED27: 1014571.5 | EE27: 1016265.126 | EF27: 1020912.539 | EG27: 1020524.313 | EH27: 1018991.532 | EI27: 1013954.426 | EJ27: 1017303.193 | EK27: 1015027.913 | EL27: 1016700.643 | EM27: 1019959.429 | EN27: 1021120.988 | EO27: 1020195.229 | EP27: 1016324.99 | EQ27: 1019271.239 | ER27: 1018976.221 | ES27: 1016847.399 | ET27: 1019912.922 | EU27: 1020577.42 | EV27: 1016343.418 | EW27: 1017542.056 | EX27: 1018673.61 | EY27: 1021654.228 | EZ27: 1016437.161 | FA27: 1015412.585 | FB27: 1016236.126 | FC27: 1015976.908 | FD27: 1019560.982 | FE27: 1019010.534 | FF27: 1018592.508 | FG27: 1016785.785 | FH27: 1019299.046 | FI27: 1016182.407 | FJ27: 1017356.703 | FK27: 1020237.622 | FL27: 1019737.521 | FM27: 1017688.586 | FN27: 1016799.567 | FO27: 1020805.804 | FP27: 1018448.881
F28: Variance of Simulation | G28: =_xlfn.VAR.S(BM:BM) -> 7.229417249e+11 | AL28: 1382686205 | AM28: 431158021 | AN28: 263400008 | AO28: 1084633430 | AP28: 1153187121 | AQ28: 98138632 | AR28: 1534892400 | AS28: 1182397273 | AT28: 557523970 | AU28: 1236767223 | AV28: 47479792 | AW28: 2009354859 | AZ28: 1.175733944 | BA28: 1.101918439 | BB28: 1.001479313 | BC28: 1.011924202 | BD28: 1.029664026 | BE28: 0.891223161 | BF28: 0.9465365413 | BG28: 0.9658543974 | BH28: 0.9188671107 | BI28: 0.9430933476 | BJ28: 0.7925735788 | BK28: 0.9178483914 | BM28: =SUMPRODUCT(TRANSPOSE($J$8:$J$19),AZ28:BK28) -> 6338835.358 | BO28: 0.924 | BP28: 8123587.242 | BQ28: 1018866.511 | BR28: 8131690.446 | BS28: 7104720.731 | BU28: 1019548.223 | BV28: 1016125.757 | BW28: 1018243.384 | BX28: 1023587.526 | BY28: 1018251.95 | BZ28: 1019575.694 | CA28: 1020685.876 | CB28: 1022024.518 | CC28: 1015971.964 | CD28: 1019668.029 | CE28: 1017499.634 | CF28: 1021013.045 | CG28: 1017328.316 | CH28: 1016845.723 | CI28: 1017618.064 | CJ28: 1020472.881 | CK28: 1021394.65 | CL28: 1021056.251 | CM28: 1016375.884 | CN28: 1023328.977 | CO28: 1020980.022 | CP28: 1022416.516 | CQ28: 1019680.645 | CR28: 1019927.303 | CS28: 1016967.314 | CT28: 1015395.483 | CU28: 1017261.936 | CV28: 1016412.859 | CW28: 1018255.871 | CX28: 1020585.752 | CY28: 1020009.113 | CZ28: 1018452.359 | DA28: 1020355.546 | DB28: 1016926.172 | DC28: 1018468.501 | DD28: 1019273.306 | DE28: 1010942.573 | DF28: 1013450.376 | DG28: 1016363.405 | DH28: 1019054.103 | DI28: 1020428.551 | DJ28: 1015035.505 | DK28: 1019710.204 | DL28: 1018937.808 | DM28: 1017351.043 | DN28: 1021240.685 | DO28: 1017048.51 | DP28: 1020457.956 | DQ28: 1020334.401 | DR28: 1014031.039 | DS28: 1020401.754 | DT28: 1021052.386 | DU28: 1016344.947 | DV28: 1017027.651 | DW28: 1019845.936 | DX28: 1024031.686 | DY28: 1019633.093 | DZ28: 1019505.475 | EA28: 1020446.354 | EB28: 1018462.036 | EC28: 1015726.516 | ED28: 1015409.987 | EE28: 1017028.655 | EF28: 1021712.785 | EG28: 1021473.371 | EH28: 1020199.276 | EI28: 1014671.585 | EJ28: 1018803.098 | EK28: 1015694.698 | EL28: 1017540.121 | EM28: 1021361.654 | EN28: 1022402.262 | EO28: 1021095.974 | EP28: 1017682.812 | EQ28: 1020221.095 | ER28: 1019819.144 | ES28: 1017933.52 | ET28: 1020815.151 | EU28: 1021107.935 | EV28: 1017192.552 | EW28: 1018508.729 | EX28: 1019532.514 | EY28: 1022648.401 | EZ28: 1017411.628 | FA28: 1016726.857 | FB28: 1017284.699 | FC28: 1016854.312 | FD28: 1020434.349 | FE28: 1019736.679 | FF28: 1019708.038 | FG28: 1017562.326 | FH28: 1019544.355 | FI28: 1017014.203 | FJ28: 1018168.178 | FK28: 1021175.683 | FL28: 1020067.796 | FM28: 1018531.5 | FN28: 1018056.088 | FO28: 1021466.887 | FP28: 1019203.132
AL29: 2001536442 | AM29: 1164808614 | AN29: 1478595928 | AO29: 688985670 | AP29: 571903904 | AQ29: 2048463637 | AR29: 457735253 | AS29: 1825878664 | AT29: 2121975313 | AU29: 2092718480 | AV29: 531988283 | AW29: 321998387 | AZ29: 1.301809727 | BA29: 1.32938413 | BB29: 1.403839628 | BC29: 1.358248635 | BD29: 1.295002509 | BE29: 1.522187847 | BF29: 1.428570104 | BG29: 1.58327543 | BH29: 1.960760041 | BI29: 2.361015777 | BJ29: 2.238830394 | BK29: 2.055881888 | BM29: =SUMPRODUCT(TRANSPOSE($J$8:$J$19),AZ29:BK29) -> 7944538.557 | BO29: 0.925 | BP29: 8130693.924 | BQ29: 1019794.988 | BR29: 8137046.113 | BS29: 7110898.936 | BU29: 1020697.549 | BV29: 1017352.302 | BW29: 1019524.691 | BX29: 1024162.562 | BY29: 1018992.543 | BZ29: 1020323.678 | CA29: 1022030.242 | CB29: 1022867.219 | CC29: 1017167.447 | CD29: 1020640.67 | CE29: 1018473.354 | CF29: 1021892.928 | CG29: 1018899.163 | CH29: 1017776.023 | CI29: 1018215.971 | CJ29: 1020965.641 | CK29: 1022378.508 | CL29: 1021903.29 | CM29: 1017579.487 | CN29: 1024447.838 | CO29: 1022273.037 | CP29: 1023224.131 | CQ29: 1020456.299 | CR29: 1020975.497 | CS29: 1018197.815 | CT29: 1016399.208 | CU29: 1018149.958 | CV29: 1017363.377 | CW29: 1019657.651 | CX29: 1021523.176 | CY29: 1020926.624 | CZ29: 1019167.973 | DA29: 1021488.288 | DB29: 1017854.553 | DC29: 1019788.047 | DD29: 1019941.712 | DE29: 1011724.45 | DF29: 1014270.442 | DG29: 1017139.98 | DH29: 1019791.581 | DI29: 1021370.905 | DJ29: 1015793.399 | DK29: 1021114.83 | DL29: 1019999.43 | DM29: 1018039.538 | DN29: 1022966.195 | DO29: 1017789.158 | DP29: 1021204.757 | DQ29: 1021128.266 | DR29: 1014555.148 | DS29: 1021091.981 | DT29: 1021565.988 | DU29: 1017157.814 | DV29: 1017680.616 | DW29: 1020603.887 | DX29: 1024598.3 | DY29: 1020830.684 | DZ29: 1020695.302 | EA29: 1021565.51 | EB29: 1019537.517 | EC29: 1016573.875 | ED29: 1016298.879 | EE29: 1017955.308 | EF29: 1022461.119 | EG29: 1022198.086 | EH29: 1021169.138 | EI29: 1015323.513 | EJ29: 1019420.941 | EK29: 1016224.169 | EL29: 1018175.453 | EM29: 1021985.855 | EN29: 1023225.469 | EO29: 1022674.936 | EP29: 1019189 | EQ29: 1020985.852 | ER29: 1020548.514 | ES29: 1018768.066 | ET29: 1021543.116 | EU29: 1021636.476 | EV29: 1017860.684 | EW29: 1019715.11 | EX29: 1020154.949 | EY29: 1023587.923 | EZ29: 1018363.552 | FA29: 1018186.188 | FB29: 1018929.401 | FC29: 1018045.352 | FD29: 1021022.539 | FE29: 1020389.441 | FF29: 1021534.7 | FG29: 1018144.799 | FH29: 1020625.726 | FI29: 1018107.529 | FJ29: 1018850.683 | FK29: 1021998.621 | FL29: 1020653.552 | FM29: 1019056.012 | FN29: 1019075.943 | FO29: 1022690.609 | FP29: 1020253.607
AL30: 876313252 | AM30: 1059760640 | AN30: 1685032443 | AO30: 2095519128 | AP30: 471067799 | AQ30: 503695512 | AR30: 2026637227 | AS30: 2112633417 | AT30: 1342822864 | AU30: 2130476847 | AV30: 2144441514 | AW30: 1844985538 | AZ30: 1.11328623 | BA30: 1.124265244 | BB30: 1.219596776 | BC30: 1.472394359 | BD30: 1.384805398 | BE30: 1.308223597 | BF30: 1.524124055 | BG30: 1.866737776 | BH30: 1.938295763 | BI30: 2.433726862 | BJ30: 3.219077785 | BK30: 3.580969073 | BM30: =SUMPRODUCT(TRANSPOSE($J$8:$J$19),AZ30:BK30) -> 7239473.801 | BO30: 0.926 | BP30: 8137879.562 | BQ30: 1020739.352 | BR30: 8141726.496 | BS30: 7117140.21 | BU30: 1021377.265 | BV30: 1018083.597 | BW30: 1020747.01 | BX30: 1025128.061 | BY30: 1019880.418 | BZ30: 1021071.786 | CA30: 1022951.937 | CB30: 1023791.098 | CC30: 1018641.698 | CD30: 1021792.125 | CE30: 1019012.178 | CF30: 1023370.57 | CG30: 1019430.347 | CH30: 1018717.34 | CI30: 1018964.868 | CJ30: 1021694.403 | CK30: 1023272.952 | CL30: 1023154.343 | CM30: 1018403.336 | CN30: 1025217.523 | CO30: 1023071.953 | CP30: 1024439.753 | CQ30: 1021301.512 | CR30: 1021932.797 | CS30: 1019310.81 | CT30: 1017834.586 | CU30: 1019029.142 | CV30: 1018560.388 | CW30: 1020652.522 | CX30: 1022418.113 | CY30: 1021565.294 | CZ30: 1019904.97 | DA30: 1022483.634 | DB30: 1019304.115 | DC30: 1020505.184 | DD30: 1020687.801 | DE30: 1012499.925 | DF30: 1015537.433 | DG30: 1017837.139 | DH30: 1020124.852 | DI30: 1022074.336 | DJ30: 1016611.065 | DK30: 1022107.716 | DL30: 1020837.173 | DM30: 1019204.654 | DN30: 1023558.158 | DO30: 1018398.611 | DP30: 1021653.764 | DQ30: 1022066.508 | DR30: 1015575.46 | DS30: 1021939.564 | DT30: 1022762.314 | DU30: 1017729.079 | DV30: 1019398.286 | DW30: 1021555.747 | DX30: 1025706.753 | DY30: 1021925.378 | DZ30: 1021764.132 | EA30: 1022620.148 | EB30: 1020128.801 | EC30: 1017583.54 | ED30: 1017400.637 | EE30: 1018957.656 | EF30: 1023479.397 | EG30: 1023219.697 | EH30: 1022234.081 | EI30: 1016834.526 | EJ30: 1019918.289 | EK30: 1016824.562 | EL30: 1019720.617 | EM30: 1022698.265 | EN30: 1024056.798 | EO30: 1023509.673 | EP30: 1020390.434 | EQ30: 1021792.796 | ER30: 1021467.822 | ES30: 1019242.105 | ET30: 1022855.475 | EU30: 1022263.838 | EV30: 1018477.695 | EW30: 1021060.005 | EX30: 1020761.875 | EY30: 1024842.839 | EZ30: 1018982.304 | FA30: 1019261.599 | FB30: 1020200.819 | FC30: 1018851.754 | FD30: 1022901.843 | FE30: 1021190.659 | FF30: 1022481.005 | FG30: 1018690.645 | FH30: 1021943.029 | FI30: 1018961.037 | FJ30: 1020072.564 | FK30: 1022447.389 | FL30: 1021533.411 | FM30: 1020196.112 | FN30: 1019954.969 | FO30: 1024036.964 | FP30: 1021314.044
AL31: 1531592333 | AM31: 497898253 | AN31: 110442281 | AO31: 2029086694 | AP31: 1356871093 | AQ31: 76208418 | AR31: 1335529079 | AS31: 1371726918 | AT31: 1903550743 | AU31: 1550994001 | AV31: 1329569600 | AW31: 1002580061 | AZ31: 1.196614701 | BA31: 1.13233984 | BB31: 0.9862105389 | BC31: 1.150594776 | BD31: 1.196967853 | BE31: 1.025035836 | BF31: 1.063574347 | BG31: 1.107970447 | BH31: 1.247025595 | BI31: 1.326987998 | BJ31: 1.375969234 | BK31: 1.377748868 | BM31: =SUMPRODUCT(TRANSPOSE($J$8:$J$19),AZ31:BK31) -> 6589218.886 | BO31: 0.927 | BP31: 8145146.227 | BQ31: 1021633.712 | BR31: 8149307.655 | BS31: 7123512.516 | BU31: 1022175.188 | BV31: 1018652.431 | BW31: 1021446.336 | BX31: 1025783.271 | BY31: 1020383.199 | BZ31: 1022875.982 | CA31: 1023471.803 | CB31: 1024846.433 | CC31: 1019503.705 | CD31: 1022673.339 | CE31: 1019645.376 | CF31: 1024102.395 | CG31: 1020095.55 | CH31: 1019584.528 | CI31: 1019695.178 | CJ31: 1022866.688 | CK31: 1024184.554 | CL31: 1024074.75 | CM31: 1019102.652 | CN31: 1025653.41 | CO31: 1024399.725 | CP31: 1025575.928 | CQ31: 1022043.923 | CR31: 1022918.833 | CS31: 1020422.318 | CT31: 1018765.598 | CU31: 1019814.547 | CV31: 1019118.572 | CW31: 1021396.776 | CX31: 1023500.67 | CY31: 1022248.715 | CZ31: 1021040.867 | DA31: 1023125.929 | DB31: 1020274.664 | DC31: 1021409.411 | DD31: 1021496.889 | DE31: 1013518.175 | DF31: 1016566.061 | DG31: 1018676.6 | DH31: 1021027.11 | DI31: 1022648.218 | DJ31: 1017645.491 | DK31: 1023247.218 | DL31: 1021921.721 | DM31: 1020016.05 | DN31: 1024408.879 | DO31: 1019355.637 | DP31: 1022846.011 | DQ31: 1022681.232 | DR31: 1016353.077 | DS31: 1022358.677 | DT31: 1023881.341 | DU31: 1018618.509 | DV31: 1020265.1 | DW31: 1022990.804 | DX31: 1026787.037 | DY31: 1022975.063 | DZ31: 1022602.823 | EA31: 1022928.336 | EB31: 1020882.503 | EC31: 1018412.561 | ED31: 1018927.54 | EE31: 1020541.199 | EF31: 1024522.969 | EG31: 1023861.273 | EH31: 1023279.096 | EI31: 1017975.456 | EJ31: 1020580.997 | EK31: 1017906.347 | EL31: 1020606.506 | EM31: 1024058.423 | EN31: 1024577.758 | EO31: 1024365.022 | EP31: 1021303.556 | EQ31: 1022323.341 | ER31: 1022504.402 | ES31: 1020252.988 | ET31: 1023941.279 | EU31: 1023326.566 | EV31: 1019219.659 | EW31: 1022077.337 | EX31: 1021728.874 | EY31: 1025770.599 | EZ31: 1019449.468 | FA31: 1020044.656 | FB31: 1020889.795 | FC31: 1019443.377 | FD31: 1023379.729 | FE31: 1022449.984 | FF31: 1023295.634 | FG31: 1020002.632 | FH31: 1022910.832 | FI31: 1019857.206 | FJ31: 1021065.604 | FK31: 1023569.14 | FL31: 1022375.014 | FM31: 1021163.02 | FN31: 1020674.277 | FO31: 1024701.714 | FP31: 1022463.517
AL32: 73990974 | AM32: 1557076986 | AN32: 1104934297 | AO32: 1462150051 | AP32: 1420780350 | AQ32: 17057967 | AR32: 2012573116 | AS32: 1266770827 | AT32: 1915111164 | AU32: 309036910 | AV32: 2105371005 | AW32: 1998139386 | AZ32: 0.9639917104 | BA32: 1.029315149 | BB32: 1.042967651 | BC32: 1.098515712 | BD32: 1.151128351 | BE32: 0.9330372842 | BF32: 1.081572938 | BG32: 1.113717391 | BH32: 1.25673649 | BI32: 1.151073267 | BJ32: 1.400119503 | BK32: 1.615506731 | BM32: =SUMPRODUCT(TRANSPOSE($J$8:$J$19),AZ32:BK32) -> 6085413.179 | BO32: 0.928 | BP32: 8152496.076 | BQ32: 1022546.486 | BR32: 8160766.991 | BS32: 7129949.591 | BU32: 1022597.964 | BV32: 1019492.552 | BW32: 1022529.623 | BX32: 1026651.191 | BY32: 1021776.002 | BZ32: 1023620.75 | CA32: 1024543.077 | CB32: 1025618.325 | CC32: 1020126.176 | CD32: 1023395.417 | CE32: 1020767.796 | CF32: 1024806.013 | CG32: 1021043.756 | CH32: 1020462.68 | CI32: 1020241.968 | CJ32: 1023653.716 | CK32: 1025293.928 | CL32: 1024929.223 | CM32: 1020021.071 | CN32: 1027039.626 | CO32: 1025236.016 | CP32: 1026304.109 | CQ32: 1022835.895 | CR32: 1024264.954 | CS32: 1021345.558 | CT32: 1019835.934 | CU32: 1020580.273 | CV32: 1019853.308 | CW32: 1022429.311 | CX32: 1024755.026 | CY32: 1023151.513 | CZ32: 1022064.719 | DA32: 1024081.891 | DB32: 1021137.199 | DC32: 1022187.516 | DD32: 1022260.743 | DE32: 1014429.568 | DF32: 1017397.378 | DG32: 1019794.712 | DH32: 1021943.214 | DI32: 1023104.265 | DJ32: 1018408.542 | DK32: 1024102.879 | DL32: 1023238.73 | DM32: 1021691.505 | DN32: 1025048.253 | DO32: 1020478.711 | DP32: 1023497.037 | DQ32: 1024402.565 | DR32: 1017576.537 | DS32: 1023446.652 | DT32: 1024591.503 | DU32: 1019786.899 | DV32: 1021154.607 | DW32: 1023559.988 | DX32: 1027415.88 | DY32: 1023501.635 | DZ32: 1023548.957 | EA32: 1024438.398 | EB32: 1021781.284 | EC32: 1019033.433 | ED32: 1019748.207 | EE32: 1021690.378 | EF32: 1025644.6 | EG32: 1024910.285 | EH32: 1024417.531 | EI32: 1018696.267 | EJ32: 1021302.42 | EK32: 1018723.025 | EL32: 1021701.156 | EM32: 1025201.993 | EN32: 1025542.06 | EO32: 1025385.54 | EP32: 1022543.625 | EQ32: 1022750.542 | ER32: 1023457.417 | ES32: 1020800.021 | ET32: 1025016.476 | EU32: 1024566.538 | EV32: 1020034.227 | EW32: 1022529.316 | EX32: 1023020.293 | EY32: 1026405.072 | EZ32: 1020095.419 | FA32: 1020580.986 | FB32: 1021536.639 | FC32: 1020093.271 | FD32: 1024037.334 | FE32: 1023357.69 | FF32: 1024184.577 | FG32: 1020998.599 | FH32: 1023840.04 | FI32: 1020662.803 | FJ32: 1022079.246 | FK32: 1024402.204 | FL32: 1023696.734 | FM32: 1022100.975 | FN32: 1021625.016 | FO32: 1025436.147 | FP32: 1023525.942
AL33: 353000993 | AM33: 1883029853 | AN33: 1379593595 | AO33: 247569519 | AP33: 450524258 | AQ33: 918888256 | AR33: 1051659450 | AS33: 845225439 | AT33: 1602445035 | AU33: 1099270548 | AV33: 847671727 | AW33: 105780248 | AZ33: 1.040584557 | BA33: 1.16918177 | BB33: 1.220545086 | BC33: 1.104847893 | BD33: 1.036036332 | BE33: 1.028109693 | BF33: 1.034698845 | BG33: 1.018437037 | BH33: 1.090928027 | BI33: 1.103383306 | BJ33: 1.086406829 | BK33: 0.9434354084 | BM33: =SUMPRODUCT(TRANSPOSE($J$8:$J$19),AZ33:BK33) -> 6679692.6 | BO33: 0.929 | BP33: 8159931.354 | BQ33: 1023551.796 | BR33: 8169305.351 | BS33: 7136379.558 | BU33: 1023411.012 | BV33: 1020755.903 | BW33: 1023346.435 | BX33: 1028718.899 | BY33: 1022920.714 | BZ33: 1025346.153 | CA33: 1025390.926 | CB33: 1026172.398 | CC33: 1020859.023 | CD33: 1023978.965 | CE33: 1021520.216 | CF33: 1025674.75 | CG33: 1021863.656 | CH33: 1022173.435 | CI33: 1021098.504 | CJ33: 1024548.122 | CK33: 1026151.895 | CL33: 1026144.458 | CM33: 1020778.972 | CN33: 1027554.045 | CO33: 1026528.039 | CP33: 1027525.302 | CQ33: 1023755.661 | CR33: 1025425.098 | CS33: 1022714.892 | CT33: 1020966.591 | CU33: 1021472.32 | CV33: 1021744.567 | CW33: 1023195.939 | CX33: 1025404.537 | CY33: 1024298.786 | CZ33: 1022999.807 | DA33: 1025093.563 | DB33: 1022234.294 | DC33: 1023091.146 | DD33: 1023226.878 | DE33: 1014878.15 | DF33: 1018205.939 | DG33: 1021041.529 | DH33: 1022578.756 | DI33: 1023698.111 | DJ33: 1019154.495 | DK33: 1024771.005 | DL33: 1024351.058 | DM33: 1022259.446 | DN33: 1026318.655 | DO33: 1021818.707 | DP33: 1024557.251 | DQ33: 1025173.534 | DR33: 1019621.977 | DS33: 1024340.651 | DT33: 1025464.678 | DU33: 1020666.172 | DV33: 1022247.825 | DW33: 1024290.963 | DX33: 1028530.185 | DY33: 1024804.777 | DZ33: 1024141.891 | EA33: 1025202.121 | EB33: 1022988.339 | EC33: 1020383.158 | ED33: 1020845.813 | EE33: 1022566.721 | EF33: 1027003.757 | EG33: 1025794.301 | EH33: 1025033.006 | EI33: 1020062.648 | EJ33: 1021854.864 | EK33: 1019233.384 | EL33: 1022549.947 | EM33: 1026195.764 | EN33: 1026620.757 | EO33: 1026571.398 | EP33: 1023286.411 | EQ33: 1023581.494 | ER33: 1024701.733 | ES33: 1021629.176 | ET33: 1026292.292 | EU33: 1025688.423 | EV33: 1021065.898 | EW33: 1023302.815 | EX33: 1024591.846 | EY33: 1027182.586 | EZ33: 1020608.387 | FA33: 1021475.03 | FB33: 1022432.342 | FC33: 1021308.256 | FD33: 1025374.736 | FE33: 1024357.143 | FF33: 1025706.756 | FG33: 1021727.4 | FH33: 1024867.947 | FI33: 1021694.487 | FJ33: 1022876.441 | FK33: 1025083.436 | FL33: 1024738.154 | FM33: 1022788.848 | FN33: 1022960.377 | FO33: 1026842.144 | FP33: 1025107.392
AL34: 1575677805 | AM34: 1341191241 | AN34: 894530775 | AO34: 1829239741 | AP34: 1837048396 | AQ34: 1527760238 | AR34: 287379517 | AS34: 1982840263 | AT34: 1410803192 | AU34: 715188785 | AV34: 1956007726 | AW34: 1549722289 | AZ34: 1.203298641 | BA34: 1.2525369 | BB34: 1.24099864 | BC34: 1.37700387 | BD34: 1.529699648 | BE34: 1.623343365 | BF34: 1.480838561 | BG34: 1.700395421 | BH34: 1.779208066 | BI34: 1.725728148 | BJ34: 1.96704746 | BK34: 2.093246786 | BM34: =SUMPRODUCT(TRANSPOSE($J$8:$J$19),AZ34:BK34) -> 7467460.69 | BO34: 0.93 | BP34: 8167454.396 | BQ34: 1024518.049 | BR34: 8181687.396 | BS34: 7142936.347 | BU34: 1023888.521 | BV34: 1021694.017 | BW34: 1024673.671 | BX34: 1029902.676 | BY34: 1023693.24 | BZ34: 1026220.028 | CA34: 1027004.28 | CB34: 1027219.115 | CC34: 1021517.098 | CD34: 1024563.867 | CE34: 1022469.852 | CF34: 1026402.16 | CG34: 1022594.871 | CH34: 1022874.399 | CI34: 1022151.131 | CJ34: 1025943.464 | CK34: 1027153.484 | CL34: 1027042.624 | CM34: 1021367.672 | CN34: 1028514.556 | CO34: 1027502.673 | CP34: 1028410.718 | CQ34: 1024760.437 | CR34: 1026137.544 | CS34: 1023904.406 | CT34: 1022623.876 | CU34: 1022770.645 | CV34: 1022906.235 | CW34: 1023895.148 | CX34: 1026387.935 | CY34: 1024979.243 | CZ34: 1023455.162 | DA34: 1026225.066 | DB34: 1022986.55 | DC34: 1023939.946 | DD34: 1024607.112 | DE34: 1015877.808 | DF34: 1019177.841 | DG34: 1021988.694 | DH34: 1023567.78 | DI34: 1024408.377 | DJ34: 1020128.092 | DK34: 1025503.181 | DL34: 1024975.061 | DM34: 1022908.643 | DN34: 1027194.125 | DO34: 1023426.546 | DP34: 1025227.948 | DQ34: 1026000.472 | DR34: 1020582.979 | DS34: 1025685.077 | DT34: 1026340.978 | DU34: 1021525.624 | DV34: 1023467.899 | DW34: 1025158.928 | DX34: 1029715.228 | DY34: 1025770.277 | DZ34: 1025047.04 | EA34: 1026027.851 | EB34: 1024418.076 | EC34: 1021377.727 | ED34: 1021694.718 | EE34: 1023440.079 | EF34: 1028241.314 | EG34: 1026737.947 | EH34: 1025684.583 | EI34: 1020821.218 | EJ34: 1022543.848 | EK34: 1020806.128 | EL34: 1023437.721 | EM34: 1027491.653 | EN34: 1027707.037 | EO34: 1026994.675 | EP34: 1024840.826 | EQ34: 1024979.756 | ER34: 1026535.3 | ES34: 1022325.175 | ET34: 1027336.087 | EU34: 1026214.342 | EV34: 1021911.951 | EW34: 1024211.424 | EX34: 1025374.678 | EY34: 1027661.517 | EZ34: 1020914.547 | FA34: 1022726.965 | FB34: 1023200.76 | FC34: 1022317.163 | FD34: 1026310.043 | FE34: 1025019.173 | FF34: 1027126.013 | FG34: 1022729.97 | FH34: 1026427.248 | FI34: 1022648.022 | FJ34: 1023976.324 | FK34: 1025764.787 | FL34: 1025437.384 | FM34: 1024257.771 | FN34: 1024193.448 | FO34: 1027645.362 | FP34: 1026232.262
AL35: 2114999356 | AM35: 452888202 | AN35: 441349796 | AO35: 1146424112 | AP35: 120887745 | AQ35: 1926010518 | AR35: 1499789134 | AS35: 336188483 | AT35: 2026951015 | AU35: 2078215210 | AV35: 35434097 | AW35: 1199252721 | AZ35: 1.384132776 | BA35: 1.301423736 | BB35: 1.219840135 | BC35: 1.240668659 | BD35: 1.083931712 | BE35: 1.226447096 | BF35: 1.296962699 | BG35: 1.193791401 | BH35: 1.390826546 | BI35: 1.659184913 | BJ35: 1.379262985 | BK35: 1.410202838 | BM35: =SUMPRODUCT(TRANSPOSE($J$8:$J$19),AZ35:BK35) -> 7597338.305 | BO35: 0.931 | BP35: 8175067.639 | BQ35: 1025408.953 | BR35: 8191849.714 | BS35: 7149658.685 | BU35: 1024548.674 | BV35: 1022966.056 | BW35: 1025395.414 | BX35: 1031159.858 | BY35: 1024484.914 | BZ35: 1027048.777 | CA35: 1027546.813 | CB35: 1028848.434 | CC35: 1022042.911 | CD35: 1025412.976 | CE35: 1023088.866 | CF35: 1027107.624 | CG35: 1023708.51 | CH35: 1023978.698 | CI35: 1022649.993 | CJ35: 1026766.779 | CK35: 1028121.873 | CL35: 1028210.341 | CM35: 1022491.797 | CN35: 1029905.804 | CO35: 1028665.22 | CP35: 1028860.794 | CQ35: 1025723.71 | CR35: 1026877.376 | CS35: 1024734.989 | CT35: 1023486.381 | CU35: 1023742.229 | CV35: 1023999.135 | CW35: 1024805.874 | CX35: 1027944.053 | CY35: 1025828.792 | CZ35: 1024088.223 | DA35: 1027067.141 | DB35: 1023823.089 | DC35: 1024964.043 | DD35: 1025228.06 | DE35: 1016521.569 | DF35: 1020472.346 | DG35: 1022826.448 | DH35: 1024667.094 | DI35: 1025110.988 | DJ35: 1020733.578 | DK35: 1026381.728 | DL35: 1026173.246 | DM35: 1023888.588 | DN35: 1027918.613 | DO35: 1024531.993 | DP35: 1026161.41 | DQ35: 1027120.106 | DR35: 1021485.275 | DS35: 1026626.581 | DT35: 1027093.727 | DU35: 1022209.896 | DV35: 1024188.208 | DW35: 1025763.102 | DX35: 1030297.758 | DY35: 1026473.514 | DZ35: 1026031.461 | EA35: 1026556.371 | EB35: 1025929.889 | EC35: 1022800.006 | ED35: 1022716.234 | EE35: 1024266.303 | EF35: 1028707.338 | EG35: 1027850.706 | EH35: 1026789.704 | EI35: 1021795.139 | EJ35: 1022974.297 | EK35: 1021414.566 | EL35: 1023880.041 | EM35: 1028153.346 | EN35: 1028152.208 | EO35: 1028283.319 | EP35: 1025678.585 | EQ35: 1025438.703 | ER35: 1026997.201 | ES35: 1023540.25 | ET35: 1028049.356 | EU35: 1027681.603 | EV35: 1023181.427 | EW35: 1024957.034 | EX35: 1026539.33 | EY35: 1028573.214 | EZ35: 1022119.596 | FA35: 1023351.569 | FB35: 1023862.103 | FC35: 1023470.711 | FD35: 1027431.145 | FE35: 1026187.039 | FF35: 1028276.779 | FG35: 1023722.887 | FH35: 1027061.644 | FI35: 1023112.594 | FJ35: 1024636.525 | FK35: 1026785.389 | FL35: 1026498.955 | FM35: 1025184.297 | FN35: 1024784.57 | FO35: 1028351.769 | FP35: 1027150.151
AL36: 1761335096 | AM36: 2130355929 | AN36: 1358224476 | AO36: 532210809 | AP36: 659269996 | AQ36: 1591668454 | AR36: 352579650 | AS36: 1767826161 | AT36: 1450004098 | AU36: 2122799599 | AV36: 1042313275 | AW36: 1558906859 | AZ36: 1.235606937 | BA36: 1.555177312 | BB36: 1.619592674 | BC36: 1.536579317 | BD36: 1.481021135 | BE36: 1.584496192 | BF36: 1.462701852 | BG36: 1.605027734 | BH36: 1.687085727 | BI36: 2.09175367 | BJ36: 2.103076947 | BK36: 2.240602903 | BM36: =SUMPRODUCT(TRANSPOSE($J$8:$J$19),AZ36:BK36) -> 8744290.427 | BO36: 0.932 | BP36: =_xlfn.LOGNORM.INV(BO36,$G$24,$G$25) -> 8182773.622 | BQ36: =AVERAGE(BU36:XFD36) -> 1026362.014 | BR36: =LARGE($BM:$BM,ROUND((1-BO36)*$AL$2,0)) -> 8199955.628 | BS36: 7156411.607 | BU36: 1025512.369 | BV36: 1023706.467 | BW36: 1026210.738 | BX36: 1032124.333 | BY36: 1025640.034 | BZ36: 1028491.134 | CA36: 1028556.439 | CB36: 1029931.711 | CC36: 1023305.323 | CD36: 1026281.561 | CE36: 1024009.284 | CF36: 1028044.18 | CG36: 1024185.324 | CH36: 1024725.237 | CI36: 1022993.872 | CJ36: 1027588.563 | CK36: 1029302.254 | CL36: 1028793.341 | CM36: 1023922.803 | CN36: 1030589.38 | CO36: 1029725.578 | CP36: 1030011.28 | CQ36: 1026603.937 | CR36: 1027667.321 | CS36: 1025588.39 | CT36: 1024547.522 | CU36: 1024561 | CV36: 1025039.454 | CW36: 1026339.603 | CX36: 1028941.981 | CY36: 1027084.332 | CZ36: 1024647.035 | DA36: 1028074.19 | DB36: 1024382.171 | DC36: 1026168.99 | DD36: 1025916.309 | DE36: 1017251.864 | DF36: 1021669.956 | DG36: 1023846.77 | DH36: 1025298.121 | DI36: 1026340.625 | DJ36: 1021626.956 | DK36: 1027131.097 | DL36: 1027055.965 | DM36: 1025026.074 | DN36: 1028664.982 | DO36: 1024883.559 | DP36: 1026977.672 | DQ36: 1027790.709 | DR36: 1022362.705 | DS36: 1028195.923 | DT36: 1027715.988 | DU36: 1022799.549 | DV36: 1025375.544 | DW36: 1026898.605 | DX36: 1031153.848 | DY36: 1027292.841 | DZ36: 1026938.152 | EA36: 1027830.599 | EB36: 1027170.519 | EC36: 1023068.234 | ED36: 1023614.615 | EE36: 1024787.633 | EF36: 1029460.785 | EG36: 1029008.055 | EH36: 1027855.413 | EI36: 1023101.108 | EJ36: 1023876.781 | EK36: 1022734.78 | EL36: 1024659.842 | EM36: 1028832.664 | EN36: 1029446.419 | EO36: 1029581.022 | EP36: 1026566.078 | EQ36: 1026829.742 | ER36: 1027881.951 | ES36: 1024573.703 | ET36: 1029249.87 | EU36: 1028916.465 | EV36: 1024730.111 | EW36: 1026442.831 | EX36: 1027617.878 | EY36: 1029474.268 | EZ36: 1022888.712 | FA36: 1024647.972 | FB36: 1024686.654 | FC36: 1024011.048 | FD36: 1028288.309 | FE36: 1026924.22 | FF36: 1029829.327 | FG36: 1024334.136 | FH36: 1027984.393 | FI36: 1024336.904 | FJ36: 1025787.792 | FK36: 1027472.919 | FL36: 1027005.91 | FM36: 1025744.807 | FN36: 1025458.948 | FO36: 1029819.47 | FP36: 1028157.571
AL37: 381350639 | AM37: 9128517 | AN37: 177938086 | AO37: 1092178 | AP37: 61812023 | AQ37: 905504315 | AR37: 564382675 | AS37: 178936792 | AT37: 213307887 | AU37: 329743077 | AV37: 109731962 | AW37: 18516262 | AZ37: 1.045506529 | BA37: 0.8327391991 | BB37: 0.741585537 | BC37: 0.5554622441 | BD37: 0.4717270949 | BE37: 0.4674426455 | BF37: 0.4451447681 | BG37: 0.3960482009 | BH37: 0.3554911867 | BI37: 0.3268340366 | BJ37: 0.2842497439 | BK37: 0.2310314927 | BM37: =SUMPRODUCT(TRANSPOSE($J$8:$J$19),AZ37:BK37) -> 4716386.218 | BO37: 0.933 | BP37: 8190574.994 | BQ37: 1027338.851 | BR37: 8204880.3 | BS37: 7163236.143 | BU37: 1026555.339 | BV37: 1024883.064 | BW37: 1027015.107 | BX37: 1033307.488 | BY37: 1026566.402 | BZ37: 1029180.621 | CA37: 1029606.291 | CB37: 1030737.001 | CC37: 1024486.906 | CD37: 1027057.5 | CE37: 1025142.44 | CF37: 1029064.883 | CG37: 1025217.647 | CH37: 1025315.862 | CI37: 1023911.11 | CJ37: 1028640.71 | CK37: 1030431.744 | CL37: 1029510.682 | CM37: 1024816.232 | CN37: 1031866.999 | CO37: 1030849.369 | CP37: 1031060.682 | CQ37: 1027078.697 | CR37: 1028896.15 | CS37: 1026661.911 | CT37: 1026584.748 | CU37: 1026006.388 | CV37: 1025752.623 | CW37: 1026937.812 | CX37: 1029885.828 | CY37: 1028092.278 | CZ37: 1025768.802 | DA37: 1029811.198 | DB37: 1025091.875 | DC37: 1027803.255 | DD37: 1026759.31 | DE37: 1018285.188 | DF37: 1022615.029 | DG37: 1024707.859 | DH37: 1026541.723 | DI37: 1027026.048 | DJ37: 1022063.147 | DK37: 1028253.967 | DL37: 1027844.734 | DM37: 1026187.41 | DN37: 1029606.813 | DO37: 1026081.391 | DP37: 1027709.876 | DQ37: 1028593.385 | DR37: 1023152.876 | DS37: 1028859.628 | DT37: 1028643.084 | DU37: 1023556.487 | DV37: 1025817.525 | DW37: 1028076.535 | DX37: 1032029.621 | DY37: 1027930.437 | DZ37: 1027416.17 | EA37: 1028731.657 | EB37: 1027874.14 | EC37: 1023967.478 | ED37: 1025270.492 | EE37: 1025891 | EF37: 1031353.938 | EG37: 1030191.596 | EH37: 1029491.574 | EI37: 1023868.842 | EJ37: 1024499.295 | EK37: 1023799.881 | EL37: 1025497.527 | EM37: 1029855.772 | EN37: 1030386.378 | EO37: 1030432.051 | EP37: 1027870.434 | EQ37: 1027876.435 | ER37: 1029212.932 | ES37: 1025363.614 | ET37: 1030242.741 | EU37: 1030099.77 | EV37: 1025444.293 | EW37: 1027090.661 | EX37: 1028628.844 | EY37: 1030291.851 | EZ37: 1023669.251 | FA37: 1025993.003 | FB37: 1025526.98 | FC37: 1024677.711 | FD37: 1028991.388 | FE37: 1027938.248 | FF37: 1030649.873 | FG37: 1025753.837 | FH37: 1029175.381 | FI37: 1025083.589 | FJ37: 1027364.273 | FK37: 1028231.917 | FL37: 1027722.82 | FM37: 1026768.13 | FN37: 1026231.665 | FO37: 1030636.303 | FP37: 1028883.632
AL38: 2094356732 | AM38: 408496472 | AN38: 1462244953 | AO38: 1180916710 | AP38: 873376550 | AQ38: 1864121974 | AR38: 338559083 | AS38: 278658398 | AT38: 1548409659 | AU38: 2026761950 | AV38: 1176864200 | AW38: 445285850 | AZ38: 1.358949788 | BA38: 1.269221067 | BB38: 1.337703135 | BC38: 1.365552793 | BD38: 1.348625914 | BE38: 1.505762239 | BF38: 1.386651101 | BG38: 1.262658977 | BH38: 1.343156636 | BI38: 1.564768975 | BJ38: 1.595868676 | BK38: 1.495156552 | BM38: =SUMPRODUCT(TRANSPOSE($J$8:$J$19),AZ38:BK38) -> 7856814.338 | BO38: 0.934 | BP38: 8198474.522 | BQ38: 1028395.64 | BR38: 8210325.66 | BS38: 7170078.882 | BU38: 1027833.914 | BV38: 1025648.08 | BW38: 1027511.693 | BX38: 1034298.929 | BY38: 1027494.25 | BZ38: 1030154.205 | CA38: 1030741.839 | CB38: 1031342.818 | CC38: 1025634.655 | CD38: 1029126.048 | CE38: 1025708.3 | CF38: 1030114.594 | CG38: 1026389.303 | CH38: 1025823.21 | CI38: 1024844.108 | CJ38: 1030659.059 | CK38: 1031370.572 | CL38: 1030694.016 | CM38: 1025381.484 | CN38: 1033008.361 | CO38: 1031548.915 | CP38: 1032483.685 | CQ38: 1028491.47 | CR38: 1029638.076 | CS38: 1027995.213 | CT38: 1027703.343 | CU38: 1026386.016 | CV38: 1026261.499 | CW38: 1027440.818 | CX38: 1031410.916 | CY38: 1028856.207 | CZ38: 1027567.431 | DA38: 1030933.64 | DB38: 1026092.152 | DC38: 1029045.242 | DD38: 1027798.728 | DE38: 1019845.707 | DF38: 1023397.648 | DG38: 1025632.819 | DH38: 1027608.885 | DI38: 1027803.346 | DJ38: 1023043.627 | DK38: 1029142.185 | DL38: 1028457.333 | DM38: 1027219.397 | DN38: 1030411.374 | DO38: 1027418.828 | DP38: 1028923.097 | DQ38: 1029453.199 | DR38: 1024190.384 | DS38: 1029722.863 | DT38: 1029695.805 | DU38: 1024462.082 | DV38: 1026783.334 | DW38: 1029525.799 | DX38: 1033162.41 | DY38: 1029087.899 | DZ38: 1028876.957 | EA38: 1029961.984 | EB38: 1029359.673 | EC38: 1025011.823 | ED38: 1026340.058 | EE38: 1026817.962 | EF38: 1032075.754 | EG38: 1030935.075 | EH38: 1030519.372 | EI38: 1025017.578 | EJ38: 1025180.993 | EK38: 1024807.099 | EL38: 1026822.603 | EM38: 1031366.965 | EN38: 1031895.459 | EO38: 1031756.852 | EP38: 1028746.888 | EQ38: 1029365.937 | ER38: 1030050.282 | ES38: 1026525.593 | ET38: 1031200.49 | EU38: 1031348.809 | EV38: 1026752.989 | EW38: 1028508.29 | EX38: 1029673.534 | EY38: 1031485.42 | EZ38: 1024822.175 | FA38: 1026807.142 | FB38: 1026402.666 | FC38: 1026276.939 | FD38: 1029657.799 | FE38: 1029122.375 | FF38: 1031607.471 | FG38: 1026820.228 | FH38: 1030146.191 | FI38: 1025939.167 | FJ38: 1027985.955 | FK38: 1028816.841 | FL38: 1029164.416 | FM38: 1028109.062 | FN38: 1027311.676 | FO38: 1031567.022 | FP38: 1030181.603
AL39: 1753644200 | AM39: 338353158 | AN39: 533616667 | AO39: 1224582442 | AP39: 1507970793 | AQ39: 1319514007 | AR39: 234941823 | AS39: 1429448697 | AT39: 114315754 | AU39: 913582071 | AV39: 1026884109 | AW39: 229442527 | AZ39: 1.23408576 | BA39: 1.139344558 | BB39: 1.081852232 | BC39: 1.109555422 | BD39: 1.174779438 | BE39: 1.2168916 | BF39: 1.097923105 | BG39: 1.151330513 | BH39: 1.003036088 | BI39: 0.9946265034 | BJ39: 0.9983757629 | BK39: 0.8997443129 | BM39: =SUMPRODUCT(TRANSPOSE($J$8:$J$19),AZ39:BK39) -> 6738704.264 | BO39: 0.935 | BP39: 8206475.094 | BQ39: 1029389.176 | BR39: 8218197.964 | BS39: 7177085.918 | BU39: 1028911.542 | BV39: 1026653.241 | BW39: 1028513.433 | BX39: 1035399.256 | BY39: 1028194.377 | BZ39: 1031395.942 | CA39: 1032108.186 | CB39: 1032643.179 | CC39: 1026988.604 | CD39: 1029886.479 | CE39: 1026452.132 | CF39: 1031018.751 | CG39: 1027337.783 | CH39: 1026432.248 | CI39: 1025889.77 | CJ39: 1031720.078 | CK39: 1032770.645 | CL39: 1031865.678 | CM39: 1026289.721 | CN39: 1033439.302 | CO39: 1032403.073 | CP39: 1033533.418 | CQ39: 1029669.621 | CR39: 1030130.306 | CS39: 1029163.453 | CT39: 1029415.027 | CU39: 1026900.106 | CV39: 1027870.11 | CW39: 1028315.06 | CX39: 1032322.432 | CY39: 1029704.326 | CZ39: 1028585.663 | DA39: 1031838.746 | DB39: 1027026.239 | DC39: 1029908.945 | DD39: 1028667.128 | DE39: 1021350.806 | DF39: 1024167.937 | DG39: 1026931.159 | DH39: 1028707.176 | DI39: 1029339.218 | DJ39: 1023390.594 | DK39: 1029905.464 | DL39: 1029716.837 | DM39: 1027867.746 | DN39: 1031670.871 | DO39: 1028398.058 | DP39: 1029710.181 | DQ39: 1030897.475 | DR39: 1025395.419 | DS39: 1030965.377 | DT39: 1030320.052 | DU39: 1025515.748 | DV39: 1027309.033 | DW39: 1030521.203 | DX39: 1033671.86 | DY39: 1029804.206 | DZ39: 1029593.544 | EA39: 1030523.996 | EB39: 1030576.336 | EC39: 1025591.211 | ED39: 1027365.455 | EE39: 1027528.231 | EF39: 1032861.548 | EG39: 1032714.627 | EH39: 1031115.219 | EI39: 1025953.022 | EJ39: 1026065.377 | EK39: 1025571.654 | EL39: 1027388.939 | EM39: 1032321.62 | EN39: 1032999.572 | EO39: 1032338.088 | EP39: 1030306.537 | EQ39: 1030420.658 | ER39: 1030938.95 | ES39: 1027598.581 | ET39: 1032390.954 | EU39: 1032373.368 | EV39: 1027800.507 | EW39: 1029341.121 | EX39: 1030623.318 | EY39: 1032697.271 | EZ39: 1026302.951 | FA39: 1027498.14 | FB39: 1027339.603 | FC39: 1027138.734 | FD39: 1030329.025 | FE39: 1030485.08 | FF39: 1032814.575 | FG39: 1027877.153 | FH39: 1031185.667 | FI39: 1026999.757 | FJ39: 1029228.697 | FK39: 1030057.024 | FL39: 1030412.044 | FM39: 1029249.214 | FN39: 1028213.987 | FO39: 1032742.304 | FP39: 1031123.569
AL40: 648780754 | AM40: 1032154383 | AN40: 1291270639 | AO40: 184190460 | AP40: 152450191 | AQ40: 2043145524 | AR40: 15598226 | AS40: 120991130 | AT40: 1250272191 | AU40: 943458096 | AV40: 505285485 | AW40: 847053238 | AZ40: 1.084778903 | BA40: 1.092275865 | BB40: 1.129113364 | BC40: 1.00658317 | BD40: 0.8889056318 | BE40: 1.042472336 | BF40: 0.842409268 | BG40: 0.7358013435 | BH40: 0.7562870525 | BI40: 0.7523585161 | BJ40: 0.710846312 | BK40: 0.6999395353 | BM40: =SUMPRODUCT(TRANSPOSE($J$8:$J$19),AZ40:BK40) -> 6361913.626 | BO40: 0.936 | BP40: 8214579.733 | BQ40: 1030372.183 | BR40: 8226312.244 | BS40: 7184207.55 | BU40: 1029883.731 | BV40: 1028206.201 | BW40: 1029576.005 | BX40: 1036094.204 | BY40: 1028902.564 | BZ40: 1032215.496 | CA40: 1033332.435 | CB40: 1033339.433 | CC40: 1028177.306 | CD40: 1030599.181 | CE40: 1027228.199 | CF40: 1032429.866 | CG40: 1028152.332 | CH40: 1027491.791 | CI40: 1027151.204 | CJ40: 1032513.81 | CK40: 1033727.871 | CL40: 1033765.776 | CM40: 1027521.197 | CN40: 1034530.14 | CO40: 1033255.779 | CP40: 1034269.248 | CQ40: 1030903.481 | CR40: 1030855.914 | CS40: 1029898.108 | CT40: 1030484.058 | CU40: 1028187.156 | CV40: 1028373.075 | CW40: 1029692.902 | CX40: 1033725.786 | CY40: 1031184.17 | CZ40: 1029969.379 | DA40: 1032699.49 | DB40: 1028261.367 | DC40: 1030860.606 | DD40: 1029391.755 | DE40: 1022423.282 | DF40: 1025057.249 | DG40: 1028068.291 | DH40: 1029213.965 | DI40: 1029997.25 | DJ40: 1024651.844 | DK40: 1030601.979 | DL40: 1030708.274 | DM40: 1029043.885 | DN40: 1032684.406 | DO40: 1028898.236 | DP40: 1030344.226 | DQ40: 1032023.987 | DR40: 1026623.923 | DS40: 1031739.98 | DT40: 1031076.521 | DU40: 1026379.572 | DV40: 1028135.45 | DW40: 1031291.442 | DX40: 1034687.881 | DY40: 1030251.942 | DZ40: 1030198.122 | EA40: 1031382.573 | EB40: 1031885.456 | EC40: 1026363.746 | ED40: 1028514.234 | EE40: 1028408.905 | EF40: 1033950.263 | EG40: 1033243.492 | EH40: 1031672.921 | EI40: 1026551.953 | EJ40: 1027399.611 | EK40: 1026511.694 | EL40: 1028449.863 | EM40: 1033409.557 | EN40: 1033776.748 | EO40: 1033020.845 | EP40: 1030907.923 | EQ40: 1031717.475 | ER40: 1032091.202 | ES40: 1028636.569 | ET40: 1033316.187 | EU40: 1033107.253 | EV40: 1028909.672 | EW40: 1030287.314 | EX40: 1031471.276 | EY40: 1033143.157 | EZ40: 1027154.671 | FA40: 1028921.425 | FB40: 1028140.416 | FC40: 1028284.409 | FD40: 1031063.21 | FE40: 1031377.448 | FF40: 1033745.771 | FG40: 1029338.722 | FH40: 1032728.942 | FI40: 1027940.919 | FJ40: 1031227.143 | FK40: 1030705.098 | FL40: 1031622.132 | FM40: 1030397.195 | FN40: 1029504.203 | FO40: 1034026.296 | FP40: 1031957.717
AL41: 541752133 | AM41: 1503611393 | AN41: 212160994 | AO41: 475396080 | AP41: 1644195139 | AQ41: 1491100529 | AR41: 1322690796 | AS41: 1354800037 | AT41: 1156000120 | AU41: 2127533734 | AV41: 1663867456 | AW41: 18212618 | AZ41: 1.070206211 | BA41: 1.13517371 | BB41: 1.01991388 | BC41: 0.9600942785 | BD41: 1.034571271 | BE41: 1.093000967 | BF41: 1.132481192 | BG41: 1.177510728 | BH41: 1.198122305 | BI41: 1.496363588 | BJ41: 1.616505885 | BK41: 1.313132618 | BM41: =SUMPRODUCT(TRANSPOSE($J$8:$J$19),AZ41:BK41) -> 6179838.497 | BO41: 0.937 | BP41: 8222791.597 | BQ41: 1031433.27 | BR41: 8235357.694 | BS41: 7191358.327 | BU41: 1031080.572 | BV41: 1029176.333 | BW41: 1030316.899 | BX41: 1037362.827 | BY41: 1030045.562 | BZ41: 1033020.602 | CA41: 1034523.425 | CB41: 1034210.812 | CC41: 1028934.276 | CD41: 1032495.03 | CE41: 1028441.875 | CF41: 1033328.077 | CG41: 1029225.504 | CH41: 1028719.3 | CI41: 1028292.598 | CJ41: 1033482.051 | CK41: 1034493.089 | CL41: 1035104.381 | CM41: 1028263.011 | CN41: 1035768.821 | CO41: 1033997.046 | CP41: 1035376.846 | CQ41: 1032006.338 | CR41: 1032581.99 | CS41: 1030999.155 | CT41: 1031440.181 | CU41: 1029330.64 | CV41: 1029507.526 | CW41: 1030720.844 | CX41: 1034737.427 | CY41: 1031874.775 | CZ41: 1031190.085 | DA41: 1033402.548 | DB41: 1029024.361 | DC41: 1031964.95 | DD41: 1030224.798 | DE41: 1023527.164 | DF41: 1026181.061 | DG41: 1029458.332 | DH41: 1030526.538 | DI41: 1031388.527 | DJ41: 1026718.636 | DK41: 1031553.23 | DL41: 1031748.349 | DM41: 1030210.504 | DN41: 1033495.358 | DO41: 1029519.807 | DP41: 1032302.755 | DQ41: 1033109.358 | DR41: 1027696.69 | DS41: 1032390.899 | DT41: 1032308.066 | DU41: 1027601.439 | DV41: 1028954.052 | DW41: 1032668.561 | DX41: 1035645.084 | DY41: 1031144.736 | DZ41: 1031301.416 | EA41: 1033222.169 | EB41: 1032705.95 | EC41: 1027106.882 | ED41: 1029794.218 | EE41: 1029722.041 | EF41: 1035152.695 | EG41: 1034161.062 | EH41: 1032529.674 | EI41: 1027244.646 | EJ41: 1028180.627 | EK41: 1027551.205 | EL41: 1028936.719 | EM41: 1034735.856 | EN41: 1035203.291 | EO41: 1034105.918 | EP41: 1031624.031 | EQ41: 1033152.611 | ER41: 1033594.518 | ES41: 1029563.517 | ET41: 1034704.013 | EU41: 1034734.103 | EV41: 1029830.159 | EW41: 1031234.82 | EX41: 1032331.797 | EY41: 1033709.861 | EZ41: 1028189.227 | FA41: 1030221.334 | FB41: 1028997.618 | FC41: 1028944.825 | FD41: 1031920.64 | FE41: 1031993.777 | FF41: 1034462.331 | FG41: 1029725.75 | FH41: 1033886.608 | FI41: 1029478.473 | FJ41: 1032422.524 | FK41: 1031921.712 | FL41: 1032276.5 | FM41: 1031468.129 | FN41: 1030890.219 | FO41: 1034885.382 | FP41: 1032694.466
AL42: 1008842524 | AM42: 173250197 | AN42: 2021312478 | AO42: 1981409485 | AP42: 242928843 | AQ42: 1851722507 | AR42: 771104759 | AS42: 233083936 | AT42: 1066708872 | AU42: 1217907080 | AV42: 657570776 | AW42: 820471855 | AZ42: 1.129232449 | BA42: 1.005737037 | BB42: 1.170768346 | BC42: 1.344542337 | BD42: 1.215526432 | BE42: 1.353879822 | BF42: 1.321733619 | BG42: 1.191934896 | BH42: 1.201364622 | BI42: 1.230537514 | BJ42: 1.18553959 | BK42: 1.163931866 | BM42: =SUMPRODUCT(TRANSPOSE($J$8:$J$19),AZ42:BK42) -> 6836089.219 | BO42: 0.938 | BP42: 8231113.994 | BQ42: 1032485.378 | BR42: 8244640.558 | BS42: 7198628.616 | BU42: 1032446.4 | BV42: 1029902.371 | BW42: 1031622.774 | BX42: 1038181.644 | BY42: 1031429.146 | BZ42: 1034646.079 | CA42: 1035095.729 | CB42: 1035429.779 | CC42: 1029998.318 | CD42: 1034327.196 | CE42: 1029327.909 | CF42: 1034326.599 | CG42: 1030072.111 | CH42: 1029565.388 | CI42: 1029487.458 | CJ42: 1034382.958 | CK42: 1035227.135 | CL42: 1036396.274 | CM42: 1029261.054 | CN42: 1037091.299 | CO42: 1035175.804 | CP42: 1036065.51 | CQ42: 1032859.518 | CR42: 1033612.521 | CS42: 1032203.275 | CT42: 1032564.503 | CU42: 1030364.254 | CV42: 1030216.663 | CW42: 1031603.898 | CX42: 1035275.945 | CY42: 1032731.833 | CZ42: 1032286.912 | DA42: 1034316.946 | DB42: 1030283.169 | DC42: 1033545.012 | DD42: 1031135.597 | DE42: 1025430.502 | DF42: 1026819.338 | DG42: 1030704.144 | DH42: 1031250.344 | DI42: 1032008.518 | DJ42: 1028186.897 | DK42: 1032940.106 | DL42: 1033110.585 | DM42: 1030978.174 | DN42: 1035014.335 | DO42: 1030759.575 | DP42: 1033317.511 | DQ42: 1033542.74 | DR42: 1028896.731 | DS42: 1033205.258 | DT42: 1033681.905 | DU42: 1028529.816 | DV42: 1029869.897 | DW42: 1033257.014 | DX42: 1037015.313 | DY42: 1032255.913 | DZ42: 1031961.847 | EA42: 1033954.986 | EB42: 1033716.548 | EC42: 1029355.744 | ED42: 1030669.743 | EE42: 1030540.915 | EF42: 1036499.08 | EG42: 1035256.82 | EH42: 1033799.093 | EI42: 1028366.804 | EJ42: 1029176.416 | EK42: 1028756.518 | EL42: 1029873.459 | EM42: 1035467.34 | EN42: 1035848.603 | EO42: 1034922.733 | EP42: 1032522.145 | EQ42: 1034077.676 | ER42: 1035551.821 | ES42: 1030581.166 | ET42: 1035410.244 | EU42: 1035711.639 | EV42: 1030724.719 | EW42: 1032285.035 | EX42: 1033696.899 | EY42: 1034176.481 | EZ42: 1029826.691 | FA42: 1031719.532 | FB42: 1029883.63 | FC42: 1029910.428 | FD42: 1033436.082 | FE42: 1033377.684 | FF42: 1035746.92 | FG42: 1030331.709 | FH42: 1034548.283 | FI42: 1030430.727 | FJ42: 1033505.209 | FK42: 1032859.42 | FL42: 1032940.078 | FM42: 1032566.979 | FN42: 1031588.202 | FO42: 1035887.753 | FP42: 1033840.361
AL43: 1498296632 | AM43: 658937969 | AN43: 2002607740 | AO43: 2138063996 | AP43: 1157467833 | AQ43: 1932779963 | AR43: 1811251885 | AS43: 527848023 | AT43: 888556193 | AU43: 80338408 | AV43: 1790625636 | AW43: 1103494731 | AZ43: 1.191740312 | BA43: 1.151300309 | BB43: 1.331684387 | BC43: 1.704935532 | BD43: 1.735614882 | BE43: 1.966981912 | BF43: 2.17444504 | BG43: 2.060633498 | BH43: 2.037788485 | BI43: 1.748606681 | BJ43: 1.926162449 | BK43: 1.949401133 | BM43: =SUMPRODUCT(TRANSPOSE($J$8:$J$19),AZ43:BK43) -> 7890337.369 | BO43: 0.939 | BP43: 8239550.389 | BQ43: 1033648.678 | BR43: 8256073.782 | BS43: 7205901.711 | BU43: 1034571.85 | BV43: 1031387.677 | BW43: 1032912.265 | BX43: 1039030.459 | BY43: 1032684.023 | BZ43: 1036043.505 | CA43: 1036870.822 | CB43: 1037328.747 | CC43: 1031066.444 | CD43: 1035595.794 | CE43: 1030371.788 | CF43: 1034977.762 | CG43: 1031325.835 | CH43: 1030044.475 | CI43: 1030540.221 | CJ43: 1034958.997 | CK43: 1036794.274 | CL43: 1037345.693 | CM43: 1030169.59 | CN43: 1038422.946 | CO43: 1036587.417 | CP43: 1036891.261 | CQ43: 1033487.517 | CR43: 1034765.578 | CS43: 1033792.758 | CT43: 1033854.003 | CU43: 1031387.081 | CV43: 1030898.099 | CW43: 1032014.201 | CX43: 1036210.374 | CY43: 1033635.302 | CZ43: 1032918.95 | DA43: 1034971.846 | DB43: 1032473.913 | DC43: 1034601.331 | DD43: 1031967.898 | DE43: 1026950.133 | DF43: 1028730.865 | DG43: 1032263.071 | DH43: 1031866.071 | DI43: 1032737.055 | DJ43: 1029009.369 | DK43: 1034064.923 | DL43: 1033672.28 | DM43: 1031740.353 | DN43: 1036178.093 | DO43: 1032065.589 | DP43: 1034131.926 | DQ43: 1035304.552 | DR43: 1029810.682 | DS43: 1034720.503 | DT43: 1034513.992 | DU43: 1029303.134 | DV43: 1031350.619 | DW43: 1034441.368 | DX43: 1038156.698 | DY43: 1033571.159 | DZ43: 1032916.617 | EA43: 1035183.168 | EB43: 1035219.482 | EC43: 1031245.775 | ED43: 1031361.142 | EE43: 1031917.089 | EF43: 1037465.684 | EG43: 1036115.032 | EH43: 1034546.756 | EI43: 1029973.661 | EJ43: 1031204.327 | EK43: 1030718.8 | EL43: 1031137.11 | EM43: 1036262.317 | EN43: 1036889.031 | EO43: 1036383.534 | EP43: 1034097.08 | EQ43: 1035569.636 | ER43: 1036738.892 | ES43: 1032721.533 | ET43: 1036064.235 | EU43: 1036480.785 | EV43: 1032502.763 | EW43: 1033579.826 | EX43: 1034669.812 | EY43: 1035131.319 | EZ43: 1030725.525 | FA43: 1033616.481 | FB43: 1030424.932 | FC43: 1030989.626 | FD43: 1034752.886 | FE43: 1034321.366 | FF43: 1036630.71 | FG43: 1031315.779 | FH43: 1036276.947 | FI43: 1032366.757 | FJ43: 1034576.008 | FK43: 1033545.509 | FL43: 1033578.876 | FM43: 1034352.95 | FN43: 1032326.529 | FO43: 1036949.385 | FP43: 1034538.971
AL44: 1322459606 | AM44: 1214405882 | AN44: 1049331482 | AO44: 570559743 | AP44: 1047722744 | AQ44: 1942033705 | AR44: 438020524 | AS44: 2005930225 | AT44: 1952594419 | AU44: 1807309733 | AV44: 1220767253 | AW44: 609779913 | AZ44: 1.167833329 | BA44: 1.198911603 | BB44: 1.207677504 | BC44: 1.151555445 | BD44: 1.158709943 | BE44: 1.316149905 | BF44: 1.231623227 | BG44: 1.424415742 | BH44: 1.621990251 | BI44: 1.791681577 | BJ44: 1.835902833 | BK44: 1.758637873 | BM44: =SUMPRODUCT(TRANSPOSE($J$8:$J$19),AZ44:BK44) -> 6967396.003 | BO44: 0.94 | BP44: 8248104.414 | BQ44: 1034713.837 | BR44: 8261827.306 | BS44: 7213390.577 | BU44: 1036623.646 | BV44: 1032009.139 | BW44: 1033947.846 | BX44: 1040473.357 | BY44: 1033437.117 | BZ44: 1036736.73 | CA44: 1037646.253 | CB44: 1037904.191 | CC44: 1031970.806 | CD44: 1037323.38 | CE44: 1032477.394 | CF44: 1035869.884 | CG44: 1032889.709 | CH44: 1031111.28 | CI44: 1031772.69 | CJ44: 1036432.112 | CK44: 1038255.536 | CL44: 1038285.698 | CM44: 1031193.331 | CN44: 1039152.275 | CO44: 1037433.067 | CP44: 1037996.179 | CQ44: 1034934.491 | CR44: 1035728.506 | CS44: 1034771.66 | CT44: 1034685.874 | CU44: 1032439.077 | CV44: 1031553.076 | CW44: 1032952.879 | CX44: 1037584.126 | CY44: 1034474.452 | CZ44: 1033771.174 | DA44: 1035590.646 | DB44: 1033209.186 | DC44: 1035098.381 | DD44: 1033869.853 | DE44: 1028096.497 | DF44: 1030447.467 | DG44: 1033108.644 | DH44: 1033430.151 | DI44: 1033353.769 | DJ44: 1030501.142 | DK44: 1035094.187 | DL44: 1034431.748 | DM44: 1032901.034 | DN44: 1036817.041 | DO44: 1033438.802 | DP44: 1035603.432 | DQ44: 1036152.526 | DR44: 1031035.403 | DS44: 1036187.996 | DT44: 1035909.598 | DU44: 1030511.536 | DV44: 1032138.883 | DW44: 1035351.075 | DX44: 1039239.168 | DY44: 1034326.817 | DZ44: 1034056.664 | EA44: 1036713.789 | EB44: 1036765.404 | EC44: 1032558.356 | ED44: 1032706.784 | EE44: 1032822.399 | EF44: 1038912.835 | EG44: 1036859.701 | EH44: 1035264.315 | EI44: 1030845.143 | EJ44: 1032214.798 | EK44: 1031254.913 | EL44: 1031918.507 | EM44: 1037415.852 | EN44: 1038267.815 | EO44: 1037465.814 | EP44: 1034836.424 | EQ44: 1037244.563 | ER44: 1037335.082 | ES44: 1033824.288 | ET44: 1037066.348 | EU44: 1037536.934 | EV44: 1033581.518 | EW44: 1034908.977 | EX44: 1035633.215 | EY44: 1035819.422 | EZ44: 1031955.267 | FA44: 1034716.456 | FB44: 1031463.934 | FC44: 1031820.711 | FD44: 1035549.103 | FE44: 1035558.491 | FF44: 1037862.471 | FG44: 1032429.329 | FH44: 1037190.233 | FI44: 1033143.021 | FJ44: 1036253.37 | FK44: 1034337.605 | FL44: 1034276.068 | FM44: 1035050.217 | FN44: 1033191.652 | FO44: 1037538.101 | FP44: 1035535.883
AL45: 348750504 | AM45: 725217863 | AN45: 1730669480 | AO45: 11581578 | AP45: 1384688774 | AQ45: 1952815211 | AR45: 1712209289 | AS45: 367731392 | AT45: 627932719 | AU45: 1272445915 | AV45: 704795883 | AW45: 1275314641 | AZ45: 1.03982698 | BA45: 1.012421631 | BB45: 1.105760574 | BC45: 0.8854663168 | BD45: 0.9240485861 | BE45: 1.052479089 | BF45: 1.144986653 | BG45: 1.059607204 | BH45: 1.017078957 | BI45: 1.047938644 | BJ45: 1.015290838 | BK45: 1.046624514 | BM45: =SUMPRODUCT(TRANSPOSE($J$8:$J$19),AZ45:BK45) -> 5968967.048 | BO45: 0.941 | BP45: 8256779.882 | BQ45: 1035818.036 | BR45: 8268825.745 | BS45: 7220961.846 | BU45: 1037903.825 | BV45: 1033642.584 | BW45: 1034854.547 | BX45: 1041581.139 | BY45: 1034411.479 | BZ45: 1037308.493 | CA45: 1039160.031 | CB45: 1038547.923 | CC45: 1033398.885 | CD45: 1038499.652 | CE45: 1033853.957 | CF45: 1036571.577 | CG45: 1033842.64 | CH45: 1032519.813 | CI45: 1033026.044 | CJ45: 1037285.125 | CK45: 1039650.295 | CL45: 1039692.825 | CM45: 1032562.288 | CN45: 1040096.028 | CO45: 1038306.459 | CP45: 1038991.448 | CQ45: 1035565.587 | CR45: 1036810.22 | CS45: 1035561.006 | CT45: 1035861.342 | CU45: 1033405.72 | CV45: 1032446.734 | CW45: 1034225.747 | CX45: 1038439.663 | CY45: 1035938.04 | CZ45: 1035447.44 | DA45: 1036600.919 | DB45: 1034780.928 | DC45: 1036796.648 | DD45: 1035128.079 | DE45: 1029403.341 | DF45: 1031913.653 | DG45: 1034141.072 | DH45: 1034825.859 | DI45: 1034291.3 | DJ45: 1032113.506 | DK45: 1036240.693 | DL45: 1035455.934 | DM45: 1033583.021 | DN45: 1038207.67 | DO45: 1034636.113 | DP45: 1036449.943 | DQ45: 1037402.695 | DR45: 1031692.103 | DS45: 1036676.836 | DT45: 1036989.112 | DU45: 1031467.27 | DV45: 1033153.326 | DW45: 1037618.964 | DX45: 1040070.391 | DY45: 1035777.291 | DZ45: 1035371.198 | EA45: 1037821.347 | EB45: 1037444.853 | EC45: 1033243.102 | ED45: 1033885.442 | EE45: 1034160.997 | EF45: 1040296.965 | EG45: 1037860.345 | EH45: 1036071.832 | EI45: 1031925.814 | EJ45: 1032825.228 | EK45: 1033070.286 | EL45: 1032585.215 | EM45: 1037954.151 | EN45: 1039405.2 | EO45: 1038420.34 | EP45: 1036289.949 | EQ45: 1038500.559 | ER45: 1038526.928 | ES45: 1035082.755 | ET45: 1038642.857 | EU45: 1038019.062 | EV45: 1034324.372 | EW45: 1035885.721 | EX45: 1036915.767 | EY45: 1037110.673 | EZ45: 1033045.342 | FA45: 1035168.442 | FB45: 1032182.33 | FC45: 1032834.739 | FD45: 1036819.036 | FE45: 1036284.901 | FF45: 1039172.258 | FG45: 1033737.234 | FH45: 1038698.487 | FI45: 1033979.088 | FJ45: 1037263.698 | FK45: 1035138.668 | FL45: 1035152.158 | FM45: 1035600.6 | FN45: 1034863.842 | FO45: 1038562.148 | FP45: 1036834.453
AL46: 411269751 | AM46: 860535126 | AN46: 1885117133 | AO46: 708603418 | AP46: 2030780526 | AQ46: 548365116 | AR46: 1998950877 | AS46: 1809680777 | AT46: 1356085091 | AU46: 2056975118 | AV46: 766132519 | AW46: 946810809 | AZ46: 1.050480051 | BA46: 1.038437225 | BB46: 1.165615496 | BC46: 1.130360768 | BD46: 1.319266845 | BE46: 1.253819984 | BF46: 1.446911707 | BG46: 1.598973317 | BH46: 1.662730114 | BI46: 1.961651981 | BJ46: 1.913998848 | BK46: 1.905107142 | BM46: =SUMPRODUCT(TRANSPOSE($J$8:$J$19),AZ46:BK46) -> 6455256.476 | BO46: 0.942 | BP46: 8265580.793 | BQ46: 1036946.5 | BR46: 8284079.7 | BS46: 7228634.294 | BU46: 1039057.074 | BV46: 1034974.553 | BW46: 1036299.208 | BX46: 1043455.3 | BY46: 1035781.363 | BZ46: 1037987.251 | CA46: 1040755.874 | CB46: 1039460.527 | CC46: 1034755.166 | CD46: 1040387.172 | CE46: 1034924.742 | CF46: 1038041.101 | CG46: 1034748.236 | CH46: 1034288.929 | CI46: 1034256.568 | CJ46: 1038265.76 | CK46: 1040343.229 | CL46: 1040781.903 | CM46: 1033574.517 | CN46: 1041036.579 | CO46: 1039226.883 | CP46: 1040435.176 | CQ46: 1036578.265 | CR46: 1038109.97 | CS46: 1036506.317 | CT46: 1037381.328 | CU46: 1034354.745 | CV46: 1033484.379 | CW46: 1035523.776 | CX46: 1039674.993 | CY46: 1037245.779 | CZ46: 1036160.325 | DA46: 1037687.76 | DB46: 1035679.46 | DC46: 1037955.654 | DD46: 1036306.238 | DE46: 1030769.884 | DF46: 1033108.738 | DG46: 1035078.415 | DH46: 1035720.299 | DI46: 1034901.664 | DJ46: 1033423.938 | DK46: 1037570.073 | DL46: 1036027.852 | DM46: 1034684.561 | DN46: 1039047.228 | DO46: 1036287.503 | DP46: 1037559.738 | DQ46: 1038187.56 | DR46: 1033163.05 | DS46: 1037425.193 | DT46: 1037870.105 | DU46: 1033604.474 | DV46: 1034261.431 | DW46: 1038775.635 | DX46: 1041212.256 | DY46: 1036600.667 | DZ46: 1036369.231 | EA46: 1038404.441 | EB46: 1038028.302 | EC46: 1034269.672 | ED46: 1034625.582 | EE46: 1035077.72 | EF46: 1041430.44 | EG46: 1039472.383 | EH46: 1037623.63 | EI46: 1032721.138 | EJ46: 1033701.065 | EK46: 1034185.501 | EL46: 1033887.989 | EM46: 1039056.102 | EN46: 1040456.544 | EO46: 1039405.557 | EP46: 1037326.662 | EQ46: 1040069.007 | ER46: 1039207.74 | ES46: 1035789.367 | ET46: 1040973.581 | EU46: 1038912.232 | EV46: 1035208.095 | EW46: 1036600.446 | EX46: 1038023.448 | EY46: 1038347.948 | EZ46: 1033753.038 | FA46: 1036459.849 | FB46: 1033171.051 | FC46: 1034272.589 | FD46: 1037571.386 | FE46: 1037457.547 | FF46: 1039995.253 | FG46: 1034727.411 | FH46: 1040100.411 | FI46: 1035138.324 | FJ46: 1038662.426 | FK46: 1036398.581 | FL46: 1035946.817 | FM46: 1037139.035 | FN46: 1035734.352 | FO46: 1040153.363 | FP46: 1038028.36
AL47: 1063317653 | AM47: 114883225 | AN47: 1164552712 | AO47: 2023544509 | AP47: 1620735937 | AQ47: 249081514 | AR47: 622556663 | AS47: 1908477548 | AT47: 2134383454 | AU47: 1192018286 | AV47: 166939662 | AW47: 757585785 | AZ47: 1.13577553 | BA47: 0.9923486702 | BB47: 1.011899186 | BC47: 1.178131295 | BD47: 1.265477545 | BE47: 1.145430935 | BF47: 1.098843018 | BG47: 1.238146782 | BH47: 1.567858373 | BI47: 1.601480057 | BJ47: 1.420114133 | BK47: 1.384425897 | BM47: =SUMPRODUCT(TRANSPOSE($J$8:$J$19),AZ47:BK47) -> 6361727.129 | BO47: 0.943 | BP47: 8274511.355 | BQ47: 1038049.911 | BR47: 8294614.729 | BS47: 7236461.444 | BU47: 1039753.837 | BV47: 1035834.153 | BW47: 1037407.625 | BX47: 1044483.004 | BY47: 1036902.407 | BZ47: 1039250.98 | CA47: 1041630.854 | CB47: 1040877.341 | CC47: 1035679.785 | CD47: 1041087.518 | CE47: 1035581.687 | CF47: 1039212.569 | CG47: 1035869.027 | CH47: 1034893.264 | CI47: 1035377.909 | CJ47: 1039146.793 | CK47: 1041206.141 | CL47: 1041336.498 | CM47: 1034880.36 | CN47: 1042191.371 | CO47: 1040102.985 | CP47: 1041320.143 | CQ47: 1038552.094 | CR47: 1039214.985 | CS47: 1037835.73 | CT47: 1038820.64 | CU47: 1035594.287 | CV47: 1034899.667 | CW47: 1036004.438 | CX47: 1041077.421 | CY47: 1038480.698 | CZ47: 1036806.052 | DA47: 1038971.648 | DB47: 1036972.877 | DC47: 1039112.832 | DD47: 1038031.807 | DE47: 1031900.332 | DF47: 1034283.984 | DG47: 1035688.627 | DH47: 1037358.104 | DI47: 1037076.33 | DJ47: 1034957.818 | DK47: 1038693.522 | DL47: 1037725.816 | DM47: 1035538.541 | DN47: 1040336.523 | DO47: 1036852.243 | DP47: 1038538.52 | DQ47: 1039165.199 | DR47: 1034151.054 | DS47: 1038637.847 | DT47: 1038524.773 | DU47: 1034695.465 | DV47: 1035672.399 | DW47: 1040007.484 | DX47: 1042817.405 | DY47: 1037500.287 | DZ47: 1037531.282 | EA47: 1039485.666 | EB47: 1039057.273 | EC47: 1035239.232 | ED47: 1035994.981 | EE47: 1035800.638 | EF47: 1042404.664 | EG47: 1040588.496 | EH47: 1038614.37 | EI47: 1033507.026 | EJ47: 1034552.738 | EK47: 1034865.454 | EL47: 1035366.457 | EM47: 1040729.786 | EN47: 1041494.615 | EO47: 1040043.673 | EP47: 1038566.036 | EQ47: 1041247.306 | ER47: 1040021.495 | ES47: 1036089.321 | ET47: 1041949.736 | EU47: 1040157.514 | EV47: 1035697.101 | EW47: 1037586.558 | EX47: 1039061.339 | EY47: 1039500.597 | EZ47: 1034363.562 | FA47: 1037832.262 | FB47: 1034055.437 | FC47: 1035703.176 | FD47: 1038803.702 | FE47: 1038039.366 | FF47: 1041467.264 | FG47: 1036317.61 | FH47: 1041425.171 | FI47: 1036415.972 | FJ47: 1039445.88 | FK47: 1037508.72 | FL47: 1037829.508 | FM47: 1037922.427 | FN47: 1037460.406 | FO47: 1041469.754 | FP47: 1039253.829
AL48: 399781016 | AM48: 725377421 | AN48: 1592017080 | AO48: 223310144 | AP48: 1715154717 | AQ48: 1800306388 | AR48: 1694007202 | AS48: 1366230502 | AT48: 1148259562 | AU48: 237845788 | AV48: 985780858 | AW48: 2071886619 | AZ48: 1.048594943 | BA48: 1.020977346 | BB48: 1.093514653 | BC48: 0.9844601776 | BD48: 1.071700958 | BE48: 1.182580261 | BF48: 1.283063415 | BG48: 1.33579381 | BH48: 1.35805725 | BI48: 1.22598861 | BJ48: 1.225245978 | BK48: 1.456727096 | BM48: =SUMPRODUCT(TRANSPOSE($J$8:$J$19),AZ48:BK48) -> 6116580.101 | BO48: 0.944 | BP48: 8283575.989 | BQ48: 1039187.731 | BR48: 8306688.846 | BS48: 7244388.258 | BU48: 1040813.09 | BV48: 1036676.776 | BW48: 1038820.475 | BX48: 1045498.912 | BY48: 1038030.924 | BZ48: 1039804.518 | CA48: 1044043.586 | CB48: 1042074.052 | CC48: 1036354.255 | CD48: 1041990.588 | CE48: 1035960.51 | CF48: 1040124.006 | CG48: 1037457.856 | CH48: 1035817.17 | CI48: 1036876.343 | CJ48: 1040153.982 | CK48: 1042771.997 | CL48: 1042101.72 | CM48: 1036586.926 | CN48: 1043967.186 | CO48: 1040936.112 | CP48: 1042601.225 | CQ48: 1040227.831 | CR48: 1040351.907 | CS48: 1039204.23 | CT48: 1040017.806 | CU48: 1036516.012 | CV48: 1035413.374 | CW48: 1037539.289 | CX48: 1042110.147 | CY48: 1039730.976 | CZ48: 1037619.347 | DA48: 1039860.789 | DB48: 1037906.278 | DC48: 1040667.93 | DD48: 1039309.36 | DE48: 1033220.165 | DF48: 1034985.022 | DG48: 1037086.674 | DH48: 1038378.098 | DI48: 1038069.233 | DJ48: 1036288.748 | DK48: 1039292.171 | DL48: 1039174.592 | DM48: 1036696.655 | DN48: 1041306.364 | DO48: 1037931.437 | DP48: 1040060.09 | DQ48: 1040323.975 | DR48: 1034978.671 | DS48: 1039948.524 | DT48: 1039731.846 | DU48: 1035618.414 | DV48: 1036430.807 | DW48: 1040911.546 | DX48: 1044082.122 | DY48: 1038331.48 | DZ48: 1038387.439 | EA48: 1040350.36 | EB48: 1040532.17 | EC48: 1036240.638 | ED48: 1037580.577 | EE48: 1036690.377 | EF48: 1043408.004 | EG48: 1041690.951 | EH48: 1039838.677 | EI48: 1034484.45 | EJ48: 1036447.784 | EK48: 1036404.433 | EL48: 1036592.246 | EM48: 1041949.685 | EN48: 1042414.474 | EO48: 1041131.581 | EP48: 1039638.883 | EQ48: 1042111.062 | ER48: 1041150.827 | ES48: 1036972.253 | ET48: 1043885.098 | EU48: 1041735.571 | EV48: 1036689.828 | EW48: 1039070.004 | EX48: 1040274.113 | EY48: 1040656.399 | EZ48: 1035091.759 | FA48: 1039155.64 | FB48: 1035273.796 | FC48: 1036522.143 | FD48: 1039556.955 | FE48: 1038839.915 | FF48: 1042921.018 | FG48: 1037065.606 | FH48: 1042406.107 | FI48: 1037430.899 | FJ48: 1040977.438 | FK48: 1038155.619 | FL48: 1038774.242 | FM48: 1039783.877 | FN48: 1038299.685 | FO48: 1042635.598 | FP48: 1040770.778
AL49: 541371394 | AM49: 2120108403 | AN49: 554160785 | AO49: 1183536731 | AP49: 296301516 | AQ49: 368911999 | AR49: 1686820923 | AS49: 89762672 | AT49: 1084388232 | AU49: 606455686 | AV49: 685146292 | AW49: 1578061312 | AZ49: 1.070152269 | BA49: 1.325560763 | BB49: 1.262092235 | BC49: 1.288728293 | BD49: 1.177893732 | BE49: 1.090441209 | BF49: 1.181858981 | BG49: 1.018896398 | BH49: 1.028882415 | BI49: 0.9849828257 | BJ49: 0.9520930676 | BK49: 1.016841447 | BM49: =SUMPRODUCT(TRANSPOSE($J$8:$J$19),AZ49:BK49) -> 7278086.202 | BO49: 0.945 | BP49: 8292779.354 | BQ49: 1040388.1 | BR49: 8321287.15 | BS49: 7252391.254 | BU49: 1042142.607 | BV49: 1037606.412 | BW49: 1039882.678 | BX49: 1046785.644 | BY49: 1039489.506 | BZ49: 1040928.099 | CA49: 1045109.568 | CB49: 1043462.215 | CC49: 1037646.92 | CD49: 1043356.345 | CE49: 1036617.34 | CF49: 1041126.411 | CG49: 1039307.743 | CH49: 1037543.123 | CI49: 1038299.04 | CJ49: 1040947.305 | CK49: 1044224.202 | CL49: 1043400.243 | CM49: 1037786.684 | CN49: 1044872.846 | CO49: 1042059.509 | CP49: 1043672.962 | CQ49: 1041475.175 | CR49: 1041452.225 | CS49: 1040139.202 | CT49: 1041385.664 | CU49: 1037615.215 | CV49: 1035948.654 | CW49: 1038497.961 | CX49: 1043412.718 | CY49: 1040989.572 | CZ49: 1038303.848 | DA49: 1041794.456 | DB49: 1039269.149 | DC49: 1041668.506 | DD49: 1040192.527 | DE49: 1034102.252 | DF49: 1036718.638 | DG49: 1038421.958 | DH49: 1039565.894 | DI49: 1039762.246 | DJ49: 1037603.14 | DK49: 1040384.277 | DL49: 1040073.014 | DM49: 1038488.4 | DN49: 1042420.263 | DO49: 1038609.091 | DP49: 1040948.159 | DQ49: 1041715.748 | DR49: 1035843.189 | DS49: 1040798.611 | DT49: 1041197.529 | DU49: 1036321.196 | DV49: 1037993.342 | DW49: 1042476.253 | DX49: 1045513.494 | DY49: 1039551.983 | DZ49: 1039174.859 | EA49: 1042161.73 | EB49: 1042357.824 | EC49: 1037934.54 | ED49: 1038535.185 | EE49: 1038067.12 | EF49: 1044141.765 | EG49: 1042621.238 | EH49: 1041077.161 | EI49: 1035552.885 | EJ49: 1037813.89 | EK49: 1037268.689 | EL49: 1038188.253 | EM49: 1043360.873 | EN49: 1043377.613 | EO49: 1042642.358 | EP49: 1040786.824 | EQ49: 1043568.292 | ER49: 1041974.328 | ES49: 1037776.36 | ET49: 1044586.791 | EU49: 1042744.863 | EV49: 1038942.38 | EW49: 1040005.751 | EX49: 1041257.655 | EY49: 1041632.316 | EZ49: 1036293.043 | FA49: 1040202.77 | FB49: 1036105.172 | FC49: 1037904.848 | FD49: 1040332.352 | FE49: 1040625.558 | FF49: 1043748.149 | FG49: 1038268.842 | FH49: 1043103.411 | FI49: 1038312.57 | FJ49: 1042449.697 | FK49: 1039966.07 | FL49: 1039958.206 | FM49: 1041250.176 | FN49: 1039491.511 | FO49: 1044487.803 | FP49: 1041837.303
AL50: 1957543078 | AM50: 1419523428 | AN50: 838945703 | AO50: 994080960 | AP50: 529389816 | AQ50: 816702805 | AR50: 542814481 | AS50: 1459424113 | AT50: 1737934894 | AU50: 1872826649 | AV50: 1448497332 | AW50: 1205148815 | AZ50: 1.285283474 | BA50: 1.34980618 | BB50: 1.329281549 | BC50: 1.330305847 | BD50: 1.26130183 | BE50: 1.237764782 | BF50: 1.17539842 | BG50: 1.236908138 | BH50: 1.350776904 | BI50: 1.510537366 | BJ50: 1.587648275 | BK50: 1.624288459 | BM50: =SUMPRODUCT(TRANSPOSE($J$8:$J$19),AZ50:BK50) -> 7802137.345 | BO50: 0.946 | BP50: 8302126.356 | BQ50: 1041622.454 | BR50: 8330047.025 | BS50: 7260503.902 | BU50: 1043519.36 | BV50: 1038750.108 | BW50: 1041033.468 | BX50: 1048541.72 | BY50: 1040885.399 | BZ50: 1042204.792 | CA50: 1046030.068 | CB50: 1044588.09 | CC50: 1038588.87 | CD50: 1044295.26 | CE50: 1037718.15 | CF50: 1041705.818 | CG50: 1041770.205 | CH50: 1038053.01 | CI50: 1039947.609 | CJ50: 1042143.344 | CK50: 1045649.001 | CL50: 1044798.286 | CM50: 1038681.123 | CN50: 1045973.413 | CO50: 1043370.181 | CP50: 1044950.302 | CQ50: 1042622.43 | CR50: 1042314.959 | CS50: 1041191.113 | CT50: 1042336.765 | CU50: 1038823.845 | CV50: 1037366.828 | CW50: 1039421.069 | CX50: 1044847.962 | CY50: 1042822.271 | CZ50: 1039288.029 | DA50: 1042580.425 | DB50: 1040583.865 | DC50: 1043272.023 | DD50: 1041192.317 | DE50: 1035187.968 | DF50: 1038131.85 | DG50: 1040605.42 | DH50: 1040210.052 | DI50: 1041110.866 | DJ50: 1039122.646 | DK50: 1040999.307 | DL50: 1040943.269 | DM50: 1039373.019 | DN50: 1043560.862 | DO50: 1038943.943 | DP50: 1042177.922 | DQ50: 1043657.023 | DR50: 1037725.999 | DS50: 1042261.634 | DT50: 1041921.996 | DU50: 1038721.717 | DV50: 1039073.59 | DW50: 1043274.543 | DX50: 1046480.366 | DY50: 1040303.025 | DZ50: 1040001.932 | EA50: 1043360.971 | EB50: 1043370.615 | EC50: 1039190.764 | ED50: 1039105.177 | EE50: 1039496.938 | EF50: 1045256.156 | EG50: 1043349.988 | EH50: 1042095.023 | EI50: 1037689.509 | EJ50: 1038996.739 | EK50: 1038295.642 | EL50: 1040547.915 | EM50: 1044804.595 | EN50: 1044314.486 | EO50: 1043921.446 | EP50: 1042418.437 | EQ50: 1044929.076 | ER50: 1043534.724 | ES50: 1039570.081 | ET50: 1045684.272 | EU50: 1043942.237 | EV50: 1040528.969 | EW50: 1040784.126 | EX50: 1042953.801 | EY50: 1042305.007 | EZ50: 1037136.475 | FA50: 1041423.052 | FB50: 1037392.736 | FC50: 1038370.078 | FD50: 1041379.741 | FE50: 1042768.713 | FF50: 1044876.816 | FG50: 1039373.031 | FH50: 1044306.538 | FI50: 1040193.984 | FJ50: 1044383.675 | FK50: 1041288.776 | FL50: 1041321.228 | FM50: 1042741.735 | FN50: 1040708.772 | FO50: 1045189.06 | FP50: 1043293.878
AL51: 1133966491 | AM51: 2054668159 | AN51: 1648898034 | AO51: 1907411592 | AP51: 1267892483 | AQ51: 1703792176 | AR51: 749835304 | AS51: 1807802435 | AT51: 406598219 | AU51: 596086120 | AV51: 494650299 | AW51: 553935282 | AZ51: 1.144314074 | BA51: 1.352162426 | BB51: 1.459342845 | BC51: 1.644878915 | BD51: 1.694460697 | BE51: 1.841245945 | BF51: 1.793188885 | BG51: 1.980989621 | BH51: 1.844710545 | BI51: 1.763704063 | BJ51: 1.663941506 | BK51: 1.582591395 | BM51: =SUMPRODUCT(TRANSPOSE($J$8:$J$19),AZ51:BK51) -> 8218955.047 | BO51: 0.947 | BP51: 8311622.172 | BQ51: 1042889.72 | BR51: 8337062.176 | BS51: 7268732.452 | BU51: 1044380.231 | BV51: 1039852.807 | BW51: 1042270.565 | BX51: 1049410.592 | BY51: 1041761.4 | BZ51: 1043927.78 | CA51: 1047277.192 | CB51: 1046339.945 | CC51: 1039368.782 | CD51: 1045036.637 | CE51: 1038756.806 | CF51: 1043248.786 | CG51: 1043496.878 | CH51: 1038979.693 | CI51: 1041232.492 | CJ51: 1043719.607 | CK51: 1046467.169 | CL51: 1046382.192 | CM51: 1039587.61 | CN51: 1047239.43 | CO51: 1044341.451 | CP51: 1046394.647 | CQ51: 1043595.92 | CR51: 1043680.275 | CS51: 1042658.312 | CT51: 1043992.265 | CU51: 1040134.485 | CV51: 1038578.283 | CW51: 1040895.667 | CX51: 1046109.108 | CY51: 1044080.886 | CZ51: 1039971.314 | DA51: 1044538.238 | DB51: 1041924.916 | DC51: 1044691.378 | DD51: 1042463.234 | DE51: 1035867.522 | DF51: 1039144.504 | DG51: 1042656.949 | DH51: 1041517.058 | DI51: 1041784.069 | DJ51: 1040284.845 | DK51: 1042173.1 | DL51: 1042128.461 | DM51: 1041918.136 | DN51: 1045025.81 | DO51: 1040283.154 | DP51: 1043246.747 | DQ51: 1044968.727 | DR51: 1038960.216 | DS51: 1043332.296 | DT51: 1042845.895 | DU51: 1039735.439 | DV51: 1040792.962 | DW51: 1044318.716 | DX51: 1048690.315 | DY51: 1041498.206 | DZ51: 1041190.693 | EA51: 1044212.891 | EB51: 1044343.112 | EC51: 1040563.297 | ED51: 1040212.652 | EE51: 1040595.379 | EF51: 1047248.926 | EG51: 1044224.31 | EH51: 1042901.42 | EI51: 1039434.918 | EJ51: 1040666.32 | EK51: 1039164.863 | EL51: 1042745.591 | EM51: 1045987.07 | EN51: 1045414.98 | EO51: 1045677.662 | EP51: 1043314.306 | EQ51: 1045572.103 | ER51: 1044192.464 | ES51: 1040955.24 | ET51: 1048203.066 | EU51: 1045195.675 | EV51: 1041190.965 | EW51: 1041782.602 | EX51: 1044195.524 | EY51: 1043751.021 | EZ51: 1038213.069 | FA51: 1042588.31 | FB51: 1038976.924 | FC51: 1039668.38 | FD51: 1043203.06 | FE51: 1044124.303 | FF51: 1046142.823 | FG51: 1040730.255 | FH51: 1046207.338 | FI51: 1041790.863 | FJ51: 1045080.207 | FK51: 1042435.128 | FL51: 1042575.453 | FM51: 1044306.431 | FN51: 1041450.051 | FO51: 1045901.391 | FP51: 1044680.884
AL52: 485808678 | AM52: 1501950041 | AN52: 1770590453 | AO52: 1451075954 | AP52: 1301591040 | AQ52: 1570898537 | AR52: 1610572846 | AS52: 1433344040 | AT52: 1049579416 | AU52: 1687196014 | AV52: 1541395683 | AW52: 691108625 | AZ52: 1.062079002 | BA52: 1.12632573 | BB52: 1.237975498 | BC52: 1.302207983 | BD52: 1.346409619 | BE52: 1.436614247 | BF52: 1.540686843 | BG52: 1.616363649 | BH52: 1.626196933 | BI52: 1.762483855 | BJ52: 1.873392292 | BK52: 1.812314423 | BM52: =SUMPRODUCT(TRANSPOSE($J$8:$J$19),AZ52:BK52) -> 6951204.225 | BO52: 0.948 | BP52: 8321272.265 | BQ52: 1044169.752 | BR52: 8343314.083 | BS52: 7277102.513 | BU52: 1045585.648 | BV52: 1040824.686 | BW52: 1043613.575 | BX52: 1050735.451 | BY52: 1043250.749 | BZ52: 1044569.548 | CA52: 1048308.538 | CB52: 1047042.399 | CC52: 1040414.096 | CD52: 1046529.692 | CE52: 1040176.572 | CF52: 1044385.344 | CG52: 1045032.794 | CH52: 1039771.915 | CI52: 1043101.134 | CJ52: 1044785.088 | CK52: 1047519.354 | CL52: 1048036.271 | CM52: 1041228.18 | CN52: 1049286.148 | CO52: 1045483.986 | CP52: 1047638.02 | CQ52: 1044831.091 | CR52: 1045292.021 | CS52: 1044042.117 | CT52: 1045511.744 | CU52: 1041099.282 | CV52: 1039916.508 | CW52: 1041978.257 | CX52: 1048414.471 | CY52: 1044911.619 | CZ52: 1041273.293 | DA52: 1045405.027 | DB52: 1042858.731 | DC52: 1045823.821 | DD52: 1043858.119 | DE52: 1037183.529 | DF52: 1040745.942 | DG52: 1043710.828 | DH52: 1042708.436 | DI52: 1043241.496 | DJ52: 1041928.868 | DK52: 1044164.126 | DL52: 1044061.319 | DM52: 1043000.632 | DN52: 1046524.152 | DO52: 1041201.479 | DP52: 1044745.975 | DQ52: 1045924.473 | DR52: 1040134.64 | DS52: 1044470.666 | DT52: 1044103.441 | DU52: 1040433.452 | DV52: 1042820.137 | DW52: 1045794.154 | DX52: 1049973.612 | DY52: 1043000.395 | DZ52: 1042902.477 | EA52: 1046022.24 | EB52: 1046406.847 | EC52: 1041162.128 | ED52: 1041221.296 | EE52: 1041739.712 | EF52: 1048294.618 | EG52: 1045377.649 | EH52: 1044154.5 | EI52: 1040034.045 | EJ52: 1041514.205 | EK52: 1039831.78 | EL52: 1044085.216 | EM52: 1046843.688 | EN52: 1047208.178 | EO52: 1047808.889 | EP52: 1044483.178 | EQ52: 1047469.724 | ER52: 1045530.184 | ES52: 1041713.991 | ET52: 1049487.322 | EU52: 1046034.747 | EV52: 1043346.412 | EW52: 1042482.6 | EX52: 1046120.16 | EY52: 1044454.136 | EZ52: 1039223.835 | FA52: 1043878.139 | FB52: 1039822.79 | FC52: 1041094.678 | FD52: 1044474.121 | FE52: 1045735.757 | FF52: 1047173.961 | FG52: 1042049.842 | FH52: 1047201.21 | FI52: 1042445.877 | FJ52: 1046927.075 | FK52: 1043366.489 | FL52: 1043608.454 | FM52: 1045382.246 | FN52: 1043112.644 | FO52: 1047157.352 | FP52: 1046183.814
AL53: 2096754145 | AM53: 1582506391 | AN53: 470089810 | AO53: 413261335 | AP53: 172031561 | AQ53: 1195703957 | AR53: 758860572 | AS53: 1322015794 | AT53: 813789712 | AU53: 1468962966 | AV53: 845096484 | AW53: 1493464877 | AZ53: 1.361374996 | BA53: 1.458368246 | BB53: 1.372685116 | BC53: 1.280340117 | BD53: 1.137256633 | BE53: 1.162296962 | BF53: 1.133125437 | BG53: 1.173889341 | BH53: 1.151392518 | BI53: 1.212998799 | BJ53: 1.193998043 | BK53: 1.261823185 | BM53: =SUMPRODUCT(TRANSPOSE($J$8:$J$19),AZ53:BK53) -> 8074889.616 | BO53: 0.949 | BP53: 8331082.412 | BQ53: 1045422.83 | BR53: 8349001.718 | BS53: 7285659.582 | BU53: 1046751.909 | BV53: 1041914.847 | BW53: 1045225.25 | BX53: 1052158.657 | BY53: 1044683.964 | BZ53: 1045096.55 | CA53: 1049803.785 | CB53: 1048144.386 | CC53: 1041341.965 | CD53: 1049307.852 | CE53: 1041549.91 | CF53: 1046439.691 | CG53: 1046239.301 | CH53: 1041210.098 | CI53: 1044101.301 | CJ53: 1045556.565 | CK53: 1048812.666 | CL53: 1049227.977 | CM53: 1043216.721 | CN53: 1050427.403 | CO53: 1047139.861 | CP53: 1048698.036 | CQ53: 1045582.462 | CR53: 1046672.376 | CS53: 1045487.764 | CT53: 1046040.343 | CU53: 1042105.175 | CV53: 1041473.491 | CW53: 1043214.332 | CX53: 1049573.907 | CY53: 1045235.7 | CZ53: 1043227.715 | DA53: 1047142.316 | DB53: 1043917.304 | DC53: 1046895.744 | DD53: 1046696.495 | DE53: 1038438.277 | DF53: 1041857.233 | DG53: 1045530.789 | DH53: 1044114.334 | DI53: 1044135.314 | DJ53: 1042564.338 | DK53: 1045215.423 | DL53: 1044995.089 | DM53: 1044224.233 | DN53: 1048215.551 | DO53: 1042072.867 | DP53: 1045878.826 | DQ53: 1046669.633 | DR53: 1041192.135 | DS53: 1045947.332 | DT53: 1045549.203 | DU53: 1041339.234 | DV53: 1043556.334 | DW53: 1047251.843 | DX53: 1051525.824 | DY53: 1044668.194 | DZ53: 1043546.225 | EA53: 1046615.289 | EB53: 1047694.731 | EC53: 1042802.853 | ED53: 1042887.903 | EE53: 1042980.156 | EF53: 1049467.974 | EG53: 1046721.68 | EH53: 1045510.536 | EI53: 1041043.091 | EJ53: 1043515.734 | EK53: 1041272.077 | EL53: 1044940.604 | EM53: 1048323.276 | EN53: 1048148.162 | EO53: 1049983.936 | EP53: 1045307.858 | EQ53: 1048142.446 | ER53: 1046772.469 | ES53: 1043588.565 | ET53: 1050609.857 | EU53: 1047233.649 | EV53: 1044404.391 | EW53: 1043318.256 | EX53: 1047796.847 | EY53: 1045694.689 | EZ53: 1040951.449 | FA53: 1044901.803 | FB53: 1040569.104 | FC53: 1042412.159 | FD53: 1046408.514 | FE53: 1046875.019 | FF53: 1048189.057 | FG53: 1043125.262 | FH53: 1048145.25 | FI53: 1043598.956 | FJ53: 1048024.699 | FK53: 1044489.162 | FL53: 1044389.321 | FM53: 1046233.344 | FN53: 1044686.258 | FO53: 1048314.876 | FP53: 1047389.707
AL54: 1515050185 | AM54: 1025192524 | AN54: 1393004308 | AO54: 562304802 | AP54: 1963701729 | AQ54: 2055211575 | AR54: 1330104133 | AS54: 400337922 | AT54: 672317028 | AU54: 548791493 | AV54: 53020752 | AW54: 17047877 | AZ54: 1.194175689 | BA54: 1.201540972 | BB54: 1.25623798 | BC54: 1.196581009 | BD54: 1.367004468 | BE54: 1.611705025 | BF54: 1.671293463 | BG54: 1.55484904 | BH54: 1.500486178 | BI54: 1.425890668 | BJ54: 1.203406058 | BK54: 0.9754158752 | BM54: =SUMPRODUCT(TRANSPOSE($J$8:$J$19),AZ54:BK54) -> 7145708.638 | BO54: 0.95 | BP54: 8341058.721 | BQ54: 1046631.637 | BR54: 8361442.56 | BS54: 7294427.084 | BU54: 1047519.228 | BV54: 1043317.521 | BW54: 1046610.678 | BX54: 1053184.486 | BY54: 1045862.428 | BZ54: 1046520.263 | CA54: 1050916.483 | CB54: 1049409.427 | CC54: 1042366.397 | CD54: 1049970.574 | CE54: 1042645.295 | CF54: 1048538.23 | CG54: 1046989.689 | CH54: 1042342.816 | CI54: 1045242.376 | CJ54: 1046817.055 | CK54: 1050185.872 | CL54: 1050697.439 | CM54: 1044612.815 | CN54: 1051304.76 | CO54: 1048339.399 | CP54: 1049342.91 | CQ54: 1047234.19 | CR54: 1049118.387 | CS54: 1046328.836 | CT54: 1047727.616 | CU54: 1043209.088 | CV54: 1042814.277 | CW54: 1044208.707 | CX54: 1050483.234 | CY54: 1046420.144 | CZ54: 1044647.801 | DA54: 1048360.255 | DB54: 1045261.406 | DC54: 1047499.054 | DD54: 1048276.092 | DE54: 1039350.995 | DF54: 1042570.032 | DG54: 1046476.34 | DH54: 1045077.078 | DI54: 1045078.965 | DJ54: 1044004.696 | DK54: 1046716.087 | DL54: 1046697.933 | DM54: 1046058.864 | DN54: 1048961.713 | DO54: 1043110.197 | DP54: 1046878.517 | DQ54: 1047427.771 | DR54: 1043039.224 | DS54: 1046982.875 | DT54: 1046190.932 | DU54: 1042471.714 | DV54: 1044815.365 | DW54: 1048370.332 | DX54: 1052503.414 | DY54: 1046634.383 | DZ54: 1045057.809 | EA54: 1047152.247 | EB54: 1049100.301 | EC54: 1043452.579 | ED54: 1044184.961 | EE54: 1044189.24 | EF54: 1050566.413 | EG54: 1047661.303 | EH54: 1046472.992 | EI54: 1042472.856 | EJ54: 1044904.083 | EK54: 1042850.8 | EL54: 1046221.439 | EM54: 1049912.382 | EN54: 1049955.916 | EO54: 1050270.138 | EP54: 1046853.411 | EQ54: 1049256.889 | ER54: 1047595.817 | ES54: 1044775.826 | ET54: 1051624.969 | EU54: 1049006.705 | EV54: 1045237.317 | EW54: 1044282.783 | EX54: 1048861.131 | EY54: 1047207.112 | EZ54: 1042357.273 | FA54: 1046397.926 | FB54: 1041528.879 | FC54: 1043201.097 | FD54: 1047720.331 | FE54: 1048159.326 | FF54: 1049340.267 | FG54: 1044379.28 | FH54: 1049607.425 | FI54: 1045357.944 | FJ54: 1048863.428 | FK54: 1045329.002 | FL54: 1045948.309 | FM54: 1046639.081 | FN54: 1046129.606 | FO54: 1049270.041 | FP54: 1050064.443
AL55: 431881550 | AM55: 455164536 | AN55: 1850480251 | AO55: 969282909 | AP55: 2065465626 | AQ55: 1963380013 | AR55: 2138009684 | AS55: 1653977156 | AT55: 642385124 | AU55: 1503372858 | AV55: 1711696215 | AW55: 431833866 | AZ55: 1.053791246 | BA55: 0.9911513054 | BB55: 1.104869545 | BC55: 1.102802993 | BD55: 1.306871996 | BE55: 1.492671549 | BF55: 1.909762395 | BG55: 2.060102329 | BH55: 1.980917904 | BI55: 2.09555525 | BJ55: 2.279570523 | BK55: 2.131432241 | BM55: =SUMPRODUCT(TRANSPOSE($J$8:$J$19),AZ55:BK55) -> 6262651.461 | BO55: 0.951 | BP55: 8351207.666 | BQ55: 1047953.209 | BR55: 8369318.508 | BS55: 7303254.457 | BU55: 1048646.677 | BV55: 1044995.81 | BW55: 1047426.786 | BX55: 1054443.03 | BY55: 1046674.202 | BZ55: 1047488.183 | CA55: 1052110.044 | CB55: 1049909.508 | CC55: 1043581.704 | CD55: 1051941.1 | CE55: 1044624.376 | CF55: 1050155.802 | CG55: 1048304.752 | CH55: 1043381.425 | CI55: 1046847.775 | CJ55: 1047697.221 | CK55: 1051861.275 | CL55: 1052297.646 | CM55: 1045354.39 | CN55: 1053418.693 | CO55: 1049471.966 | CP55: 1050381.481 | CQ55: 1048456.697 | CR55: 1050531.858 | CS55: 1047714.677 | CT55: 1049265.625 | CU55: 1044599.425 | CV55: 1044319.266 | CW55: 1045568.796 | CX55: 1052144.824 | CY55: 1047299.957 | CZ55: 1045948.871 | DA55: 1049771.636 | DB55: 1046923.849 | DC55: 1048773.36 | DD55: 1050188.93 | DE55: 1040602.532 | DF55: 1044039.395 | DG55: 1048235.793 | DH55: 1046005.741 | DI55: 1046525.795 | DJ55: 1046157.221 | DK55: 1048628.108 | DL55: 1048165.57 | DM55: 1047320.156 | DN55: 1050656.081 | DO55: 1043894.849 | DP55: 1048657.72 | DQ55: 1048689.469 | DR55: 1043996.187 | DS55: 1048117.531 | DT55: 1048740.643 | DU55: 1043710.855 | DV55: 1046489.54 | DW55: 1049807.308 | DX55: 1053551.815 | DY55: 1048122.484 | DZ55: 1046181.721 | EA55: 1048238.595 | EB55: 1050605.512 | EC55: 1044916.744 | ED55: 1045396.35 | EE55: 1045298.338 | EF55: 1050980.792 | EG55: 1048813.668 | EH55: 1047703 | EI55: 1044307.185 | EJ55: 1046132.796 | EK55: 1044816.72 | EL55: 1047626.634 | EM55: 1051212.664 | EN55: 1050966.752 | EO55: 1051020.743 | EP55: 1048846.909 | EQ55: 1050623.423 | ER55: 1048825.053 | ES55: 1046033.246 | ET55: 1052386.885 | EU55: 1050256.414 | EV55: 1046633.669 | EW55: 1045537.307 | EX55: 1050112.708 | EY55: 1048312.209 | EZ55: 1043686.25 | FA55: 1047225.824 | FB55: 1043388.414 | FC55: 1044260.224 | FD55: 1048380.408 | FE55: 1048811.091 | FF55: 1050467.472 | FG55: 1045716.257 | FH55: 1050973.818 | FI55: 1046902.945 | FJ55: 1049708.628 | FK55: 1046167.814 | FL55: 1047177.956 | FM55: 1048261.256 | FN55: 1047928.146 | FO55: 1051060.991 | FP55: 1050780.941
AL56: 1730538621 | AM56: 342124799 | AN56: 2097382703 | AO56: 1029083150 | AP56: 867953377 | AQ56: 1568298119 | AR56: 96348838 | AS56: 2131752757 | AT56: 1055941571 | AU56: 1543829094 | AV56: 854675940 | AW56: 1576267904 | AZ56: 1.229634456 | BA56: 1.135983764 | BB56: 1.374272718 | BC56: 1.380454846 | BD56: 1.362537463 | BE56: 1.453338638 | BF56: 1.25682622 | BG56: 1.582153002 | BH56: 1.592851698 | BI56: 1.693463767 | BJ56: 1.668689606 | BK56: 1.781759204 | BM56: =SUMPRODUCT(TRANSPOSE($J$8:$J$19),AZ56:BK56) -> 7531875.811 | BO56: 0.952 | BP56: 8361536.108 | BQ56: 1049299.555 | BR56: 8376142.96 | BS56: 7312236.553 | BU56: 1051088.619 | BV56: 1046351.028 | BW56: 1048512.509 | BX56: 1055901.892 | BY56: 1048477.593 | BZ56: 1048915.072 | CA56: 1053848.035 | CB56: 1050895.98 | CC56: 1044325.813 | CD56: 1053395.022 | CE56: 1046149.457 | CF56: 1051932.973 | CG56: 1050249.038 | CH56: 1044903.759 | CI56: 1048727.718 | CJ56: 1048963.531 | CK56: 1052920.521 | CL56: 1053021.738 | CM56: 1046873.55 | CN56: 1054836.213 | CO56: 1050857.904 | CP56: 1052547.126 | CQ56: 1049684.354 | CR56: 1051464.45 | CS56: 1049000.043 | CT56: 1050185.888 | CU56: 1045048.894 | CV56: 1045674.307 | CW56: 1047113.063 | CX56: 1053477.769 | CY56: 1048113.59 | CZ56: 1047832.437 | DA56: 1051234.992 | DB56: 1048485.091 | DC56: 1049652.29 | DD56: 1051577.108 | DE56: 1041462.564 | DF56: 1045672.991 | DG56: 1049515.018 | DH56: 1047860.835 | DI56: 1047543.639 | DJ56: 1047011.703 | DK56: 1049961.746 | DL56: 1049452.812 | DM56: 1049430.714 | DN56: 1051404.237 | DO56: 1046013.887 | DP56: 1049780.981 | DQ56: 1049902.04 | DR56: 1044837.698 | DS56: 1049135.041 | DT56: 1049723.044 | DU56: 1045207.589 | DV56: 1047719.888 | DW56: 1050978.258 | DX56: 1054706.178 | DY56: 1049228.565 | DZ56: 1048767.072 | EA56: 1049605.73 | EB56: 1052148.486 | EC56: 1045875.368 | ED56: 1046664.725 | EE56: 1046036.018 | EF56: 1052110.108 | EG56: 1049794.387 | EH56: 1049034.765 | EI56: 1046158.351 | EJ56: 1047210.05 | EK56: 1046795.564 | EL56: 1049088.773 | EM56: 1052495.665 | EN56: 1052405.23 | EO56: 1052383.538 | EP56: 1050980.233 | EQ56: 1051599.383 | ER56: 1050680.37 | ES56: 1047349.472 | ET56: 1053552.806 | EU56: 1051690.226 | EV56: 1048288.88 | EW56: 1047220.123 | EX56: 1051797.871 | EY56: 1049927.497 | EZ56: 1044751.553 | FA56: 1048248.047 | FB56: 1044839.901 | FC56: 1045342.676 | FD56: 1049352.668 | FE56: 1051138.263 | FF56: 1051641.756 | FG56: 1046438.098 | FH56: 1051824.561 | FI56: 1047708.098 | FJ56: 1050728.488 | FK56: 1047324.889 | FL56: 1048622.631 | FM56: 1049381.13 | FN56: 1049169.27 | FO56: 1052248.038 | FP56: 1052745.937
AL57: 2010873285 | AM57: 556927099 | AN57: 1791402345 | AO57: 1428494893 | AP57: 1718991844 | AQ57: 224978205 | AR57: 1552663343 | AS57: 863419848 | AT57: 831212196 | AU57: 196678280 | AV57: 753957223 | AW57: 534897127 | AZ57: 1.305830753 | BA57: 1.245527936 | BB57: 1.373749608 | BC57: 1.441221497 | BD57: 1.569847421 | BE57: 1.413264587 | BF57: 1.504324535 | BG57: 1.4836362 | BH57: 1.458013532 | BI57: 1.303322372 | BJ57: 1.269903268 | BK57: 1.204785569 | BM57: =SUMPRODUCT(TRANSPOSE($J$8:$J$19),AZ57:BK57) -> 7898033.532 | BO57: 0.953 | BP57: 8372051.334 | BQ57: 1050673.293 | BR57: 8393567.964 | BS57: 7321378.041 | BU57: 1051961.966 | BV57: 1047565.034 | BW57: 1049892.893 | BX57: 1057277.258 | BY57: 1048957.311 | BZ57: 1049586.34 | CA57: 1054800.369 | CB57: 1052773.125 | CC57: 1045690.234 | CD57: 1055523.644 | CE57: 1047124.786 | CF57: 1053504.515 | CG57: 1051643.507 | CH57: 1046564.335 | CI57: 1050086.882 | CJ57: 1049918.735 | CK57: 1054850.456 | CL57: 1055092.078 | CM57: 1048265.074 | CN57: 1055817.73 | CO57: 1052692.493 | CP57: 1054238.066 | CQ57: 1051350.308 | CR57: 1053852.629 | CS57: 1050355.98 | CT57: 1050620.421 | CU57: 1046443.343 | CV57: 1047033.852 | CW57: 1049085.384 | CX57: 1054919.6 | CY57: 1049512.239 | CZ57: 1049305.993 | DA57: 1052430.549 | DB57: 1051372.184 | DC57: 1051456.006 | DD57: 1052630.834 | DE57: 1043204.091 | DF57: 1046734.583 | DG57: 1050420.813 | DH57: 1049064.918 | DI57: 1048518.384 | DJ57: 1048159.532 | DK57: 1051357.732 | DL57: 1050414.221 | DM57: 1051365.435 | DN57: 1053337.207 | DO57: 1047175.688 | DP57: 1050787.501 | DQ57: 1051412.423 | DR57: 1046420.898 | DS57: 1050659.186 | DT57: 1051928.984 | DU57: 1047217.031 | DV57: 1049004.46 | DW57: 1052794.032 | DX57: 1055834.69 | DY57: 1050563.027 | DZ57: 1049327.534 | EA57: 1050873.5 | EB57: 1053173.96 | EC57: 1047776.273 | ED57: 1047887.626 | EE57: 1047432.742 | EF57: 1053054.806 | EG57: 1050829.799 | EH57: 1049888.591 | EI57: 1047419.737 | EJ57: 1048672.208 | EK57: 1048499.438 | EL57: 1049879.722 | EM57: 1053539.114 | EN57: 1053216.725 | EO57: 1054315.157 | EP57: 1052291.96 | EQ57: 1053202.977 | ER57: 1052048.183 | ES57: 1049010.359 | ET57: 1054757.547 | EU57: 1052385.487 | EV57: 1049213.389 | EW57: 1048842.157 | EX57: 1053020.246 | EY57: 1051743.515 | EZ57: 1045873.382 | FA57: 1049239.972 | FB57: 1045893.455 | FC57: 1047568.851 | FD57: 1050414.117 | FE57: 1052428.425 | FF57: 1053079.57 | FG57: 1047925.896 | FH57: 1054097.814 | FI57: 1049458.867 | FJ57: 1051775.876 | FK57: 1048439.312 | FL57: 1050509.735 | FM57: 1050420.73 | FN57: 1049914.798 | FO57: 1053950.751 | FP57: 1053463.968
AL58: 603495835 | AM58: 1227702683 | AN58: 58581746 | AO58: 1324558480 | AP58: 834665291 | AQ58: 98130676 | AR58: 1432949653 | AS58: 1924345479 | AT58: 2006936215 | AU58: 1979534140 | AV58: 863745724 | AW58: 823329536 | AZ58: 1.078744305 | BA58: 1.109036364 | BB58: 0.9407188121 | BC58: 0.9753811148 | BD58: 0.9592133255 | BE58: 0.8302418216 | BF58: 0.8710402672 | BG58: 0.9850285101 | BH58: 1.139557607 | BI58: 1.307235907 | BJ58: 1.289390566 | BK58: 1.266290781 | BM58: =SUMPRODUCT(TRANSPOSE($J$8:$J$19),AZ58:BK58) -> 6060364.135 | BO58: 0.954 | BP58: 8382761.089 | BQ58: 1051991.838 | BR58: 8410968.999 | BS58: 7330769.251 | BU58: 1054213.987 | BV58: 1048764.42 | BW58: 1050881.736 | BX58: 1059469.031 | BY58: 1049871.966 | BZ58: 1051358.716 | CA58: 1056180.693 | CB58: 1053575.1 | CC58: 1046799.599 | CD58: 1056470.818 | CE58: 1048348.428 | CF58: 1055163.931 | CG58: 1052975.146 | CH58: 1048613.839 | CI58: 1050873.242 | CJ58: 1050365.556 | CK58: 1056189.934 | CL58: 1055875.439 | CM58: 1049707.072 | CN58: 1056549.346 | CO58: 1053969.06 | CP58: 1055184.645 | CQ58: 1052245.395 | CR58: 1054973.622 | CS58: 1051219.125 | CT58: 1051348.674 | CU58: 1047806.147 | CV58: 1048551.096 | CW58: 1051202.239 | CX58: 1056518.03 | CY58: 1050504.331 | CZ58: 1049960.35 | DA58: 1053720.939 | DB58: 1053128.871 | DC58: 1052644.753 | DD58: 1053421.203 | DE58: 1044558.493 | DF58: 1047965.161 | DG58: 1052110.588 | DH58: 1049723.576 | DI58: 1049602.916 | DJ58: 1049286.837 | DK58: 1052111.361 | DL58: 1051514.63 | DM58: 1052505.89 | DN58: 1054105.052 | DO58: 1048288.65 | DP58: 1051996.73 | DQ58: 1053472.519 | DR58: 1047777.137 | DS58: 1051560.575 | DT58: 1053602.659 | DU58: 1048477.416 | DV58: 1050414.442 | DW58: 1053845.922 | DX58: 1057071.406 | DY58: 1051906.398 | DZ58: 1050141.088 | EA58: 1052138.468 | EB58: 1054527.705 | EC58: 1049362.34 | ED58: 1049030.907 | EE58: 1049546.891 | EF58: 1054293.587 | EG58: 1051687.412 | EH58: 1051098.061 | EI58: 1048736.594 | EJ58: 1049903.101 | EK58: 1049967.128 | EL58: 1050852.63 | EM58: 1055493.259 | EN58: 1055377.064 | EO58: 1055815.401 | EP58: 1054305.77 | EQ58: 1054986.122 | ER58: 1053779.167 | ES58: 1050023.693 | ET58: 1055432.768 | EU58: 1053017.88 | EV58: 1050034.699 | EW58: 1050336.2 | EX58: 1055502.384 | EY58: 1053273.113 | EZ58: 1048417.781 | FA58: 1050719.953 | FB58: 1047341.66 | FC58: 1048802.626 | FD58: 1051457.399 | FE58: 1054150.773 | FF58: 1055661.651 | FG58: 1049104.659 | FH58: 1055776.914 | FI58: 1050765.55 | FJ58: 1052803.469 | FK58: 1049813.541 | FL58: 1052123.757 | FM58: 1051699.441 | FN58: 1051933.767 | FO58: 1055099.291 | FP58: 1054303.287
AL59: 731779730 | AM59: 477488481 | AN59: 1710981714 | AO59: 731765949 | AP59: 1187560494 | AQ59: 1664419561 | AR59: 1611913740 | AS59: 675465824 | AT59: 1683234448 | AU59: 1807598675 | AV59: 474836699 | AW59: 1607660874 | AZ59: 1.095459222 | BA59: 1.033655983 | BB59: 1.125588499 | BC59: 1.09448027 | BD59: 1.117756492 | BE59: 1.20769838 | BF59: 1.295418773 | BG59: 1.250641336 | BH59: 1.354647769 | BI59: 1.496445557 | BJ59: 1.407870719 | BK59: 1.509446013 | BM59: =SUMPRODUCT(TRANSPOSE($J$8:$J$19),AZ59:BK59) -> 6408954.754 | BO59: 0.955 | BP59: 8393673.617 | BQ59: 1053447.561 | BR59: 8424988.206 | BS59: 7340226.056 | BU59: 1055487.161 | BV59: 1050669.035 | BW59: 1052050.846 | BX59: 1060347.36 | BY59: 1052344.644 | BZ59: 1052710.888 | CA59: 1057413.601 | CB59: 1054879.374 | CC59: 1047777.96 | CD59: 1058397.481 | CE59: 1049295.744 | CF59: 1056404.662 | CG59: 1054343.908 | CH59: 1050063.305 | CI59: 1052225.96 | CJ59: 1051935.223 | CK59: 1057533.781 | CL59: 1057241.053 | CM59: 1050601.822 | CN59: 1058795.915 | CO59: 1055798.4 | CP59: 1056832.359 | CQ59: 1054061.161 | CR59: 1056203.815 | CS59: 1052924.938 | CT59: 1053176.912 | CU59: 1049335.702 | CV59: 1050527.49 | CW59: 1053333.762 | CX59: 1057934.528 | CY59: 1052160.435 | CZ59: 1051265.88 | DA59: 1055259.412 | DB59: 1054529.229 | DC59: 1054885.885 | DD59: 1055556.649 | DE59: 1046007.143 | DF59: 1049313.638 | DG59: 1053278.984 | DH59: 1051977.503 | DI59: 1050915.437 | DJ59: 1051174.717 | DK59: 1053251.043 | DL59: 1052402.127 | DM59: 1054210.57 | DN59: 1056208.047 | DO59: 1050472.888 | DP59: 1052710.424 | DQ59: 1055035.459 | DR59: 1048627.093 | DS59: 1053212.928 | DT59: 1054657.412 | DU59: 1049559.422 | DV59: 1051647.671 | DW59: 1055960.89 | DX59: 1058746.639 | DY59: 1053132.067 | DZ59: 1050866.174 | EA59: 1053422.09 | EB59: 1055401.66 | EC59: 1050791.531 | ED59: 1050100.947 | EE59: 1051088.657 | EF59: 1056194.822 | EG59: 1053013.394 | EH59: 1052604.99 | EI59: 1049871.611 | EJ59: 1051394.483 | EK59: 1051041.205 | EL59: 1052096.897 | EM59: 1057337.631 | EN59: 1056843.383 | EO59: 1057732.355 | EP59: 1055444.607 | EQ59: 1056982.246 | ER59: 1054664.48 | ES59: 1052035.488 | ET59: 1056704.433 | EU59: 1054694.182 | EV59: 1051069.079 | EW59: 1051679.477 | EX59: 1057614.09 | EY59: 1054299.657 | EZ59: 1049947.218 | FA59: 1051602.802 | FB59: 1049412.552 | FC59: 1049746.347 | FD59: 1052947.311 | FE59: 1055897.154 | FF59: 1057375.4 | FG59: 1050175.995 | FH59: 1056867.284 | FI59: 1051776.768 | FJ59: 1053330.424 | FK59: 1051350.523 | FL59: 1053677.939 | FM59: 1053079.267 | FN59: 1053963.198 | FO59: 1056263.11 | FP59: 1055544.839
AL60: 1928320974 | AM60: 2051966747 | AN60: 724736521 | AO60: 1263098323 | AP60: 1951616503 | AQ60: 1538427467 | AR60: 1060645436 | AS60: 166577903 | AT60: 1366255163 | AU60: 187579668 | AV60: 749332998 | AW60: 1928980862 | AZ60: 1.275933171 | BA60: 1.505835002 | BB60: 1.463980731 | BC60: 1.507732816 | BD60: 1.716988919 | BE60: 1.824514755 | BF60: 1.837957267 | BG60: 1.629529643 | BH60: 1.696441594 | BI60: 1.512850885 | BJ60: 1.473281614 | BK60: 1.668202617 | BM60: =SUMPRODUCT(TRANSPOSE($J$8:$J$19),AZ60:BK60) -> 8466156.933 | BO60: 0.956 | BP60: 8404797.706 | BQ60: 1054847.32 | BR60: 8433278.761 | BS60: 7349950.385 | BU60: 1057168.279 | BV60: 1052183.117 | BW60: 1053898.367 | BX60: 1061935.424 | BY60: 1054532.984 | BZ60: 1053897.526 | CA60: 1058559.329 | CB60: 1055274.385 | CC60: 1048861.599 | CD60: 1060388.898 | CE60: 1050451.64 | CF60: 1058258.576 | CG60: 1055275.422 | CH60: 1051383.436 | CI60: 1053502.512 | CJ60: 1053781.648 | CK60: 1058990.88 | CL60: 1059155.769 | CM60: 1052294.873 | CN60: 1060542.751 | CO60: 1057951.116 | CP60: 1057615.348 | CQ60: 1055380.578 | CR60: 1057570.34 | CS60: 1053826.867 | CT60: 1055207.936 | CU60: 1050439.315 | CV60: 1052101.326 | CW60: 1054199.384 | CX60: 1059084.775 | CY60: 1054331.734 | CZ60: 1052315.733 | DA60: 1056155.521 | DB60: 1055474.941 | DC60: 1057100.804 | DD60: 1057223.276 | DE60: 1048258.88 | DF60: 1050598.639 | DG60: 1055049.805 | DH60: 1052761.373 | DI60: 1052323.866 | DJ60: 1051874.484 | DK60: 1054629.572 | DL60: 1053829.625 | DM60: 1055668.991 | DN60: 1057472.871 | DO60: 1052004.172 | DP60: 1054312.135 | DQ60: 1055617.131 | DR60: 1050081.063 | DS60: 1054747.95 | DT60: 1056316.214 | DU60: 1051021.445 | DV60: 1052827.676 | DW60: 1057162.769 | DX60: 1060232.551 | DY60: 1054561.915 | DZ60: 1051646.271 | EA60: 1054494.228 | EB60: 1056501.411 | EC60: 1052310.034 | ED60: 1051493.332 | EE60: 1052308.621 | EF60: 1057502.817 | EG60: 1055295.641 | EH60: 1054388.338 | EI60: 1050760.316 | EJ60: 1052831.054 | EK60: 1052907.105 | EL60: 1053964.379 | EM60: 1059228.127 | EN60: 1057920.509 | EO60: 1058766.495 | EP60: 1056739.672 | EQ60: 1058161.787 | ER60: 1055641.939 | ES60: 1053024.454 | ET60: 1057678.392 | EU60: 1056345.713 | EV60: 1051949.414 | EW60: 1052780.666 | EX60: 1059314.535 | EY60: 1055830.288 | EZ60: 1051599.041 | FA60: 1052719.01 | FB60: 1050175.906 | FC60: 1050969.639 | FD60: 1054109.365 | FE60: 1056992.543 | FF60: 1058289.146 | FG60: 1051468.279 | FH60: 1058480.979 | FI60: 1053299.218 | FJ60: 1055816.056 | FK60: 1052500.714 | FL60: 1055088.302 | FM60: 1054516.882 | FN60: 1055293.304 | FO60: 1058207.286 | FP60: 1057751.264
AL61: 1450540386 | AM61: 2098593856 | AN61: 1247995561 | AO61: 1810927556 | AP61: 667589717 | AQ61: 1447746297 | AR61: 258213029 | AS61: 703181345 | AT61: 1280173803 | AU61: 867098276 | AV61: 986080037 | AW61: 1091739329 | AZ61: 1.184972324 | BA61: 1.436926187 | BB61: 1.478409405 | BC61: 1.635054613 | BD61: 1.5775097 | BE61: 1.658035917 | BF61: 1.503550704 | BG61: 1.456335597 | BH61: 1.501753849 | BI61: 1.481674895 | BJ61: 1.480824565 | BK61: 1.496824392 | BM61: =SUMPRODUCT(TRANSPOSE($J$8:$J$19),AZ61:BK61) -> 8422475.478 | BO61: 0.957 | BP61: 8416142.733 | BQ61: 1056268.336 | BR61: 8452480.42 | BS61: 7359874.397 | BU61: 1058105.27 | BV61: 1052832.955 | BW61: 1054589.804 | BX61: 1063567.867 | BY61: 1055947.553 | BZ61: 1054988.646 | CA61: 1059559.18 | CB61: 1056550.146 | CC61: 1050097.044 | CD61: 1062624.183 | CE61: 1051455.022 | CF61: 1059355.986 | CG61: 1056525.336 | CH61: 1052408.223 | CI61: 1055133.749 | CJ61: 1055019.59 | CK61: 1060703.564 | CL61: 1060950.606 | CM61: 1053785.019 | CN61: 1062259.891 | CO61: 1059713.795 | CP61: 1060138.075 | CQ61: 1056624.714 | CR61: 1059344.494 | CS61: 1056154.074 | CT61: 1056702.977 | CU61: 1051906.404 | CV61: 1054094.944 | CW61: 1054928.275 | CX61: 1059990.19 | CY61: 1055965.388 | CZ61: 1053506.764 | DA61: 1058077.742 | DB61: 1056593.305 | DC61: 1058552.971 | DD61: 1058198.919 | DE61: 1049528.697 | DF61: 1051596.769 | DG61: 1056131.731 | DH61: 1053913.114 | DI61: 1054046.292 | DJ61: 1052849.607 | DK61: 1056050.87 | DL61: 1055459.975 | DM61: 1056671.426 | DN61: 1059787.693 | DO61: 1053641.588 | DP61: 1055085.05 | DQ61: 1056902.457 | DR61: 1051055.102 | DS61: 1055928.978 | DT61: 1058457.608 | DU61: 1052346.719 | DV61: 1054747.572 | DW61: 1058282.04 | DX61: 1061155.169 | DY61: 1055989.164 | DZ61: 1052812.252 | EA61: 1055305.373 | EB61: 1058010.896 | EC61: 1054185.589 | ED61: 1053019.842 | EE61: 1053742.999 | EF61: 1058942.825 | EG61: 1056454.171 | EH61: 1056170.904 | EI61: 1052756.475 | EJ61: 1053968.456 | EK61: 1053643.811 | EL61: 1055511.917 | EM61: 1061055.136 | EN61: 1059591.122 | EO61: 1059765.854 | EP61: 1058337.214 | EQ61: 1060326.608 | ER61: 1056266.971 | ES61: 1054352.681 | ET61: 1059667.283 | EU61: 1057431.527 | EV61: 1054053.882 | EW61: 1054242.099 | EX61: 1060569.976 | EY61: 1056507.628 | EZ61: 1054865.381 | FA61: 1053834.22 | FB61: 1050870.469 | FC61: 1052946.406 | FD61: 1055445.272 | FE61: 1058943.717 | FF61: 1059690.296 | FG61: 1052783.539 | FH61: 1059831.749 | FI61: 1054253.472 | FJ61: 1057180.149 | FK61: 1054472.471 | FL61: 1057128.593 | FM61: 1056364.816 | FN61: 1056505.821 | FO61: 1059150.927 | FP61: 1059292.524
AL62: 330662171 | AM62: 125426692 | AN62: 782459387 | AO62: 1962204541 | AP62: 83622425 | AQ62: 748661813 | AR62: 206035671 | AS62: 140180013 | AT62: 1427702188 | AU62: 1244600766 | AV62: 94430272 | AW62: 100452779 | AZ62: 1.036540145 | BA62: 0.9092325684 | BB62: 0.8897979909 | BC62: 1.016393325 | BD62: 0.8738825144 | BE62: 0.8510336537 | BF62: 0.7626024289 | BG62: 0.6706028096 | BH62: 0.703055451 | BI62: 0.7222024567 | BJ62: 0.6240110346 | BK62: 0.5406703247 | BM62: =SUMPRODUCT(TRANSPOSE($J$8:$J$19),AZ62:BK62) -> 5679751.555 | BO62: 0.958 | BP62: 8427718.726 | BQ62: 1057768.345 | BR62: 8460961.9 | BS62: 7369950.381 | BU62: 1060112.909 | BV62: 1054395.569 | BW62: 1056376.326 | BX62: 1064964.28 | BY62: 1057586.768 | BZ62: 1055906.993 | CA62: 1061303.249 | CB62: 1057774.201 | CC62: 1050827.487 | CD62: 1064674.358 | CE62: 1052974.763 | CF62: 1060828.118 | CG62: 1058206.058 | CH62: 1053087.618 | CI62: 1056885.468 | CJ62: 1056723.244 | CK62: 1061809.213 | CL62: 1061781.323 | CM62: 1054952.719 | CN62: 1064016.805 | CO62: 1060837.251 | CP62: 1061216.085 | CQ62: 1058561.846 | CR62: 1060624.744 | CS62: 1058619.933 | CT62: 1058228.385 | CU62: 1053363.783 | CV62: 1054883.754 | CW62: 1057196.046 | CX62: 1062275.61 | CY62: 1056922.227 | CZ62: 1054555.386 | DA62: 1060263.599 | DB62: 1058080.463 | DC62: 1060098.786 | DD62: 1060098.734 | DE62: 1050657.266 | DF62: 1053320.961 | DG62: 1057441.735 | DH62: 1055818.422 | DI62: 1055490.044 | DJ62: 1054167.276 | DK62: 1057215.745 | DL62: 1057280.25 | DM62: 1058055.563 | DN62: 1060849.687 | DO62: 1054717.49 | DP62: 1056898.775 | DQ62: 1058855 | DR62: 1052588.262 | DS62: 1057337.841 | DT62: 1060531.945 | DU62: 1054214.997 | DV62: 1056036.777 | DW62: 1059479.707 | DX62: 1062394.044 | DY62: 1056796.835 | DZ62: 1054426.51 | EA62: 1057522.971 | EB62: 1059613.988 | EC62: 1056081.951 | ED62: 1054263.771 | EE62: 1054999.359 | EF62: 1059845.452 | EG62: 1058081.412 | EH62: 1057579.989 | EI62: 1054417.159 | EJ62: 1055348.11 | EK62: 1055179.899 | EL62: 1056829.957 | EM62: 1062725.173 | EN62: 1060866.609 | EO62: 1060665.548 | EP62: 1059574.928 | EQ62: 1061431.889 | ER62: 1058394.719 | ES62: 1056708.306 | ET62: 1060806.44 | EU62: 1058983.74 | EV62: 1056071.037 | EW62: 1055266.868 | EX62: 1062635.823 | EY62: 1057609.933 | EZ62: 1055793.571 | FA62: 1054736.339 | FB62: 1052345.237 | FC62: 1056286.768 | FD62: 1056941.549 | FE62: 1059812.111 | FF62: 1062096.102 | FG62: 1054016.824 | FH62: 1061155.153 | FI62: 1055408.218 | FJ62: 1058662.313 | FK62: 1056080.32 | FL62: 1059073.59 | FM62: 1058085.999 | FN62: 1057876.051 | FO62: 1060494.807 | FP62: 1060875.306
AL63: 1295191837 | AM63: 715448639 | AN63: 154686441 | AO63: 661664029 | AP63: 1416304462 | AQ63: 799563607 | AR63: 551105584 | AS63: 2055919473 | AT63: 1714601071 | AU63: 121067114 | AV63: 1283360778 | AW63: 2085503830 | AZ63: 1.164332041 | BA63: 1.132361874 | BB63: 1.001594302 | BC63: 0.9659192656 | BD63: 1.011658539 | BE63: 0.9908874564 | BF63: 0.9419883489 | BG63: 1.110803824 | BH63: 1.208747014 | BI63: 1.055793562 | BJ63: 1.089212063 | BK63: 1.305436274 | BM63: =SUMPRODUCT(TRANSPOSE($J$8:$J$19),AZ63:BK63) -> 6302382.872 | BO63: 0.959 | BP63: 8439536.419 | BQ63: 1059350.363 | BR63: 8473907.683 | BS63: 7380186.057 | BU63: 1061570.952 | BV63: 1055506.517 | BW63: 1057257.962 | BX63: 1066543.096 | BY63: 1059135.765 | BZ63: 1057121.117 | CA63: 1062851.509 | CB63: 1059956.058 | CC63: 1052559.008 | CD63: 1065966.286 | CE63: 1054431.569 | CF63: 1061477.902 | CG63: 1059435.715 | CH63: 1055215.206 | CI63: 1058547.582 | CJ63: 1058938.471 | CK63: 1063050.395 | CL63: 1062674.597 | CM63: 1056274.472 | CN63: 1065175.289 | CO63: 1063108.575 | CP63: 1063221.782 | CQ63: 1060224.906 | CR63: 1062247.839 | CS63: 1060598.053 | CT63: 1059976.039 | CU63: 1055058.51 | CV63: 1057124.794 | CW63: 1058716.516 | CX63: 1063719.208 | CY63: 1057707.205 | CZ63: 1055852.364 | DA63: 1061988.939 | DB63: 1059164.278 | DC63: 1061093.177 | DD63: 1061331.14 | DE63: 1052340.653 | DF63: 1054352.171 | DG63: 1058709.224 | DH63: 1058694.29 | DI63: 1057277.302 | DJ63: 1055983.942 | DK63: 1059259.298 | DL63: 1058843.26 | DM63: 1059009.739 | DN63: 1063127.508 | DO63: 1056001.835 | DP63: 1058580.772 | DQ63: 1060491.559 | DR63: 1053747.158 | DS63: 1058861.849 | DT63: 1061973.324 | DU63: 1056314.572 | DV63: 1057211.517 | DW63: 1061081.554 | DX63: 1063474.981 | DY63: 1058261.623 | DZ63: 1055095.67 | EA63: 1058804.547 | EB63: 1060803.136 | EC63: 1058276.031 | ED63: 1056217.064 | EE63: 1055941.75 | EF63: 1060914.534 | EG63: 1059828.862 | EH63: 1059288.605 | EI63: 1055333.874 | EJ63: 1056707.569 | EK63: 1057436.637 | EL63: 1058335.234 | EM63: 1063819.913 | EN63: 1062176.758 | EO63: 1062937.821 | EP63: 1060756.138 | EQ63: 1063137.933 | ER63: 1059811.366 | ES63: 1058332.241 | ET63: 1062165.847 | EU63: 1060162.637 | EV63: 1058280.336 | EW63: 1056974.137 | EX63: 1065089.967 | EY63: 1059668.964 | EZ63: 1056863.91 | FA63: 1056735.917 | FB63: 1054466.826 | FC63: 1057583.228 | FD63: 1058151.957 | FE63: 1061895.39 | FF63: 1063541.678 | FG63: 1055777.03 | FH63: 1063143.357 | FI63: 1057359.917 | FJ63: 1060223.696 | FK63: 1058361.846 | FL63: 1060084.491 | FM63: 1059836.842 | FN63: 1059369.755 | FO63: 1063182.408 | FP63: 1063739.517
AL64: 513748716 | AM64: 1736725762 | AN64: 68552892 | AO64: 1807545675 | AP64: 1290782957 | AQ64: 1158769613 | AR64: 1537709875 | AS64: 1774586019 | AT64: 1488542861 | AU64: 727656407 | AV64: 647349829 | AW64: 1764457511 | AZ64: 1.066190754 | BA64: 1.167236646 | BB64: 0.9963161633 | BC64: 1.101227288 | BD64: 1.137258266 | BE64: 1.157726022 | BF64: 1.230011409 | BG64: 1.351191262 | BH64: 1.426792435 | BI64: 1.385906403 | BJ64: 1.33357854 | BK64: 1.462800412 | BM64: =SUMPRODUCT(TRANSPOSE($J$8:$J$19),AZ64:BK64) -> 6385650.103 | BO64: 0.96 | BP64: 8451607.324 | BQ64: 1060810.17 | BR64: 8484100.664 | BS64: 7390797.154 | BU64: 1063127.783 | BV64: 1056951.36 | BW64: 1058397.819 | BX64: 1067366.451 | BY64: 1060699.129 | BZ64: 1058813.336 | CA64: 1064576.925 | CB64: 1061511.678 | CC64: 1053788.124 | CD64: 1067457.735 | CE64: 1055676.061 | CF64: 1062462.887 | CG64: 1060859.348 | CH64: 1056538.591 | CI64: 1060834.282 | CJ64: 1060355.126 | CK64: 1064570.113 | CL64: 1064180.903 | CM64: 1057263.694 | CN64: 1066424.295 | CO64: 1064885.61 | CP64: 1064463.549 | CQ64: 1061799.027 | CR64: 1064121.581 | CS64: 1062418.657 | CT64: 1062231.302 | CU64: 1056503.234 | CV64: 1057840.016 | CW64: 1060199.928 | CX64: 1065984.515 | CY64: 1059975.385 | CZ64: 1057468.952 | DA64: 1062953.257 | DB64: 1060235.552 | DC64: 1062103.817 | DD64: 1062196.654 | DE64: 1053563.981 | DF64: 1056106.039 | DG64: 1059742.672 | DH64: 1060557.041 | DI64: 1058498.052 | DJ64: 1057665.382 | DK64: 1060518.402 | DL64: 1060933.503 | DM64: 1060691.255 | DN64: 1064608.99 | DO64: 1057343.497 | DP64: 1060452.714 | DQ64: 1061968.244 | DR64: 1055794.594 | DS64: 1059940.777 | DT64: 1064483.886 | DU64: 1058030.501 | DV64: 1059120.758 | DW64: 1063028.591 | DX64: 1064944.903 | DY64: 1059585.088 | DZ64: 1056818.422 | EA64: 1060419.321 | EB64: 1062405.869 | EC64: 1059104.243 | ED64: 1057498.509 | EE64: 1057108.331 | EF64: 1062129.579 | EG64: 1061311.789 | EH64: 1060964.496 | EI64: 1056632.729 | EJ64: 1057809.89 | EK64: 1058761.03 | EL64: 1059829.75 | EM64: 1064686.581 | EN64: 1063049.625 | EO64: 1064746.911 | EP64: 1062114.025 | EQ64: 1064886.205 | ER64: 1061067.716 | ES64: 1059090.815 | ET64: 1063840.352 | EU64: 1061549.752 | EV64: 1059779.741 | EW64: 1058347.038 | EX64: 1066527.327 | EY64: 1060627.928 | EZ64: 1057992.956 | FA64: 1057627.018 | FB64: 1056482.967 | FC64: 1059382.335 | FD64: 1059305.829 | FE64: 1063927.344 | FF64: 1065447.838 | FG64: 1057157.855 | FH64: 1064866.01 | FI64: 1058612.94 | FJ64: 1061846.531 | FK64: 1060058.278 | FL64: 1060832.14 | FM64: 1062004.879 | FN64: 1060642.851 | FO64: 1064223.096 | FP64: 1064682.612
AL65: 23114480 | AM65: 22645916 | AN65: 1991833352 | AO65: 1924183962 | AP65: 293583289 | AQ65: 1608919361 | AR65: 1168601217 | AS65: 66527966 | AT65: 797098358 | AU65: 459891965 | AV65: 189048162 | AW65: 779589814 | AZ65: 0.9229311391 | BA65: 0.7571228629 | BB65: 0.8727809363 | BC65: 0.9875123447 | BD65: 0.9021114147 | BE65: 0.9673343901 | BF65: 0.9856903398 | BG65: 0.8393211141 | BH65: 0.8217060528 | BI65: 0.771348742 | BJ65: 0.688196615 | BK65: 0.6725750862 | BM65: =SUMPRODUCT(TRANSPOSE($J$8:$J$19),AZ65:BK65) -> 5211476.143 | BO65: 0.961 | BP65: 8463943.806 | BQ65: 1062373.19 | BR65: 8498828.08 | BS65: 7401570.616 | BU65: 1064631.983 | BV65: 1057990.956 | BW65: 1060174.525 | BX65: 1069384.785 | BY65: 1061953.874 | BZ65: 1060300.276 | CA65: 1065970.055 | CB65: 1063532.573 | CC65: 1056386.975 | CD65: 1068943.868 | CE65: 1057162.726 | CF65: 1063662.417 | CG65: 1061562.039 | CH65: 1057848.432 | CI65: 1062409.77 | CJ65: 1061569.686 | CK65: 1066999.247 | CL65: 1065958.63 | CM65: 1059095.795 | CN65: 1067546.139 | CO65: 1066386.116 | CP65: 1066070.24 | CQ65: 1063236.441 | CR65: 1066240.82 | CS65: 1063849.535 | CT65: 1062901.754 | CU65: 1057695.28 | CV65: 1060381.411 | CW65: 1061842.706 | CX65: 1067963.886 | CY65: 1061849.292 | CZ65: 1058377.169 | DA65: 1064307.881 | DB65: 1061616.115 | DC65: 1062561.825 | DD65: 1063342.067 | DE65: 1055025.064 | DF65: 1057862.604 | DG65: 1061359.268 | DH65: 1062214.496 | DI65: 1060141.336 | DJ65: 1059379.384 | DK65: 1062127.513 | DL65: 1062498.117 | DM65: 1062113.467 | DN65: 1066622.401 | DO65: 1059640.005 | DP65: 1061652.089 | DQ65: 1063921.824 | DR65: 1057409.102 | DS65: 1061032.586 | DT65: 1066090.9 | DU65: 1059662.725 | DV65: 1060633.7 | DW65: 1063978.335 | DX65: 1066627.274 | DY65: 1060872.653 | DZ65: 1058415.885 | EA65: 1061980.912 | EB65: 1063814.139 | EC65: 1059996.456 | ED65: 1059098.133 | EE65: 1059029.143 | EF65: 1063772.73 | EG65: 1063535.801 | EH65: 1064156.031 | EI65: 1058004.462 | EJ65: 1059558.63 | EK65: 1060501.554 | EL65: 1061437.344 | EM65: 1066055.789 | EN65: 1064253.501 | EO65: 1067433.809 | EP65: 1063149.69 | EQ65: 1066315.916 | ER65: 1063161.426 | ES65: 1061154.271 | ET65: 1065281.044 | EU65: 1062359.272 | EV65: 1061229.203 | EW65: 1059267.118 | EX65: 1068098.31 | EY65: 1062241.294 | EZ65: 1059065.403 | FA65: 1059348.992 | FB65: 1057743.24 | FC65: 1060629.855 | FD65: 1061179.786 | FE65: 1065864.123 | FF65: 1066759.494 | FG65: 1059229.021 | FH65: 1065969.058 | FI65: 1059483.863 | FJ65: 1064060.091 | FK65: 1060942.084 | FL65: 1061756.831 | FM65: 1063710.721 | FN65: 1063909.687 | FO65: 1065721.309 | FP65: 1066071.449
AL66: 1215051287 | AM66: 71834913 | AN66: 649890908 | AO66: 1468813305 | AP66: 314356766 | AQ66: 400381076 | AR66: 1596390058 | AS66: 883394521 | AT66: 270335719 | AU66: 906583476 | AV66: 885811799 | AW66: 1223965213 | AZ66: 1.154259058 | BA66: 0.9885179901 | BB66: 0.9525748945 | BC66: 1.004101595 | BD66: 0.9208652479 | BE66: 0.8568426393 | BF66: 0.9171951403 | BG66: 0.9065517663 | BH66: 0.8240716102 | BI66: 0.8165455646 | BJ66: 0.8073362793 | BK66: 0.8276389917 | BM66: =SUMPRODUCT(TRANSPOSE($J$8:$J$19),AZ66:BK66) -> 6053910.674 | BO66: 0.962 | BP66: 8476559.174 | BQ66: 1064067.729 | BR66: 8508659.968 | BS66: 7412491.444 | BU66: 1066749.393 | BV66: 1060205.767 | BW66: 1062081.493 | BX66: 1069999.715 | BY66: 1064365.899 | BZ66: 1061216.381 | CA66: 1067582.946 | CB66: 1065652.444 | CC66: 1057928.85 | CD66: 1069823.276 | CE66: 1058441.41 | CF66: 1064819.756 | CG66: 1062850.148 | CH66: 1060056.027 | CI66: 1063497.853 | CJ66: 1063674.881 | CK66: 1068418.996 | CL66: 1068531.595 | CM66: 1061267.034 | CN66: 1068825.132 | CO66: 1067755.211 | CP66: 1068487.031 | CQ66: 1064495.009 | CR66: 1068078.643 | CS66: 1066710.19 | CT66: 1064759.522 | CU66: 1059822.782 | CV66: 1061655.898 | CW66: 1063627.8 | CX66: 1070110.421 | CY66: 1062617.497 | CZ66: 1059216.03 | DA66: 1065388.784 | DB66: 1062925.061 | DC66: 1064667.62 | DD66: 1064285.254 | DE66: 1056549.738 | DF66: 1059655.383 | DG66: 1063244.565 | DH66: 1064080.167 | DI66: 1061968.717 | DJ66: 1060774.458 | DK66: 1063587.877 | DL66: 1063225.727 | DM66: 1063252.298 | DN66: 1067807.495 | DO66: 1061022.163 | DP66: 1063488.373 | DQ66: 1064691.794 | DR66: 1059832.855 | DS66: 1062068.575 | DT66: 1068399.187 | DU66: 1061357.387 | DV66: 1062125.479 | DW66: 1066283.773 | DX66: 1068505.471 | DY66: 1063856.929 | DZ66: 1059961.905 | EA66: 1064151.976 | EB66: 1066083.43 | EC66: 1061900.951 | ED66: 1061059.279 | EE66: 1060719.985 | EF66: 1066808.146 | EG66: 1065187.608 | EH66: 1065168.194 | EI66: 1059190.652 | EJ66: 1060656.089 | EK66: 1062944.056 | EL66: 1063073.178 | EM66: 1067941.777 | EN66: 1064997.015 | EO66: 1068255.78 | EP66: 1065445.699 | EQ66: 1067824.81 | ER66: 1064271.713 | ES66: 1062624.852 | ET66: 1067516.292 | EU66: 1064608.01 | EV66: 1062361.219 | EW66: 1060918.886 | EX66: 1069827.284 | EY66: 1064058.972 | EZ66: 1060947.384 | FA66: 1061542.412 | FB66: 1058901.373 | FC66: 1062235.457 | FD66: 1062690.508 | FE66: 1067935.906 | FF66: 1069192.225 | FG66: 1060935.282 | FH66: 1067554.512 | FI66: 1061844.024 | FJ66: 1066399.939 | FK66: 1062417.804 | FL66: 1063382.164 | FM66: 1065078.536 | FN66: 1065670.166 | FO66: 1067236.716 | FP66: 1068880.594
AL67: 1814791560 | AM67: 1504479165 | AN67: 442904692 | AO67: 1914439950 | AP67: 196001884 | AQ67: 1589580243 | AR67: 1188784417 | AS67: 1901628359 | AT67: 1264852677 | AU67: 269211430 | AV67: 474454112 | AW67: 454700459 | AZ67: 1.246813172 | BA67: 1.322641285 | BB67: 1.240013637 | BC67: 1.399872419 | BD67: 1.251511212 | BE67: 1.338586256 | BF67: 1.366928759 | BG67: 1.537892788 | BH67: 1.583211188 | BI67: 1.438868207 | BJ67: 1.353627655 | BK67: 1.269957256 | BM67: =SUMPRODUCT(TRANSPOSE($J$8:$J$19),AZ67:BK67) -> 7670246.845 | BO67: 0.963 | BP67: 8489467.777 | BQ67: 1065764.79 | BR67: 8523372.593 | BS67: 7423702.987 | BU67: 1069514.09 | BV67: 1062810.026 | BW67: 1063946.747 | BX67: 1071270.36 | BY67: 1065968.521 | BZ67: 1062867.723 | CA67: 1069602.926 | CB67: 1067972.853 | CC67: 1059824.002 | CD67: 1071034.775 | CE67: 1060459.085 | CF67: 1066878.55 | CG67: 1063815.751 | CH67: 1062389.941 | CI67: 1066581.855 | CJ67: 1066178.033 | CK67: 1069483.485 | CL67: 1070013.892 | CM67: 1062266.274 | CN67: 1070118.275 | CO67: 1069915.356 | CP67: 1069691.051 | CQ67: 1068060.182 | CR67: 1069553.955 | CS67: 1068693.482 | CT67: 1065900.533 | CU67: 1061191.849 | CV67: 1062981.805 | CW67: 1064837.501 | CX67: 1071552.649 | CY67: 1065151.177 | CZ67: 1060528.465 | DA67: 1066979.801 | DB67: 1065032.571 | DC67: 1066188.453 | DD67: 1065646.894 | DE67: 1058755.327 | DF67: 1062315.373 | DG67: 1064353.582 | DH67: 1066438.094 | DI67: 1063896.222 | DJ67: 1063357.289 | DK67: 1066671.611 | DL67: 1063986.812 | DM67: 1065063.758 | DN67: 1069237.5 | DO67: 1062661.344 | DP67: 1065516.603 | DQ67: 1066294.059 | DR67: 1061955.406 | DS67: 1063636.727 | DT67: 1070391.462 | DU67: 1062366.259 | DV67: 1063124.359 | DW67: 1067325.709 | DX67: 1070852.847 | DY67: 1065434.648 | DZ67: 1062223.516 | EA67: 1066145.94 | EB67: 1067630.287 | EC67: 1063597.065 | ED67: 1062047.804 | EE67: 1062140.82 | EF67: 1068387.879 | EG67: 1066721.719 | EH67: 1067286.911 | EI67: 1060253.872 | EJ67: 1062135.409 | EK67: 1065008.044 | EL67: 1064447.307 | EM67: 1069925.004 | EN67: 1067024.226 | EO67: 1069062.627 | EP67: 1067368.236 | EQ67: 1070068.044 | ER67: 1065408.755 | ES67: 1064854.922 | ET67: 1069510.131 | EU67: 1065966.778 | EV67: 1063866.298 | EW67: 1062977.542 | EX67: 1072433.55 | EY67: 1065455.965 | EZ67: 1062602.02 | FA67: 1063077.63 | FB67: 1059782.079 | FC67: 1064393.918 | FD67: 1064679.022 | FE67: 1069251.028 | FF67: 1070946.434 | FG67: 1061632.302 | FH67: 1068302.565 | FI67: 1062869.124 | FJ67: 1067956.379 | FK67: 1063704.869 | FL67: 1064693.988 | FM67: 1066648.093 | FN67: 1066653.706 | FO67: 1068661.53 | FP67: 1070137.788
AL68: 1650464336 | AM68: 1259283116 | AN68: 1252681647 | AO68: 1414528746 | AP68: 1541477529 | AQ68: 1037202543 | AR68: 902061520 | AS68: 1461509921 | AT68: 596003610 | AU68: 681389533 | AV68: 1608828744 | AW68: 1562984049 | AZ68: =$F$4*_xlfn.LOGNORM.INV(AL68/(2^31-1),AZ$2,$AZ$1) -> 1.215368034 | BA68: =AZ68*_xlfn.LOGNORM.INV(AM68/(2^31-1),BA$2,$AZ$1) -> 1.253768422 | BB68: =BA68*_xlfn.LOGNORM.INV(AN68/(2^31-1),BB$2,$AZ$1) -> 1.290618483 | BC68: =BB68*_xlfn.LOGNORM.INV(AO68/(2^31-1),BC$2,$AZ$1) -> 1.351823106 | BD68: =BC68*_xlfn.LOGNORM.INV(AP68/(2^31-1),BD$2,$AZ$1) -> 1.437222904 | BE68: =BD68*_xlfn.LOGNORM.INV(AQ68/(2^31-1),BE$2,$AZ$1) -> 1.444344435 | BF68: =BE68*_xlfn.LOGNORM.INV(AR68/(2^31-1),BF$2,$AZ$1) -> 1.430569715 | BG68: =BF68*_xlfn.LOGNORM.INV(AS68/(2^31-1),BG$2,$AZ$1) -> 1.505803971 | BH68: =BG68*_xlfn.LOGNORM.INV(AT68/(2^31-1),BH$2,$AZ$1) -> 1.43963264 | BI68: =BH68*_xlfn.LOGNORM.INV(AU68/(2^31-1),BI$2,$AZ$1) -> 1.390829283 | BJ68: =BI68*_xlfn.LOGNORM.INV(AV68/(2^31-1),BJ$2,$AZ$1) -> 1.491240565 | BK68: =BJ68*_xlfn.LOGNORM.INV(AW68/(2^31-1),BK$2,$AZ$1) -> 1.589580322 | BM68: =SUMPRODUCT(TRANSPOSE($J$8:$J$19),AZ68:BK68) -> 7524586.067 | BO68: 0.964 | BP68: =_xlfn.LOGNORM.INV(BO68,$G$24,$G$25) -> 8502685.117 | BQ68: =AVERAGE(BU68:XFD68) -> 1067446.945 | BR68: =LARGE($BM:$BM,ROUND((1-BO68)*$AL$2,0)) -> 8537316.345 | BS68: 7435238.172 | BU68: 1071549.106 | BV68: 1065589.964 | BW68: 1065749.615 | BX68: 1073669.058 | BY68: 1068119.663 | BZ68: 1064236.202 | CA68: 1071431.243 | CB68: 1069412.752 | CC68: 1061149.004 | CD68: 1072963.046 | CE68: 1061871.202 | CF68: 1069472.167 | CG68: 1065729.483 | CH68: 1063939.796 | CI68: 1068486.765 | CJ68: 1068148.784 | CK68: 1070416.906 | CL68: 1070544.601 | CM68: 1063187.707 | CN68: 1071320.503 | CO68: 1070901.87 | CP68: 1071343.859 | CQ68: 1069502.348 | CR68: 1071188.452 | CS68: 1070681.45 | CT68: 1067104.798 | CU68: 1062785.117 | CV68: 1065424.963 | CW68: 1066116.523 | CX68: 1072670.233 | CY68: 1067000.292 | CZ68: 1061755.775 | DA68: 1068186.228 | DB68: 1066759.989 | DC68: 1068162.046 | DD68: 1066383.586 | DE68: 1059818.622 | DF68: 1063779.529 | DG68: 1065775.744 | DH68: 1068537.816 | DI68: 1064931.123 | DJ68: 1064750.653 | DK68: 1068513.99 | DL68: 1065823.146 | DM68: 1066770.867 | DN68: 1070595.213 | DO68: 1064113.284 | DP68: 1067886.717 | DQ68: 1068097.485 | DR68: 1063497.99 | DS68: 1066076.375 | DT68: 1071919.693 | DU68: 1064344.804 | DV68: 1065373.3 | DW68: 1068569.65 | DX68: 1072086.023 | DY68: 1067384.87 | DZ68: 1063707.864 | EA68: 1068034.066 | EB68: 1069533.162 | EC68: 1066076.665 | ED68: 1064050.42 | EE68: 1063604.202 | EF68: 1069772.196 | EG68: 1068478.17 | EH68: 1069470.995 | EI68: 1061386.113 | EJ68: 1064139.354 | EK68: 1066132.488 | EL68: 1065615.981 | EM68: 1071691.134 | EN68: 1068082.733 | EO68: 1071402.838 | EP68: 1069658.965 | EQ68: 1072007.533 | ER68: 1067703.877 | ES68: 1066024.578 | ET68: 1071155.967 | EU68: 1068707.237 | EV68: 1065586.12 | EW68: 1064775.193 | EX68: 1074086.205 | EY68: 1067123.337 | EZ68: 1064314.601 | FA68: 1064525.394 | FB68: 1062228.027 | FC68: 1066161.107 | FD68: 1066583.9 | FE68: 1070373.304 | FF68: 1072184.628 | FG68: 1062886.147 | FH68: 1069466.316 | FI68: 1065161.218 | FJ68: 1069767.28 | FK68: 1066208.834 | FL68: 1066022.068 | FM68: 1068577.53 | FN68: 1068037.954 | FO68: 1071229.632 | FP68: 1071357.18
AL69: 68143003 | AM69: 183180454 | AN69: 1498733758 | AO69: 1474541801 | AP69: 500917456 | AQ69: 370206995 | AR69: 1033205348 | AS69: 1560108994 | AT69: 1999323098 | AU69: 494609991 | AV69: 321175163 | AW69: 1407542875 | AZ69: 0.96076693 | BA69: 0.8580486895 | BB69: 0.9083045468 | BC69: 0.9580895886 | BD69: 0.9048818712 | BE69: 0.8378788556 | BF69: 0.8416007534 | BG69: 0.896612351 | BH69: 1.034709057 | BI69: 0.9760966804 | BJ69: 0.8961004607 | BK69: 0.9374846045 | BM69: =SUMPRODUCT(TRANSPOSE($J$8:$J$19),AZ69:BK69) -> 5431208.488 | BO69: 0.965 | BP69: 8516227.979 | BQ69: 1069170.53 | BR69: 8550206.48 | BS69: =BP69-BQ69 -> 7447057.449 | BU69: 1073703.04 | BV69: 1067309.405 | BW69: 1066857.222 | BX69: 1074524.738 | BY69: 1070469.222 | BZ69: 1065949.093 | CA69: 1072600.378 | CB69: 1070834.366 | CC69: 1063456.23 | CD69: 1074392.814 | CE69: 1063555.555 | CF69: 1071032.474 | CG69: 1066872.092 | CH69: 1065664.318 | CI69: 1071475.308 | CJ69: 1069787.498 | CK69: 1073501.627 | CL69: 1072133.228 | CM69: 1066007.932 | CN69: 1073140.371 | CO69: 1072788.698 | CP69: 1072439.721 | CQ69: 1070828.053 | CR69: 1072504.776 | CS69: 1072273.623 | CT69: 1069724.689 | CU69: 1064648.398 | CV69: 1067483.126 | CW69: 1067391.923 | CX69: 1074119.412 | CY69: 1068118.959 | CZ69: 1063044.263 | DA69: 1069439.589 | DB69: 1068391.03 | DC69: 1069726.381 | DD69: 1068429.772 | DE69: 1061457.819 | DF69: 1066104.142 | DG69: 1067740.492 | DH69: 1070046.224 | DI69: 1066181.141 | DJ69: 1066408.048 | DK69: 1070692.558 | DL69: 1067188.579 | DM69: 1068161.365 | DN69: 1071576.72 | DO69: 1066488.679 | DP69: 1069551.365 | DQ69: 1069469.335 | DR69: 1065348.154 | DS69: 1069448.044 | DT69: 1072804.629 | DU69: 1066467.196 | DV69: 1066400.011 | DW69: 1071061.956 | DX69: 1073870.752 | DY69: 1069264.175 | DZ69: 1065490.92 | EA69: 1069338.899 | EB69: 1071981.642 | EC69: 1067969.597 | ED69: 1065240.064 | EE69: 1065697.593 | EF69: 1071718.876 | EG69: 1070258.914 | EH69: 1071940.008 | EI69: 1063286.634 | EJ69: 1065789.345 | EK69: 1067429.15 | EL69: 1066914.139 | EM69: 1073256.762 | EN69: 1069607.761 | EO69: 1073230.206 | EP69: 1070844.091 | EQ69: 1073154.795 | ER69: 1070013.258 | ES69: 1067404.51 | ET69: 1072685.593 | EU69: 1069887.603 | EV69: 1067099.46 | EW69: 1066017.754 | EX69: 1075396.834 | EY69: 1069221.329 | EZ69: 1066894.817 | FA69: 1065811.433 | FB69: 1063504.127 | FC69: 1068806.042 | FD69: 1067920.043 | FE69: 1073631.619 | FF69: 1073358.447 | FG69: 1065538.074 | FH69: 1071289.317 | FI69: 1066407.822 | FJ69: 1072067.137 | FK69: 1068866.124 | FL69: 1067673.747 | FM69: 1069918.141 | FN69: 1069034.069 | FO69: 1072146.01 | FP69: 1072959.563
AL70: =MOD(48271*AL69,2^31-1) -> 1533434256 | AM70: =MOD(48271*AM69,2^31-1) -> 1113520335 | AN70: =MOD(48271*AN69,2^31-1) -> 948132282 | AO70: =MOD(48271*AO69,2^31-1) -> 1409279903 | AP70: =MOD(48271*AP69,2^31-1) -> 1268137003 | AQ70: =MOD(48271*AQ69,2^31-1) -> 1050428958 | AR70: =MOD(48271*AR69,2^31-1) -> 695135380 | AS70: =MOD(48271*AS69,2^31-1) -> 64716378 | AT70: =MOD(48271*AT69,2^31-1) -> 1410167378 | AU70: =MOD(48271*AU69,2^31-1) -> 1743171862 | AV70: =MOD(48271*AV69,2^31-1) -> 761845480 | AW70: =MOD(48271*AW69,2^31-1) -> 1414495339 | AZ70: 1.196888485 | BA70: 1.215597269 | BB70: 1.211370002 | BC70: 1.268050672 | BD70: 1.30630841 | BE70: 1.314623128 | BF70: 1.272223682 | BG70: 1.082106032 | BH70: 1.132178473 | BI70: 1.237444128 | BJ70: 1.206796692 | BK70: 1.263539108 | BM70: =SUMPRODUCT(TRANSPOSE($J$8:$J$19),AZ70:BK70) -> 7206195.906 | BO70: =BO69+0.001 -> 0.966 | BP70: 8530114.574 | BQ70: 1070897.215 | BR70: 8566765.8 | BS70: 7459217.359 | BU70: 1075083.9 | BV70: 1069662.287 | BW70: 1068073.016 | BX70: 1076109.51 | BY70: 1071684.76 | BZ70: 1067466.074 | CA70: 1073866.327 | CB70: 1072332.471 | CC70: 1065599.505 | CD70: 1075471.761 | CE70: 1064470.017 | CF70: 1072579.47 | CG70: 1068340.412 | CH70: 1066603.638 | CI70: 1073577.441 | CJ70: 1072305.882 | CK70: 1075055.596 | CL70: 1073868.269 | CM70: 1067349.769 | CN70: 1074816.581 | CO70: 1074569.173 | CP70: 1073756.393 | CQ70: 1072072.891 | CR70: 1074666.951 | CS70: 1073800.424 | CT70: 1071123.442 | CU70: 1066613.615 | CV70: 1068784.18 | CW70: 1069630.362 | CX70: 1075381.083 | CY70: 1069387.73 | CZ70: 1064648.351 | DA70: 1071719.574 | DB70: 1070412.186 | DC70: 1071124.519 | DD70: 1071137.021 | DE70: 1062888.271 | DF70: 1067439.803 | DG70: 1068945.843 | DH70: 1071103.139 | DI70: 1068042.517 | DJ70: 1068279.994 | DK70: 1073214.3 | DL70: 1068872.291 | DM70: 1070475.134 | DN70: 1073405.777 | DO70: 1067366.112 | DP70: 1071321.995 | DQ70: 1070708.134 | DR70: 1066253.083 | DS70: 1071004.023 | DT70: 1074360.989 | DU70: 1067942.647 | DV70: 1069479.863 | DW70: 1072323.635 | DX70: 1075650.921 | DY70: 1071979.536 | DZ70: 1066784.821 | EA70: 1071214.579 | EB70: 1075157.483 | EC70: 1069280.912 | ED70: 1066371.377 | EE70: 1068524.38 | EF70: 1074489.038 | EG70: 1072011.906 | EH70: 1073625.054 | EI70: 1065331.469 | EJ70: 1067416.179 | EK70: 1068845.651 | EL70: 1068300.278 | EM70: 1074608.944 | EN70: 1071285.159 | EO70: 1075142.533 | EP70: 1072523.91 | EQ70: 1075358.884 | ER70: 1071847.305 | ES70: 1069032.111 | ET70: 1074006.42 | EU70: 1071305.079 | EV70: 1068788.102 | EW70: 1068285.742 | EX70: 1077076.405 | EY70: 1070456.618 | EZ70: 1067771.556 | FA70: 1069116.803 | FB70: 1064950.752 | FC70: 1071557.859 | FD70: 1069824.314 | FE70: 1074586.711 | FF70: 1075535.814 | FG70: 1067614.349 | FH70: 1073811.221 | FI70: 1068463.112 | FJ70: 1073149.325 | FK70: 1070949.821 | FL70: 1068779.357 | FM70: 1072129.362 | FN70: 1070204.829 | FO70: 1075309.706 | FP70: 1074693.645
AL71: 938626580 | AM71: 1371890022 | AN71: 121899558 | AO71: 1510711694 | AP71: 219914078 | AQ71: 1019842301 | AR71: 447943605 | AS71: 1483059700 | AT71: 1400344479 | AU71: 1944693848 | AV71: 1533193852 | AW71: 2009436151 | AZ71: 1.120804064 | BA71: 1.170688883 | BB71: 1.024120044 | BC71: 1.084978784 | BD71: 0.9757306063 | BE71: 0.9787611609 | BF71: 0.9172504439 | BG71: 0.9679696332 | BH71: 1.011620877 | BI71: 1.14964701 | BJ71: 1.220742406 | BK71: 1.413732554 | BM71: =SUMPRODUCT(TRANSPOSE($J$8:$J$19),AZ71:BK71) -> 6492590.651 | BO71: =BO70+0.001 -> 0.967 | BP71: 8544364.707 | BQ71: 1072798.377 | BR71: 8578609.474 | BS71: 7471566.33 | BU71: 1077973.638 | BV71: 1071734.972 | BW71: 1069662.623 | BX71: 1078149.866 | BY71: 1074326.845 | BZ71: 1069234.463 | CA71: 1076261.233 | CB71: 1073480.129 | CC71: 1067763.693 | CD71: 1077271.963 | CE71: 1066330.582 | CF71: 1074053.814 | CG71: 1070670.799 | CH71: 1068853.368 | CI71: 1075679.069 | CJ71: 1074388.614 | CK71: 1078046.143 | CL71: 1076564.089 | CM71: 1069284.704 | CN71: 1077056.014 | CO71: 1076284.294 | CP71: 1075047.502 | CQ71: 1074272.051 | CR71: 1075417.261 | CS71: 1075197.187 | CT71: 1073098.672 | CU71: 1068253.64 | CV71: 1070024.653 | CW71: 1071269.573 | CX71: 1076521.255 | CY71: 1071577.917 | CZ71: 1067915.4 | DA71: 1073470.094 | DB71: 1072255.332 | DC71: 1072967.115 | DD71: 1074560.17 | DE71: 1065192.358 | DF71: 1069774.544 | DG71: 1070949.089 | DH71: 1072653.838 | DI71: 1070073.203 | DJ71: 1069792.191 | DK71: 1074902.634 | DL71: 1070271.313 | DM71: 1072457.582 | DN71: 1075170.354 | DO71: 1069636.448 | DP71: 1072748.948 | DQ71: 1073093.572 | DR71: 1067938.691 | DS71: 1072439.063 | DT71: 1077466.307 | DU71: 1069448.938 | DV71: 1071197.882 | DW71: 1073281.466 | DX71: 1076806.387 | DY71: 1074979.488 | DZ71: 1068652.738 | EA71: 1073782.592 | EB71: 1076577.731 | EC71: 1070296.632 | ED71: 1069831.737 | EE71: 1071330.931 | EF71: 1075883.901 | EG71: 1073097.497 | EH71: 1075239.737 | EI71: 1067452.963 | EJ71: 1069154.95 | EK71: 1069909.687 | EL71: 1070193.729 | EM71: 1075888.654 | EN71: 1073015.696 | EO71: 1077944.665 | EP71: 1074019.698 | EQ71: 1078023.5 | ER71: 1073449.736 | ES71: 1070470.897 | ET71: 1074601.022 | EU71: 1072455.613 | EV71: 1071546.381 | EW71: 1069880.308 | EX71: 1080193.003 | EY71: 1071740.986 | EZ71: 1069672.084 | FA71: 1071656.176 | FB71: 1067062.414 | FC71: 1073108.334 | FD71: 1072776.355 | FE71: 1076222.254 | FF71: 1077221.949 | FG71: 1069767.598 | FH71: 1074773.744 | FI71: 1070824.308 | FJ71: 1075494.511 | FK71: 1071679.206 | FL71: 1070052.497 | FM71: 1073764.072 | FN71: 1071860.141 | FO71: 1077560.567 | FP71: 1076513.437
AL72: 833658774 | AM72: 550029423 | AN72: 108371438 | AO72: 1461979895 | AP72: 460792017 | AQ72: 2040071390 | AR72: 1820398959 | AS72: 259922308 | AT72: 1833072837 | AU72: 1511559144 | AV72: 71503331 | AW72: 2098560872 | AZ72: 1.108096581 | BA72: 1.055971278 | BB72: 0.9189288249 | BC72: 0.9678511409 | BD72: 0.9089312782 | BE72: 1.064600429 | BF72: 1.178802355 | BG72: 1.069282696 | BH72: 1.186595859 | BI72: 1.256518586 | BJ72: 1.073134093 | BK72: 1.298084489 | BM72: =SUMPRODUCT(TRANSPOSE($J$8:$J$19),AZ72:BK72) -> 5983957.125 | BO72: =BO71+0.001 -> 0.968 | BP72: 8558999.974 | BQ72: 1074669.439 | BR72: 8591204.873 | BS72: 7484330.534 | BU72: 1079790.209 | BV72: 1073722.907 | BW72: 1071468.514 | BX72: 1079799.104 | BY72: 1075885.137 | BZ72: 1070857.157 | CA72: 1077956.307 | CB72: 1076074.361 | CC72: 1069601.983 | CD72: 1078454.251 | CE72: 1069086.295 | CF72: 1076547.292 | CG72: 1072475.46 | CH72: 1071245.856 | CI72: 1078600.232 | CJ72: 1076696.05 | CK72: 1079236.732 | CL72: 1079652.569 | CM72: 1070075.1 | CN72: 1078486.167 | CO72: 1078742.012 | CP72: 1076902.066 | CQ72: 1076515.472 | CR72: 1077277.283 | CS72: 1077450.159 | CT72: 1074413.045 | CU72: 1070556.205 | CV72: 1071974.818 | CW72: 1074192.399 | CX72: 1077565.909 | CY72: 1073158.094 | CZ72: 1068690.916 | DA72: 1074782.482 | DB72: 1074406.827 | DC72: 1074825.028 | DD72: 1075567.272 | DE72: 1066476.191 | DF72: 1071950.055 | DG72: 1072042.167 | DH72: 1075524.427 | DI72: 1071670.224 | DJ72: 1071277.122 | DK72: 1076984.888 | DL72: 1072306.563 | DM72: 1073629.221 | DN72: 1076555.207 | DO72: 1072630.099 | DP72: 1074655.524 | DQ72: 1074624.26 | DR72: 1068853.357 | DS72: 1073897.055 | DT72: 1079938.706 | DU72: 1071165.813 | DV72: 1072686.806 | DW72: 1075668.015 | DX72: 1078490.366 | DY72: 1076694.728 | DZ72: 1069907.512 | EA72: 1075452.234 | EB72: 1078634.348 | EC72: 1072239.727 | ED72: 1073373.276 | EE72: 1072767.727 | EF72: 1077557.766 | EG72: 1075633.039 | EH72: 1077014.461 | EI72: 1068897.053 | EJ72: 1070775.617 | EK72: 1071436.592 | EL72: 1071593.607 | EM72: 1077590.615 | EN72: 1073875.23 | EO72: 1079277.243 | EP72: 1076488.446 | EQ72: 1080200.116 | ER72: 1074707.167 | ES72: 1072779.087 | ET72: 1076677.95 | EU72: 1075364.57 | EV72: 1073780.649 | EW72: 1071839.735 | EX72: 1081383.639 | EY72: 1073401.183 | EZ72: 1071188.402 | FA72: 1073773.77 | FB72: 1070147.026 | FC72: 1074311.024 | FD72: 1074678.1 | FE72: 1078315.608 | FF72: 1079671.567 | FG72: 1071403.946 | FH72: 1076573.352 | FI72: 1072933.15 | FJ72: 1077330.605 | FK72: 1074240.31 | FL72: 1071321.576 | FM72: 1075375.82 | FN72: 1073920.929 | FO72: 1079205.669 | FP72: 1079452.036
AL73: 1994102268 | AM73: 1129949772 | AN73: 2075003253 | AO73: 623903831 | AP73: 1403320628 | AQ73: 1275949858 | AR73: 1742281943 | AS73: 1110263694 | AT73: 1490207486 | AU73: 1567049552 | AV73: 531069972 | AW73: 680739675 | AZ73: 1.298756248 | BA73: 1.321358819 | BB73: 1.575335998 | BC73: 1.512259913 | BD73: 1.58150904 | BE73: 1.630389222 | BF73: 1.781872005 | BG73: 1.804342874 | BH73: 1.905680464 | BI73: 2.032012979 | BJ73: 1.926617311 | BK73: 1.861519811 | BM73: =SUMPRODUCT(TRANSPOSE($J$8:$J$19),AZ73:BK73) -> 8393130.032 | BO73: 0.969 | BP73: 8574043.982 | BQ73: 1076522.669 | BR73: 8603066.017 | BS73: 7497521.314 | BU73: 1081152.332 | BV73: 1075584.489 | BW73: 1072999.922 | BX73: 1080806.348 | BY73: 1077241.428 | BZ73: 1072376.84 | CA73: 1079956.269 | CB73: 1078067.798 | CC73: 1072193.28 | CD73: 1080012.966 | CE73: 1071454.225 | CF73: 1078223.902 | CG73: 1073494.446 | CH73: 1073087.728 | CI73: 1079996.804 | CJ73: 1077878.089 | CK73: 1081298.153 | CL73: 1082290.037 | CM73: 1072128.649 | CN73: 1080648.417 | CO73: 1081338.104 | CP73: 1078132.843 | CQ73: 1079325.935 | CR73: 1080720.562 | CS73: 1079719.433 | CT73: 1076098.908 | CU73: 1072182.983 | CV73: 1073674.125 | CW73: 1076645.627 | CX73: 1079575.642 | CY73: 1075243.231 | CZ73: 1072585.564 | DA73: 1076548.772 | DB73: 1077274.039 | DC73: 1076135.395 | DD73: 1078048.391 | DE73: 1068309.155 | DF73: 1073552.594 | DG73: 1074405.435 | DH73: 1077708.013 | DI73: 1073429.562 | DJ73: 1073954.011 | DK73: 1078896.495 | DL73: 1073845.357 | DM73: 1075085.76 | DN73: 1078329.852 | DO73: 1073829.693 | DP73: 1076652.73 | DQ73: 1075871.723 | DR73: 1070033.554 | DS73: 1076335.452 | DT73: 1081118.319 | DU73: 1073141.938 | DV73: 1074418.45 | DW73: 1077011.595 | DX73: 1080757.886 | DY73: 1078164.386 | DZ73: 1072127.666 | EA73: 1076855.349 | EB73: 1080533.243 | EC73: 1074250.197 | ED73: 1074414.68 | EE73: 1074308.626 | EF73: 1079476.142 | EG73: 1076724.221 | EH73: 1079058.88 | EI73: 1071114.913 | EJ73: 1072000.127 | EK73: 1073337.822 | EL73: 1072776.08 | EM73: 1078882.751 | EN73: 1075017.5 | EO73: 1080878.202 | EP73: 1078832.553 | EQ73: 1081755.889 | ER73: 1076231.966 | ES73: 1074068.664 | ET73: 1078322.1 | EU73: 1077527.925 | EV73: 1075267.767 | EW73: 1074202.435 | EX73: 1084278.282 | EY73: 1075542.527 | EZ73: 1072323.247 | FA73: 1075333.789 | FB73: 1072733.134 | FC73: 1075715.637 | FD73: 1076818.685 | FE73: 1079952.859 | FF73: 1082501.174 | FG73: 1073032.926 | FH73: 1077499.628 | FI73: 1074447.572 | FJ73: 1079120.062 | FK73: 1076305.772 | FL73: 1074619.582 | FM73: 1077586.855 | FN73: 1075871.646 | FO73: 1080960.487 | FP73: 1080663.684
AL74: 651069147 | AM74: 2015777706 | AN74: 1697245836 | AO74: 151160673 | AP74: 1613356867 | AQ74: 1544599558 | AR74: 1937086739 | AS74: 936878542 | AT74: 1693316794 | AU74: 84942664 | AV74: 766324173 | AW74: 1337569178 | AZ74: 1.085079499 | BA74: 1.262448962 | BB74: 1.371935821 | BC74: 1.211386018 | BD74: 1.299913171 | BE74: 1.382386599 | BF74: 1.568168361 | BG74: 1.558944158 | BH74: 1.69106201 | BI74: 1.454470145 | BJ74: 1.419168471 | BK74: 1.473024069 | BM74: =SUMPRODUCT(TRANSPOSE($J$8:$J$19),AZ74:BK74) -> 7257427.125 | BO74: 0.97 | BP74: 8589522.612 | BQ74: 1078497.724 | BR74: 8618596.763 | BS74: 7511024.888 | BU74: 1083337.752 | BV74: 1077194.044 | BW74: 1074877.756 | BX74: 1082285.376 | BY74: 1078215.185 | BZ74: 1074442.181 | CA74: 1082233.537 | CB74: 1079696.723 | CC74: 1074325.922 | CD74: 1081415.804 | CE74: 1073164.942 | CF74: 1079487.84 | CG74: 1075983.978 | CH74: 1075649.767 | CI74: 1082315.351 | CJ74: 1079133.342 | CK74: 1083029.954 | CL74: 1083957.668 | CM74: 1074548.763 | CN74: 1082366.949 | CO74: 1082249.127 | CP74: 1080770.628 | CQ74: 1080643.673 | CR74: 1083736.426 | CS74: 1082087.784 | CT74: 1077660.724 | CU74: 1074305.612 | CV74: 1075369.258 | CW74: 1078361.127 | CX74: 1081716.901 | CY74: 1076991.814 | CZ74: 1075718.464 | DA74: 1077974.557 | DB74: 1079840.278 | DC74: 1079035.759 | DD74: 1079374.585 | DE74: 1070163.049 | DF74: 1075483.446 | DG74: 1077517.219 | DH74: 1080328.233 | DI74: 1075587.412 | DJ74: 1076114.459 | DK74: 1080505.447 | DL74: 1075990.408 | DM74: 1076668.063 | DN74: 1079510.138 | DO74: 1077546.686 | DP74: 1078069.424 | DQ74: 1078185.902 | DR74: 1072733.71 | DS74: 1079020.038 | DT74: 1082714.245 | DU74: 1074716.073 | DV74: 1075755.316 | DW74: 1079209.037 | DX74: 1082415.489 | DY74: 1080656.092 | DZ74: 1073551.571 | EA74: 1078003.4 | EB74: 1082377.153 | EC74: 1076591.959 | ED74: 1077952.438 | EE74: 1077467.819 | EF74: 1082097.931 | EG74: 1079109.031 | EH74: 1080932.581 | EI74: 1074596.836 | EJ74: 1073818.518 | EK74: 1076078.398 | EL74: 1075476.281 | EM74: 1080692.143 | EN74: 1076520.223 | EO74: 1082551.534 | EP74: 1081689.354 | EQ74: 1083543.195 | ER74: 1077952.738 | ES74: 1075752.065 | ET74: 1079471.526 | EU74: 1079002.204 | EV74: 1076854.873 | EW74: 1076631.523 | EX74: 1085634.059 | EY74: 1077909.181 | EZ74: 1074469.196 | FA74: 1077630.447 | FB74: 1074360.588 | FC74: 1077323.612 | FD74: 1077784.324 | FE74: 1081832.083 | FF74: 1085343.417 | FG74: 1074640.373 | FH74: 1078928.593 | FI74: 1075652.195 | FJ74: 1080538.599 | FK74: 1078387.075 | FL74: 1075714.76 | FM74: 1079975.989 | FN74: 1077955.88 | FO74: 1082792.858 | FP74: 1081794.48
AL75: 1483104639 | AM75: 1121600756 | AN75: 1252616506 | AO75: 1674897524 | AP75: 2002352149 | AQ75: 880524025 | AR75: 1528504242 | AS75: 205978709 | AT75: 572391060 | AU75: 721051821 | AV75: 828335308 | AW75: 1705944183 | AZ75: 1.189560446 | BA75: 1.209190697 | BB75: 1.244721773 | BC75: 1.347427894 | BD75: 1.556977766 | BE75: 1.538665857 | BF75: 1.632867218 | BG75: 1.463077487 | BH75: 1.394583774 | BI75: 1.353585984 | BJ75: 1.329924625 | BK75: 1.445628794 | BM75: =SUMPRODUCT(TRANSPOSE($J$8:$J$19),AZ75:BK75) -> 7345221.664 | BO75: 0.971 | BP75: 8605464.319 | BQ75: 1080534.194 | BR75: 8630489.034 | BS75: 7524930.126 | BU75: 1085826.449 | BV75: 1079394.293 | BW75: 1076296.988 | BX75: 1083693.543 | BY75: 1079236.114 | BZ75: 1075677.243 | CA75: 1083017.076 | CB75: 1082635.653 | CC75: 1076092.247 | CD75: 1084737.284 | CE75: 1075530.2 | CF75: 1082497.439 | CG75: 1077793.661 | CH75: 1077841.759 | CI75: 1085685.074 | CJ75: 1081320.021 | CK75: 1084382.419 | CL75: 1085084.061 | CM75: 1077238.583 | CN75: 1084719.098 | CO75: 1083458.672 | CP75: 1082783.523 | CQ75: 1083367.103 | CR75: 1084940.899 | CS75: 1084844.135 | CT75: 1078578.539 | CU75: 1076819.741 | CV75: 1077986.815 | CW75: 1080702.869 | CX75: 1083203.022 | CY75: 1078802.492 | CZ75: 1077876.462 | DA75: 1079607.268 | DB75: 1081742.963 | DC75: 1081464.932 | DD75: 1081405.925 | DE75: 1071529.342 | DF75: 1077729.869 | DG75: 1079635.606 | DH75: 1082176.47 | DI75: 1078872.43 | DJ75: 1077994.228 | DK75: 1083166.318 | DL75: 1077928.196 | DM75: 1078806.049 | DN75: 1081035.117 | DO75: 1079865.395 | DP75: 1081813.792 | DQ75: 1079400.435 | DR75: 1074034.172 | DS75: 1081872.5 | DT75: 1083820.063 | DU75: 1078062.025 | DV75: 1078615.613 | DW75: 1081251.209 | DX75: 1083054.33 | DY75: 1082631.303 | DZ75: 1075656.273 | EA75: 1080206.368 | EB75: 1083224.489 | EC75: 1078569.849 | ED75: 1079199.674 | EE75: 1078955.043 | EF75: 1084190.433 | EG75: 1081879.892 | EH75: 1083040.465 | EI75: 1077262.887 | EJ75: 1075752.819 | EK75: 1078253.672 | EL75: 1077182.881 | EM75: 1081893.023 | EN75: 1078485.087 | EO75: 1084882.609 | EP75: 1083999.005 | EQ75: 1085251.475 | ER75: 1080206.815 | ES75: 1078421.505 | ET75: 1080671.238 | EU75: 1081758.18 | EV75: 1078772.695 | EW75: 1079217.364 | EX75: 1087461.623 | EY75: 1079875.646 | EZ75: 1076747.845 | FA75: 1079607.572 | FB75: 1077931.391 | FC75: 1078410.866 | FD75: 1080306.756 | FE75: 1083512.564 | FF75: 1087333.61 | FG75: 1077677.66 | FH75: 1079763.464 | FI75: 1077200.781 | FJ75: 1081543.51 | FK75: 1079981.157 | FL75: 1078191.903 | FM75: 1081670.174 | FN75: 1080669.529 | FO75: 1084800.172 | FP75: 1084220.374
AL76: 281689130 | AM76: 579868359 | AN76: 501796194 | AO76: 514038748 | AP76: 1596600203 | AQ76: 778869351 | AR76: 1332605603 | AS76: 2096460176 | AT76: 364254958 | AU76: 1624984562 | AV76: 575628975 | AW76: 223729731 | AZ76: 1.027049924 | BA76: 0.9825272231 | BB76: 0.9289298555 | BC76: 0.8791596524 | BD76: 0.9413192919 | BE76: 0.919854357 | BF76: 0.9541283633 | BG76: 1.152066686 | BH76: 1.065502525 | BI76: 1.144806602 | BJ76: 1.091779914 | BK76: 0.9826198489 | BM76: =SUMPRODUCT(TRANSPOSE($J$8:$J$19),AZ76:BK76) -> 5638912.386 | BO76: 0.972 | BP76: 8621900.491 | BQ76: 1082565.487 | BR76: 8654548.882 | BS76: 7539335.004 | BU76: 1088189.923 | BV76: 1082795.337 | BW76: 1078949.715 | BX76: 1085847.063 | BY76: 1081402.426 | BZ76: 1078515.86 | CA76: 1085263.482 | CB76: 1083708.303 | CC76: 1077479.969 | CD76: 1086035.59 | CE76: 1076885.952 | CF76: 1085059.164 | CG76: 1080243.464 | CH76: 1079726.905 | CI76: 1088842.367 | CJ76: 1083622.682 | CK76: 1086155.114 | CL76: 1087339.38 | CM76: 1079823.448 | CN76: 1085680.107 | CO76: 1084598.349 | CP76: 1083772.399 | CQ76: 1084881.511 | CR76: 1087490.766 | CS76: 1087828.573 | CT76: 1079899.411 | CU76: 1079610.637 | CV76: 1079890.849 | CW76: 1083091.349 | CX76: 1085416.65 | CY76: 1080696.707 | CZ76: 1079454.722 | DA76: 1081515.915 | DB76: 1082700.046 | DC76: 1084022.508 | DD76: 1083529.65 | DE76: 1073870.462 | DF76: 1079412.99 | DG76: 1081847.407 | DH76: 1083776.01 | DI76: 1080191.754 | DJ76: 1081015.639 | DK76: 1084677.708 | DL76: 1079517.18 | DM76: 1082920.491 | DN76: 1082996.97 | DO76: 1081783.191 | DP76: 1083596.394 | DQ76: 1081906.079 | DR76: 1075686.508 | DS76: 1084087.385 | DT76: 1084709.184 | DU76: 1079636.777 | DV76: 1080556.987 | DW76: 1083681.373 | DX76: 1086212.727 | DY76: 1083442.984 | DZ76: 1077117.389 | EA76: 1082522.474 | EB76: 1085664.691 | EC76: 1080627.99 | ED76: 1080389.423 | EE76: 1082630.299 | EF76: 1085495.024 | EG76: 1083213.913 | EH76: 1087060.994 | EI76: 1078906.574 | EJ76: 1078089.483 | EK76: 1079790.394 | EL76: 1078801.226 | EM76: 1083685.359 | EN76: 1080272.013 | EO76: 1086781.093 | EP76: 1087207.523 | EQ76: 1086559.432 | ER76: 1082260.339 | ES76: 1080204.064 | ET76: 1082050.712 | EU76: 1083317.426 | EV76: 1080418.724 | EW76: 1081372.092 | EX76: 1090788.872 | EY76: 1081600.706 | EZ76: 1078762.287 | FA76: 1081954.494 | FB76: 1079261.064 | FC76: 1080426.875 | FD76: 1082697.348 | FE76: 1085046.668 | FF76: 1090829.024 | FG76: 1080328.587 | FH76: 1082708.5 | FI76: 1079741.76 | FJ76: 1083155.944 | FK76: 1080922.021 | FL76: 1080379.615 | FM76: 1082814.092 | FN76: 1082355.585 | FO76: 1086488.319 | FP76: 1086355.78
AL77: 1697025073 | AM77: 523702291 | AN77: 736026061 | AO77: 1138347270 | AP77: 595275477 | AQ77: 806234092 | AR77: 479900175 | AS77: 209774468 | AT77: 1502459629 | AU77: 642101980 | AV77: 2042827339 | AW77: 2110067985 | AZ77: 1.223463363 | BA77: 1.161835457 | BB77: 1.131014218 | BC77: 1.149339036 | BD77: 1.099088833 | BE77: 1.077324065 | BF77: 1.014284802 | BG77: 0.9096680357 | BH77: 0.9621829434 | BI77: 0.9251882116 | BJ77: 1.084785228 | BK77: 1.325430635 | BM77: =SUMPRODUCT(TRANSPOSE($J$8:$J$19),AZ77:BK77) -> 6883258.993 | BO77: 0.973 | BP77: 8638865.868 | BQ77: 1084708.018 | BR77: 8667379.667 | BS77: 7554157.851 | BU77: 1089659.181 | BV77: 1085749.442 | BW77: 1082184.608 | BX77: 1088171.844 | BY77: 1084012.038 | BZ77: 1079684.311 | CA77: 1087607.166 | CB77: 1085825.65 | CC77: 1079832.846 | CD77: 1088476.262 | CE77: 1077598.748 | CF77: 1087387.36 | CG77: 1082685.05 | CH77: 1081920.076 | CI77: 1091640.15 | CJ77: 1085435.904 | CK77: 1087050.338 | CL77: 1088621.246 | CM77: 1082082.293 | CN77: 1088355.692 | CO77: 1087190.596 | CP77: 1085685.087 | CQ77: 1087974.138 | CR77: 1091178.875 | CS77: 1089874.368 | CT77: 1083327.869 | CU77: 1081459.669 | CV77: 1081916.995 | CW77: 1085370.764 | CX77: 1088297.033 | CY77: 1083315.636 | CZ77: 1081049.031 | DA77: 1084590.682 | DB77: 1085476.034 | DC77: 1085575.604 | DD77: 1085002.344 | DE77: 1076089.274 | DF77: 1081364.531 | DG77: 1083570.718 | DH77: 1085384.198 | DI77: 1082564.364 | DJ77: 1083924.228 | DK77: 1086279.447 | DL77: 1081804.324 | DM77: 1084033.178 | DN77: 1085007.164 | DO77: 1083929.544 | DP77: 1085473.064 | DQ77: 1084943.351 | DR77: 1078280.217 | DS77: 1085782.981 | DT77: 1086725.752 | DU77: 1081729.875 | DV77: 1082984.205 | DW77: 1084599.776 | DX77: 1088281.221 | DY77: 1085525.701 | DZ77: 1080070.849 | EA77: 1083705.561 | EB77: 1086712.505 | EC77: 1083850.793 | ED77: 1082776.884 | EE77: 1085032.479 | EF77: 1087690.423 | EG77: 1086698.295 | EH77: 1089311.639 | EI77: 1082285.093 | EJ77: 1079764.772 | EK77: 1081188.895 | EL77: 1080073.527 | EM77: 1087584.502 | EN77: 1081620.013 | EO77: 1089814.274 | EP77: 1088493.032 | EQ77: 1087590.049 | ER77: 1085250.857 | ES77: 1081746.906 | ET77: 1083623.016 | EU77: 1084330.181 | EV77: 1082801.994 | EW77: 1082387.754 | EX77: 1093892.162 | EY77: 1084122.376 | EZ77: 1080896.932 | FA77: 1085015.693 | FB77: 1080834.843 | FC77: 1082087.024 | FD77: 1084049.525 | FE77: 1086947.175 | FF77: 1092886.47 | FG77: 1082583.829 | FH77: 1084685.261 | FI77: 1082482.171 | FJ77: 1085629.072 | FK77: 1082469.299 | FL77: 1082531.718 | FM77: 1085551.403 | FN77: 1083730.018 | FO77: 1088063.503 | FP77: 1088396.939
AL78: 1333583968 | AM78: 1603280024 | AN78: 744534563 | AO78: 1496994381 | AP78: 1211353407 | AQ78: 1027203998 | AR78: 355247236 | AS78: 637949223 | AT78: 411024975 | AU78: 273199429 | AV78: 1164377923 | AW78: 2089810372 | AZ78: 1.169274426 | BA78: 1.255988247 | BB78: 1.223863596 | BC78: 1.294431081 | BD78: 1.32533248 | BE78: 1.330487884 | BF78: 1.228776601 | BG78: 1.180950333 | BH78: 1.100466249 | BI78: 1.000948989 | BJ78: 1.019484648 | BK78: 1.225348996 | BM78: =SUMPRODUCT(TRANSPOSE($J$8:$J$19),AZ78:BK78) -> 7279287.089 | BO78: 0.974 | BP78: 8656399.042 | BQ78: 1086873.618 | BR78: 8686356.074 | BS78: 7569525.424 | BU78: 1091978.486 | BV78: 1089074.585 | BW78: 1084645.801 | BX78: 1090921.891 | BY78: 1085723.878 | BZ78: 1080880.365 | CA78: 1089315.653 | CB78: 1087886.661 | CC78: 1080970.72 | CD78: 1091515.192 | CE78: 1080341.859 | CF78: 1089248.609 | CG78: 1085377.034 | CH78: 1083176.887 | CI78: 1094416.335 | CJ78: 1087858.372 | CK78: 1089756.239 | CL78: 1090972.889 | CM78: 1084481.584 | CN78: 1090479.68 | CO78: 1089586.539 | CP78: 1088705.286 | CQ78: 1090249.061 | CR78: 1092788.483 | CS78: 1092828.84 | CT78: 1085921.931 | CU78: 1083375.892 | CV78: 1083684.767 | CW78: 1088929.614 | CX78: 1090400.703 | CY78: 1085317.412 | CZ78: 1083607.201 | DA78: 1085950.523 | DB78: 1087979.468 | DC78: 1088669.867 | DD78: 1086881.3 | DE78: 1077554.587 | DF78: 1083724.183 | DG78: 1085291.56 | DH78: 1086770.522 | DI78: 1083669.391 | DJ78: 1086371.945 | DK78: 1087899.723 | DL78: 1085603.74 | DM78: 1085633.589 | DN78: 1088564.318 | DO78: 1086289.211 | DP78: 1087812.299 | DQ78: 1088212.096 | DR78: 1080644.511 | DS78: 1088006.869 | DT78: 1088510.829 | DU78: 1083569.393 | DV78: 1085227.56 | DW78: 1086811.507 | DX78: 1090510.842 | DY78: 1087245.837 | DZ78: 1083366.656 | EA78: 1085485.932 | EB78: 1089230.107 | EC78: 1085810.654 | ED78: 1084997.197 | EE78: 1086956.823 | EF78: 1090710.406 | EG78: 1088899.579 | EH78: 1090767.319 | EI78: 1083617.877 | EJ78: 1081482.557 | EK78: 1082517.602 | EL78: 1084702.999 | EM78: 1090490.594 | EN78: 1083133.192 | EO78: 1091137.108 | EP78: 1091284.956 | EQ78: 1089553.108 | ER78: 1087008.537 | ES78: 1085770.815 | ET78: 1086024.951 | EU78: 1086037.813 | EV78: 1084901.188 | EW78: 1084474.526 | EX78: 1095427.431 | EY78: 1086052.189 | EZ78: 1082461.751 | FA78: 1086846.916 | FB78: 1081886.232 | FC78: 1084177.851 | FD78: 1085701.108 | FE78: 1088203.358 | FF78: 1094302.597 | FG78: 1085077.859 | FH78: 1086964.519 | FI78: 1084344.211 | FJ78: 1087415.518 | FK78: 1083570.122 | FL78: 1084419.914 | FM78: 1087072.72 | FN78: 1086177.257 | FO78: 1090316.637 | FP78: 1090756.957
AL79: 461916856 | AM79: 914367918 | AN79: 1289058028 | AO79: 738527348 | AP79: 1555568781 | AQ79: 914261875 | AR79: 482407661 | AS79: 1678929100 | AT79: 2132637239 | AU79: 2060044679 | AV79: 1744711849 | AW79: 1339632634 | AZ79: 1.058468975 | BA79: 1.052465876 | BB79: 1.087697327 | BC79: 1.058459326 | BD79: 1.127322691 | BE79: 1.11814007 | BF79: 1.053085405 | BG79: 1.139998268 | BH79: 1.437747173 | BI79: 1.698705839 | BJ79: 1.85724449 | BK79: 1.928167282 | BM79: =SUMPRODUCT(TRANSPOSE($J$8:$J$19),AZ79:BK79) -> 6274463.664 | BO79: 0.975 | BP79: 8674543.049 | BQ79: 1089173.077 | BR79: 8703131.238 | BS79: 7585369.971 | BU79: 1093797.302 | BV79: 1092324.537 | BW79: 1086262.494 | BX79: 1092727.373 | BY79: 1087903.548 | BZ79: 1082626.56 | CA79: 1091536.262 | CB79: 1091483.643 | CC79: 1083495.565 | CD79: 1093182.381 | CE79: 1082461.636 | CF79: 1091188.423 | CG79: 1087418.149 | CH79: 1086694.489 | CI79: 1096198.408 | CJ79: 1090350.029 | CK79: 1091790.104 | CL79: 1093078.496 | CM79: 1087002.822 | CN79: 1093055.894 | CO79: 1092425.487 | CP79: 1091150.236 | CQ79: 1092879.415 | CR79: 1094434.445 | CS79: 1094986.425 | CT79: 1088798.261 | CU79: 1085975.714 | CV79: 1085568.927 | CW79: 1090058.067 | CX79: 1092776.835 | CY79: 1088210.54 | CZ79: 1085676.304 | DA79: 1088422.604 | DB79: 1090153.421 | DC79: 1090849.034 | DD79: 1087955.718 | DE79: 1079396.437 | DF79: 1086203.236 | DG79: 1088450.06 | DH79: 1089699.459 | DI79: 1086442.5 | DJ79: 1087466.596 | DK79: 1090904.02 | DL79: 1087365.899 | DM79: 1088605.13 | DN79: 1090261.634 | DO79: 1088351.3 | DP79: 1091173.628 | DQ79: 1089354.934 | DR79: 1084027.633 | DS79: 1091388.699 | DT79: 1091406.379 | DU79: 1087068.457 | DV79: 1087728.646 | DW79: 1089170.494 | DX79: 1092666.296 | DY79: 1088576.578 | DZ79: 1085733.594 | EA79: 1087927.432 | EB79: 1091562.342 | EC79: 1087806.671 | ED79: 1087103.29 | EE79: 1089263.285 | EF79: 1092613.419 | EG79: 1093194.001 | EH79: 1093029.032 | EI79: 1086370.042 | EJ79: 1083997.242 | EK79: 1084631.455 | EL79: 1086658.742 | EM79: 1092287.689 | EN79: 1085752.621 | EO79: 1094263.408 | EP79: 1093529.596 | EQ79: 1091483.857 | ER79: 1089406.363 | ES79: 1087691.526 | ET79: 1088048.16 | EU79: 1087338.595 | EV79: 1087127.12 | EW79: 1087528.739 | EX79: 1096581.853 | EY79: 1088685.87 | EZ79: 1085071.277 | FA79: 1089640.019 | FB79: 1083910.976 | FC79: 1085158.819 | FD79: 1088534.387 | FE79: 1090592.948 | FF79: 1095455.113 | FG79: 1087373.398 | FH79: 1089773.329 | FI79: 1088706.642 | FJ79: 1089920.142 | FK79: 1084841.388 | FL79: 1085753.187 | FM79: 1089447.864 | FN79: 1087616.041 | FO79: 1092922.602 | FP79: 1092366.098
AL80: 2013332822 | AM80: 222372987 | AN80: 781397763 | AO80: 1225075108 | AP80: 2094910296 | AQ80: 1546022275 | AR80: 1135019710 | AS80: 1848715614 | AT80: 608577530 | AU80: 1186425674 | AV80: 1119478680 | AW80: 379297350 | AZ80: 1.306927548 | BA80: 1.178772494 | BB80: 1.153438776 | BC80: 1.183037817 | BD80: 1.42722759 | BE80: 1.518049467 | BF80: 1.541339186 | BG80: 1.71552689 | BH80: 1.6427287 | BI80: 1.67695296 | BJ80: 1.699875359 | BK80: 1.576397559 | BM80: =SUMPRODUCT(TRANSPOSE($J$8:$J$19),AZ80:BK80) -> 7117240.603 | BO80: 0.976 | BP80: 8693346.088 | BQ80: 1091585.637 | BR80: 8726231.431 | BS80: 7601760.451 | BU80: 1096537.584 | BV80: 1096317.393 | BW80: 1088020.408 | BX80: 1094298.373 | BY80: 1091556.104 | BZ80: 1084750.847 | CA80: 1093901.491 | CB80: 1093098.635 | CC80: 1087016.519 | CD80: 1095819.056 | CE80: 1085824.219 | CF80: 1094285.869 | CG80: 1089619.713 | CH80: 1089334.166 | CI80: 1098401.924 | CJ80: 1093699.459 | CK80: 1093644.865 | CL80: 1095996.012 | CM80: 1089643.431 | CN80: 1094301.458 | CO80: 1094430.688 | CP80: 1093274.151 | CQ80: 1094998.311 | CR80: 1096801.853 | CS80: 1096850.446 | CT80: 1090249.378 | CU80: 1088406.959 | CV80: 1087830.552 | CW80: 1091195.633 | CX80: 1095196.464 | CY80: 1089520.739 | CZ80: 1089418.083 | DA80: 1089917.799 | DB80: 1092567.988 | DC80: 1092634.915 | DD80: 1090332.455 | DE80: 1083904.298 | DF80: 1088448.165 | DG80: 1091239.519 | DH80: 1092701.757 | DI80: 1088853.485 | DJ80: 1090064.078 | DK80: 1094214.902 | DL80: 1092321.825 | DM80: 1090282.326 | DN80: 1091658.203 | DO80: 1091398.87 | DP80: 1093399.041 | DQ80: 1092264.788 | DR80: 1086806.342 | DS80: 1093347.854 | DT80: 1092493.309 | DU80: 1089334.126 | DV80: 1090271.522 | DW80: 1090901.363 | DX80: 1096433.505 | DY80: 1090473.843 | DZ80: 1087164.75 | EA80: 1088994.807 | EB80: 1093402.838 | EC80: 1092724.581 | ED80: 1089316.941 | EE80: 1092143.97 | EF80: 1094689.982 | EG80: 1095697.115 | EH80: 1094439.248 | EI80: 1089111.436 | EJ80: 1086549.574 | EK80: 1086409.737 | EL80: 1089720.951 | EM80: 1094623.398 | EN80: 1088443.295 | EO80: 1096505.829 | EP80: 1095877.01 | EQ80: 1093261.52 | ER80: 1091692.378 | ES80: 1089414.587 | ET80: 1089566.27 | EU80: 1090342.42 | EV80: 1089592.159 | EW80: 1088564.584 | EX80: 1098586.333 | EY80: 1090473.273 | EZ80: 1086401.664 | FA80: 1092713.063 | FB80: 1087448.322 | FC80: 1088593.262 | FD80: 1090785.55 | FE80: 1092458.881 | FF80: 1097498.564 | FG80: 1088259.226 | FH80: 1092486.892 | FI80: 1090964.684 | FJ80: 1093135.483 | FK80: 1088158.865 | FL80: 1088696.228 | FM80: 1090857.601 | FN80: 1089703.3 | FO80: 1096879.711 | FP80: 1095706.41
AL81: 1216205777 | AM81: 1043187771 | AN81: 448641865 | AO81: 343350829 | AP81: 557444633 | AQ81: 837019628 | AR81: 1933619146 | AS81: 668452309 | AT81: 1217143317 | AU81: 859811458 | AV81: 1224352819 | AW81: 1764291175 | AZ81: 1.154402206 | BA81: 1.163741003 | BB81: 1.091964737 | BC81: 1.006924733 | BD81: 0.9582411965 | BE81: 0.9424742562 | BF81: 1.068234833 | BG81: 1.03044759 | BH81: 1.055359841 | BI81: 1.040420761 | BJ81: 1.066511084 | BK81: 1.169822979 | BM81: =SUMPRODUCT(TRANSPOSE($J$8:$J$19),AZ81:BK81) -> 6522858.62 | BO81: 0.977 | BP81: 8712862.388 | BQ81: 1094106.968 | BR81: 8740550.21 | BS81: 7618755.42 | BU81: 1099842.936 | BV81: 1098875.079 | BW81: 1090926.366 | BX81: 1097027.828 | BY81: 1095319.742 | BZ81: 1086619.825 | CA81: 1095454.162 | CB81: 1095658.516 | CC81: 1088607.372 | CD81: 1098608.897 | CE81: 1087894.653 | CF81: 1098730.309 | CG81: 1091975.809 | CH81: 1091295.87 | CI81: 1100667.131 | CJ81: 1097512.633 | CK81: 1095012.478 | CL81: 1098065.79 | CM81: 1093150.798 | CN81: 1096550.086 | CO81: 1096472.559 | CP81: 1095535.041 | CQ81: 1096535.197 | CR81: 1099149.486 | CS81: 1100333.927 | CT81: 1091518.15 | CU81: 1089797.67 | CV81: 1091726.658 | CW81: 1092613.848 | CX81: 1100489.107 | CY81: 1091277.531 | CZ81: 1092618.049 | DA81: 1092419.244 | DB81: 1096749.685 | DC81: 1095976.683 | DD81: 1092975.967 | DE81: 1085419.034 | DF81: 1091765.273 | DG81: 1093227.394 | DH81: 1095898.441 | DI81: 1090729.973 | DJ81: 1092700.322 | DK81: 1097062.168 | DL81: 1094865.361 | DM81: 1092595.375 | DN81: 1093288.606 | DO81: 1095137.985 | DP81: 1094668.891 | DQ81: 1093935.478 | DR81: 1090119.256 | DS81: 1095677.04 | DT81: 1094916.947 | DU81: 1091392.28 | DV81: 1093613.445 | DW81: 1094779.478 | DX81: 1097843.8 | DY81: 1092692.466 | DZ81: 1089279.578 | EA81: 1091888.275 | EB81: 1095975.585 | EC81: 1094829.676 | ED81: 1093367.815 | EE81: 1093403.828 | EF81: 1097267.502 | EG81: 1096887.362 | EH81: 1096488.523 | EI81: 1092186.846 | EJ81: 1089620.505 | EK81: 1088266.599 | EL81: 1092091.767 | EM81: 1097891.134 | EN81: 1091164.038 | EO81: 1098124.652 | EP81: 1099255.437 | EQ81: 1096051.352 | ER81: 1094780.199 | ES81: 1092202.489 | ET81: 1090926.662 | EU81: 1091705.459 | EV81: 1091091.063 | EW81: 1091248.216 | EX81: 1101483.869 | EY81: 1091980.913 | EZ81: 1090485.499 | FA81: 1095051.341 | FB81: 1091088.771 | FC81: 1091502.68 | FD81: 1092220.671 | FE81: 1094532.181 | FF81: 1100507.463 | FG81: 1091659.526 | FH81: 1094577.372 | FI81: 1093188.878 | FJ81: 1094887.322 | FK81: 1091338.538 | FL81: 1090882.451 | FM81: 1092385.835 | FN81: 1093206.627 | FO81: 1099658.246 | FP81: 1097749.978
AL82: 1708603528 | AM82: 1520339085 | AN82: 1166369067 | AO82: 1756562760 | AP82: 439782633 | AQ82: 1017128530 | AR82: 1648047005 | AS82: 919611564 | AT82: 1867440281 | AU82: 1689927196 | AV82: 1984960509 | AW82: 1340319346 | AZ82: 1.22555988 | BA82: 1.302620741 | BB82: 1.328541095 | BC82: 1.45597978 | BD82: 1.363133714 | BE82: 1.366973647 | BF82: 1.47346904 | BG82: 1.462085583 | BH82: 1.633207774 | BI82: 1.770784124 | BJ82: 2.034738935 | BK82: 2.112601275 | BM82: =SUMPRODUCT(TRANSPOSE($J$8:$J$19),AZ82:BK82) -> 7814825.98 | BO82: 0.978 | BP82: 8733153.26 | BQ82: 1096732.706 | BR82: 8756443.617 | BS82: 7636420.554 | BU82: 1103151.886 | BV82: 1102783.686 | BW82: 1092521.898 | BX82: 1099590.554 | BY82: 1096831.069 | BZ82: 1088437.573 | CA82: 1099733.767 | CB82: 1098207.353 | CC82: 1090578.878 | CD82: 1100841.279 | CE82: 1089019.221 | CF82: 1103287.984 | CG82: 1094437.996 | CH82: 1093778.366 | CI82: 1104715.572 | CJ82: 1098566.041 | CK82: 1097150.614 | CL82: 1100159.305 | CM82: 1095205.14 | CN82: 1098779.036 | CO82: 1099359.928 | CP82: 1097340.995 | CQ82: 1100470.613 | CR82: 1102134.847 | CS82: 1103206.731 | CT82: 1094868.914 | CU82: 1092247.656 | CV82: 1094793.686 | CW82: 1095362.561 | CX82: 1102801.962 | CY82: 1093452.25 | CZ82: 1095329.075 | DA82: 1094588.874 | DB82: 1098641.327 | DC82: 1098180.708 | DD82: 1095403.657 | DE82: 1087484.794 | DF82: 1094726.009 | DG82: 1094565.163 | DH82: 1097985.102 | DI82: 1092938.048 | DJ82: 1094231.552 | DK82: 1099887.939 | DL82: 1096319.167 | DM82: 1094944.785 | DN82: 1096077.096 | DO82: 1097192.968 | DP82: 1098099.345 | DQ82: 1097364.993 | DR82: 1093525.663 | DS82: 1097631.034 | DT82: 1098585.668 | DU82: 1093886.566 | DV82: 1097597.989 | DW82: 1097317.704 | DX82: 1103300.64 | DY82: 1096113.723 | DZ82: 1092554.41 | EA82: 1093846.877 | EB82: 1099446.44 | EC82: 1096916.201 | ED82: 1097862.317 | EE82: 1095999.829 | EF82: 1099174.729 | EG82: 1098868.382 | EH82: 1098336.652 | EI82: 1096353.051 | EJ82: 1091793.435 | EK82: 1090092.682 | EL82: 1093885.947 | EM82: 1101307.593 | EN82: 1093896.011 | EO82: 1102929.884 | EP82: 1103452.672 | EQ82: 1099198.488 | ER82: 1096467.872 | ES82: 1094667.683 | ET82: 1093301.975 | EU82: 1093848.623 | EV82: 1093248.606 | EW82: 1093226.089 | EX82: 1103706.46 | EY82: 1095467.691 | EZ82: 1092786.662 | FA82: 1095889.044 | FB82: 1095105.504 | FC82: 1093751.391 | FD82: 1093821.469 | FE82: 1096927.002 | FF82: 1103908.34 | FG82: 1094444.275 | FH82: 1097079.712 | FI82: 1095551.808 | FJ82: 1097131.845 | FK82: 1093244.873 | FL82: 1092958.763 | FM82: 1094894.069 | FN82: 1096887.603 | FO82: 1102740.021 | FP82: 1100560.654
AL83: 1891437053 | AM83: 181819457 | AN83: 1222459758 | AO83: 1944153459 | AP83: 871626948 | AQ83: 2040133916 | AR83: 1492758887 | AS83: 2082822354 | AT83: 436237679 | AU83: 161863174 | AV83: 1750851740 | AW83: 1315317597 | AZ83: 1.265428644 | BA83: 1.129720444 | BB83: 1.15913768 | BC83: 1.317868714 | BD83: 1.301284817 | BE83: 1.524189893 | BF83: 1.610454304 | BG83: 1.92655035 | BH83: 1.802156507 | BI83: 1.59555153 | BJ83: 1.746153203 | BK83: 1.807954584 | BM83: =SUMPRODUCT(TRANSPOSE($J$8:$J$19),AZ83:BK83) -> 7177453.191 | BO83: 0.979 | BP83: 8754288.398 | BQ83: 1099421.225 | BR83: 8777637.022 | BS83: 7654867.173 | BU83: 1106642.289 | BV83: 1105462.445 | BW83: 1094986.95 | BX83: 1101881.962 | BY83: 1098348.592 | BZ83: 1090853.455 | CA83: 1103672.688 | CB83: 1101488.969 | CC83: 1093190.033 | CD83: 1103785.215 | CE83: 1090860.836 | CF83: 1107388.916 | CG83: 1096077.27 | CH83: 1096010.364 | CI83: 1106688.771 | CJ83: 1101023.839 | CK83: 1099472.772 | CL83: 1103641.423 | CM83: 1097757.579 | CN83: 1100702.091 | CO83: 1102089.758 | CP83: 1099842.401 | CQ83: 1102820.014 | CR83: 1104817.216 | CS83: 1106506.887 | CT83: 1099509.58 | CU83: 1096113.237 | CV83: 1097904.096 | CW83: 1097152.465 | CX83: 1105750.933 | CY83: 1094294.528 | CZ83: 1097802.262 | DA83: 1096477.635 | DB83: 1099900.859 | DC83: 1100712.685 | DD83: 1096714.074 | DE83: 1089859.259 | DF83: 1096698.802 | DG83: 1097106.318 | DH83: 1101484.435 | DI83: 1095122.639 | DJ83: 1096388.633 | DK83: 1102762.144 | DL83: 1098248.389 | DM83: 1097561.069 | DN83: 1098217.736 | DO83: 1099543.233 | DP83: 1100179.61 | DQ83: 1101169.686 | DR83: 1097009.129 | DS83: 1099774.231 | DT83: 1101653.372 | DU83: 1096123.179 | DV83: 1100447.206 | DW83: 1102809.912 | DX83: 1106621.493 | DY83: 1098501.309 | DZ83: 1094905.187 | EA83: 1096067.449 | EB83: 1101370.74 | EC83: 1100966.998 | ED83: 1100473.796 | EE83: 1098291.558 | EF83: 1103445.014 | EG83: 1102818.354 | EH83: 1100715.277 | EI83: 1098035.419 | EJ83: 1094757.398 | EK83: 1093362.641 | EL83: 1098905.357 | EM83: 1104759.233 | EN83: 1096745.464 | EO83: 1105757.336 | EP83: 1107091.819 | EQ83: 1101110.266 | ER83: 1099748.373 | ES83: 1096251.123 | ET83: 1096664.647 | EU83: 1095986.454 | EV83: 1095603.185 | EW83: 1094271.785 | EX83: 1107917.049 | EY83: 1098356.108 | EZ83: 1095713.419 | FA83: 1099154.589 | FB83: 1098301.308 | FC83: 1095454.732 | FD83: 1095054.554 | FE83: 1098830.19 | FF83: 1105766.812 | FG83: 1096673.963 | FH83: 1099754.722 | FI83: 1097840.976 | FJ83: 1099269.082 | FK83: 1096007.006 | FL83: 1096747.74 | FM83: 1098174.332 | FN83: 1099611.129 | FO83: 1105954.379 | FP83: 1103808.701
AL84: 1290733158 | AM84: 1988827205 | AN84: 799326152 | AO84: 1196245489 | AP84: 804794884 | AQ84: 2146658757 | AR84: 297942939 | AS84: 1175948335 | AT84: 1551844174 | AU84: 751764368 | AV84: 1145413855 | AW84: 1341701232 | AZ84: 1.163763493 | BA84: 1.342222831 | BB84: 1.316019307 | BC84: 1.345620749 | BD84: 1.318941332 | BE84: 1.805718131 | BF84: 1.650572458 | BG84: 1.683099917 | BH84: 1.791176403 | BI84: 1.74466975 | BJ84: 1.773395158 | BK84: 1.841540265 | BM84: =SUMPRODUCT(TRANSPOSE($J$8:$J$19),AZ84:BK84) -> 7605621.307 | BO84: 0.98 | BP84: 8776347.498 | BQ84: 1102166.563 | BR84: 8785420.838 | BS84: 7674180.935 | BU84: 1108891.616 | BV84: 1107997.505 | BW84: 1098062.552 | BX84: 1103468.908 | BY84: 1100950.758 | BZ84: 1092796.096 | CA84: 1105828.628 | CB84: 1102748.405 | CC84: 1095959.139 | CD84: 1105624.966 | CE84: 1093012.261 | CF84: 1112423.45 | CG84: 1097707.016 | CH84: 1100072.583 | CI84: 1108008.506 | CJ84: 1103106.457 | CK84: 1101893.163 | CL84: 1105631.298 | CM84: 1099724.474 | CN84: 1103950.247 | CO84: 1105530.715 | CP84: 1101915.722 | CQ84: 1105663.894 | CR84: 1108072.989 | CS84: 1109589.013 | CT84: 1101451.588 | CU84: 1099427.493 | CV84: 1099601.627 | CW84: 1100496.082 | CX84: 1107904.151 | CY84: 1097154.317 | CZ84: 1101998.838 | DA84: 1099556.78 | DB84: 1104364.949 | DC84: 1105128.29 | DD84: 1100406.872 | DE84: 1091615.578 | DF84: 1099086.743 | DG84: 1098811.669 | DH84: 1103444.41 | DI84: 1098634.037 | DJ84: 1100083.115 | DK84: 1104972.453 | DL84: 1100986.574 | DM84: 1101901.987 | DN84: 1100464.285 | DO84: 1103831.768 | DP84: 1102138.242 | DQ84: 1104792.969 | DR84: 1097830.346 | DS84: 1101876.421 | DT84: 1105903.337 | DU84: 1098001.913 | DV84: 1103871.462 | DW84: 1104987.008 | DX84: 1109929.427 | DY84: 1100544.32 | DZ84: 1097617.105 | EA84: 1099636.236 | EB84: 1104410.642 | EC84: 1103945.469 | ED84: 1102283.341 | EE84: 1101104.235 | EF84: 1106421.524 | EG84: 1107192.979 | EH84: 1104432.377 | EI84: 1100573.535 | EJ84: 1097895.651 | EK84: 1095758.777 | EL84: 1101019.442 | EM84: 1107740.131 | EN84: 1099723.553 | EO84: 1108211.423 | EP84: 1111251.264 | EQ84: 1103482.011 | ER84: 1101905.464 | ES84: 1099913.482 | ET84: 1101423.092 | EU84: 1097988.886 | EV84: 1098341.603 | EW84: 1097178.995 | EX84: 1109672.904 | EY84: 1101055.15 | EZ84: 1099924.795 | FA84: 1101136.543 | FB84: 1102540.726 | FC84: 1098091.864 | FD84: 1097493.883 | FE84: 1101961.472 | FF84: 1108889.93 | FG84: 1099030.445 | FH84: 1101782.179 | FI84: 1099359.163 | FJ84: 1101476.816 | FK84: 1099484.831 | FL84: 1098144.857 | FM84: 1099911.592 | FN84: 1102118.356 | FO84: 1108511.49 | FP84: 1106788.686
AL85: 37219407 | AM85: 1569057067 | AN85: 433997543 | AO85: 278215336 | AP85: 274671334 | AQ85: 983924103 | AR85: 305624510 | AS85: 1914321281 | AT85: 545548500 | AU85: 239140722 | AV85: 1158219043 | AW85: 1448343646 | AZ85: 0.9386726589 | BA85: 1.003810344 | BB85: 0.9398515094 | BC85: 0.8562148139 | BD85: 0.7792537664 | BE85: 0.7786946893 | BF85: 0.712826286 | BG85: 0.8042496306 | BH85: 0.7639236042 | BI85: 0.6898327761 | BJ85: 0.7021464774 | BK85: 0.7380587538 | BM85: =SUMPRODUCT(TRANSPOSE($J$8:$J$19),AZ85:BK85) -> 5518105.95 | BO85: 0.981 | BP85: 8799422.273 | BQ85: 1105200.629 | BR85: 8814605.182 | BS85: 7694221.644 | BU85: 1110412.806 | BV85: 1111135.505 | BW85: 1101819.549 | BX85: 1107377.334 | BY85: 1104050.138 | BZ85: 1095942.017 | CA85: 1109031.096 | CB85: 1107162.921 | CC85: 1100117.799 | CD85: 1107918.94 | CE85: 1097150.378 | CF85: 1115810.912 | CG85: 1101051.405 | CH85: 1103117.574 | CI85: 1110718.858 | CJ85: 1106405.324 | CK85: 1105139.143 | CL85: 1108550.987 | CM85: 1102002.634 | CN85: 1107209.294 | CO85: 1108500.587 | CP85: 1104011.314 | CQ85: 1110012.026 | CR85: 1109925.247 | CS85: 1112948.106 | CT85: 1105079.686 | CU85: 1101190.804 | CV85: 1102316.278 | CW85: 1103415.353 | CX85: 1109993.684 | CY85: 1100043.981 | CZ85: 1105838.918 | DA85: 1102486.092 | DB85: 1106092.385 | DC85: 1110223.193 | DD85: 1103688.957 | DE85: 1096130.143 | DF85: 1103563.577 | DG85: 1101168.581 | DH85: 1105761.775 | DI85: 1100899.198 | DJ85: 1102524.329 | DK85: 1106646.895 | DL85: 1103470.397 | DM85: 1103517.384 | DN85: 1103389.383 | DO85: 1107144.543 | DP85: 1105545.018 | DQ85: 1108666.046 | DR85: 1101472.912 | DS85: 1105369.816 | DT85: 1109181.895 | DU85: 1100901.595 | DV85: 1105497.263 | DW85: 1107568.451 | DX85: 1112453.736 | DY85: 1102722.661 | DZ85: 1099915.521 | EA85: 1103186.951 | EB85: 1107867.002 | EC85: 1106707.142 | ED85: 1105524.651 | EE85: 1104308.818 | EF85: 1109053.461 | EG85: 1109951.134 | EH85: 1106218.265 | EI85: 1101818.215 | EJ85: 1100751.526 | EK85: 1098433.366 | EL85: 1106608.735 | EM85: 1109868.917 | EN85: 1102246.334 | EO85: 1111048.877 | EP85: 1114589.094 | EQ85: 1106612.541 | ER85: 1108021.203 | ES85: 1104598.447 | ET85: 1105727.296 | EU85: 1099931.837 | EV85: 1101854.794 | EW85: 1100987.16 | EX85: 1113547.011 | EY85: 1104467.669 | EZ85: 1103772.149 | FA85: 1102375.123 | FB85: 1104027.816 | FC85: 1100232.141 | FD85: 1100428.041 | FE85: 1104737.237 | FF85: 1112656.464 | FG85: 1103713.301 | FH85: 1104877.416 | FI85: 1102664.229 | FJ85: 1104141.108 | FK85: 1102124.481 | FL85: 1100988.944 | FM85: 1102180.697 | FN85: 1105160.472 | FO85: 1111032.154 | FP85: 1109618.333
AL86: 1321666405 | AM86: 352935114 | AN86: 792421668 | AO86: 1517239365 | AP86: 95926936 | AQ86: 1252038861 | AR86: 1735550967 | AS86: 2128708388 | AT86: 1727163986 | AU86: 837189037 | AV86: 802158655 | AW86: 1666007981 | AZ86: 1.167730865 | BA86: 1.080807529 | BB86: 1.058889232 | BC86: 1.12271148 | BD86: 0.9709371082 | BE86: 0.99834958 | BF86: 1.089965984 | BG86: 1.364083328 | BH86: 1.487188397 | BI86: 1.462500728 | BJ86: 1.432764989 | BK86: 1.548440212 | BM86: =SUMPRODUCT(TRANSPOSE($J$8:$J$19),AZ86:BK86) -> 6533849.806 | BO86: 0.982 | BP86: 8823619.02 | BQ86: 1108357.47 | BR86: 8838791.093 | BS86: 7715261.55 | BU86: 1112907.45 | BV86: 1113960.186 | BW86: 1103133.838 | BX86: 1110291.515 | BY86: 1108150.852 | BZ86: 1099199.672 | CA86: 1111170.487 | CB86: 1110658.896 | CC86: 1104026.731 | CD86: 1109794.555 | CE86: 1099983.265 | CF86: 1118968.231 | CG86: 1104828.397 | CH86: 1106073.162 | CI86: 1113402.926 | CJ86: 1110303.523 | CK86: 1107777.021 | CL86: 1112681.431 | CM86: 1105080.701 | CN86: 1111910.35 | CO86: 1111975.589 | CP86: 1107621.067 | CQ86: 1113011.338 | CR86: 1114429.511 | CS86: 1117246.605 | CT86: 1108613.667 | CU86: 1103143.164 | CV86: 1105003.774 | CW86: 1107079.004 | CX86: 1112799.904 | CY86: 1102991.423 | CZ86: 1108381.284 | DA86: 1105066.448 | DB86: 1109905.23 | DC86: 1114069.078 | DD86: 1108751.972 | DE86: 1099178.721 | DF86: 1106351.787 | DG86: 1104275.559 | DH86: 1108069.57 | DI86: 1104875.472 | DJ86: 1106901.224 | DK86: 1108562.004 | DL86: 1105381.39 | DM86: 1107179.059 | DN86: 1105506.316 | DO86: 1110434.043 | DP86: 1108277.299 | DQ86: 1112735.316 | DR86: 1105098.636 | DS86: 1108189.353 | DT86: 1111008.696 | DU86: 1102425.811 | DV86: 1110400.819 | DW86: 1112298.932 | DX86: 1114070.705 | DY86: 1105380.356 | DZ86: 1102923.698 | EA86: 1105712.826 | EB86: 1110490.809 | EC86: 1112384.293 | ED86: 1108371.984 | EE86: 1107778.103 | EF86: 1111320.914 | EG86: 1113913.583 | EH86: 1110702.554 | EI86: 1104533.13 | EJ86: 1103585.094 | EK86: 1103249.769 | EL86: 1109125.509 | EM86: 1112349.286 | EN86: 1105271.271 | EO86: 1113319.652 | EP86: 1116478.11 | EQ86: 1108011.041 | ER86: 1109929.125 | ES86: 1109675.237 | ET86: 1109439.053 | EU86: 1102369.991 | EV86: 1104745.501 | EW86: 1105019.779 | EX86: 1116989.567 | EY86: 1109435.386 | EZ86: 1107230.534 | FA86: 1104714.3 | FB86: 1107849.964 | FC86: 1103526.248 | FD86: 1102770.701 | FE86: 1107634.405 | FF86: 1116255.803 | FG86: 1105489.579 | FH86: 1107641.661 | FI86: 1106895.504 | FJ86: 1107991.589 | FK86: 1104396.801 | FL86: 1103910.929 | FM86: 1106693.886 | FN86: 1108390.281 | FO86: 1112877.277 | FP86: 1113358.956
AL87: 714850679 | AM87: 543116243 | AN87: 7615664 | AO87: 879090627 | AP87: 514384724 | AQ87: 535581810 | AR87: 1296174940 | AS87: 2085055492 | AT87: 175140725 | AU87: 604735781 | AV87: 1870280095 | AW87: 903637995 | AZ87: 1.09331444 | BA87: 1.040935985 | BB87: 0.8233491569 | BC87: 0.8138696995 | BD87: 0.7700916893 | BE87: 0.7306515024 | BF87: 0.7548356774 | BG87: 0.9042608676 | BH87: 0.8036491068 | BI87: 0.7691940619 | BJ87: 0.8597978214 | BK87: 0.8518382801 | BM87: =SUMPRODUCT(TRANSPOSE($J$8:$J$19),AZ87:BK87) -> 5583582.831 | BO87: 0.983 | BP87: 8849061.914 | BQ87: 1111673.803 | BR87: 8862421.523 | BS87: 7737388.111 | BU87: 1115064.984 | BV87: 1117128.748 | BW87: 1107501.493 | BX87: 1113473.299 | BY87: 1112579.048 | BZ87: 1103406.352 | CA87: 1113615.766 | CB87: 1114080.841 | CC87: 1109586.073 | CD87: 1112616.529 | CE87: 1104945.098 | CF87: 1121046.206 | CG87: 1108857.842 | CH87: 1109595.403 | CI87: 1116908.953 | CJ87: 1114418.342 | CK87: 1113011.247 | CL87: 1116503.216 | CM87: 1109054.646 | CN87: 1117557.744 | CO87: 1115226.994 | CP87: 1111393.867 | CQ87: 1117445.155 | CR87: 1120673.546 | CS87: 1120446.844 | CT87: 1111378.106 | CU87: 1104970.962 | CV87: 1108560.877 | CW87: 1109439.695 | CX87: 1116040.266 | CY87: 1106554.49 | CZ87: 1111227.073 | DA87: 1107113.343 | DB87: 1112786.253 | DC87: 1116848.524 | DD87: 1113083.684 | DE87: 1101529.754 | DF87: 1110763.669 | DG87: 1107466.125 | DH87: 1109129.251 | DI87: 1107773.731 | DJ87: 1109670.46 | DK87: 1111987.488 | DL87: 1106960.776 | DM87: 1112287.666 | DN87: 1107869.448 | DO87: 1114144.296 | DP87: 1111431.301 | DQ87: 1114354.417 | DR87: 1108954.082 | DS87: 1111840.95 | DT87: 1114348.274 | DU87: 1106264.427 | DV87: 1113978.319 | DW87: 1115276.208 | DX87: 1118018.329 | DY87: 1107233.417 | DZ87: 1108638.03 | EA87: 1108169.957 | EB87: 1113149.326 | EC87: 1118293.982 | ED87: 1110482.525 | EE87: 1110660.874 | EF87: 1113917.986 | EG87: 1117044.169 | EH87: 1112529.177 | EI87: 1108346.741 | EJ87: 1105922.186 | EK87: 1107002.126 | EL87: 1112643.722 | EM87: 1115275.261 | EN87: 1108803.853 | EO87: 1115976.894 | EP87: 1118515.179 | EQ87: 1111602.742 | ER87: 1115393.905 | ES87: 1113378.046 | ET87: 1112755.432 | EU87: 1105720.371 | EV87: 1107095.901 | EW87: 1110667.209 | EX87: 1122096.832 | EY87: 1110688.885 | EZ87: 1109319.698 | FA87: 1107944.119 | FB87: 1110888.111 | FC87: 1108323.929 | FD87: 1105133.335 | FE87: 1110382.751 | FF87: 1118077.801 | FG87: 1109938.621 | FH87: 1109534.599 | FI87: 1110338.299 | FJ87: 1111200.399 | FK87: 1106909.578 | FL87: 1106754.121 | FM87: 1108851.847 | FN87: 1110926.749 | FO87: 1116024.911 | FP87: 1116636.235
AL88: 789886013 | AM88: 283803277 | AN88: 396013307 | AO88: 306791197 | AP88: 659085590 | AQ88: 1661407924 | AR88: 724473395 | AS88: 1597570383 | AT88: 1722301883 | AU88: 455670980 | AV88: 77945865 | AW88: 1969302428 | AZ88: 1.10271633 | BA88: 1.007790588 | BB88: 0.9380676375 | BC88: 0.8593299646 | BD88: 0.8282407481 | BE88: 0.894507244 | BF88: 0.8686246852 | BG88: 0.9298893491 | BH88: 1.01305852 | BI88: 0.9503910735 | BJ88: 0.8145652265 | BK88: 0.9319027537 | BM88: =SUMPRODUCT(TRANSPOSE($J$8:$J$19),AZ88:BK88) -> 5778854.884 | BO88: 0.984 | BP88: 8875897.276 | BQ88: 1115124.435 | BR88: 8894902.025 | BS88: 7760772.841 | BU88: 1118387.379 | BV88: 1119129.217 | BW88: 1109254.304 | BX88: 1115168.16 | BY88: 1115677.476 | BZ88: 1107874.929 | CA88: 1118170.426 | CB88: 1117273.406 | CC88: 1112476.486 | CD88: 1117402.69 | CE88: 1109939.686 | CF88: 1124500.799 | CG88: 1111715.567 | CH88: 1113981.156 | CI88: 1119922.148 | CJ88: 1116858.545 | CK88: 1115580.367 | CL88: 1119312.97 | CM88: 1111887.499 | CN88: 1120383.786 | CO88: 1120173.193 | CP88: 1117138.417 | CQ88: 1119484.558 | CR88: 1125905.042 | CS88: 1126726.545 | CT88: 1115657.218 | CU88: 1108759.245 | CV88: 1113787.566 | CW88: 1114684.997 | CX88: 1119483.814 | CY88: 1110409.776 | CZ88: 1115532.421 | DA88: 1109768.992 | DB88: 1116353.554 | DC88: 1119752.417 | DD88: 1117254.664 | DE88: 1104732.996 | DF88: 1114338.615 | DG88: 1108603.056 | DH88: 1116305.487 | DI88: 1112248.202 | DJ88: 1112241.055 | DK88: 1114166.833 | DL88: 1109803.831 | DM88: 1117359.706 | DN88: 1111865.197 | DO88: 1117605.748 | DP88: 1113639.244 | DQ88: 1117074.821 | DR88: 1110229.817 | DS88: 1114931.249 | DT88: 1116684.41 | DU88: 1109423.264 | DV88: 1118767.467 | DW88: 1119374.854 | DX88: 1120951.015 | DY88: 1110626.74 | DZ88: 1111804.712 | EA88: 1110983.365 | EB88: 1116552.69 | EC88: 1121123.97 | ED88: 1113971.299 | EE88: 1115618.422 | EF88: 1116355.671 | EG88: 1119678.812 | EH88: 1115554.095 | EI88: 1111826.724 | EJ88: 1109207.353 | EK88: 1109630.692 | EL88: 1116408.784 | EM88: 1119184.857 | EN88: 1112115.343 | EO88: 1118631.099 | EP88: 1121271.988 | EQ88: 1116607.694 | ER88: 1120212.806 | ES88: 1117743.601 | ET88: 1117409.444 | EU88: 1107578.563 | EV88: 1111577.021 | EW88: 1113128.753 | EX88: 1125008.813 | EY88: 1115271.463 | EZ88: 1111561.56 | FA88: 1111952.357 | FB88: 1114124.747 | FC88: 1111432.979 | FD88: 1107153.286 | FE88: 1112440.015 | FF88: 1122460.278 | FG88: 1113223.496 | FH88: 1113229.297 | FI88: 1113903.821 | FJ88: 1114825.042 | FK88: 1111197.882 | FL88: 1110611.277 | FM88: 1112244.627 | FN88: 1114127.749 | FO88: 1118210.796 | FP88: 1118543.24
AL89: 15581038 | AM89: 669799854 | AN89: 1206400250 | AO89: 70640675 | AP89: 1897768232 | AQ89: 45102189 | AR89: 1431542297 | AS89: 182194023 | AT89: 1699767982 | AU89: 1166363006 | AV89: 133499871 | AW89: 1833867533 | AZ89: 0.9108029776 | BA89: 0.8810428858 | BB89: 0.9024269979 | BC89: 0.7707198601 | BD89: 0.8666385067 | BE89: 0.7269661132 | BF89: 0.7625647507 | BG89: 0.6790642224 | BH89: 0.7373109788 | BI89: 0.7510623342 | BJ89: 0.6590071662 | BK89: 0.7315724248 | BM89: =SUMPRODUCT(TRANSPOSE($J$8:$J$19),AZ89:BK89) -> 5116851.685 | BO89: 0.985 | BP89: 8904299.225 | BQ89: 1118915.055 | BR89: 8926309.978 | BS89: 7785384.17 | BU89: 1121363.214 | BV89: 1122021.833 | BW89: 1112948.535 | BX89: 1121229.814 | BY89: 1119599.788 | BZ89: 1113921.355 | CA89: 1121372.168 | CB89: 1120103.273 | CC89: 1119394.006 | CD89: 1122723.686 | CE89: 1117599.431 | CF89: 1128178.029 | CG89: 1114660.314 | CH89: 1120641.17 | CI89: 1124126.583 | CJ89: 1121517.554 | CK89: 1119482.696 | CL89: 1122050.581 | CM89: 1114434.17 | CN89: 1124255.679 | CO89: 1124042.748 | CP89: 1122013.701 | CQ89: 1123422.293 | CR89: 1129703.299 | CS89: 1131047.299 | CT89: 1118527.742 | CU89: 1112836.926 | CV89: 1117267.81 | CW89: 1117244.544 | CX89: 1122890.882 | CY89: 1115625.93 | CZ89: 1121236.082 | DA89: 1113810.379 | DB89: 1121729.999 | DC89: 1122118.107 | DD89: 1121048.861 | DE89: 1109059.436 | DF89: 1117682.214 | DG89: 1113324.172 | DH89: 1120050.948 | DI89: 1114721.015 | DJ89: 1115931.743 | DK89: 1118262.158 | DL89: 1115395.647 | DM89: 1122085.92 | DN89: 1114439.174 | DO89: 1121852.043 | DP89: 1116314.07 | DQ89: 1118902.658 | DR89: 1114038.164 | DS89: 1119179.589 | DT89: 1121685.855 | DU89: 1112923.307 | DV89: 1120551.81 | DW89: 1122302.906 | DX89: 1124441.817 | DY89: 1116625.299 | DZ89: 1114323.367 | EA89: 1115503.69 | EB89: 1120158.941 | EC89: 1124517.666 | ED89: 1116687.537 | EE89: 1120502.399 | EF89: 1118613.744 | EG89: 1123839.589 | EH89: 1117275.848 | EI89: 1115650.389 | EJ89: 1111613.885 | EK89: 1114492.228 | EL89: 1120763.148 | EM89: 1124568.233 | EN89: 1115695.205 | EO89: 1121797.194 | EP89: 1124278.984 | EQ89: 1120464.08 | ER89: 1124094.326 | ES89: 1122214.224 | ET89: 1119951.542 | EU89: 1110468.328 | EV89: 1115928.627 | EW89: 1117680.989 | EX89: 1128051.362 | EY89: 1117904.539 | EZ89: 1115745.05 | FA89: 1114086.307 | FB89: 1116588.705 | FC89: 1113764.984 | FD89: 1110253.846 | FE89: 1115986.864 | FF89: 1125904.462 | FG89: 1115444.639 | FH89: 1118135.843 | FI89: 1116814.765 | FJ89: 1118457.221 | FK89: 1115180.153 | FL89: 1115025.563 | FM89: 1117165.703 | FN89: 1116029.27 | FO89: 1122248.969 | FP89: 1121672.682
AL90: 493008848 | AM90: 1542446849 | AN90: 832412051 | AO90: 1839475136 | AP90: 1960396793 | AQ90: 1726830808 | AR90: 249425321 | AS90: 742149768 | AT90: 592558193 | AU90: 929889227 | AV90: 1721332041 | AW90: 1196272456 | AZ90: 1.063149414 | BA90: 1.133102796 | BB90: 1.115069966 | BC90: 1.239616062 | BD90: 1.414913064 | BE90: 1.542819434 | BF90: 1.396446159 | BG90: 1.358712844 | BH90: 1.298440296 | BI90: 1.289816006 | BJ90: 1.405115855 | BK90: 1.436177325 | BM90: =SUMPRODUCT(TRANSPOSE($J$8:$J$19),AZ90:BK90) -> 6696646.259 | BO90: 0.986 | BP90: 8934477.243 | BQ90: 1122814.877 | BR90: 8980772.004 | BS90: 7811662.367 | BU90: 1128499.332 | BV90: 1125083.461 | BW90: 1115102.607 | BX90: 1126391.859 | BY90: 1131495.811 | BZ90: 1119081.823 | CA90: 1123654.726 | CB90: 1125251.602 | CC90: 1121291.595 | CD90: 1125208.525 | CE90: 1120901.205 | CF90: 1132095.968 | CG90: 1116990.974 | CH90: 1124541.271 | CI90: 1127903.956 | CJ90: 1124268.648 | CK90: 1122186.269 | CL90: 1124343.446 | CM90: 1118124.96 | CN90: 1128089.752 | CO90: 1128028.343 | CP90: 1124507.13 | CQ90: 1126127.376 | CR90: 1132325.978 | CS90: 1133864.988 | CT90: 1122379.158 | CU90: 1115750.712 | CV90: 1122373.422 | CW90: 1121879.49 | CX90: 1128562.168 | CY90: 1120314.19 | CZ90: 1123962.454 | DA90: 1116300.362 | DB90: 1127772.255 | DC90: 1126235.061 | DD90: 1126604.843 | DE90: 1112433.466 | DF90: 1121798.858 | DG90: 1119131.761 | DH90: 1123743.568 | DI90: 1116593.325 | DJ90: 1117553.255 | DK90: 1121365.786 | DL90: 1117474.769 | DM90: 1125890.473 | DN90: 1119180.781 | DO90: 1126434.397 | DP90: 1118809.303 | DQ90: 1125939.773 | DR90: 1118597.482 | DS90: 1123684.883 | DT90: 1126325.696 | DU90: 1117044.965 | DV90: 1127212.42 | DW90: 1128320.648 | DX90: 1128219.586 | DY90: 1120614.51 | DZ90: 1120654.145 | EA90: 1119281.879 | EB90: 1125946.784 | EC90: 1128190.095 | ED90: 1121855.951 | EE90: 1125550.861 | EF90: 1121469.311 | EG90: 1128631.551 | EH90: 1119395.429 | EI90: 1118098.502 | EJ90: 1114362.506 | EK90: 1120100.156 | EL90: 1125540.978 | EM90: 1126894.569 | EN90: 1119154.326 | EO90: 1125023.954 | EP90: 1125785.673 | EQ90: 1123132.095 | ER90: 1128415.961 | ES90: 1125578.708 | ET90: 1122576.168 | EU90: 1115174.272 | EV90: 1118686.757 | EW90: 1119217.036 | EX90: 1133605.394 | EY90: 1123567.41 | EZ90: 1119474.402 | FA90: 1117909.138 | FB90: 1119390.474 | FC90: 1119149.039 | FD90: 1113203.392 | FE90: 1119105.616 | FF90: 1128416.434 | FG90: 1122524.603 | FH90: 1120491.936 | FI90: 1120705.595 | FJ90: 1120780.551 | FK90: 1117842.333 | FL90: 1120982.255 | FM90: 1120063.001 | FN90: 1118220.198 | FO90: 1127374.752 | FP90: 1126098.05
AL91: 1763809401 | AM91: 46322942 | AN91: 1943078451 | AO91: 1297937347 | AP91: 1446689848 | AQ91: 1272174663 | AR91: 1216344909 | AS91: 2136735521 | AT91: 1041839910 | AU91: 2127170570 | AV91: 2129165034 | AW91: 1579939393 | AZ91: 1.236100767 | BA91: 1.040509412 | BB91: 1.183446139 | BC91: 1.223457464 | BD91: 1.285925661 | BE91: 1.325125114 | BF91: 1.357184846 | BG91: 1.729485433 | BH91: 1.738580073 | BI91: 2.170031534 | BJ91: 2.718195618 | BK91: 2.903754156 | BM91: =SUMPRODUCT(TRANSPOSE($J$8:$J$19),AZ91:BK91) -> 6901299.749 | BO91: 0.987 | BP91: 8966686.531 | BQ91: 1126836.423 | BR91: 9022801.508 | BS91: 7839850.107 | BU91: 1133672.241 | BV91: 1128767.853 | BW91: 1117769.84 | BX91: 1129903.624 | BY91: 1134287.37 | BZ91: 1123473.093 | CA91: 1127985.989 | CB91: 1128289.132 | CC91: 1129701.247 | CD91: 1129103.527 | CE91: 1125530.122 | CF91: 1138135.338 | CG91: 1120464.084 | CH91: 1128179.331 | CI91: 1131489.971 | CJ91: 1129871.901 | CK91: 1126282.514 | CL91: 1130192.273 | CM91: 1121610.929 | CN91: 1133150.636 | CO91: 1132754.989 | CP91: 1129618.01 | CQ91: 1129051.516 | CR91: 1135698.813 | CS91: 1140329.179 | CT91: 1126010.625 | CU91: 1117795.073 | CV91: 1127471.528 | CW91: 1129275.84 | CX91: 1136099.491 | CY91: 1125003.031 | CZ91: 1128029.712 | DA91: 1119498.767 | DB91: 1130995.078 | DC91: 1131225.879 | DD91: 1132119.392 | DE91: 1115519.526 | DF91: 1127736.115 | DG91: 1125257.225 | DH91: 1127762.823 | DI91: 1122234.58 | DJ91: 1123300.346 | DK91: 1123811.774 | DL91: 1120074.704 | DM91: 1130672.632 | DN91: 1121304.299 | DO91: 1131244.952 | DP91: 1121993.726 | DQ91: 1129789.301 | DR91: 1121893.978 | DS91: 1126907.068 | DT91: 1131223.133 | DU91: 1119736.636 | DV91: 1130584.808 | DW91: 1130809.766 | DX91: 1132461.56 | DY91: 1124563.836 | DZ91: 1122529.441 | EA91: 1122072.785 | EB91: 1132055.538 | EC91: 1131813.277 | ED91: 1126633.345 | EE91: 1128959.973 | EF91: 1125665.236 | EG91: 1130916.818 | EH91: 1126053.129 | EI91: 1121192.684 | EJ91: 1119896.588 | EK91: 1125953.468 | EL91: 1130079.361 | EM91: 1131019.493 | EN91: 1124181.138 | EO91: 1127533.346 | EP91: 1128333.474 | EQ91: 1125869.033 | ER91: 1130034.934 | ES91: 1128738.243 | ET91: 1123921.085 | EU91: 1117847.405 | EV91: 1122510.758 | EW91: 1122811.573 | EX91: 1139029.833 | EY91: 1127941.484 | EZ91: 1122779.767 | FA91: 1122842.033 | FB91: 1123313.811 | FC91: 1122596.676 | FD91: 1115280.873 | FE91: 1120641.957 | FF91: 1134135.127 | FG91: 1126228.288 | FH91: 1122497.039 | FI91: 1126333.457 | FJ91: 1124257.122 | FK91: 1120698.822 | FL91: 1123299.767 | FM91: 1125161.625 | FN91: 1121600.199 | FO91: 1130002.308 | FP91: 1130659.286
AL92: 1706926709 | AM92: 524256755 | AN92: 844141849 | AO92: 2045759459 | AP92: 1292419662 | AQ92: 1848271708 | AR92: 1982193359 | AS92: 868252428 | AT92: 882250164 | AU92: 867486812 | AV92: 505494441 | AW92: 1667683592 | AZ92: 1.225254021 | BA92: 1.163622844 | BB92: 1.146584441 | BC92: 1.34670464 | BD92: 1.391016644 | BE92: 1.548322449 | BF92: 1.777665767 | BG92: 1.754143471 | BH92: 1.733509056 | BI92: 1.710403973 | BJ92: 1.616076968 | BK92: 1.746965695 | BM92: =SUMPRODUCT(TRANSPOSE($J$8:$J$19),AZ92:BK92) -> 7188542.015 | BO92: 0.988 | BP92: 9001242.458 | BQ92: 1131386.258 | BR92: 9054800.668 | BS92: 7869856.2 | BU92: 1139238.476 | BV92: 1131704.652 | BW92: 1121261.636 | BX92: 1132897.243 | BY92: 1139268.024 | BZ92: 1129561.334 | CA92: 1131210.461 | CB92: 1132627.119 | CC92: 1134514.586 | CD92: 1133020.513 | CE92: 1130128.473 | CF92: 1142514.046 | CG92: 1127510.913 | CH92: 1134367.474 | CI92: 1137928.477 | CJ92: 1134004.292 | CK92: 1130524.428 | CL92: 1134370.573 | CM92: 1125980.123 | CN92: 1137967.968 | CO92: 1140396.317 | CP92: 1132640.454 | CQ92: 1134959.097 | CR92: 1141778.356 | CS92: 1142277.715 | CT92: 1132346.422 | CU92: 1121045.68 | CV92: 1133189.899 | CW92: 1133453.093 | CX92: 1142057.357 | CY92: 1128077.366 | CZ92: 1132485.218 | DA92: 1123531.683 | DB92: 1137857.613 | DC92: 1138174.843 | DD92: 1135452.211 | DE92: 1119395.484 | DF92: 1133182.145 | DG92: 1131557.819 | DH92: 1132534.722 | DI92: 1125399.455 | DJ92: 1129008.372 | DK92: 1129679.408 | DL92: 1125826.427 | DM92: 1136838.466 | DN92: 1127206.018 | DO92: 1136822.019 | DP92: 1126020.717 | DQ92: 1134012.855 | DR92: 1125339.913 | DS92: 1130857.116 | DT92: 1136618.021 | DU92: 1125946.25 | DV92: 1134456.734 | DW92: 1135104.61 | DX92: 1139944.703 | DY92: 1131540.379 | DZ92: 1125630.224 | EA92: 1125601.225 | EB92: 1137068.423 | EC92: 1135551.628 | ED92: 1131637.125 | EE92: 1131486.679 | EF92: 1128506.489 | EG92: 1135217.676 | EH92: 1129562.894 | EI92: 1124871.991 | EJ92: 1130273.325 | EK92: 1129681.805 | EL92: 1133857.063 | EM92: 1133875.103 | EN92: 1127566.732 | EO92: 1131936.847 | EP92: 1130558.212 | EQ92: 1129137.851 | ER92: 1131877.729 | ES92: 1132899.563 | ET92: 1128217.303 | EU92: 1122911.292 | EV92: 1125595.194 | EW92: 1125801.587 | EX92: 1142462.439 | EY92: 1129859.983 | EZ92: 1127608.654 | FA92: 1126955.658 | FB92: 1128382.925 | FC92: 1124947.817 | FD92: 1118163.057 | FE92: 1125029.95 | FF92: 1138300.788 | FG92: 1131942.576 | FH92: 1127227.755 | FI92: 1131993.373 | FJ92: 1129966.612 | FK92: 1125003.492 | FL92: 1126702.291 | FM92: 1130727.654 | FN92: 1127353.578 | FO92: 1135137.175 | FP92: 1133920.326
AL93: 406602043 | AM93: 450524357 | AN93: 1216474901 | AO93: 966821741 | AP93: 1989559052 | AQ93: 715502253 | AR93: 1321740204 | AS93: 1122097136 | AT93: 349462787 | AU93: 672269199 | AV93: 1012964297 | AW93: 182677990 | AZ93: 1.049717713 | BA93: 0.9866499406 | BB93: 1.011690621 | BC93: 1.009533079 | BD93: 1.161872676 | BE93: 1.127178436 | BF93: 1.167770376 | BG93: 1.183982077 | BH93: 1.092277911 | BI93: 1.054105704 | BJ93: 1.056516939 | BK93: 0.9411202049 | BM93: =SUMPRODUCT(TRANSPOSE($J$8:$J$19),AZ93:BK93) -> 5983334.396 | BO93: 0.989 | BP93: 9038541.264 | BQ93: 1136212.08 | BR93: 9070544.798 | BS93: 7902329.184 | BU93: 1145394.723 | BV93: 1137330.204 | BW93: 1126939.254 | BX93: 1138690.527 | BY93: 1143349.272 | BZ93: 1134222.153 | CA93: 1135067.412 | CB93: 1137267.33 | CC93: 1138892.641 | CD93: 1137029.452 | CE93: 1134694.816 | CF93: 1145000.464 | CG93: 1135579.321 | CH93: 1141258.612 | CI93: 1140744.537 | CJ93: 1137625.548 | CK93: 1138953.245 | CL93: 1140560.251 | CM93: 1130499.882 | CN93: 1142937.278 | CO93: 1147200.171 | CP93: 1136455.887 | CQ93: 1137531.866 | CR93: 1146363.479 | CS93: 1145693.507 | CT93: 1137285.473 | CU93: 1127646.197 | CV93: 1137242.686 | CW93: 1137705.771 | CX93: 1147012.042 | CY93: 1132210.126 | CZ93: 1135207.272 | DA93: 1130044.94 | DB93: 1141123.769 | DC93: 1144652.663 | DD93: 1141892.635 | DE93: 1122710.712 | DF93: 1137775.546 | DG93: 1136675.138 | DH93: 1135874.331 | DI93: 1130191.805 | DJ93: 1132432.967 | DK93: 1136320.047 | DL93: 1128713.476 | DM93: 1143537.055 | DN93: 1135617.651 | DO93: 1142750.266 | DP93: 1130236.57 | DQ93: 1138802.989 | DR93: 1132100.466 | DS93: 1135690.42 | DT93: 1140568.111 | DU93: 1130929.949 | DV93: 1139530.015 | DW93: 1138609.889 | DX93: 1144224.422 | DY93: 1136312.657 | DZ93: 1131155.499 | EA93: 1130757.118 | EB93: 1141542.524 | EC93: 1140654.151 | ED93: 1136421.917 | EE93: 1134994.398 | EF93: 1134760.133 | EG93: 1140544.958 | EH93: 1131714.867 | EI93: 1129915.955 | EJ93: 1135336.084 | EK93: 1135248.672 | EL93: 1137230.623 | EM93: 1140499.102 | EN93: 1134200.196 | EO93: 1137143.037 | EP93: 1133266.64 | EQ93: 1134767.672 | ER93: 1135056.2 | ES93: 1139404.615 | ET93: 1130185.93 | EU93: 1126598.499 | EV93: 1132416.151 | EW93: 1130617.722 | EX93: 1147137.323 | EY93: 1134227.469 | EZ93: 1134158.376 | FA93: 1134868.136 | FB93: 1131640.991 | FC93: 1128573.428 | FD93: 1122614.285 | FE93: 1131745.741 | FF93: 1144100.452 | FG93: 1134086.736 | FH93: 1131785.622 | FI93: 1136864.245 | FJ93: 1134655.585 | FK93: 1128758.536 | FL93: 1133143.517 | FM93: 1134744.866 | FN93: 1130648.54 | FO93: 1138549.482 | FP93: 1137562.104
AL94: 1234167720 | AM94: 1841827225 | AN94: 1814586250 | AO94: 337643207 | AP94: 388821605 | AQ94: 29759862 | AR94: 2129718561 | AS94: 918307222 | AT94: 434144092 | AU94: 481115112 | AV94: 744421944 | AW94: 481400708 | AZ94: 1.156636026 | BA94: 1.28906092 | BB94: 1.427492823 | BC94: 1.315010418 | BD94: 1.221503812 | BE94: 1.009152045 | BF94: 1.265362509 | BG94: 1.255410432 | BH94: 1.173982694 | BI94: 1.105388259 | BJ94: 1.075871905 | BK94: 1.013245726 | BM94: =SUMPRODUCT(TRANSPOSE($J$8:$J$19),AZ94:BK94) -> 7633858.209 | BO94: 0.99 | BP94: 9079090.518 | BQ94: 1141474.431 | BR94: 9100466.601 | BS94: 7937616.086 | BU94: 1150261.808 | BV94: 1143340.286 | BW94: 1134776.475 | BX94: 1143716.381 | BY94: 1149277.078 | BZ94: 1139680.796 | CA94: 1138445.315 | CB94: 1144068.758 | CC94: 1141224.866 | CD94: 1140759.998 | CE94: 1139750.2 | CF94: 1151975.33 | CG94: 1141265.142 | CH94: 1145536.616 | CI94: 1147930.228 | CJ94: 1142146.393 | CK94: 1143483.152 | CL94: 1145548.244 | CM94: 1138194.139 | CN94: 1151137.552 | CO94: 1152198.926 | CP94: 1141776.915 | CQ94: 1143304.481 | CR94: 1154626.247 | CS94: 1150270.708 | CT94: 1142108.233 | CU94: 1132718.626 | CV94: 1142365.334 | CW94: 1141208.675 | CX94: 1152247.808 | CY94: 1141840.708 | CZ94: 1141327.445 | DA94: 1133825.311 | DB94: 1144467.154 | DC94: 1149592.763 | DD94: 1146186.684 | DE94: 1129379.785 | DF94: 1142492.57 | DG94: 1142832.477 | DH94: 1142750.742 | DI94: 1133752.357 | DJ94: 1137979.838 | DK94: 1140082.21 | DL94: 1133840.054 | DM94: 1148098.522 | DN94: 1140048.525 | DO94: 1147392.377 | DP94: 1134087.962 | DQ94: 1143137.534 | DR94: 1137453.958 | DS94: 1143046.893 | DT94: 1144648.929 | DU94: 1134204.554 | DV94: 1145073.164 | DW94: 1140992.122 | DX94: 1148713.425 | DY94: 1142058.752 | DZ94: 1134408.354 | EA94: 1135425.07 | EB94: 1146579.477 | EC94: 1146116.809 | ED94: 1139228.459 | EE94: 1138909.804 | EF94: 1139353.487 | EG94: 1145887.932 | EH94: 1137642.77 | EI94: 1137526.74 | EJ94: 1139446.511 | EK94: 1143264.335 | EL94: 1139649.973 | EM94: 1147815.377 | EN94: 1138122.462 | EO94: 1143277.806 | EP94: 1136662.669 | EQ94: 1140473.271 | ER94: 1142732.496 | ES94: 1146501.937 | ET94: 1135773.328 | EU94: 1131006.558 | EV94: 1139055.642 | EW94: 1135341.081 | EX94: 1153456.226 | EY94: 1140524.835 | EZ94: 1138874.551 | FA94: 1140600.196 | FB94: 1135641.747 | FC94: 1132950.972 | FD94: 1127530.846 | FE94: 1139647.726 | FF94: 1148523.099 | FG94: 1139409.154 | FH94: 1134484.833 | FI94: 1142134.37 | FJ94: 1139053.394 | FK94: 1134946.194 | FL94: 1138965.512 | FM94: 1142796.827 | FN94: 1137326.977 | FO94: 1142739.693 | FP94: 1142982.088
AL95: 1166160693 | AM95: 1018992175 | AN95: 329879914 | AO95: 1121848014 | AP95: 1948103822 | AQ95: 2019222406 | AR95: 1454992494 | AS95: 1397955435 | AT95: 1424037506 | AU95: 1019412694 | AV95: 147793573 | AW95: 1920515328 | AZ95: 1.148239373 | BA95: 1.154561326 | BB95: 1.062814551 | BC95: 1.07814413 | BD95: 1.226674651 | BE95: 1.425383927 | BF95: 1.499291295 | BG95: 1.566532313 | BH95: 1.641644656 | BI95: 1.646392922 | BJ95: 1.451463045 | BK95: 1.640237696 | BM95: =SUMPRODUCT(TRANSPOSE($J$8:$J$19),AZ95:BK95) -> 6557328.998 | BO95: 0.991 | BP95: 9123555.529 | BQ95: 1146901.788 | BR95: 9153816.774 | BS95: 7976653.741 | BU95: 1153637.805 | BV95: 1147070.473 | BW95: 1140352.49 | BX95: 1149075.743 | BY95: 1155160.925 | BZ95: 1145235.644 | CA95: 1142609.184 | CB95: 1150425.232 | CC95: 1144421.576 | CD95: 1146998.63 | CE95: 1144906.987 | CF95: 1158926.198 | CG95: 1146159.177 | CH95: 1150258.432 | CI95: 1151736.821 | CJ95: 1147040.363 | CK95: 1154943.671 | CL95: 1149554.264 | CM95: 1148413.256 | CN95: 1156334.861 | CO95: 1158043.699 | CP95: 1146411.19 | CQ95: 1150900.053 | CR95: 1161716.865 | CS95: 1155917.736 | CT95: 1149063.731 | CU95: 1136413.434 | CV95: 1148241.447 | CW95: 1145163.96 | CX95: 1158759.29 | CY95: 1148704.846 | CZ95: 1145762.289 | DA95: 1138939.745 | DB95: 1150135.967 | DC95: 1156578.42 | DD95: 1151478.14 | DE95: 1134788.099 | DF95: 1148581.449 | DG95: 1147707.264 | DH95: 1145901.576 | DI95: 1136618.474 | DJ95: 1146159.081 | DK95: 1144650.193 | DL95: 1139171.665 | DM95: 1155483.184 | DN95: 1146454.525 | DO95: 1155915.675 | DP95: 1136675.526 | DQ95: 1146815.237 | DR95: 1143060.067 | DS95: 1148910.439 | DT95: 1150903.16 | DU95: 1138508.849 | DV95: 1151205.323 | DW95: 1146130.258 | DX95: 1154026.697 | DY95: 1146900.213 | DZ95: 1141297.314 | EA95: 1140004.58 | EB95: 1152697.216 | EC95: 1149679.282 | ED95: 1141754.355 | EE95: 1144781.361 | EF95: 1144152.623 | EG95: 1151752.723 | EH95: 1143110.988 | EI95: 1145959.61 | EJ95: 1146203.741 | EK95: 1147781.369 | EL95: 1143748.763 | EM95: 1153357.625 | EN95: 1142831.243 | EO95: 1149936.243 | EP95: 1141359.496 | EQ95: 1144033.711 | ER95: 1147666.436 | ES95: 1149892.455 | ET95: 1142291.207 | EU95: 1137230.23 | EV95: 1144444.003 | EW95: 1142621.254 | EX95: 1158295.321 | EY95: 1146261.678 | EZ95: 1143122.71 | FA95: 1145389.6 | FB95: 1138107.779 | FC95: 1138479.941 | FD95: 1132337.749 | FE95: 1146415.357 | FF95: 1153552.683 | FG95: 1143729.216 | FH95: 1138822.72 | FI95: 1146673.078 | FJ95: 1144402.863 | FK95: 1140839.985 | FL95: 1143844.937 | FM95: 1150056.539 | FN95: 1142806.974 | FO95: 1148482.627 | FP95: 1149909.684
AL96: 1901456639 | AM96: 1805828537 | AN96: 42086189 | AO96: 1777841042 | AP96: 758173279 | AQ96: 2044473637 | AR96: 490002739 | AS96: 328163204 | AT96: 910395303 | AU96: 629864716 | AV96: 202886949 | AW96: 473840545 | AZ96: 1.26816063 | BA96: 1.404184477 | BB96: 1.17606086 | BC96: 1.293344414 | BD96: 1.261065647 | BE96: 1.47975444 | BF96: 1.395147813 | BG96: 1.282336953 | BH96: 1.271120197 | BI96: 1.220419758 | BJ96: 1.092746989 | BK96: 1.028035444 | BM96: =SUMPRODUCT(TRANSPOSE($J$8:$J$19),AZ96:BK96) -> 7582794.213 | BO96: 0.992 | BP96: 9172832.883 | BQ96: 1153622.516 | BR96: 9196242.878 | BS96: 8019210.367 | BU96: 1159586.199 | BV96: 1154758.159 | BW96: 1150428.027 | BX96: 1154084.919 | BY96: 1160716.384 | BZ96: 1149371.024 | CA96: 1144666.209 | CB96: 1153992.65 | CC96: 1151666.234 | CD96: 1154835.316 | CE96: 1152369.304 | CF96: 1171196.352 | CG96: 1154558.817 | CH96: 1156502.277 | CI96: 1160056.173 | CJ96: 1154396.381 | CK96: 1162679.542 | CL96: 1157007.098 | CM96: 1154004.196 | CN96: 1162518.207 | CO96: 1163759.276 | CP96: 1156032.608 | CQ96: 1156996.738 | CR96: 1170908.105 | CS96: 1163739.761 | CT96: 1154841.125 | CU96: 1142153.368 | CV96: 1153207.389 | CW96: 1152112.939 | CX96: 1164438.396 | CY96: 1152539.977 | CZ96: 1158372.548 | DA96: 1145219.138 | DB96: 1153649.407 | DC96: 1166914.083 | DD96: 1159211.965 | DE96: 1142296.647 | DF96: 1159820.039 | DG96: 1153224.741 | DH96: 1150209.36 | DI96: 1140547.136 | DJ96: 1151295.36 | DK96: 1150326.427 | DL96: 1143845.108 | DM96: 1159938.825 | DN96: 1154210.13 | DO96: 1160037.591 | DP96: 1147190.663 | DQ96: 1152262.985 | DR96: 1149378.065 | DS96: 1154670.883 | DT96: 1160532.056 | DU96: 1144073.708 | DV96: 1156831.796 | DW96: 1152369.054 | DX96: 1160282.95 | DY96: 1152405.498 | DZ96: 1147295.138 | EA96: 1145118.958 | EB96: 1162683.621 | EC96: 1153816.671 | ED96: 1146365.858 | EE96: 1149193.154 | EF96: 1152552.684 | EG96: 1157735.587 | EH96: 1152761.346 | EI96: 1149618.681 | EJ96: 1153615.551 | EK96: 1154770.904 | EL96: 1151587.398 | EM96: 1162669.341 | EN96: 1149574.434 | EO96: 1156054.412 | EP96: 1148212.617 | EQ96: 1149076.312 | ER96: 1157064.747 | ES96: 1156037.275 | ET96: 1149956.875 | EU96: 1148211.36 | EV96: 1150175.294 | EW96: 1149363.93 | EX96: 1169107.687 | EY96: 1151010.726 | EZ96: 1150572.26 | FA96: 1148070.683 | FB96: 1144942.721 | FC96: 1146810.085 | FD96: 1140426.339 | FE96: 1152811.152 | FF96: 1158833.186 | FG96: 1151431.852 | FH96: 1143636.889 | FI96: 1150788.646 | FJ96: 1151269.676 | FK96: 1146476.92 | FL96: 1151602.903 | FM96: 1158328.364 | FN96: 1150154.494 | FO96: 1156570.05 | FP96: 1156655.526
AL97: 1762348389 | AM97: 640594150 | AN97: 22899157 | AO97: 423436968 | AP97: 366038435 | AQ97: 1175933742 | AR97: 537326211 | AS97: 926640012 | AT97: 1733802552 | AU97: 126231810 | AV97: 1030484859 | AW97: 2056107145 | AZ97: 1.235808908 | BA97: 1.191224512 | BB97: 0.9761986534 | BC97: 0.9119488416 | BD97: 0.8439524175 | BE97: 0.8607144778 | BF97: 0.8167517676 | BG97: 0.8110550255 | BH97: 0.8851533004 | BI97: 0.7746117989 | BJ97: 0.7778287719 | BK97: 0.9174686372 | BM97: =SUMPRODUCT(TRANSPOSE($J$8:$J$19),AZ97:BK97) -> 6388085.294 | BO97: 0.993 | BP97: 9228172.789 | BQ97: 1160837.598 | BR97: 9246662.25 | BS97: 8067335.191 | BU97: 1165487.461 | BV97: 1159822.73 | BW97: 1161525.819 | BX97: 1162192.903 | BY97: 1168076.126 | BZ97: 1155015.49 | CA97: 1154357.746 | CB97: 1160381.896 | CC97: 1158919.773 | CD97: 1162553.985 | CE97: 1156379.348 | CF97: 1179537.609 | CG97: 1161468.287 | CH97: 1160694.999 | CI97: 1164245.797 | CJ97: 1158892.632 | CK97: 1174856.049 | CL97: 1163264.063 | CM97: 1159559.211 | CN97: 1168729.754 | CO97: 1168079.789 | CP97: 1164158.058 | CQ97: 1166086.471 | CR97: 1183519.72 | CS97: 1174187.895 | CT97: 1163027.351 | CU97: 1154811.565 | CV97: 1160655.219 | CW97: 1160313.667 | CX97: 1168481.347 | CY97: 1157337.842 | CZ97: 1165407.536 | DA97: 1151522.625 | DB97: 1162172.44 | DC97: 1171988.979 | DD97: 1165105.613 | DE97: 1149298.992 | DF97: 1164788.334 | DG97: 1159117.044 | DH97: 1159916.349 | DI97: 1149345.208 | DJ97: 1157426.298 | DK97: 1157839.025 | DL97: 1152211.149 | DM97: 1169108.457 | DN97: 1161732.197 | DO97: 1166454.643 | DP97: 1152590.537 | DQ97: 1160691.022 | DR97: 1155783.357 | DS97: 1162195.496 | DT97: 1164679.74 | DU97: 1156724.016 | DV97: 1165802.763 | DW97: 1158861.928 | DX97: 1166204.537 | DY97: 1163195.081 | DZ97: 1151752.546 | EA97: 1149905.163 | EB97: 1165233.805 | EC97: 1163403.021 | ED97: 1154051.115 | EE97: 1156441.838 | EF97: 1161106.617 | EG97: 1164409.877 | EH97: 1159166.304 | EI97: 1155439.991 | EJ97: 1162261.751 | EK97: 1163207.34 | EL97: 1158280.069 | EM97: 1169329.262 | EN97: 1157256.081 | EO97: 1159859.777 | EP97: 1155361.74 | EQ97: 1158391.645 | ER97: 1164706.058 | ES97: 1163654.383 | ET97: 1162548.624 | EU97: 1155724.984 | EV97: 1158418.736 | EW97: 1160179.562 | EX97: 1172536.311 | EY97: 1156452.279 | EZ97: 1155043.172 | FA97: 1155996.21 | FB97: 1151023.21 | FC97: 1152389.811 | FD97: 1149552.935 | FE97: 1160182.934 | FF97: 1167003.698 | FG97: 1157242.148 | FH97: 1154371.57 | FI97: 1155167.431 | FJ97: 1158773.695 | FK97: 1150910.788 | FL97: 1157309.88 | FM97: 1169170.692 | FN97: 1157524.124 | FO97: 1161205.583 | FP97: 1165029.092
AL98: 2049376808 | AM98: 503181497 | AN98: 1558612989 | AO98: 2124013829 | AP98: 1693332016 | AQ98: 1209902578 | AR98: 2113526362 | AS98: 2050619536 | AT98: 650296708 | AU98: 924593971 | AV98: 370913328 | AW98: 96282896 | AZ98: 1.325304091 | BA98: 1.255032551 | BB98: 1.338432365 | BC98: 1.663321277 | BD98: 1.804875957 | BE98: 1.847424754 | BF98: 2.264997033 | BG98: 2.664475692 | BH98: 2.564522356 | BI98: 2.546038791 | BJ98: 2.357587194 | BK98: 2.038975104 | BM98: =SUMPRODUCT(TRANSPOSE($J$8:$J$19),AZ98:BK98) -> 8203010.454 | BO98: =BO97+0.001 -> 0.994 | BP98: 9291395.3 | BQ98: 1168919.06 | BR98: 9281903.716 | BS98: 8122476.24 | BU98: 1171198.859 | BV98: 1167958.853 | BW98: 1168771.176 | BX98: 1170970.884 | BY98: 1175085.316 | BZ98: 1167159.715 | CA98: 1158913.889 | CB98: 1168339.886 | CC98: 1163995.915 | CD98: 1169586.032 | CE98: 1161624.38 | CF98: 1189179.204 | CG98: 1168205.813 | CH98: 1165827.128 | CI98: 1172149.93 | CJ98: 1168649.683 | CK98: 1182164.135 | CL98: 1174088.94 | CM98: 1169796.851 | CN98: 1182833.876 | CO98: 1174228.672 | CP98: 1173032.499 | CQ98: 1170609.456 | CR98: 1191218.14 | CS98: 1184380.655 | CT98: 1170999.853 | CU98: 1161528.346 | CV98: 1168769.786 | CW98: 1167870.08 | CX98: 1175752.334 | CY98: 1168970.895 | CZ98: 1174633.214 | DA98: 1164837.321 | DB98: 1169019.964 | DC98: 1183979.369 | DD98: 1174333.681 | DE98: 1156341.095 | DF98: 1171455.751 | DG98: 1170585.785 | DH98: 1169320.718 | DI98: 1155980.464 | DJ98: 1164335.465 | DK98: 1164229.333 | DL98: 1157787.424 | DM98: 1174992.471 | DN98: 1169081.108 | DO98: 1171163.151 | DP98: 1162872.272 | DQ98: 1170449.067 | DR98: 1165257.689 | DS98: 1172902.152 | DT98: 1170697.22 | DU98: 1164293.26 | DV98: 1173314.727 | DW98: 1167964.804 | DX98: 1176023.691 | DY98: 1175684.798 | DZ98: 1156811.889 | EA98: 1156570.682 | EB98: 1172893.376 | EC98: 1173601.925 | ED98: 1162606.675 | EE98: 1163714.249 | EF98: 1166729.861 | EG98: 1168763.699 | EH98: 1173218.068 | EI98: 1160341.367 | EJ98: 1176406.055 | EK98: 1171481.606 | EL98: 1164524.264 | EM98: 1173320.427 | EN98: 1160365.547 | EO98: 1169239.13 | EP98: 1162958.387 | EQ98: 1169421.525 | ER98: 1171451.997 | ES98: 1170928.378 | ET98: 1170202.637 | EU98: 1166113.045 | EV98: 1166679.487 | EW98: 1165870.495 | EX98: 1179533.294 | EY98: 1164487.055 | EZ98: 1165731.799 | FA98: 1165392.735 | FB98: 1161462.337 | FC98: 1162899.407 | FD98: 1158885.763 | FE98: 1165959.393 | FF98: 1173512.586 | FG98: 1163897.543 | FH98: 1164089.833 | FI98: 1161408.364 | FJ98: 1168588.189 | FK98: 1159552.146 | FL98: 1165181.88 | FM98: 1175871.909 | FN98: 1167407.333 | FO98: 1166590.633 | FP98: 1171841.856
AL99: 1633699913 | AM99: 1033994117 | AN99: 865503021 | AO99: 959780938 | AP99: 1307172222 | AQ99: 242078826 | AR99: 1525402073 | AS99: 1491881085 | AT99: 703923669 | AU99: 2070422187 | AV99: 786090849 | AW99: 517060708 | AZ99: 1.212571212 | BA99: 1.221189605 | BB99: 1.20612713 | BC99: 1.202650018 | BD99: 1.244235569 | BE99: 1.124481238 | BF99: 1.192867328 | BG99: 1.260162729 | BH99: 1.220652055 | BI99: 1.449838933 | BJ99: 1.417807828 | BK99: 1.341883632 | BM99: =SUMPRODUCT(TRANSPOSE($J$8:$J$19),AZ99:BK99) -> 7139277.627 | BO99: =BO98+0.001 -> 0.995 | BP99: 9365303.149 | BQ99: 1178580.221 | BR99: 9330625.345 | BS99: 8186722.927 | BU99: 1184406.812 | BV99: 1178778.464 | BW99: 1184413.255 | BX99: 1177408.756 | BY99: 1180577.481 | BZ99: 1177681.832 | CA99: 1167478.615 | CB99: 1174628.326 | CC99: 1170128.086 | CD99: 1178095.303 | CE99: 1166046.056 | CF99: 1201006.609 | CG99: 1175459.099 | CH99: 1179066.37 | CI99: 1187678.843 | CJ99: 1175611.107 | CK99: 1191216.147 | CL99: 1183723.985 | CM99: 1173585.547 | CN99: 1189919.853 | CO99: 1184321.345 | CP99: 1183369.19 | CQ99: 1176765.26 | CR99: 1203662.624 | CS99: 1199211.551 | CT99: 1185256.723 | CU99: 1170042.439 | CV99: 1185562.318 | CW99: 1175504.112 | CX99: 1182926.011 | CY99: 1183856.639 | CZ99: 1178799.501 | DA99: 1173733.339 | DB99: 1177842.513 | DC99: 1191268.365 | DD99: 1185763.271 | DE99: 1166200.269 | DF99: 1182685.85 | DG99: 1177713.811 | DH99: 1175854.267 | DI99: 1168211.789 | DJ99: 1175970.08 | DK99: 1171747.151 | DL99: 1175034.476 | DM99: 1185933.087 | DN99: 1180229.238 | DO99: 1181462.747 | DP99: 1168774.285 | DQ99: 1178083.136 | DR99: 1175312.805 | DS99: 1179614.447 | DT99: 1184633.308 | DU99: 1171109.083 | DV99: 1184935.048 | DW99: 1180122.681 | DX99: 1189660.489 | DY99: 1180802.905 | DZ99: 1164688.544 | EA99: 1167059.641 | EB99: 1182880.571 | EC99: 1183477.886 | ED99: 1176615.815 | EE99: 1178753.912 | EF99: 1178736.043 | EG99: 1178121.669 | EH99: 1181758.609 | EI99: 1169464.339 | EJ99: 1186644.604 | EK99: 1178395.837 | EL99: 1172406.844 | EM99: 1178194.634 | EN99: 1169646.801 | EO99: 1180822.81 | EP99: 1172040.143 | EQ99: 1177604.727 | ER99: 1178718.053 | ES99: 1181461.783 | ET99: 1182478.792 | EU99: 1171852.739 | EV99: 1179829.236 | EW99: 1175796.959 | EX99: 1186567.402 | EY99: 1171749.19 | EZ99: 1179011.954 | FA99: 1171667.176 | FB99: 1171159.065 | FC99: 1174618.223 | FD99: 1171903.335 | FE99: 1174127.078 | FF99: 1177960.62 | FG99: 1175732.412 | FH99: 1174666.347 | FI99: 1167663.854 | FJ99: 1177629.538 | FK99: 1172806.228 | FL99: 1179475.88 | FM99: 1181985.76 | FN99: 1178183.393 | FO99: 1174286.504 | FP99: 1180490.492
AL100: 434015289 | AM100: 115098133 | AN100: 1549457953 | AO100: 1920941467 | AP100: 1145812008 | AQ100: 928486519 | AR100: 1911661094 | AS100: 875235537 | AT100: 1613163465 | AU100: 1755424591 | AV100: 1502813236 | AW100: 982490434 | AZ100: 1.054129111 | BA100: 0.9210894543 | BB100: 0.9811622938 | BC100: 1.109303115 | BD100: 1.12786505 | BE100: 1.120392278 | BF100: 1.26341223 | BG100: 1.247643737 | BH100: 1.33835061 | BI100: 1.465622047 | BJ100: 1.550459434 | BK100: 1.549149252 | BM100: =SUMPRODUCT(TRANSPOSE($J$8:$J$19),AZ100:BK100) -> 5987787.803 | BO100: 0.996 | BP100: =_xlfn.LOGNORM.INV(BO100,$G$24,$G$25) -> 9454555.551 | BQ100: 1190937.875 | BR100: 9399023.048 | BS100: 8263617.676 | BU100: 1194229.785 | BV100: 1190077.131 | BW100: 1195966.72 | BX100: 1190481.515 | BY100: 1195297.733 | BZ100: 1193760.553 | CA100: 1175431.785 | CB100: 1187664.549 | CC100: 1181208.024 | CD100: 1188259.118 | CE100: 1179128.794 | CF100: 1212070.491 | CG100: 1180761.073 | CH100: 1188802.124 | CI100: 1207256.663 | CJ100: 1180868.984 | CK100: 1201696.249 | CL100: 1195377.798 | CM100: 1195354.476 | CN100: 1199445.604 | CO100: 1194838.857 | CP100: 1192893.106 | CQ100: 1189243.841 | CR100: 1214711.239 | CS100: 1214634.204 | CT100: 1196677.237 | CU100: 1187516.205 | CV100: 1198992.416 | CW100: 1186904.657 | CX100: 1207577.912 | CY100: 1197481.896 | CZ100: 1193505.436 | DA100: 1190655.773 | DB100: 1191671.404 | DC100: 1203861.845 | DD100: 1189655.489 | DE100: 1184140.269 | DF100: 1198258.458 | DG100: 1189369.641 | DH100: 1189578.634 | DI100: 1183586.361 | DJ100: 1190594.42 | DK100: 1176390.616 | DL100: 1184942.146 | DM100: 1195446.371 | DN100: 1196468.471 | DO100: 1193775.779 | DP100: 1176152.935 | DQ100: 1189638.646 | DR100: 1184229.389 | DS100: 1185658.622 | DT100: 1197841.233 | DU100: 1190390.943 | DV100: 1194318.326 | DW100: 1192283.249 | DX100: 1200069.552 | DY100: 1188567.988 | DZ100: 1179737.298 | EA100: 1177246.19 | EB100: 1195949.336 | EC100: 1197200.971 | ED100: 1189114.231 | EE100: 1189375.316 | EF100: 1189820.991 | EG100: 1187306.418 | EH100: 1190589.228 | EI100: 1184970.69 | EJ100: 1197280.842 | EK100: 1189739.074 | EL100: 1185269.204 | EM100: 1188827.671 | EN100: 1178044.277 | EO100: 1188195.964 | EP100: 1184570.759 | EQ100: 1191104.819 | ER100: 1195848.642 | ES100: 1194704.528 | ET100: 1198509.434 | EU100: 1180525.465 | EV100: 1196247.685 | EW100: 1187287.705 | EX100: 1198851.785 | EY100: 1184068.304 | EZ100: 1194364.177 | FA100: 1187191.874 | FB100: 1184015.764 | FC100: 1181421.469 | FD100: 1189745.304 | FE100: 1183764.724 | FF100: 1200528.631 | FG100: 1183513.426 | FH100: 1192615.635 | FI100: 1181050.179 | FJ100: 1186194.819 | FK100: 1188788.803 | FL100: 1194265.07 | FM100: 1192563.547 | FN100: 1188473.557 | FO100: 1181626.434 | FP100: 1197614.501
AL101: 1649038834 | AM101: 361783254 | AN101: 1324391547 | AO101: 1716643391 | AP101: 1050109683 | AQ101: 989045759 | AR101: 420356884 | AS101: 1048819096 | AT101: 1256578795 | AU101: 690688835 | AV101: 300119296 | AW101: 766879266 | AZ101: 1.215127952 | BA101: 1.126362781 | BB101: 1.168602847 | BC101: 1.272792024 | BD101: 1.281023778 | BE101: 1.280803078 | BF101: 1.195353136 | BG101: 1.202572189 | BH101: 1.236898184 | BI101: 1.196282441 | BJ101: 1.093953397 | BK101: 1.067587552 | BM101: =SUMPRODUCT(TRANSPOSE($J$8:$J$19),AZ101:BK101) -> 7045269.219 | BO101: 0.997 | BP101: 9567807.284 | BQ101: 1205227.611 | BR101: 9553330.383 | BS101: 8362579.673 | BU101: 1208944.068 | BV101: 1198659.952 | BW101: 1217159.273 | BX101: 1203508.542 | BY101: 1205849.802 | BZ101: 1203848.905 | CA101: 1188428.128 | CB101: 1198841.147 | CC101: 1193695.432 | CD101: 1205196.399 | CE101: 1189158.824 | CF101: 1224251.008 | CG101: 1200012.942 | CH101: 1202210.689 | CI101: 1228444.784 | CJ101: 1195445.422 | CK101: 1217502.439 | CL101: 1216479.169 | CM101: 1213461.158 | CN101: 1216543.431 | CO101: 1215219.134 | CP101: 1206708.436 | CQ101: 1199350.585 | CR101: 1233501.617 | CS101: 1229945.01 | CT101: 1213390.737 | CU101: 1200440.739 | CV101: 1218529.192 | CW101: 1204962.326 | CX101: 1224421.505 | CY101: 1215208.07 | CZ101: 1199992.965 | DA101: 1199518.068 | DB101: 1208616.87 | DC101: 1215221.151 | DD101: 1206638.306 | DE101: 1201921.851 | DF101: 1211640.691 | DG101: 1200961.914 | DH101: 1205781.783 | DI101: 1202308.819 | DJ101: 1206093.492 | DK101: 1191432.975 | DL101: 1196807.532 | DM101: 1207175.044 | DN101: 1206107.837 | DO101: 1205544.784 | DP101: 1188918.072 | DQ101: 1207300.789 | DR101: 1193617.33 | DS101: 1200734.491 | DT101: 1220094.699 | DU101: 1197475.693 | DV101: 1208229.297 | DW101: 1203002.275 | DX101: 1209108.735 | DY101: 1201220.207 | DZ101: 1196648.548 | EA101: 1194094.367 | EB101: 1207879.588 | EC101: 1206658.704 | ED101: 1212623.519 | EE101: 1202925.89 | EF101: 1211666.05 | EG101: 1195762.931 | EH101: 1208862.24 | EI101: 1199548.861 | EJ101: 1207951.816 | EK101: 1200982.946 | EL101: 1197980.211 | EM101: 1211703.82 | EN101: 1190362.977 | EO101: 1207753.968 | EP101: 1204621.189 | EQ101: 1201790.078 | ER101: 1206464.327 | ES101: 1205395.973 | ET101: 1211832.089 | EU101: 1193732.184 | EV101: 1205837.967 | EW101: 1204430.951 | EX101: 1212923.61 | EY101: 1190967.193 | EZ101: 1207708.477 | FA101: 1204119.713 | FB101: 1197510.702 | FC101: 1193287.602 | FD101: 1199420.951 | FE101: 1202476.777 | FF101: 1211644.032 | FG101: 1190612.402 | FH101: 1215870.988 | FI101: 1191602.159 | FJ101: 1194463.022 | FK101: 1202340.923 | FL101: 1216214.69 | FM101: 1205299.327 | FN101: 1199465.402 | FO101: 1200216.091 | FP101: 1214321.28
AL102: 2124696312 | AM102: 302436430 | AN102: 1263677694 | AO102: 1289123819 | AP102: 640504305 | AQ102: 1518876232 | AR102: 1621650708 | AS102: 619604991 | AT102: 639403930 | AU102: 557134610 | AV102: 133854554 | AW102: 1853425747 | AZ102: 1.401482084 | BA102: 1.285457606 | BB102: 1.324818167 | BC102: 1.368287241 | BD102: 1.315820819 | BE102: 1.394842279 | BF102: 1.498106515 | BG102: 1.436554522 | BH102: 1.380835831 | BI102: 1.313623051 | BJ102: 1.15275766 | BK102: 1.284419588 | BM102: =SUMPRODUCT(TRANSPOSE($J$8:$J$19),AZ102:BK102) -> 7931860.125 | BO102: 0.998 | BP102: 9724267.026 | BQ102: 1226008.049 | BR102: 9641070.654 | BS102: 8498258.978 | BU102: 1234323.024 | BV102: 1222242.415 | BW102: 1232102.372 | BX102: 1227357.058 | BY102: 1227472.737 | BZ102: 1224950.775 | CA102: 1203003.797 | CB102: 1218435.456 | CC102: 1217224.692 | CD102: 1219637.732 | CE102: 1224108.242 | CF102: 1245465.647 | CG102: 1219672.515 | CH102: 1215372.437 | CI102: 1242780.921 | CJ102: 1209600.412 | CK102: 1233680.347 | CL102: 1239625.178 | CM102: 1234171.699 | CN102: 1226744.083 | CO102: 1227032.335 | CP102: 1232727.129 | CQ102: 1217143.842 | CR102: 1245633.393 | CS102: 1246186.681 | CT102: 1232936.259 | CU102: 1226603.714 | CV102: 1243629.868 | CW102: 1225813.692 | CX102: 1243386.353 | CY102: 1249132.211 | CZ102: 1213179.408 | DA102: 1220549.748 | DB102: 1232079.971 | DC102: 1235837.185 | DD102: 1240570.965 | DE102: 1210108.826 | DF102: 1228508.817 | DG102: 1212165.83 | DH102: 1227244.982 | DI102: 1223589.103 | DJ102: 1218876.68 | DK102: 1220663.731 | DL102: 1234310.023 | DM102: 1231206.301 | DN102: 1224863.784 | DO102: 1216087.733 | DP102: 1206379.006 | DQ102: 1228228.422 | DR102: 1207267.975 | DS102: 1218091.988 | DT102: 1244355.7 | DU102: 1217151.877 | DV102: 1237155.492 | DW102: 1230116.007 | DX102: 1227403.978 | DY102: 1224544.96 | DZ102: 1218891.932 | EA102: 1206715.163 | EB102: 1239443.263 | EC102: 1221610.979 | ED102: 1233713.925 | EE102: 1231169.328 | EF102: 1236037.016 | EG102: 1223000.071 | EH102: 1227451.763 | EI102: 1229811.745 | EJ102: 1224815.425 | EK102: 1227003.664 | EL102: 1219238.773 | EM102: 1225888.943 | EN102: 1202164.632 | EO102: 1228233.353 | EP102: 1229999.849 | EQ102: 1210793 | ER102: 1231448.13 | ES102: 1232976.645 | ET102: 1236366.03 | EU102: 1204252.642 | EV102: 1239074.237 | EW102: 1223543.445 | EX102: 1230173.209 | EY102: 1204775.181 | EZ102: 1223540.861 | FA102: 1216921.182 | FB102: 1209758.117 | FC102: 1227220.258 | FD102: 1223509.262 | FE102: 1226943.964 | FF102: 1233168.599 | FG102: 1202987.386 | FH102: 1224088.121 | FI102: 1222314.836 | FJ102: 1215976.754 | FK102: 1233598.969 | FL102: 1246786.174 | FM102: 1231089.764 | FN102: 1227923.958 | FO102: 1228577.679 | FP102: 1229071.14
AL103: 1691663126 | AM103: 315080224 | AN103: 1860457686 | AO103: 1809711477 | AP103: 461240796 | AQ103: 435402645 | AR103: 774909071 | AS103: 947768792 | AT103: 1032130346 | AU103: 507047929 | AV103: 1662365958 | AW103: 398015770 | AZ103: 1.222504426 | BA103: 1.123944276 | BB103: 1.255322107 | BC103: 1.388033162 | BD103: 1.303618576 | BE103: 1.219525243 | BF103: 1.191080917 | BG103: 1.18545797 | BH103: 1.190465504 | BI103: 1.124960994 | BJ103: 1.215026802 | BK103: 1.130159051 | BM103: =SUMPRODUCT(TRANSPOSE($J$8:$J$19),AZ103:BK103) -> 7340802.788 | BO103: 0.999 | BP103: 9984241.082 | BQ103: 1261046.673 | BR103: 10008110.87 | BS103: 8723194.408 | BU103: 1250693.957 | BV103: 1253762.813 | BW103: 1273956.444 | BX103: 1255400.55 | BY103: 1266057.823 | BZ103: 1257518.555 | CA103: 1257105.079 | CB103: 1265171.32 | CC103: 1237169.157 | CD103: 1240652.498 | CE103: 1257168.341 | CF103: 1283072.318 | CG103: 1258750.645 | CH103: 1259422.236 | CI103: 1266438.229 | CJ103: 1245465.063 | CK103: 1265055.31 | CL103: 1265876.403 | CM103: 1264073.087 | CN103: 1271194.279 | CO103: 1245710.138 | CP103: 1277730.569 | CQ103: 1256009.054 | CR103: 1266541.108 | CS103: 1276636.357 | CT103: 1260252.941 | CU103: 1254419.312 | CV103: 1279598.935 | CW103: 1275070.172 | CX103: 1292917.635 | CY103: 1302327.277 | CZ103: 1246524.753 | DA103: 1292284.113 | DB103: 1265605.089 | DC103: 1267208.818 | DD103: 1272147.925 | DE103: 1246446.745 | DF103: 1275597.776 | DG103: 1260647.49 | DH103: 1248657.692 | DI103: 1263629.459 | DJ103: 1250244.053 | DK103: 1252683.596 | DL103: 1256865.664 | DM103: 1281409.477 | DN103: 1251425.555 | DO103: 1252776.492 | DP103: 1240638.299 | DQ103: 1276583.198 | DR103: 1227937.912 | DS103: 1259478.6 | DT103: 1263055.672 | DU103: 1245429.989 | DV103: 1267542.81 | DW103: 1275613.049 | DX103: 1262236.889 | DY103: 1241511.417 | DZ103: 1279183.221 | EA103: 1259138.877 | EB103: 1252617.631 | EC103: 1259300.224 | ED103: 1256940.616 | EE103: 1308028.758 | EF103: 1258685.426 | EG103: 1269326.845 | EH103: 1260883.802 | EI103: 1267082.438 | EJ103: 1260556.48 | EK103: 1261765.984 | EL103: 1252328.325 | EM103: 1260159.146 | EN103: 1223630.287 | EO103: 1265620.433 | EP103: 1283287.075 | EQ103: 1246323.763 | ER103: 1268701.426 | ES103: 1291787.788 | ET103: 1272272.927 | EU103: 1251397.181 | EV103: 1273292.509 | EW103: 1265275.301 | EX103: 1246917.878 | EY103: 1234185.306 | EZ103: 1258896.986 | FA103: 1248665.415 | FB103: 1237984.878 | FC103: 1253782.446 | FD103: 1249479.697 | FE103: 1273102.466 | FF103: 1248562.148 | FG103: 1220752.077 | FH103: 1260196.213 | FI103: 1260936.658 | FJ103: 1245855.031 | FK103: 1278586.641 | FL103: 1273202.42 | FM103: 1257939.373 | FN103: 1266840.783 | FO103: 1263429.523 | FP103: 1252364.788
AL104: 205077971 | AM104: 758304650 | AN104: 534327013 | AO104: 1242913601 | AP104: 1591495267 | AQ104: 2046107253 | AR104: 765602795 | AS104: 1903226591 | AT104: 343321366 | AU104: 839455900 | AV104: 1193204816 | AW104: 1230527608 | AZ104: 1.009786467 | BA104: 0.9869101306 | BB104: 0.9371985713 | BC104: 0.9630993535 | BD104: 1.030505011 | BE104: 1.210053352 | BF104: 1.180586546 | BG104: 1.328709304 | BH104: 1.224495368 | BI104: 1.2044691 | BJ104: 1.230554377 | BK104: 1.262391752 | BM104: =SUMPRODUCT(TRANSPOSE($J$8:$J$19),AZ104:BK104) -> 5748765.333
AL105: 1566609118 | AM105: 264997035 | AN105: 1220644053 | AO105: 284303985 | AP105: 1135529226 | AQ105: 575316739 | AR105: 366436222 | AS105: 1300355501 | AT105: 334354287 | AU105: 506813657 | AV105: 1678260596 | AW105: 1547973395 | AZ105: 1.2019004 | BA105: 1.094266708 | BB105: 1.122541535 | BC105: 1.023885738 | BD105: 1.039881508 | BE105: 0.9917604221 | BF105: 0.9176699056 | BG105: 0.9484162759 | BH105: 0.8726568121 | BI105: 0.8246129937 | BJ105: 0.8926440775 | BK105: 0.9497041965 | BM105: =SUMPRODUCT(TRANSPOSE($J$8:$J$19),AZ105:BK105) -> 6560293.889
AL106: 299589520 | AM106: 1259274953 | AN106: 1200259624 | AO106: 1217155605 | AP106: 758662218 | AQ106: 2003268912 | AR106: 1567555470 | AS106: 660870608 | AT106: 1276180572 | AU106: 268330423 | AV106: 1791613735 | AW106: 530252680 | AZ106: 1.03062939 | BA106: 1.063191891 | BB106: 1.088280608 | BC106: 1.115257418 | BD106: 1.087483745 | BE106: 1.256810609 | BF106: 1.340322484 | BG106: 1.291735956 | BH106: 1.331440933 | BI106: 1.209833444 | BJ106: 1.332904874 | BK106: 1.263772382 | BM106: =SUMPRODUCT(TRANSPOSE($J$8:$J$19),AZ106:BK106) -> 6328220.337
AL107: 330841022 | AM107: 1936627928 | AN107: 770997691 | AO107: 313110682 | AP107: 345292787 | AQ107: 752510389 | AR107: 883790325 | AS107: 15542583 | AT107: 1943976817 | AU107: 1103973576 | AV107: 1672653848 | AW107: 2117011334 | AZ107: 1.036573164 | BA107: 1.178770054 | BB107: 1.152083895 | BC107: 1.056623862 | BD107: 0.974400233 | BE107: 0.9493401992 | BF107: 0.9384264871 | BG107: 0.7581919953 | BH107: 0.8614659079 | BI107: 0.871735833 | BJ107: 0.9428993002 | BK107: 1.160660053 | BM107: =SUMPRODUCT(TRANSPOSE($J$8:$J$19),AZ107:BK107) -> 6520731.795
AL108: 1338573870 | AM108: 856074931 | AN108: 937939751 | AO108: 175823236 | AP108: 1007536910 | AQ108: 1890582061 | AR108: 1680130420 | AS108: 784231190 | AT108: 1259494095 | AU108: 101786791 | AV108: 1731220549 | AW108: 97277372 | AZ108: 1.169923368 | BA108: 1.155946969 | BB108: 1.150669318 | BC108: 1.023446602 | BD108: 1.025423658 | BE108: 1.151114238 | BF108: 1.24641525 | BG108: 1.218541797 | BH108: 1.253719971 | BI108: 1.086691692 | BJ108: 1.185623272 | BK108: 1.025848477 | BM108: =SUMPRODUCT(TRANSPOSE($J$8:$J$19),AZ108:BK108) -> 6643560.925
AL109: 811307834 | AM109: 1712658727 | AN109: 2039474467 | AO109: 308052012 | AP109: 752029001 | AQ109: 821603619 | AR109: 1855574865 | AS109: 1929526821 | AT109: 1777413175 | AU109: 2055087672 | AV109: 568481421 | AW109: 1276771470 | AZ109: 1.105357293 | BA109: 1.205684007 | BB109: 1.413324544 | BC109: 1.295001042 | BD109: 1.261797487 | BE109: 1.238924182 | BF109: 1.380846672 | BG109: 1.563462685 | BH109: 1.718233326 | BI109: 2.025350597 | BJ109: 1.929761823 | BK109: 1.989633587 | BM109: =SUMPRODUCT(TRANSPOSE($J$8:$J$19),AZ109:BK109) -> 7381238.642
AL110: 1128668322 | AM110: 71452458 | AN110: 379167136 | AO110: 801899424 | AP110: 128338383 | AQ110: 2047783600 | AR110: 1058875692 | AS110: 1675922454 | AT110: 1244705481 | AU110: 277425594 | AV110: 620631725 | AW110: 402443117 | AZ110: 1.143670522 | BA110: 0.9792367712 | BB110: 0.9090234106 | BC110: 0.8909541062 | BD110: 0.7805131342 | BE110: 0.917168397 | BF110: 0.9237526085 | BG110: 0.9995611122 | BH110: 1.026771791 | BI110: 0.9347153834 | BJ110: 0.8964852593 | BK110: 0.8344492078 | BM110: =SUMPRODUCT(TRANSPOSE($J$8:$J$19),AZ110:BK110) -> 5801514.942
AL111: 288446872 | AM111: 222863036 | AN111: 1921182122 | AO111: 94358729 | AP111: 1679247845 | AQ111: 2037367837 | AR111: 730246285 | AS111: 596310897 | AT111: 880797585 | AU111: 2050308929 | AV111: 1117121825 | AW111: 194629945 | AZ111: 1.028417617 | BA111: 0.927679406 | BB111: 1.049575487 | BC111: 0.9072914727 | BD111: 0.9825003126 | BE111: 1.14950809 | BF111: 1.116991698 | BG111: 1.067986788 | BH111: 1.05525719 | BI111: 1.241184509 | BJ111: 1.257835833 | BK111: 1.124005343 | BM111: =SUMPRODUCT(TRANSPOSE($J$8:$J$19),AZ111:BK111) -> 5773557.942
AL112: 1482474811 | AM112: 1076022933 | AN112: 448399014 | AO112: 2124875919 | AP112: 54986333 | AQ112: 1769245462 | AR112: 921841377 | AS112: 1799988346 | AT112: 1098982229 | AU112: 1530956117 | AV112: 1273238405 | AW112: 1888603117 | AZ112: 1.189470636 | BA112: 1.203272254 | BB112: 1.129017474 | BC112: 1.404878735 | BD112: 1.18761412 | BE112: 1.303674378 | BF112: 1.293999229 | BG112: 1.427580749 | BH112: 1.443803203 | BI112: 1.532538996 | BJ112: 1.579303211 | BK112: 1.772188897 | BM112: =SUMPRODUCT(TRANSPOSE($J$8:$J$19),AZ112:BK112) -> 7248941.932
AL113: 2091516447 | AM113: 1663512501 | AN113: 181126681 | AO113: 1771538035 | AP113: 2102976198 | AQ113: 2118022306 | AR113: 196459680 | AS113: 49092146 | AT113: 1830127865 | AU113: 1575463143 | AV113: 1656554262 | AW113: 1932761910 | AZ113: 1.35619788 | BA113: 1.468776843 | BB113: 1.309148422 | BC113: 1.43820956 | BD113: 1.746139483 | BE113: 2.151935489 | BF113: 1.923668072 | BG113: 1.618599823 | BH113: 1.795208484 | BI113: 1.916283691 | BJ113: 2.068018961 | BK113: 2.343745824 | BM113: =SUMPRODUCT(TRANSPOSE($J$8:$J$19),AZ113:BK113) -> 8212008.633
AL114: 2089200373 | AM114: 703407147 | AN114: 760091614 | AO114: 1113663945 | AP114: 1212059968 | AQ114: 1653266550 | AR114: 17428128 | AS114: 1052516925 | AT114: 1067384776 | AU114: 342984542 | AV114: 1977184957 | AW114: 1070597342 | AZ114: 1.354042963 | BA114: 1.315015259 | BB114: 1.283656727 | BC114: 1.301041645 | BD114: 1.332201881 | BE114: 1.437153178 | BF114: 1.165600194 | BG114: 1.173099189 | BH114: 1.18246457 | BI114: 1.08968155 | BJ114: 1.249278015 | BK114: 1.259950753 | BM114: =SUMPRODUCT(TRANSPOSE($J$8:$J$19),AZ114:BK114) -> 7748739.445
AL115: 1959141963 | AM115: 302450120 | AN115: 624190399 | AO115: 1861637391 | AP115: 1302236460 | AQ115: 42345236 | AR115: 1607060711 | AS115: 876365949 | AT115: 1302863472 | AU115: 1255392159 | AV115: 79335726 | AW115: 1757814274 | AZ115: 1.285827096 | BA115: 1.179380399 | BB115: 1.132934134 | BC115: 1.264833781 | BD115: 1.307859531 | BE115: 1.094479418 | BF115: 1.173219581 | BG115: 1.158719347 | BH115: 1.197828242 | BI115: 1.231887933 | BJ115: 1.056605473 | BK115: 1.157749187 | BM115: =SUMPRODUCT(TRANSPOSE($J$8:$J$19),AZ115:BK115) -> 7170738.241
AL116: 1004333034 | AM116: 975910214 | AN116: 1099182719 | AO116: 1645292246 | AP116: 1262329323 | AQ116: 1789938659 | AR116: 875800100 | AS116: 1927845573 | AT116: 1464054517 | AU116: 1341356043 | AV116: 651487145 | AW116: 78959990 | AZ116: 1.128691451 | BA116: 1.12971675 | BB116: 1.144003299 | BC116: 1.233267253 | BD116: 1.26967403 | BE116: 1.398555884 | BF116: 1.381277323 | BG116: 1.563325772 | BH116: 1.645977287 | BI116: 1.708831696 | BJ116: 1.645135264 | BK116: 1.410931525 | BM116: =SUMPRODUCT(TRANSPOSE($J$8:$J$19),AZ116:BK116) -> 6825747.629
AL117: 716553189 | AM117: 960659402 | AN117: 770562420 | AO117: 1661773312 | AP117: 1197750555 | AQ117: 271955191 | AR117: 383552258 | AS117: 2124778832 | AT117: 1983734631 | AU117: 1965594603 | AV117: 185449627 | AW117: 1841687512 | AZ117: 1.093530835 | BA117: 1.092743745 | BB117: 1.067952565 | BC117: 1.153926486 | BD117: 1.179752221 | BE117: 1.072973311 | BF117: 0.9956098483 | BG117: 1.237999335 | BH117: 1.421873751 | BI117: 1.624726665 | BJ117: 1.448190227 | BK117: 1.609996259 | BM117: =SUMPRODUCT(TRANSPOSE($J$8:$J$19),AZ117:BK117) -> 6494292.35
AL118: 1367367637 | AM118: 1375604271 | AN118: 1401809780 | AO118: 502877161 | AP118: 2062295871 | AQ118: 2128974297 | AR118: 994525131 | AS118: 1380018752 | AT118: 558553271 | AU118: 1094589659 | AV118: 1127104221 | AW118: 717356893 | AZ118: 1.173700477 | BA118: 1.226453966 | BB118: 1.283575034 | BC118: 1.212947931 | BD118: 1.435116036 | BE118: 1.79716828 | BF118: 1.797750861 | BG118: 1.874549478 | BH118: 1.783594869 | BI118: 1.803063763 | BJ118: 1.829189546 | BK118: 1.774995753 | BM118: =SUMPRODUCT(TRANSPOSE($J$8:$J$19),AZ118:BK118) -> 7214115.612
AL119: 1293315082 | AM119: 1599400201 | AN119: 1697657057 | AO119: 1375776590 | AP119: 332048709 | AQ119: 2035846949 | AR119: 1873153463 | AS119: 2089931499 | AT119: 267756356 | AU119: 249778801 | AV119: 2097138793 | AW119: 1508257775 | AZ119: 1.164092597 | BA119: 1.249782873 | BB119: 1.358253261 | BC119: 1.416389967 | BD119: 1.303140165 | BE119: 1.523725112 | BF119: 1.70419056 | BG119: 2.048121528 | BH119: 1.860794633 | BI119: 1.68424676 | BJ119: 2.034835873 | BK119: 2.154288738 | BM119: =SUMPRODUCT(TRANSPOSE($J$8:$J$19),AZ119:BK119) -> 7628425.746
AL120: 115221285 | AM120: 462509174 | AN120: 1775312574 | AO120: 1327476062 | AP120: 1652774578 | AQ120: 1368904812 | AR120: 1339339185 | AS120: 744103110 | AT120: 1310472830 | AU120: 1099308813 | AV120: 755040970 | AW120: 1120456431 | AZ120: 0.982416448 | BA120: 0.9250049378 | BB120: 1.017487447 | BC120: 1.055319437 | BD120: 1.138534326 | BE120: 1.185863668 | BF120: 1.230970528 | BG120: 1.197976616 | BH120: 1.239447825 | BI120: 1.25360386 | BJ120: 1.221610454 | BK120: 1.238574724 | BM120: =SUMPRODUCT(TRANSPOSE($J$8:$J$19),AZ120:BK120) -> 5859955.605
AL121: 2011486152 | AM121: 540343942 | AN121: 778326019 | AO121: 1979929616 | AP121: 2064168588 | AQ121: 332361862 | AR121: 1246606200 | AS121: 1937226735 | AT121: 1555670898 | AU121: 414794953 | AV121: 1637689633 | AW121: 1176731106 | AZ121: 1.306102518 | BA121: 1.243073588 | BB121: 1.215937179 | BC121: 1.39581486 | BD121: 1.653019223 | BE121: 1.520727679 | BF121: 1.562607821 | BG121: 1.772552804 | BH121: 1.887285446 | BI121: 1.759728008 | BJ121: 1.89412254 | BK121: 1.931955201 | BM121: =SUMPRODUCT(TRANSPOSE($J$8:$J$19),AZ121:BK121) -> 7601882.16
AL122: 122427734 | AM122: 1753531467 | AN122: 348858884 | AO122: 1570267848 | AP122: 535657842 | AQ122: 1736597512 | AR122: 288607613 | AS122: 1843800217 | AT122: 581749062 | AU122: 1577135282 | AV122: 1895744826 | AW122: 1044754576 | AZ122: 0.9850977016 | BA122: 1.08130936 | BB122: 0.998697737 | BC122: 1.065954208 | BD122: 1.011508846 | BE122: 1.10460775 | BF122: 1.007882036 | BG122: 1.120738244 | BH122: 1.06955272 | BI122: 1.141933031 | BJ122: 1.283206463 | BK122: 1.290630058 | BM122: =SUMPRODUCT(TRANSPOSE($J$8:$J$19),AZ122:BK122) -> 6085815.267
AL123: 1981635017 | AM123: 1649497052 | AN123: 1347913437 | AO123: 816486296 | AP123: 1036581302 | AQ123: 274341107 | AR123: 651669034 | AS123: 1768008539 | AT123: 1112803630 | AU123: 1601911272 | AV123: 925329882 | AW123: 1989655595 | AZ123: 1.293895879 | BA123: 1.398562934 | BB123: 1.454811154 | BC123: 1.428209448 | BD123: 1.435386413 | BE123: 1.306102075 | BF123: 1.257444041 | BG123: 1.379838637 | BH123: 1.397564866 | BI123: 1.496969776 | BJ123: 1.486419027 | BK123: 1.710582159 | BM123: =SUMPRODUCT(TRANSPOSE($J$8:$J$19),AZ123:BK123) -> 8208202.478
AL124: 139817286 | AM124: 621017273 | AN124: 669980621 | AO124: 1990104472 | AP124: 447053742 | AQ124: 1335408595 | AR124: 375478958 | AS124: 392570642 | AT124: 1135561319 | AU124: 1415333183 | AV124: 1086360069 | AW124: 754081464 | AZ124: 0.9911175562 | BA124: 0.953068115 | BB124: 0.9206355558 | BC124: 1.060023122 | BD124: 0.9934961149 | BE124: 1.030924423 | BF124: 0.9553352194 | BG124: 0.8876801388 | BH124: 0.9012578658 | BI124: 0.9435437003 | BJ124: 0.9530891084 | BK124: 0.9287667741 | BM124: =SUMPRODUCT(TRANSPOSE($J$8:$J$19),AZ124:BK124) -> 5781397.135
AL125: 1726593632 | AM125: 400556510 | AN125: 1678316118 | AO125: 946986661 | AP125: 1815495026 | AQ125: 491657246 | AR125: 2130284585 | AS125: 381758854 | AT125: 160339774 | AU125: 1650814582 | AV125: 283714606 | AW125: 418532094 | AZ125: 1.228891259 | BA125: 1.146324062 | BB125: 1.242324757 | BC125: 1.23704868 | BD125: 1.368855025 | BE125: 1.290999447 | BF125: 1.620508106 | BG125: 1.503129413 | BH125: 1.330171043 | BI125: 1.434233575 | BJ125: 1.307387911 | BK125: 1.219959791 | BM125: =SUMPRODUCT(TRANSPOSE($J$8:$J$19),AZ125:BK125) -> 7153208.913
AL126: 560870202 | AM126: 1468020269 | AN126: 176748903 | AO126: 656203089 | AP126: 1247733270 | AQ126: 945138669 | AR126: 860249587 | AS126: 324466527 | AT126: 230166966 | AU126: 1942482140 | AV126: 684529307 | AW126: 1584042145 | AZ126: 1.07289318 | BA126: 1.133168379 | BB126: 1.008795989 | BC126: 0.9722253384 | BD126: 0.9993439426 | BE126: 0.9944982798 | BF126: 0.9805467034 | BG126: 0.9006617135 | BH126: 0.8116441231 | BI126: 0.921875123 | BJ126: 0.8910275401 | BK126: 0.9523594905 | BM126: =SUMPRODUCT(TRANSPOSE($J$8:$J$19),AZ126:BK126) -> 6181879.16
AL127: 439183013 | AM127: 141021193 | AN127: 2041250829 | AO127: 195515869 | AP127: 1006312408 | AQ127: 1646094431 | AR127: 1364015685 | AS127: 725487246 | AT127: 1456709855 | AU127: 2124384626 | AV127: 1730785455 | AW127: 2143129860 | AZ127: 1.054943741 | BA127: 0.9303814717 | BB127: 1.091405624 | BC127: 0.975878577 | BD127: 0.9776365267 | BE127: 1.053607343 | BF127: 1.096707271 | BG127: 1.06502819 | BH127: 1.120362232 | BI127: 1.392280913 | BJ127: 1.518931456 | BK127: 1.989091098 | BM127: =SUMPRODUCT(TRANSPOSE($J$8:$J$19),AZ127:BK127) -> 5975588.677
AL128: 1992140986 | AM128: 1858329960 | AN128: 226591358 | AO128: 1703367581 | AP128: 1773635075 | AQ128: 1729339801 | AR128: 552513615 | AS128: 979020037 | AT128: 1784356984 | AU128: 1678653749 | AV128: 1040895417 | AW128: 291745129 | AZ128: 1.297970855 | BA128: 1.451151878 | BB128: 1.308278966 | BC128: 1.422099511 | BD128: 1.562410313 | BE128: 1.704304995 | BF128: 1.620498675 | BG128: 1.618242188 | BH128: 1.780493757 | BI128: 1.927337462 | BJ128: 1.937479459 | BK128: 1.769099861 | BM128: =SUMPRODUCT(TRANSPOSE($J$8:$J$19),AZ128:BK128) -> 8071920.472
AL129: 467306193 | AM129: 906080323 | AN129: 657227847 | AO129: 402626115 | AP129: 1408150376 | AQ129: 2124691534 | AR129: 785297572 | AS129: 751070145 | AT129: 1421860788 | AU129: 1442149375 | AV129: 387785148 | AW129: 1778848580 | AZ129: 1.059291414 | BA129: 1.052342104 | BB129: 1.014977306 | BC129: 0.9451294663 | BD129: 0.9889561673 | BE129: 1.229752219 | BF129: 1.202475383 | BG129: 1.171177727 | BH129: 1.227024519 | BI129: 1.288599063 | BJ129: 1.196506092 | BK129: 1.315546296 | BM129: =SUMPRODUCT(TRANSPOSE($J$8:$J$19),AZ129:BK129) -> 6010777.033
AL130: 169014215 | AM130: 1751316731 | AN130: 269485406 | AO130: 438191815 | AP130: 674405052 | AQ130: 1461024288 | AR130: 1865244815 | AS130: 1088040641 | AT130: 1064739428 | AU130: 1162579473 | AV130: 1309411856 | AW130: 1813663532 | AZ130: 1.000100036 | BA130: 1.097390702 | BB130: 0.9986176894 | BC130: 0.9349688732 | BD130: 0.9027973937 | BE130: 0.9503668651 | BF130: 1.061243584 | BG130: 1.072098573 | BH130: 1.080354803 | BI130: 1.100060656 | BJ130: 1.138127262 | BK130: 1.258845451 | BM130: =SUMPRODUCT(TRANSPOSE($J$8:$J$19),AZ130:BK130) -> 5948923.303
AL131: 194797312 | AM131: 2116157946 | AN131: 1021583147 | AO131: 1390662562 | AP131: 501660219 | AQ131: 1740438568 | AR131: 1833080743 | AS131: 1949710679 | AT131: 310805337 | AU131: 831077779 | AV131: 1881002472 | AW131: 886515923 | AZ131: 1.007154734 | BA131: 1.241575947 | BB131: 1.246978936 | BC131: 1.30255021 | BD131: 1.230338938 | BE131: 1.344381738 | BF131: 1.492032354 | BG131: 1.697787794 | BH131: 1.555518906 | BI131: 1.528666342 | BJ131: 1.712461737 | BK131: 1.693465446 | BM131: =SUMPRODUCT(TRANSPOSE($J$8:$J$19),AZ131:BK131) -> 7052633.44
AL132: 1377640986 | AM132: 1853058164 | AN132: 173102776 | AO132: 481208729 | AP132: 614827777 | AQ132: 1002361641 | AR132: 1871838012 | AS132: 1013356234 | AT132: 563664385 | AU132: 1960944149 | AV132: 114247105 | AW132: 103485364 | AZ132: =$F$4*_xlfn.LOGNORM.INV(AL132/(2^31-1),AZ$2,$AZ$1) -> 1.175062281 | BA132: =AZ132*_xlfn.LOGNORM.INV(AM132/(2^31-1),BA$2,$AZ$1) -> 1.31239664 | BB132: =BA132*_xlfn.LOGNORM.INV(AN132/(2^31-1),BB$2,$AZ$1) -> 1.167158749 | BC132: =BB132*_xlfn.LOGNORM.INV(AO132/(2^31-1),BC$2,$AZ$1) -> 1.099608543 | BD132: =BC132*_xlfn.LOGNORM.INV(AP132/(2^31-1),BD$2,$AZ$1) -> 1.054109427 | BE132: =BD132*_xlfn.LOGNORM.INV(AQ132/(2^31-1),BE$2,$AZ$1) -> 1.055421824 | BF132: =BE132*_xlfn.LOGNORM.INV(AR132/(2^31-1),BF$2,$AZ$1) -> 1.180109385 | BG132: =BF132*_xlfn.LOGNORM.INV(AS132/(2^31-1),BG$2,$AZ$1) -> 1.182778621 | BH132: =BG132*_xlfn.LOGNORM.INV(AT132/(2^31-1),BH$2,$AZ$1) -> 1.126137082 | BI132: =BH132*_xlfn.LOGNORM.INV(AU132/(2^31-1),BI$2,$AZ$1) -> 1.285185208 | BJ132: =BI132*_xlfn.LOGNORM.INV(AV132/(2^31-1),BJ$2,$AZ$1) -> 1.11973609 | BK132: =BJ132*_xlfn.LOGNORM.INV(AW132/(2^31-1),BK$2,$AZ$1) -> 0.9714454448 | BM132: =SUMPRODUCT(TRANSPOSE($J$8:$J$19),AZ132:BK132) -> 7016692.972
AL133: 1129422204 | AM133: 1981769600 | AN133: 2132713466 | AO133: 1243431607 | AP133: 127622027 | AQ133: 44722154 | AR133: 118229727 | AS133: 336260048 | AT133: 25720845 | AU133: 2098307560 | AV133: 83999959 | AW133: 295042722 | AZ133: 1.143762055 | BA133: 1.316391878 | BB133: 1.662560444 | BC133: 1.708603243 | BD133: 1.496425651 | BE133: 1.254852312 | BF133: 1.094984017 | BG133: 1.007892507 | BH133: 0.8282540049 | BI133: 1.001481983 | BJ133: 0.861033777 | BK133: 0.7867050374 | BM133: =SUMPRODUCT(TRANSPOSE($J$8:$J$19),AZ133:BK133) -> 8549082.904
AL134: =MOD(48271*AL133,2^31-1) -> 171862895 | AM134: =MOD(48271*AM133,2^31-1) -> 193822338 | AN134: =MOD(48271*AN133,2^31-1) -> 2140647400 | AO134: =MOD(48271*AO133,2^31-1) -> 1666651494 | AP134: =MOD(48271*AP133,2^31-1) -> 1459765721 | AQ134: =MOD(48271*AQ133,2^31-1) -> 562030499 | AR134: =MOD(48271*AR133,2^31-1) -> 1203101938 | AS134: =MOD(48271*AS133,2^31-1) -> 927372982 | AT134: =MOD(48271*AT133,2^31-1) -> 325361029 | AU134: =MOD(48271*AU133,2^31-1) -> 1338018005 | AV134: =MOD(48271*AV133,2^31-1) -> 312895353 | AW134: =MOD(48271*AW133,2^31-1) -> 2043170405 | AZ134: 1.000915176 | BA134: 0.8964309012 | BB134: 1.159690916 | BC134: 1.253911686 | BD134: 1.319964445 | BE134: 1.256725228 | BF134: 1.285302545 | BG134: 1.276438309 | BH134: 1.172593271 | BI134: 1.216918327 | BJ134: 1.115492102 | BK134: 1.308250153 | BM134: =SUMPRODUCT(TRANSPOSE($J$8:$J$19),AZ134:BK134) -> 6331110.717
AL135: 264476184 | AM135: 1559311266 | AN135: 720002701 | AO135: 1901882960 | AP135: 1117693027 | AQ135: 613304678 | AR135: 533383377 | AS135: 924592407 | AT135: 954320348 | AU135: 1896435830 | AV135: 519095312 | AW135: 544647633 | AZ135: 1.023469026 | BA135: 1.093132491 | BB135: 1.06216665 | BC135: 1.19574931 | BD135: 1.212133087 | BE135: 1.161600496 | BF135: 1.101690701 | BG135: 1.093765651 | BH135: 1.089325993 | BI135: 1.224173496 | BJ135: 1.158809437 | BK135: 1.10081092 | BM135: =SUMPRODUCT(TRANSPOSE($J$8:$J$19),AZ135:BK135) -> 6437167.633
AL136: 1887080096 | AM136: 212293736 | AN136: 375036923 | AO136: 866452910 | AP136: 928442736 | AQ136: 1768037843 | AR136: 767547284 | AS136: 1994926343 | AT136: 325806511 | AU136: 2068529261 | AV136: 410612356 | AW136: 1191085969 | AZ136: 1.264265999 | BA136: 1.137553477 | BB136: 1.055275187 | BC136: 1.041690218 | BD136: 1.034923872 | BE136: 1.13583862 | BF136: 1.108423238 | BG136: 1.277421001 | BH136: 1.173590107 | BI136: 1.392541481 | BJ136: 1.297688582 | BK136: 1.325639474 | BM136: =SUMPRODUCT(TRANSPOSE($J$8:$J$19),AZ136:BK136) -> 6648653.761
AL137: 1429459217 | AM137: 1986450619 | AN137: 120165923 | AO137: 156909638 | AP137: 1023080213 | AQ137: 1807104026 | AR137: 1887067920 | AS137: 1775287826 | AT137: 983345500 | AU137: 576306819 | AV137: 1542458313 | AW137: 331128468 | AZ137: 1.182058563 | BA137: 1.362350752 | BB137: 1.191016342 | BC137: 1.053508035 | BD137: 1.057286765 | BE137: 1.168052676 | BF137: 1.310141658 | BG137: 1.439382417 | BH137: 1.437988277 | BI137: 1.371389294 | BJ137: 1.457881013 | BK137: 1.340946012 | BM137: =SUMPRODUCT(TRANSPOSE($J$8:$J$19),AZ137:BK137) -> 7072168.168
AL138: 628802050 | AM138: 665507552 | AN138: 175938586 | AO138: 10312929 | AP138: 1571015311 | AQ138: 2080181553 | AR138: 841711521 | AS138: 1731198958 | AT138: 1239580859 | AU138: 403296711 | AV138: 599701686 | AW138: 181494207 | AZ138: 1.08213744 | BA138: 1.046241631 | BB138: 0.9311996534 | BC138: 0.742966747 | BD138: 0.7928622407 | BE138: 0.9471041243 | BF138: 0.931920858 | BG138: 1.016690537 | BH138: 1.043789498 | BI138: 0.9715033949 | BJ138: 0.9293403927 | BK138: 0.827567746 | BM138: =SUMPRODUCT(TRANSPOSE($J$8:$J$19),AZ138:BK138) -> 5631269.871
AL139: 369888852 | AM139: 507167119 | AN139: 1581144568 | AO139: 1746673302 | AP139: 390050770 | AQ139: 403378437 | AR139: 2013712598 | AS139: 1673745907 | AT139: 470788428 | AU139: 596276626 | AV139: 120523346 | AW139: 1321069984 | AZ139: 1.043542932 | BA139: 0.9887527271 | BB139: 1.057504912 | BC139: 1.157127424 | BD139: 1.075059245 | BE139: 1.000787855 | BF139: 1.16056316 | BG139: 1.255415727 | BH139: 1.180303081 | BI139: 1.128499722 | BJ139: 0.9855807849 | BK139: 1.021111976 | BM139: =SUMPRODUCT(TRANSPOSE($J$8:$J$19),AZ139:BK139) -> 6250799.336
AL140: 725733734 | AM140: 150425449 | AN140: 1860627548 | AO140: 1311495975 | AP140: 1151585421 | AQ140: 246305078 | AR140: 221020250 | AS140: 758909363 | AT140: 756255434 | AU140: 145692905 | AV140: 249235043 | AW140: 1989783646 | AZ140: 1.09469499 | BA140: 0.9683714352 | BB140: 1.081600375 | BC140: 1.119836712 | BD140: 1.139274179 | BE140: 1.030577663 | BF140: 0.9268433548 | BG140: 0.9035262729 | BH140: 0.8804977085 | BI140: 0.7756625974 | BJ140: 0.7020441102 | BK140: 0.8079490047 | BM140: =SUMPRODUCT(TRANSPOSE($J$8:$J$19),AZ140:BK140) -> 6281769.196
AL141: 2139824050 | AM141: 544638172 | AN141: 143801027 | AO141: 1551779312 | AP141: 565654496 | AQ141: 922950346 | AR141: 169729454 | AS141: 1537810847 | AT141: 131539261 | AU141: 1880756977 | AV141: 621370159 | AW141: 492780344 | AZ141: 1.451521628 | BA141: 1.382260048 | BB141: 1.218427074 | BC141: 1.297428546 | BD141: 1.236017114 | BE141: 1.227096937 | BF141: 1.089005451 | BG141: 1.156937815 | BH141: 1.014340102 | BI141: 1.136146814 | BJ141: 1.089777573 | BK141: 1.027981667 | BM141: =SUMPRODUCT(TRANSPOSE($J$8:$J$19),AZ141:BK141) -> 7900002.276
AL142: 1778264144 | AM142: 734394038 | AN142: 752227213 | AO142: 1709562192 | AP142: 1601088458 | AQ142: 40411104 | AR142: 360360729 | AS142: 1747653335 | AT142: 1570007199 | AU142: 1148859842 | AV142: 254847440 | AW142: 1471111052 | AZ142: 1.239030758 | BA142: 1.207653016 | BB142: 1.177799635 | BC142: 1.281447444 | BD142: 1.372860177 | BE142: 1.146874542 | BF142: 1.060116635 | BG142: 1.159515017 | BH142: 1.23682245 | BI142: 1.25754477 | BJ142: 1.139562432 | BK142: 1.201073416 | BM142: =SUMPRODUCT(TRANSPOSE($J$8:$J$19),AZ142:BK142) -> 7229375.907
AL143: 1519640787 | AM143: 1422047269 | AN143: 1106295247 | AO143: 922466763 | AP143: 351984235 | AQ143: 769249708 | AR143: 355208859 | AS143: 1374028684 | AT143: 1119600299 | AU143: 2143216701 | AV143: 954446224 | AW143: 1159835743 | AZ143: 1.194849024 | BA143: 1.255197828 | BB143: 1.272029876 | BC143: 1.263297734 | BD143: 1.166333365 | BE143: 1.138500061 | BF143: 1.051458736 | BG143: 1.095633766 | BH143: 1.110509222 | BI143: 1.454808123 | BJ143: 1.449072758 | BK143: 1.475356805 | BM143: =SUMPRODUCT(TRANSPOSE($J$8:$J$19),AZ143:BK143) -> 7343741.648
AL144: 834015051 | AM144: 1476429191 | AN144: 502017988 | AO144: 319696228 | AP144: 1887876268 | AQ144: 312914591 | AR144: 777395141 | AS144: 706167769 | AT144: 652572627 | AU144: 188679746 | AV144: 2106999613 | AW144: 1532473063 | AZ144: 1.108140123 | BA144: 1.171567872 | BB144: 1.107692129 | BC144: 1.017138426 | BD144: 1.141316658 | BE144: 1.046285267 | BF144: 1.022168249 | BG144: 0.9904156139 | BH144: 0.9535242725 | BI144: 0.8505812926 | BJ144: 1.036134929 | BK144: 1.100234264 | BM144: =SUMPRODUCT(TRANSPOSE($J$8:$J$19),AZ144:BK144) -> 6500410.109
AL145: 2012080159 | AM145: 173685772 | AN145: 704826000 | AO145: 239134446 | AP145: 1206772183 | AQ145: 1447732810 | AR145: 511603533 | AS145: 416448568 | AT145: 1043143721 | AU145: 281872239 | AV145: 5313556 | AW145: 1785519511 | AZ145: 1.306366886 | BA145: 1.163642684 | BB145: 1.128682798 | BC145: 1.019798748 | BD145: 1.043630928 | BE145: 1.096902811 | BF145: 1.037276445 | BG145: 0.9674292304 | BH145: 0.9726509619 | BI145: 0.8862328526 | BJ145: 0.6927311862 | BK145: 0.7624996311 | BM145: =SUMPRODUCT(TRANSPOSE($J$8:$J$19),AZ145:BK145) -> 6828476.129
AL146: 878452220 | AM146: 209742324 | AN146: 72426579 | AO146: 534240241 | AP146: 1606120718 | AQ146: 97630836 | AR146: 1699684590 | AS146: 1941890008 | AT146: 1541485182 | AU146: 1945945024 | AV146: 940107683 | AW146: 1703626783 | AZ146: 1.113545364 | BA146: 1.001315623 | BB146: 0.8566027734 | BC146: 0.8129171775 | BD146: 0.8714861457 | BE146: 0.7541436716 | BF146: 0.8189046232 | BG146: 0.9299977699 | BH146: 0.988428616 | BI146: 1.123644233 | BJ146: 1.117496886 | BK146: 1.214302456 | BM146: =SUMPRODUCT(TRANSPOSE($J$8:$J$19),AZ146:BK146) -> 5602393.199
AL147: 1702501605 | AM147: 1233809846 | AN147: 17593 | AO147: 1327040135 | AP147: 598554584 | AQ147: 1158963038 | AR147: 862110255 | AS147: 1458868265 | AT147: 870335419 | AU147: 1777533724 | AV147: 1461021336 | AW147: 29663975 | AZ147: 1.224450531 | BA147: 1.259662813 | BB147: 0.8603765476 | BC147: 0.892323764 | BD147: 0.8536631414 | BE147: 0.8690448031 | BF147: 0.8570274926 | BG147: 0.9018173542 | BH147: 0.8900540582 | BI147: 0.978203904 | BJ147: 1.029657739 | BK147: 0.8505810969 | BM147: =SUMPRODUCT(TRANSPOSE($J$8:$J$19),AZ147:BK147) -> 6277335.113
AL148: 1550771559 | AM148: 1071094015 | AN148: 849231703 | AO148: 264650222 | AP148: 583337526 | AQ148: 208319301 | AR148: 986007539 | AS148: 746267391 | AT148: 738424288 | AU148: 621275319 | AV148: 1597942576 | AW148: 1685628323 | AZ148: 1.199488167 | BA148: 1.212772592 | BB148: 1.19568266 | BC148: 1.086273227 | BD148: 1.037209125 | BE148: 0.9300378987 | BF148: 0.9294962771 | BG148: 0.9048069493 | BH148: 0.8799498043 | BI148: 0.8439581267 | BJ148: 0.9035879154 | BK148: 0.9792811828 | BM148: =SUMPRODUCT(TRANSPOSE($J$8:$J$19),AZ148:BK148) -> 6927857.4
AL149: 308957363 | AM149: 2110396540 | AN149: 2095681577 | AO149: 1698133806 | AP149: 480138082 | AQ149: 1262543317 | AR149: 889846608 | AS149: 1182536183 | AT149: 545233142 | AU149: 2119276741 | AV149: 968453150 | AW149: 956878350 | AZ149: 1.032449502 | BA149: 1.264994791 | BB149: 1.528379759 | BC149: 1.660067399 | BD149: 1.563329255 | BE149: 1.609298802 | BF149: 1.591844114 | BG149: 1.624356145 | BH149: 1.542844834 | BI149: 1.904008432 | BJ149: 1.899342894 | BK149: 1.892557344 | BM149: =SUMPRODUCT(TRANSPOSE($J$8:$J$19),AZ149:BK149) -> 8037458.056
AL150: 1554424605 | AM150: 769619601 | AN150: 1280727785 | AO150: 1166143436 | AP150: 1101837798 | AQ150: 790036694 | AR150: 1965191121 | AS150: 2088752333 | AT150: 1536903497 | AU150: 2076556319 | AV150: 1777975754 | AW150: 1396553174 | AZ150: 1.20004131 | BA150: 1.174361203 | BB150: 1.212568835 | BC150: 1.235864344 | BD150: 1.250693351 | BE150: 1.223708936 | BF150: 1.398249642 | BG150: 1.679097223 | BH150: 1.783572695 | BI150: 2.125667306 | BJ150: 2.336551847 | BK150: 2.441386995 | BM150: =SUMPRODUCT(TRANSPOSE($J$8:$J$19),AZ150:BK150) -> 7105836.054
